Workbook

Sheet Quote Summary
B2: Class / Department | C2: Total | E2: Number of Classes | F2: Total Cost
B3: Nursery | C3: =Nursery!G1 -> 4019.75 | E3: 0 | F3: =E3*C3 -> 0 | I3: Contact Details
B4: Reception | C4: =Reception!G1 -> 4136.95 | E4: 0 | F4: =E4*C4 -> 0
B5: EYFS Shared Resource | C5: ='EYFS Shared'!G1 -> 17669.74 | E5: 0 | F5: 0 | I5: Your name:
B6: EYFS Outdoor Play | C6: ='EYFS Outdoor & Play'!G1 -> 13592.05 | E6: 0 | F6: 0
I7: Phone Number:
B8: Year 1 | C8: ='Year 1'!H1 -> 6427.08 | E8: 0 | F8: 0
B9: Year 2 | C9: ='Year 2'!H1 -> 6863.668 | E9: 0 | F9: 0 | I9: Email Address:
B10: KS1 Shared Resources | C10: ='KS1 Shared'!H1 -> 12087.27 | E10: 0 | F10: 0
B11: Year 3 | C11: ='Year 3'!H1 -> 7295.64 | E11: 0 | F11: 0 | I11: School Name:
B12: Year 4 | C12: ='Year 4'!H1 -> 7109.99 | E12: 0 | F12: 0
B13: Year 5 | C13: ='Year 5'!H1 -> 7156.62 | E13: 0 | F13: 0 | I13: Attn Quote to:
B14: Year 6 | C14: ='Year 6'!H1 -> 7031.88 | E14: 0 | F14: 0
B15: KS2 Shared Resources | C15: ='KS2 Shared'!H1 -> 9702.84 | E15: 0 | F15: 0 | I15: Email:
B16: SENCO | C16: =SENCO!F1 -> 3844.81 | E16: 0 | F16: =E16*C16 -> 0
B17: Languages | C17: =Languages!F1 -> 2477.53 | E17: 0 | F17: =E17*C17 -> 0 | I17: Job Title:
B18: Primary Science | C18: ='Primary Science'!G1 -> 15823.12 | E18: 0 | F18: 0
B19: Computing | C19: =Computing!G1 -> 5607.58 | E19: 0 | F19: 0 | I19: Your Quote Ref / Purchase Order No.:
B20: Robotics | C20: =Robotics!G1 -> 20407.11 | E20: 0 | F20: =E20*C20 -> 0
B21: Whole School Games | C21: ='Whole School Games'!F1 -> 989.44 | E21: 0 | F21: 0
B22: Design Technology | C22: ='Design Technology'!G1 -> 12797.79 | E22: 0 | F22: 0
B23: Art | C23: =Art!G1 -> 16652.07 | E23: 0 | F23: 0
B24: Sport | C24: =Sport!F1 -> 29854.63 | E24: 0 | F24: 0
B25: Office and Display | C25: ='Office and Display'!G1 -> 6323.79 | E25: 0 | F25: 0
B26: Whole School Resources | C26: ='Whole School Resources'!G1 -> 4144.08 | E26: 0 | F26: 0
B27: Secondary Maths | C27: ='Secondary Maths'!H1 -> 3664.35 | E27: 0 | F27: 0
B28: Secondary English | C28: ='Secondary English'!G1 -> 1448.73 | E28: 0 | F28: 0
B29: Secondary Science | C29: ='Secondary Science'!H1 -> 30259.65 | E29: 0 | F29: 0
B30: Science Prep Room | C30: ='Science Prep'!G1 -> 17685.34 | E30: 0 | F30: 0
B31: Secondary Humanities | C31: ='Secondary Humanities'!G1 -> 1118.25 | E31: 0 | F31: 0
B32: Total: | C32: =SUM(C3:C31) -> 276191.748 | E32: Total: | F32: =SUM(F3:F31) -> 0

Sheet Nursery
F1: Basket Total | G1: =SUM(G4:G100) -> 4019.75
A2: Product Code | B2: Product Description | C2: Units of Measure | D2: Quantity | E2: Section | F2: Unit Price | G2: Total Price
A3: FS 1 CLASSROOM
A4: HC1778191 | B4: Group Listening Package | C4: 1 | D4: 1 | E4: Nursery CLASSROOM | F4: 188.99 | G4: =F4*D4 -> 188.99
A5: HC1436934 | B5: Set 3 Wooden Spoons | C5: 3 | D5: 5 | F5: 7.55 | G5: =F5*D5 -> 37.75
A6: HC48650277 | B6: Red Post Box | C6: 1 | D6: 1 | F6: 123.47 | G6: 123.47
A7: HC1239842 | B7: Play Tray | C7: EA | D7: 3 | F7: 20.02 | G7: 60.06
A8: HC1239846 | B8: Tough Play Tray Stand | C8: 1 | D8: 1 | F8: 97.01 | G8: 97.01
A9: HC1556329 | B9: Recycled Clip Board Blue | C9: 5 | D9: 4 | F9: 16.37 | G9: 65.48
A10: HC284654 | B10: CM Address Labels 89x36mm P250 | C10: 250 | D10: 2 | F10: 5.03 | G10: 10.06
A11: HC282418 | B11: CM Sticky Note Cube Neon 75x75mm | C11: 1 | D11: 5 | F11: 4.15 | G11: 20.75
A12: HC1691792 | B12: Classmates Highlighters 5 Colours Pk 48 | C12: 48 | D12: 1 | F12: 10.7 | G12: 10.7
A13: HC1691844 | B13: CM Easy Grip Triangular Pencils P72 | C13: 72 | D13: 1 | F13: 17.63 | G13: 17.63
A14: HC316244 | B14: CM Metal Sharpeners Double Hole Pk12 | C14: 12 | D14: 2 | F14: 11.33 | G14: 22.66
A15: HC131969 | B15: Staedtler Rasoplast Eraser P30 | C15: 30 | D15: 1 | F15: 12.59 | G15: 12.59
A16: HC298772 | B16: Rapesco X5-30PS Medium Duty Hole Punch | C16: 1 | D16: 1 | F16: 9.06 | G16: 9.06
A17: HC397364 | B17: Rapesco Sting Ray Half Strip Stapler | C17: 1 | D17: 1 | F17: 8.18 | G17: 8.18
A18: HC194863 | B18: Rapesco 24/6 Staples P5000 | C18: 5000 | D18: 1 | F18: 4.4 | G18: 4.4
A19: HC186556 | B19: Paper Fasteners 25mm Pack 200 | C19: 200 | D19: 1 | F19: 6.92 | G19: 6.92
A20: HC179406 | B20: Treasury Tag 51mm Yellow P100 | C20: 100 | D20: 1 | F20: 3.77 | G20: 3.77
A21: HC397442 | B21: C M Easytear Tape 24mmx66m Pk6 | C21: 6 | D21: 1 | F21: 5.66 | G21: 5.66
A22: HC1699057 | B22: Classmate Tape Dispenser | C22: 1 | D22: 1 | F22: 6.92 | G22: 6.92
A23: HC322874 | B23: Classmates Dble Sided Tape 12mmx33mm Pk6 | C23: 6 | D23: 1 | F23: 11.96 | G23: 11.96
A24: HC225517 | B24: C M Masking Tape 24mmx50mx9 | C24: 9 | D24: 1 | F24: 15.11 | G24: 15.11
A25: HC1109953 | B25: Blu Tack Original 60g | C25: 12 | D25: 1 | F25: 11.96 | G25: 11.96
A26: HC279324 | B26: Sellotape® Loop Spots - 125 Spots | C26: 125 | D26: 2 | F26: 11.71 | G26: 23.42
A27: HC279337 | B27: Sellotape® Hook Spots - 125 Spots | C27: 125 | D27: 2 | F27: 11.71 | G27: 23.42
A28: HC881054 | B28: CM LtWeight Lapboard A4 Lined P35 | C28: 35 | D28: 1 | F28: 65.52 | G28: 65.52
A29: HC131969 | B29: Steadtler Rasoplast Eraser Small White P30 | C29: 30 | D29: 1 | F29: 12.59 | G29: 12.59
A30: HC1774064 | B30: Berol Colour Broad Classpack 288 | C30: 288 | D30: 1 | F30: 75.97 | G30: 75.97
A31: HC1102952 | B31: Edding 8 All Purpose Assorted, Bullet Tip - Pack of 144 | C31: 144 | D31: 1 | F31: 86.3 | G31: 86.3
A32: HC209241 | B32: Giotto Metallic Fibre Pens P24 | C32: 24 | D32: 5 | F32: 23.3 | G32: 116.5
A33: CP052040 | B33: Budget Stretcher Classroom Essentials Paper Pack | C33: 1 | D33: 1 | F33: 303.65 | G33: 303.65
A34: HC1672714 | B34: Asst Brilliant Colour Art Paper A4 PK250 | C34: 250 | D34: 1 | F34: 17.63 | G34: 17.63
A35: HC420439 | B35: A4 Educraft Metallics Pack 100 | C35: 100 | D35: 2 | F35: 15.11 | G35: 30.22
A36: HC154940 | B36: Sugar Paper Stack Pack | C36: 3750 | D36: 1 | F36: 80.63 | G36: 80.63
A37: HC1563962 | B37: Naturals Wide Poster Paper Pack | C37: 8 | D37: 1 | F37: 66.14 | G37: 66.14
A38: HC295314 | B38: Crazy Cut Scissors Pk6 | C38: 6 | D38: 2 | F38: 12.59 | G38: 25.18
A39: HC1815197 | B39: Classmates Dual Control Scissors - Right Handed | C39: 1 | D39: 12 | F39: 3.77 | G39: 45.24
A40: HC1815195 | B40: Classmates Easy Grip Scissors - Left Handed | C40: EA | D40: 3 | F40: 7.55 | G40: 22.65
A41: HC1815193 | B41: Classmates Easy Grip Scissors - Right Handed | C41: 1 | D41: 3 | F41: 7.55 | G41: 22.65
A42: HC370844 | B42: Bulk Buy - 6 Collage Jars | C42: 6 | D42: 1 | F42: 31.49 | G42: 31.49
A43: HC1003759 | B43: Assorted Bean Bag Pack Pk18 | C43: 18 | D43: 1 | F43: 16.75 | G43: 16.75
A44: HC133737 | B44: Chubbi Stumps Pack 96 Assorted | C44: 96 | D44: 1 | F44: 8.18 | G44: 8.18
A45: HC175974 | B45: Pompom Pack 100 | C45: 100 | D45: 3 | F45: 7.55 | G45: 22.65
A46: HC259499 | B46: Craft Pipe Cleaners 30cm P1000 | C46: 1000 | D46: 1 | F46: 22.67 | G46: 22.67
A47: HC153003 | B47: Modelling Tools Set of 18 | C47: 18 | D47: 1 | F47: 23.93 | G47: 23.93
A48: HC1817618 | B48: Pot Of Modelling Tools 35 Pc | C48: 35 | D48: 1 | F48: 11.96 | G48: 11.96
A49: HC152691 | B49: Wooden Dough Tools Set P12 | C49: 12 | D49: 1 | F49: 12.59 | G49: 12.59
A50: HC103841 | B50: Modelling Board | C50: 1 | D50: 10 | F50: 7.55 | G50: 75.5
A51: HC1657162 | B51: Dynamic Vocal Microphone | C51: 1 | D51: 6 | F51: 10.07 | G51: 60.42
A52: HC165444 | B52: Transparent Counters PK1000 | C52: 1000 | D52: 1 | F52: 23.93 | G52: 23.93
A53: HC165639 | B53: Sorting Tray | C53: 1 | D53: 2 | F53: 12.97 | G53: 25.94
A54: HC420478 | B54: Small Shells 500g | C54: 144 | D54: 2 | F54: 12.59 | G54: 25.18
A55: HC1574295 | B55: Wood Mix | C55: 1 | D55: 2 | F55: 10.07 | G55: 20.14
A56: HC1773398 | B56: Junior Rainbow Pebbles | C56: 36 | D56: 2 | F56: 26.45 | G56: 52.9
A57: HC88201368 | B57: Super Giant Numbers 108 Pcs | C57: 108 | D57: 1 | F57: 101.67 | G57: 101.67
A58: HC1002646 | B58: Sorting Rings | C58: 6 | D58: 2 | F58: 12.21 | G58: 24.42
A59: HC1489774 | B59: Numicon Boxed Set Of 80 Shapes | C59: 80 | D59: 2 | F59: 56.69 | G59: 113.38
A60: HC1569663 | B60: Pack Of 5 Peg Boards Plus 1000 Pegs | C60: 5 | D60: 1 | F60: 22.04 | G60: 22.04
A61: HC1005074 | B61: Geometric Foam Solids Set 36 | C61: 36 | D61: 1 | F61: 34.64 | G61: 34.64
A62: HC1664899 | B62: Num Operations Drawing Templates Pk30 | C62: 29 | D62: 2 | F62: 15.86 | G62: 31.72
A63: HC1000339 | B63: Tactile Sandpaper Numerals 0-9 | C63: 10 | D63: 2 | F63: 11.96 | G63: 23.92
A64: HC166926 | B64: Blank Table Top Number line 0-20 Pk10 | C64: 10 | D64: 3 | F64: 10.71 | G64: 32.13
A65: HC1770178 | B65: Sand Timer Class Pack 20 | C65: 20 | D65: 1 | F65: 36.28 | G65: 36.28
A66: HC1770182 | B66: Sand Timer - 1 Minute | C66: 1 | D66: 1 | F66: 12.59 | G66: 12.59
A67: HC1770186 | B67: Sand Timer - 5 Minute | C67: 1 | D67: 1 | F67: 12.59 | G67: 12.59
A68: HC181213 | B68: Tape Measure Pack of 10 | C68: 10 | D68: 2 | F68: 11.33 | G68: 22.66
A69: HC167602 | B69: 1 - 6 Dice (pkt Of 30) | C69: 30 | D69: 1 | F69: 9.44 | G69: =F69*D69 -> 9.44
A70: HC1002659 | B70: Geometric Large Shapes | C70: 17 | D70: 2 | F70: 31.49 | G70: 62.98
A71: HC424404 | B71: Geoboards 6 Colours 230mm | C71: 6 | D71: 2 | F71: 22.67 | G71: 45.34
A72: HC1002661 | B72: Geometric Plastic Shapes Large | C72: 60 | D72: 1 | F72: 46.61 | G72: 46.61
A73: HC1002660 | B73: Geometric Plastic Shapes Small | C73: 60 | D73: 2 | F73: 23.68 | G73: 47.36
A74: HC1002807 | B74: Unbreakable Mirrors 90x65mm P10 | C74: 10 | D74: 2 | F74: 8.18 | G74: 16.36
A75: HC1383806 | B75: Mini Measure | C75: 1 | D75: 1 | F75: 19.52 | G75: 19.52
A76: HC1383804 | B76: Mini Callipers | C76: 1 | D76: 1 | F76: 20.15 | G76: 20.15
A77: HC1490628 | B77: Dino Bones Match And Measure | C77: 16 | D77: 1 | F77: 42.21 | G77: 42.21
A78: HC1490630 | B78: Dino Bones Activity Cards | C78: 16 | D78: 1 | F78: 21.41 | G78: 21.41
A79: HC881132 | B79: Simple Scales | C79: 1 | D79: 1 | F79: 32.12 | G79: 32.12
A80: HC1002795 | B80: Connecting Camels Pk 120 | C80: 120 | D80: 1 | F80: 35.02 | G80: 35.02
A81: HC1002654 | B81: Unifix Cubes - Pack 500 | C81: BXG | D81: 1 | F81: 35.9 | G81: 35.9
A82: HC1283650 | B82: Plastic Counters 22mm (pkt Of 500) | C82: 500 | D82: 2 | F82: 12.59 | G82: 25.18
A83: HC363525 | B83: Pupil Counting Stick P6 | C83: 6 | D83: 5 | F83: 22.67 | G83: 113.35
A84: HC1674195 | B84: Tactile Counting Stones | C84: 1 | D84: 1 | F84: 42.2 | G84: 42.2
A85: HC165405 | B85: 1000pk Counting Sticks | C85: 1000 | D85: 1 | F85: 25.83 | G85: 25.83
A86: HC1780988 | B86: Magnetic Number Mazes 0-9 | C86: 10 | D86: 1 | F86: 60.47 | G86: 60.47
A87: HC274605 | B87: Shape Templates | C87: 5 | D87: 5 | F87: 10.45 | G87: 52.25
A88: HC1666493 | B88: Easy-grip Shape Stampers - Set Of 14 | C88: 14 | D88: 1 | F88: 22.67 | G88: 22.67
A89: HC1569661 | B89: Pack Of 5 Peg Boards | C89: 5 | D89: 1 | F89: 12.59 | G89: 12.59
A90: HC1003345 | B90: Discovery Globe 230mm | C90: 1 | D90: 1 | F90: 39.05 | G90: 39.05
A91: HC396558 | B91: Classmates Framed Laptop Boards - Magnetic A4 | C91: 10 | D91: 1 | F91: 57.96 | G91: 57.96
A92: HC213674 | B92: Lyra Ferby Tri Col Pencils PK96 | C92: 96 | D92: 1 | F92: 56.69 | G92: 56.69
A93: HC1000006 | B93: Counting Keys | C93: 1 | D93: 1 | F93: 52.03 | G93: 52.03
A94: HC1499776 | B94: Jumbo Bright Buttons | C94: 1 | D94: 1 | F94: 17.63 | G94: 17.63
A95: HC1423045 | B95: Insect Class Pack | C95: 48 | D95: 1 | F95: 46.61 | G95: 46.61
A96: CP053501 | B96: Baking and Modelling Set | C96: 1 | D96: 1 | F96: 51.65 | G96: 51.65
A97: HC1789251 | B97: Breakfast And Dinner Set | C97: 78 | D97: 1 | F97: 34.01 | G97: 34.01
A98: HC1111420 | B98: Non Stick Cookware Set | C98: 1 | D98: 1 | F98: 37.79 | G98: 37.79
A99: HC1798035 | B99: Sabichi White 2-Slice Toaster | C99: 1 | D99: 1 | F99: 23.93 | G99: 23.93
A100: HC101117 | B100: 100 Piece Classroom Play Food | C100: 1 | D100: 1 | F100: 142.37 | G100: 142.37

Sheet Reception
F1: Basket Total | G1: =SUM(G3:G115) -> 4136.95
A2: Product Code | B2: Product Description | C2: Units of Measure | D2: Quantity | E2: Section | F2: Unit Price | G2: Total Price
A3: MATHS
A4: HC165444 | B4: Transparent Counters PK1000 | C4: 1000 | D4: 1 | E4: MATHS | F4: 23.93 | G4: =F4*D4 -> 23.93
A5: HC1622425 | B5: Natural Materials | C5: 1 | D5: 2 | F5: 45.35 | G5: 90.7
A6: HC165639 | B6: Sorting Tray | C6: 1 | D6: 2 | F6: 12.97 | G6: 25.94
A7: HC420478 | B7: Small Shells 500g | C7: 144 | D7: 2 | F7: 12.59 | G7: 25.18
A8: HC1574295 | B8: Wood Mix | C8: 1 | D8: 2 | F8: 10.07 | G8: 20.14
A9: HC1773398 | B9: Junior Rainbow Pebbles | C9: 36 | D9: 2 | F9: 26.45 | G9: 52.9
A10: HC88201368 | B10: Super Giant Numbers 108 Pcs | C10: 108 | D10: 1 | F10: 101.67 | G10: 101.67
A11: HC1002646 | B11: Sorting Rings | C11: 6 | D11: 2 | F11: 12.21 | G11: 24.42
A12: HC1489774 | B12: Numicon Boxed Set Of 80 Shapes | C12: 80 | D12: 2 | F12: 56.69 | G12: 113.38
A13: HC1569663 | B13: Pack Of 5 Peg Boards Plus 1000 Pegs | C13: 5 | D13: 1 | F13: 22.04 | G13: 22.04
A14: HC1005074 | B14: Geometric Foam Solids Set 36 | C14: 36 | D14: 2 | F14: 34.64 | G14: 69.28
A15: HC1664899 | B15: Num Operations Drawing Templates Pk30 | C15: 29 | D15: 5 | F15: 15.86 | G15: 79.3
A16: HC1000339 | B16: Tactile Sandpaper Numerals 0-9 | C16: 10 | D16: 2 | F16: 11.96 | G16: 23.92
A17: HC332676 | B17: 0-100 Table Top Number Lines Pk5 | C17: 5 | D17: 2 | F17: 11.33 | G17: 22.66
A18: HC166926 | B18: Blank Table Top Number line 0-20 Pk10 | C18: 10 | D18: 2 | F18: 10.71 | G18: 21.42
A19: HC1770178 | B19: Sand Timer Class Pack 20 | C19: 20 | D19: 1 | F19: 36.28 | G19: 36.28
A20: HC1770182 | B20: Sand Timer - 1 Minute | C20: 1 | D20: 1 | F20: 12.59 | G20: 12.59
A21: HC1770186 | B21: Sand Timer - 5 Minute | C21: 1 | D21: 1 | F21: 12.59 | G21: 12.59
A22: HC181213 | B22: Tape Measure Pack of 10 | C22: 10 | D22: 2 | F22: 11.33 | G22: 22.66
A23: HC167602 | B23: 1 - 6 Dice (pkt Of 30) | C23: 30 | D23: 1 | F23: 9.44 | G23: 9.44
A24: HC1002659 | B24: Geometric Large Shapes | C24: 17 | D24: 2 | F24: 31.49 | G24: 62.98
A25: HC424404 | B25: Geoboards 6 Colours 230mm | C25: 6 | D25: 3 | F25: 22.67 | G25: 68.01
A26: HC1002661 | B26: Geometric Plastic Shapes Large | C26: 60 | D26: 1 | F26: 46.61 | G26: 46.61
A27: HC1002660 | B27: Geometric Plastic Shapes Small | C27: 60 | D27: 2 | F27: 23.68 | G27: 47.36
A28: HC167719 | B28: Playing Cards | C28: 1 | D28: 6 | F28: 1.88 | G28: 11.28
A29: HC167485 | B29: Multi-sided Dice | C29: 5 | D29: 6 | F29: 5.41 | G29: 32.46
A30: HC1002807 | B30: Unbreakable Mirrors 90x65mm P10 | C30: 10 | D30: 2 | F30: 8.18 | G30: 16.36
A31: HC373873 | B31: Jumbo Playing Cards | C31: 1 | D31: 3 | F31: 5.41 | G31: 16.23
A32: HC1383806 | B32: Mini Measure | C32: 1 | D32: 1 | F32: 19.52 | G32: 19.52
A33: HC1383804 | B33: Mini Callipers | C33: 1 | D33: 1 | F33: 20.15 | G33: 20.15
A34: HC1490628 | B34: Dino Bones Match And Measure | C34: 16 | D34: 1 | F34: 42.21 | G34: 42.21
A35: HC1490630 | B35: Dino Bones Activity Cards | C35: 16 | D35: 1 | F35: 21.41 | G35: 21.41
A36: HC881132 | B36: Simple Scales | C36: 1 | D36: 1 | F36: 32.12 | G36: =F36*D36 -> 32.12
A37: HC1002795 | B37: Connecting Camels Pk 120 | C37: 120 | D37: 1 | F37: 35.02 | G37: 35.02
A38: HC1002654 | B38: Unifix Cubes - Pack 500 | C38: BXG | D38: 1 | F38: 35.9 | G38: 35.9
A39: HC1283650 | B39: Plastic Counters 22mm (pkt Of 500) | C39: 500 | D39: 2 | F39: 12.59 | G39: 25.18
A40: HC363525 | B40: Pupil Counting Stick P6 | C40: 6 | D40: 3 | F40: 22.67 | G40: 68.01
A41: HC1674195 | B41: Tactile Counting Stones | C41: 1 | D41: 1 | F41: 42.2 | G41: 42.2
A42: HC165405 | B42: 1000pk Counting Sticks | C42: 1000 | D42: 1 | F42: 25.83 | G42: 25.83
A43: HC1780988 | B43: Magnetic Number Mazes | C43: 10 | D43: 1 | F43: 60.47 | G43: 60.47
A44: HC1535915 | B44: Numbers 0-100 | C44: 100 | D44: 1 | F44: 3.52 | G44: 3.52
A45: HC199946 | B45: Number and Operations Moulds | C45: 1 | D45: 1 | F45: 15.11 | G45: 15.11
A46: HC1490618 | B46: Jumbo Number Pebbles | C46: 1 | D46: 1 | F46: 44.09 | G46: 44.09
A47: HC274605 | B47: Shape Templates | C47: 5 | D47: 5 | F47: 10.45 | G47: 52.25
A48: HC1666493 | B48: Easy-grip Shape Stampers - Set Of 14 | C48: 14 | D48: 1 | F48: 22.67 | G48: 22.67
A49: HC1000006 | B49: Counting Keys | C49: 1 | D49: 1 | F49: 52.03 | G49: 52.03
A50: HC1499776 | B50: Jumbo Bright Buttons | C50: 1 | D50: 1 | F50: 17.63 | G50: 17.63
A51: HC1423045 | B51: Insect Class Pack | C51: 48 | D51: 1 | F51: 46.61 | G51: 46.61
A52: CP053501 | B52: Baking and Modelling Set | C52: 1 | D52: 1 | F52: 51.65 | G52: 51.65
A53: HC1789251 | B53: Breakfast And Dinner Set | C53: 78 | D53: 1 | F53: 34.01 | G53: 34.01
A54: HC1111420 | B54: Non Stick Cookware Set | C54: 1 | D54: 1 | F54: 37.79 | G54: 37.79
A55: HC1798035 | B55: Sabichi White 2-Slice Toaster | C55: 1 | D55: 1 | F55: 23.93 | G55: 23.93
A56: HC101117 | B56: 100 Piece Classroom Play Food | C56: 1 | D56: 1 | F56: 142.37 | G56: 142.37
A57: STATIONERY
A58: HC1436934 | B58: Set 3 Wooden Spoons | C58: 3 | D58: 2 | E58: STATIONERY | F58: 7.55 | G58: =F58*D58 -> 15.1
A59: HC1239842 | B59: Play Tray | C59: EA | D59: 3 | F59: 20.02 | G59: 60.06
A60: HC1239846 | B60: Tough Play Tray Stand | C60: 1 | D60: 1 | F60: 97.01 | G60: 97.01
A61: HC206745 | B61: Bulky Zip Wallet A4 Assorted | C61: 100 | D61: 1 | F61: 52.91 | G61: 52.91
A62: HC255469 | B62: A5 Zip Wallets Red P25 | C62: 25 | D62: 3 | F62: 15.11 | G62: 45.33
A63: HC284654 | B63: CM Address Labels 89x36mm P250 | C63: 250 | D63: 2 | F63: 5.03 | G63: 10.06
A64: HC282418 | B64: CM Sticky Note Cube Neon 75x75mm | C64: 1 | D64: 5 | F64: 4.15 | G64: 20.75
A65: HC1691792 | B65: Classmates Highlighters 5 Colours Pk 48 | C65: 48 | D65: 1 | F65: 10.7 | G65: 10.7
A66: HC337213 | B66: Staedtler Noris HB Pencils Pk150 | C66: 150 | D66: 1 | F66: 18.89 | G66: 18.89
A67: HC1691844 | B67: CM Easy Grip Triangular Pencils P72 | C67: 72 | D67: 1 | F67: 17.63 | G67: 17.63
A68: HC316244 | B68: CM Metal Sharpeners Double Hole Pk12 | C68: 12 | D68: 2 | F68: 11.33 | G68: 22.66
A69: HC131969 | B69: Staedtler Rasoplast Eraser P30 | C69: 30 | D69: 1 | F69: 12.59 | G69: 12.59
A70: HC88200582 | B70: Shatterproof 30cm/mm Clear Ruler Pk10 | C70: 10 | D70: 1 | F70: 4.9 | G70: 4.9
A71: HC298772 | B71: Rapesco X5-30PS Medium Duty Hole Punch | C71: 1 | D71: 1 | F71: 9.06 | G71: 9.06
A72: HC397364 | B72: Rapesco Sting Ray Half Strip Stapler | C72: 1 | D72: 1 | F72: 8.18 | G72: 8.18
A73: HC194863 | B73: Rapesco 24/6 Staples P5000 | C73: 5000 | D73: 1 | F73: 4.4 | G73: 4.4
A74: HC1694632 | B74: Classmate Classroom Collection | C74: 9 | D74: 1 | F74: 20.15 | G74: 20.15
A75: HC186556 | B75: Paper Fasteners 25mm Pack 200 | C75: 200 | D75: 1 | F75: 6.92 | G75: 6.92
A76: HC179406 | B76: Treasury Tag 51mm Yellow P100 | C76: 100 | D76: 1 | F76: 3.77 | G76: 3.77
A77: HC397442 | B77: C M Easytear Tape 24mmx66m Pk6 | C77: 6 | D77: 1 | F77: 5.66 | G77: 5.66
A78: HC1699057 | B78: Classmate Tape Dispenser | C78: 1 | D78: 1 | F78: 6.92 | G78: 6.92
A79: HC322874 | B79: Classmates Dble Sided Tape 12mmx33mm Pk6 | C79: 6 | D79: 1 | F79: 11.96 | G79: 11.96
A80: HC225517 | B80: C M Masking Tape 24mmx50mx9 | C80: 9 | D80: 1 | F80: 15.11 | G80: 15.11
A81: HC1109953 | B81: Blu Tack Original 60g | C81: 12 | D81: 1 | F81: 11.96 | G81: 11.96
A82: HC479745 | B82: A4 Hardboard Clipboard P12 | C82: 12 | D82: 1 | F82: 35.27 | G82: 35.27
A83: HC1254676 | B83: Texet Albert Junior Classpack | C83: 30 | D83: 1 | F83: 192.77 | G83: 192.77
A84: HC279324 | B84: Sellotape® Loop Spots - 125 Spots | C84: 125 | D84: 2 | F84: 11.71 | G84: 23.42
A85: HC279337 | B85: Sellotape® Hook Spots - 125 Spots | C85: 125 | D85: 2 | F85: 11.71 | G85: 23.42
A86: HC881054 | B86: CM LtWeight Lapboard A4 Lined P35 | C86: 35 | D86: 1 | F86: 65.52 | G86: 65.52
A87: HC131969 | B87: Staedtler Rasoplast Eraser P30 | C87: 30 | D87: 1 | F87: 12.59 | G87: 12.59
A88: HC380893 | B88: Pencil Classpk 360 Colourthin | C88: 360 | D88: 1 | F88: 92.6 | G88: 92.6
A89: HC1774064 | B89: Berol Colour Broad Classpack 288 | C89: 288 | D89: 1 | F89: 75.97 | G89: 75.97
A90: HC1102952 | B90: Edding 8 All Purpose Assorted, Bullet Tip - Pack of 144 | C90: 12 | D90: 1 | F90: 86.3 | G90: =F90*D90 -> 86.3
A91: HC209241 | B91: Giotto Metallic Fibre Pens P24 | C91: 120 | D91: 2 | F91: 23.3 | G91: 46.6
A92: HC1317562 | B92: Vivid Cardstock Combo A4 And A5 | C92: 750 | D92: 1 | F92: 43.46 | G92: 43.46
A93: HC323524 | B93: Classmates A4 Pastel Ass Card 200pk | C93: 200 | D93: 2 | F93: 10.7 | G93: 21.4
A94: HC1672714 | B94: Asst Brilliant Colour Art Paper A4 PK250 | C94: 250 | D94: 1 | F94: 17.63 | G94: 17.63
A95: HC420439 | B95: A4 Educraft Metallics Pack 100 | C95: 100 | D95: 2 | F95: 15.11 | G95: 30.22
A96: HC154940 | B96: Sugar Paper Stack Pack | C96: 3750 | D96: 1 | F96: 80.63 | G96: 80.63
A97: HC295314 | B97: Crazy Cut Scissors Pk6 | C97: 6 | D97: 2 | F97: 12.59 | G97: 25.18
A98: HC1815197 | B98: Classmates Dual Control Scissors - Right Handed | C98: 1 | D98: 12 | F98: 3.77 | G98: 45.24
A99: HC1815195 | B99: Classmates Easy Grip Scissors - Left Handed | C99: EA | D99: 3 | F99: 7.55 | G99: 22.65
A100: HC1815193 | B100: Classmates Easy Grip Scissors - Right Handed | C100: 1 | D100: 3 | F100: 7.55 | G100: 22.65
A101: HC1003759 | B101: Assorted Bean Bag Pack Pk18 | C101: 18 | D101: 1 | F101: 16.75 | G101: 16.75
A102: HC133737 | B102: Chubbi Stumps Pack 96 Assorted | C102: 96 | D102: 1 | F102: 8.18 | G102: 8.18
A103: HC153003 | B103: Modelling Tools Set of 18 | C103: 18 | D103: 2 | F103: 23.93 | G103: 47.86
A104: HC1817618 | B104: Pot Of Modelling Tools 35 Pc | C104: 35 | D104: 1 | F104: 11.96 | G104: 11.96
A105: HC152691 | B105: Wooden Dough Tools Set P12 | C105: 12 | D105: 1 | F105: 12.59 | G105: 12.59
A106: HC103841 | B106: Modelling Board | C106: 1 | D106: 10 | F106: 7.55 | G106: 75.5
A107: ENGLISH
A108: HC248683 | B108: Alphabet Pebbles | C108: 1 | D108: 1 | E108: ENGLISH | F108: 49.13 | G108: =F108*D108 -> 49.13
A109: HC48850846 | B109: A4 Phoneme Frame Whiteboards - PHONEME Frame Boards, Pens & Erasers | C109: 107 | D109: 1 | F109: 119.69 | G109: 119.69
A110: HC1545178 | B110: Tricky Word Pebbles Set 1 | C110: 1 | D110: 1 | F110: 70.55 | G110: 70.55
A111: HC1002106 | B111: Smart Chute | C111: 1 | D111: 1 | F111: 23.93 | G111: 23.93
A112: HC1657162 | B112: Dynamic Vocal Microphone | C112: 1 | D112: 6 | F112: 10.07 | G112: 60.42
A113: HC1490696 | B113: Phonics Pebbles | C113: 1 | D113: 1 | F113: 61.73 | G113: 61.73
A114: GEOGRAPHY
A115: HC1003345 | B115: Discovery Globe 230mm | C115: 1 | D115: 1 | E115: GEOGRAPHY | F115: 39.05 | G115: =F115*D115 -> 39.05

Sheet EYFS Shared
F1: Basket Total | G1: =SUM(G3:G141) -> 17669.74
A2: Product Code | B2: Product Description | C2: Units of Measure | D2: Quantity | E2: Section | F2: Unit Price | G2: Total Price
A3: Early Years Shared Resources (ICT, Play, Messy-Play etc.)
A4: HC1778191 | B4: Group Listening Package | C4: 1 | D4: 1 | E4: EYS Shared Resources | F4: 188.99 | G4: =F4*D4 -> 188.99
A5: HC1782432 | B5: King Georgeâ€™s Castle With Knights | C5: 1 | D5: 2 | F5: 110.87 | G5: =F5*D5 -> 221.74
A6: HC1499801 | B6: Fairy And Elf Furniture Pack | C6: 15 | D6: 1 | F6: 56.69 | G6: 56.69
A7: HC168681 | B7: Floor Tessellating Shapes | C7: 1 | D7: 1 | F7: 63.37 | G7: 63.37
A8: CP00050516 | B8: Clear Plastic Buckets - Pack of 8 | C8: PK | D8: 1 | F8: 21.41 | G8: 21.41
A9: HC1773348 | B9: Desk Top Sand and Water Trays | C9: 4 | D9: 1 | F9: 117.17 | G9: 117.17
A10: HC1004189 | B10: Fairy Tale Wooden Character Set | C10: 1 | D10: 1 | F10: 107.09 | G10: 107.09
A11: HC1550184 | B11: Jumbo Eyedroppers | C11: 6 | D11: 2 | F11: 14.35 | G11: 28.7
A12: HC1808606 | B12: Rainbow Tongs | C12: 6 | D12: 2 | F12: 12.59 | G12: 25.18
A13: HC342842 | B13: Easy Grip Tweezers PK12 | C13: 12 | D13: 2 | F13: 18.26 | G13: 36.52
A14: HC1785981 | B14: Superheroes Wooden Characters | C14: 1 | D14: 1 | F14: 57.95 | G14: 57.95
A15: HC424612 | B15: Stampers Numbers And Dot X 20 Pieces | C15: 1 | D15: 1 | F15: 22.68 | G15: 22.68
A16: EWMT14586 | B16: Mini Den | C16: 1 | D16: 1 | F16: 46.61 | G16: 46.61
A17: HC1390943 | B17: Bright Colourful Pegs | C17: 30 | D17: 1 | F17: 28.34 | G17: 28.34
A18: HC1559169 | B18: Henry Household Cleaning Set | C18: 1 | D18: 1 | F18: 22.67 | G18: 22.67
A19: HC102927 | B19: Ironing Set | C19: 1 | D19: 1 | F19: 38.42 | G19: 38.42
A20: HC478224 | B20: Henry Vacuum | C20: 1 | D20: 1 | F20: 32.75 | G20: 32.75
A21: HC247747 | B21: Dyson Ball | C21: 1 | D21: 1 | F21: 34.01 | G21: 34.01
A22: HC1495211 | B22: Wooden Shopping Trolley | C22: 1 | D22: 2 | F22: 75.59 | G22: 151.18
A23: HC1391117 | B23: Shopping Baskets Pack 4 | C23: 4 | D23: 2 | F23: 35.9 | G23: 71.8
A24: HC1779601 | B24: Doctors Check Up Kit | C24: 1 | D24: 1 | F24: 20.15 | G24: 20.15
A25: HC365280 | B25: Vets Kit | C25: 1 | D25: 1 | F25: 56.69 | G25: 56.69
A26: HC1497324 | B26: Fun Hats And Accessories | C26: 1 | D26: 1 | F26: 65.51 | G26: 65.51
A27: HC128940 | B27: People Who Help Us 3-5Yrs | C27: 5 | D27: 1 | F27: 117.12 | G27: 117.12
A28: HC247825 | B28: Jungle Capes | C28: 1 | D28: 1 | F28: 78.11 | G28: 78.11
A29: HC486648 | B29: Storytelling Masks | C29: 21 | D29: 1 | F29: 45.35 | G29: 45.35
A30: HC1562149 | B30: New Sprouts Fix It | C30: 1 | D30: 1 | F30: 37.16 | G30: 37.16
A31: HC1822222 | B31: Tool Belt | C31: 1 | D31: 1 | F31: 22.67 | G31: 22.67
A32: HC1147253 | B32: Hard Bodied Doll - African Boy | C32: 1 | D32: 1 | F32: 31.49 | G32: 31.49
A33: HC1147254 | B33: Hard Bodied Doll - African Girl | C33: 1 | D33: 1 | F33: 31.49 | G33: 31.49
A34: HC1265589 | B34: Hard Bodied Doll - Latino Boy | C34: 1 | D34: 1 | F34: 31.49 | G34: 31.49
A35: HC1265591 | B35: Hard Bodied Doll - Latino Girl | C35: 1 | D35: 1 | F35: 31.49 | G35: 31.49
A36: HC1147251 | B36: Hard Bodied Doll - Oriental Boy | C36: 1 | D36: 1 | F36: 31.49 | G36: 31.49
A37: HC1147252 | B37: Hard Bodied Doll - Oriental Girl | C37: 1 | D37: 1 | F37: 31.49 | G37: 31.49
A38: HC1147255 | B38: Hard Bodied Doll - European Boy | C38: 1 | D38: 1 | F38: 31.49 | G38: 31.49
A39: HC1147256 | B39: Hard Bodied Doll - European Girl | C39: 1 | D39: 1 | F39: 31.49 | G39: 31.49
A40: HC128459 | B40: Newborn Baby Doll Offer | C40: 4 | D40: 1 | F40: 45.31 | G40: 45.31
A41: HC1826927 | B41: Dolls Wooden Furniture Offer | C41: 1 | D41: 1 | F41: 134.78 | G41: 134.78
A42: HC1570228 | B42: Assorted Dolls Outfits 41cms | C42: 6 | D42: 1 | F42: 70.55 | G42: 70.55
A43: HC123051 | B43: Multicultural Dolls Clothes | C43: 7 | D43: 1 | F43: 64.88 | G43: 64.88
A44: HC1499879 | B44: Dolls House And Furniture Offer | C44: 1 | D44: 1 | F44: 165.03 | G44: 165.03
A45: HC1112078 | B45: All Seasons Play House | C45: 1 | D45: 1 | F45: 201.59 | G45: 201.59
A46: HC1777025 | B46: Dolls Furniture Set | C46: 1 | D46: 1 | F46: 65.51 | G46: 65.51
A47: HC1111393 | B47: Multicultural Dolls - White Family | C47: 4 | D47: 1 | F47: 22.67 | G47: 22.67
A48: HC1111403 | B48: Multicultural Dolls - Black Family | C48: 4 | D48: 1 | F48: 22.67 | G48: 22.67
A49: HC1111404 | B49: Multicultural Dolls - Asian Family | C49: 4 | D49: 1 | F49: 22.67 | G49: 22.67
A50: HC198802 | B50: Construction Workers | C50: 4 | D50: 1 | F50: 29.6 | G50: 29.6
A51: HC130578 | B51: Fire Fighters | C51: 4 | D51: 1 | F51: 23.93 | G51: 23.93
A52: HC123103 | B52: Family Group Special Needs Dolls Offer | C52: 1 | D52: 1 | F52: 127.21 | G52: 127.21
A53: HC1499787 | B53: Wooden Tree Set | C53: 1 | D53: 2 | F53: 27.71 | G53: 55.42
A54: HC1811873 | B54: Farm Play Tray Bundle | C54: 1 | D54: 1 | F54: 110.87 | G54: 110.87
A55: HC1423045 | B55: Insect Class Pack | C55: 48 | D55: 2 | F55: 46.61 | G55: =F55*D55 -> 93.22
A56: HC1812892 | B56: Jumbo Dinosaurs | C56: 6 | D56: 2 | F56: 44.09 | G56: 88.18
A57: HC128706 | B57: Dinosaur Mountain Play Pack | C57: 36 | D57: 2 | F57: 30.23 | G57: 60.46
A58: HC1766921 | B58: Wooden Vehicle Assortment | C58: 24 | D58: 1 | F58: 73.07 | G58: 73.07
A59: HC1776257 | B59: Wooden Train Assortment | C59: 24 | D59: 2 | F59: 73.07 | G59: 146.14
A60: HC1552185 | B60: Giant Road | C60: 1 | D60: 1 | F60: 23.55 | G60: 23.55
A61: CP00052010 | B61: Multi Storey Car Park | C61: 1 | D61: 1 | F61: 161.27 | G61: 161.27
A62: HC488702 | B62: Authentic Die Cast 75pc Set | C62: 75 | D62: 1 | F62: 88.19 | G62: 88.19
A63: HC420478 | B63: Small Shells 500g | C63: 144 | D63: 2 | F63: 12.59 | G63: 25.18
A64: HC1426800 | B64: Small Black Stones 1kg | C64: 1 | D64: 4 | F64: 5.03 | G64: 20.12
A65: HC1426801 | B65: Small White Stones 1kg | C65: 1 | D65: 4 | F65: 5.03 | G65: 20.12
A66: HC1622425 | B66: Natural Materials | C66: 1 | D66: 2 | F66: 45.35 | G66: 90.7
A67: HC1574295 | B67: Wood Mix | C67: 1 | D67: 2 | F67: 10.07 | G67: 20.14
A68: HC1622425 | B68: Natural Materials | C68: 1 | D68: 1 | F68: 45.35 | G68: 45.35
A69: HC1861653 | B69: Smooshy Sand - Blue 2.5kg Bag | C69: 1 | D69: 2 | F69: 21.41 | G69: 42.82
A70: HC1860499 | B70: Gelli Play Blue | C70: 1 | D70: 2 | F70: 25.19 | G70: 50.38
A71: HC125248 | B71: Giant Sand And Water Activity Set | C71: 1 | D71: 1 | F71: 119.69 | G71: 119.69
A72: HC1311126 | B72: Classroom Water Play Set | C72: 1 | D72: 1 | F72: 66.77 | G72: 66.77
A73: HC176104 | B73: Acrylic Gemstones 500g | C73: 1 | D73: 1 | F73: 21.41 | G73: 21.41
A74: HC259317 | B74: Popoids Animal People Set | C74: 1 | D74: 1 | F74: 151.19 | G74: 151.19
A75: HC1514375 | B75: Wooden Octoplay Offer | C75: 1 | D75: 2 | F75: 129.75 | G75: 259.5
A76: HC1369980 | B76: Mobilo Group Set – 120 Pieces | C76: 120 | D76: 1 | F76: 66.77 | G76: 66.77
A77: HC48753913 | B77: Kid Knex Group Set | C77: 1 | D77: 1 | F77: 56.69 | G77: 56.69
A78: HC1660105 | B78: Colours And Shape Pegboard | C78: 4 | D78: 1 | F78: 56.69 | G78: 56.69
A79: HC389096 | B79: Stainless Steel Mixing Bowl | C79: EA | D79: 3 | F79: 7.67 | G79: 23.01
A80: HC115576 | B80: I Can Take Care Of Myself Puzzles | C80: 1 | D80: 1 | F80: 97.01 | G80: 97.01
A81: HC1552185 | B81: Giant Road | C81: 1 | D81: 1 | F81: 23.55 | G81: 23.55
A82: HC123259 | B82: Farm Animals and People Set 38 | C82: 38 | D82: 2 | F82: 40.31 | G82: 80.62
A83: HC126171 | B83: Alphabet And Number Mould Offer | C83: 2 | D83: 1 | F83: 31.49 | G83: 31.49
A84: CP00051035 | B84: Textured sand rollers from Hope | C84: 5 | D84: 1 | F84: 25.19 | G84: 25.19
A85: HC1510000 | B85: Sand And Water Mill | C85: 1 | D85: 6 | F85: 16.37 | G85: 98.22
A86: HC1537013 | B86: Sprat Fishing 1-30 | C86: 1 | D86: 1 | F86: 48.12 | G86: 48.12
A87: HC1512401 | B87: Smart Splash Number Fun Ducks | C87: 1 | D87: 1 | F87: 27.71 | G87: 27.71
A88: HC416565 | B88: Sorting Bowls PK6 | C88: 6 | D88: 6 | F88: 9.56 | G88: 57.36
A89: HC1794249 | B89: Nylon Smocks - Small | C89: EA | D89: 10 | F89: 5.41 | G89: 54.1
A90: HC1794251 | B90: Nylon Smocks - Medium | C90: EA | D90: 10 | F90: 5.41 | G90: 54.1
A91: HC342842 | B91: Easy Grip Tweezers PK12 | C91: 12 | D91: 4 | F91: 18.26 | G91: 73.04
A92: EHMT14042 | B92: Jumbo Number Pebbles | C92: pack | D92: 6 | F92: 44.09 | G92: 264.54
A93: HC1511962 | B93: Silishapes® Number Dots | C93: pack of 10 | D93: 6 | F93: 11.96 | G93: 71.76
A94: HC167199 | B94: Number Fans - Pupil - Pack 10 | C94: pack of 10 | D94: 6 | F94: 17.38 | G94: 104.28
A95: HC1002800 | B95: Early Numbers Games Pack | C95: pack of 4 | D95: 3 | F95: 39.68 | G95: 119.04
A96: HC1579923 | B96: Relational Attribute Blocks | C96: set of 60 | D96: 6 | F96: 26.2 | G96: 157.2
A97: HC1579915 | B97: Fruit Counters | C97: set of 108 | D97: 6 | F97: 28.34 | G97: 170.04
A98: HC1559155 | B98: Supermarket Till | C98: 1 | D98: 6 | F98: 27.71 | G98: 166.26
A99: HC176585 | B99: Classmates Beads Bucket | C99: tub | D99: 6 | F99: 41.57 | G99: 249.42
A100: EFMT14074 | B100: Box of 80 Numicon | C100: box | D100: 6 | F100: 56.69 | G100: 340.14
A101: HC1422645 | B101: Silishapes™ Alphabet Trace | C101: pack | D101: 6 | F101: 17.12 | G101: 102.72
A102: HC1826918 | B102: Chalkboard Cubes | C102: pack of 12 | D102: 6 | F102: 30.86 | G102: 185.16
A103: ECMT10565 | B103: Alphabet Teaching Tubs Pack 26 Sounds | C103: 26 tubs | D103: 6 | F103: 314.99 | G103: =F103*D103 -> 1889.94
A104: HC1860676 | B104: 2 Way Magnifier | C104: Each | D104: 15 | F104: 11.96 | G104: 179.4
A105: HC1812882 | B105: Sealife Animals Set | C105: pack of 7 | D105: 6 | F105: 44.09 | G105: 264.54
A106: HC1819492 | B106: Loose Parts Special Offer Bundle | C106: bundle | D106: 2 | F106: 116.17 | G106: 232.34
A107: HC1773396 | B107: Large Hollow Blocks | C107: P28 | D107: 4 | F107: 440.99 | G107: 1763.96
A108: ITRP06734 | B108: Kidzcanplay™ Reception Kit | C108: kit | D108: 1 | F108: 705.59 | G108: 705.59
A109: ITRP06735 | B109: Kidzcanplay™ Nursery Kit | C109: kit | D109: 1 | F109: 503.99 | G109: 503.99
A110: HC1002642 | B110: Dinosaur counters | C110: tub pack 128 | D110: 1 | F110: 29.6 | G110: 29.6
A111: HC1769817 | B111: Plum Discovery Mud Kitchen | C111: 1 | D111: 1 | F111: 377.99 | G111: 377.99
A112: HC1674447 | B112: Mud Kitchen Bowls | C112: 1 | D112: 1 | F112: 64.25 | G112: 64.25
A113: HC1775632 | B113: Large Metal Ladels and Sieve Ladels | C113: 1 | D113: 1 | F113: 26.45 | G113: 26.45
A114: HC1290746 | B114: Number Construction | C114: box | D114: 1 | F114: 31.11 | G114: 31.11
A115: EFMT13249 | B115: Superior Sorting Set | C115: set | D115: 1 | F115: 71.81 | G115: 71.81
A116: EYFS Shared role play
A117: HC101117 | B117: 100 Piece Classroom Play Food | D117: 1 | F117: 142.37 | G117: 142.37
A118: HC88200768 | B118: 75 Piece Supermarket Pack | D118: 3 | F118: 37.79 | G118: 113.37
A119: HC130110 | B119: 20 Piece Fruit Pack | D119: 5 | F119: 32.12 | G119: 160.6
A120: HC1196984 | B120: Millhouse - Outdoor Shop/Theatre | D120: 1 | F120: 396.89 | G120: 396.89
A121: HC123025 | B121: Multicultural Costumes Multibuy Offer - Pack of 6 | D121: 2 | F121: 176.32 | G121: 352.64
A122: HC129408 | B122: Mini Beasts Costume - Pack of 3 | D122: 2 | F122: 71.81 | G122: 143.62
A123: HC1302363 | B123: Chef's Outfit - 3-5 Years | D123: 1 | F123: 25.82 | G123: 25.82
A124: HC247812 | B124: Builder's Dressing Up Set - 3-5 Years | D124: 1 | F124: 25.82 | G124: 25.82
A125: HC1352446 | B125: Medic - 3-5 Years | D125: 1 | F125: 25.82 | G125: 25.82
A126: HC130760 | B126: Fire and Rescue Officer - 3-5 Years | D126: 1 | F126: 25.82 | G126: 25.82
A127: HC131020 | B127: Police Officer - 3-5 Years | D127: 1 | F127: 25.82 | G127: 25.82
A128: HC140718 | B128: Traffic Person Outfit - Age 3-5 | D128: 1 | F128: 25.82 | G128: 25.82
A129: HC1472507 | B129: Jungle Tabards - 3-7 Years | D129: 2 | F129: 84.41 | G129: 168.82
A130: HC1472509 | B130: Farm Tabards - 3-7 Years | D130: 2 | F130: 84.41 | G130: 168.82
A131: HC247825 | B131: Jungle Capes - 3-5 Years | D131: 2 | F131: 78.11 | G131: 156.22
A132: HC247838 | B132: Farmyard Capes | D132: 2 | F132: 78.11 | G132: 156.22
A133: HC1675681 | B133: Space Set | D133: 2 | F133: 68.03 | G133: 136.06
A134: HC1497324 | B134: Fun Hats and Accessories | D134: 1 | F134: 65.51 | G134: 65.51
A135: HC1497321 | B135: Occupation Accessories Pack | D135: 2 | F135: 90.71 | G135: 181.42
A136: HC128940 | B136: People Who Help Us Dressing Up Bundle - 3-5 Years - Pack of 5 | D136: 3 | F136: 117.12 | G136: 351.36
A137: HC129278 | B137: Medical Dressing Up Bundle - 3-5 Years - Pack of 6 | D137: 3 | F137: 142.37 | G137: 427.11
A138: HC128420 | B138: People Who Help Us Tabards - Set 2 | D138: 3 | F138: 59.21 | G138: 177.63
A139: HC1197884 | B139: Superhero Capes | D139: 2 | F139: 71.81 | G139: 143.62
A140: HC123285 | B140: Occupational Tabards Multibuy Offer | D140: 2 | F140: 104.55 | G140: 209.1
A141: HC1551997 | B141: Wooden Food Crate - Meat and Fish | D141: 1 | F141: 20.15 | G141: 20.15

Sheet EYFS Outdoor & Play
F1: Basket Total | G1: =SUM(G3:G59) -> 13592.05
A2: Product Code | B2: Product Description | C2: Units of Measure | D2: Quantity | E2: Section | F2: Unit Price | G2: Total Price
A3: FS Outdoor
A4: HC1497384 | B4: Wooden Spoons | C4: 10 | D4: 8 | E4: EYFS Outdoor | F4: 10.07 | G4: =F4*D4 -> 80.56
A5: HC1775654 | B5: Wooden Bowl Set | C5: 4 | D5: 3 | F5: 6.29 | G5: =F5*D5 -> 18.87
A6: HC389096 | B6: Stainless Steel Mixing Bowl | C6: EA | D6: 8 | F6: 7.67 | G6: 61.36
A7: HC1003052 | B7: Stainless Steel Sieves | C7: 3 | D7: 2 | F7: 73.02 | G7: 146.04
A8: HC1710649 | B8: Metal Scoop Set - 4 Pack | C8: 4 | D8: 2 | F8: 32.12 | G8: 64.24
A9: HC1499795 | B9: Fairy And Elf Tree House | C9: 1 | D9: 1 | F9: 119.69 | G9: 119.69
A10: HC1511425 | B10: Wooden Brushes | C10: 4 | D10: 1 | F10: 44.09 | G10: 44.09
A11: HC1776194 | B11: Bamboo Channeling Set | C11: 1 | D11: 2 | F11: 71.81 | G11: 143.62
A12: HC1833603 | B12: Water Channelling Set | C12: 6 | D12: 3 | F12: 47.87 | G12: 143.61
A13: HC1499805 | B13: Wooden Signs | C13: 4 | D13: 2 | F13: 42.83 | G13: 85.66
A14: HC1584266 | B14: 50cm Seagrass Numbers | C14: 10 | D14: 1 | F14: 59.33 | G14: 59.33
A15: HC1003776 | B15: Parachute 1.8m | C15: 1 | D15: 1 | F15: 16.37 | G15: 16.37
A16: HC1787654 | B16: Parachute 5m | C16: 1 | D16: 1 | F16: 81.89 | G16: 81.89
A17: HC1003779 | B17: Spordas Megatunnel | C17: 1 | D17: 1 | F17: 182.69 | G17: 182.69
A18: HC1522527 | B18: Spordas Jump Ropes 2.1m P6 | C18: 6 | D18: 1 | F18: 11.33 | G18: 11.33
A19: HC1828481 | B19: Jumping Ball - Yellow-55cm-6 Years | C19: 1 | D19: 6 | F19: 20.15 | G19: 120.9
A20: CP00050126 | B20: Rubbabu Little Foam Bowling Set | C20: 1 | D20: 1 | F20: 37.79 | G20: 37.79
A21: HC88201332 | B21: Budget Playground Pack 2 | C21: 1 | D21: 1 | F21: 188.99 | G21: 188.99
A22: IPEP07366 | B22: Flexi Ball Pack - 13mm | C22: 6 | D22: 1 | F22: 55.43 | G22: 55.43
A23: IPEP07365 | B23: Flexi Ball Pack - 9cm | C23: 6 | D23: 1 | F23: 42.83 | G23: 42.83
A24: HC1012185 | B24: Hula Hoop Set 760mm Pk 12 | C24: 12 | D24: 1 | F24: 32.61 | G24: 32.61
A25: IBSP01462 | B25: Value Bag Of Balls Pack | C25: 1 | D25: 1 | F25: 176.39 | G25: 176.39
A26: CP00050516 | B26: Clear Plastic Buckets - Pack of 8 | C26: PK | D26: 4 | F26: 21.41 | G26: 85.64
A27: HC48850934 | B27: Traffic Signs Pk12 | C27: 12 | D27: 1 | F27: 142.37 | G27: 142.37
A28: HC118241 | B28: Ribbon Glitter Stick Set Pk 3 | C28: 3 | D28: 4 | F28: 11.96 | G28: 47.84
A29: IPEP09731 | B29: Animal Bean Bags | C29: 1 | D29: 3 | F29: 51.65 | G29: 154.95
A30: HC101380 | B30: Jumbo Sidewalk Chalk 52 Pieces | C30: 52 | D30: 2 | F30: 6.29 | G30: 12.58
A31: HC88201914 | B31: Giant Polydron Bulk Pack | C31: 50 | D31: 2 | F31: 180.8 | G31: 361.6
A32: HC247773 | B32: Bosch Accessories | C32: 1 | D32: 1 | F32: 51.65 | G32: 51.65
A33: HC1003776 | B33: Parachute 1.8m | C33: 1 | D33: 1 | F33: 16.37 | G33: 16.37
A34: HC1787654 | B34: Parachute 5m | C34: 1 | D34: 1 | F34: 81.89 | G34: 81.89
A35: IPEE78099 | B35: Hula Hoop Set 460mm PK12 | C35: 12 | D35: 1 | F35: 17.49 | G35: 17.49
A36: IPEE78106 | B36: Hula Hoop Set 610mm Pk12 | C36: 12 | D36: 1 | F36: 25.05 | G36: 25.05
A37: HC1012357 | B37: Ribbon Tail Ball | C37: 6 | D37: 2 | F37: 21.41 | G37: 42.82
A38: HC1003757 | B38: Tetra Bean Bag Set | C38: 4 | D38: 18 | F38: 4.4 | G38: 79.2
A39: HC1012211 | B39: Rainbow Skipping Rope | C39: EA | D39: 30 | F39: 4.15 | G39: 124.5
A40: HC1003773 | B40: Coloured Skipping Rope Pack | C40: 4 | D40: 1 | F40: 6.67 | G40: 6.67
A41: HC1674294 | B41: Chess Board Game | C41: 1 | D41: 5 | F41: 12.59 | G41: 62.95
A42: HC1674294 | B42: Chess Board Game | C42: 1 | D42: 5 | F42: 12.59 | G42: 62.95
A43: ITRP00903 | B43: Plastic Cones Set Of 4 | C43: 4 | D43: 6 | F43: 7.55 | G43: 45.3
A44: IDMP02169 | B44: Rainbow Wands Pack of 6 | C44: 6 | D44: 2 | F44: 18.89 | G44: 37.78
A45: SCOOTERS
A46: HC48379653 | B46: RABO® 2 Wheeled Scooter | D46: 4 | E46: SCOOTERS | F46: 188.99 | G46: =D46*F46 -> 755.96
A47: HC48379679 | B47: RABO® Bike | D47: 4 | F47: 201.59 | G47: 806.36
A48: HC48124002 | B48: RABO® Chariot | D48: 2 | F48: 321.29 | G48: 642.58
A49: HC48787401 | B49: RABO® Pick Up | D49: 2 | F49: 296.09 | G49: 592.18
A50: HC44013694 | B50: RABO® Taxi Trike | D50: 2 | F50: 346.49 | G50: 692.98
A51: HC48081196 | B51: RABO® Tricart | D51: 4 | F51: 277.19 | G51: 1108.76
A52: HC48831601 | B52: Large Bike | D52: 4 | F52: 220.49 | G52: 881.96
A53: HC48379666 | B53: RABO® 3 Wheeled Wide-Based Scooter | D53: 4 | F53: 188.99 | G53: 755.96
A54: HC48649861 | B54: RABO® Circle Cart | D54: 2 | F54: 289.79 | G54: 579.58
A55: HC48831640 | B55: RABO® Large Runner | D55: 2 | F55: 245.69 | G55: 491.38
A56: HC1673730 | B56: RABO® Mini Runner | D56: 4 | F56: 188.99 | G56: 755.96
A57: HC48787895 | B57: RABO® Runner | D57: 4 | F57: 201.59 | G57: 806.36
A58: HC48831627 | B58: RABO® Large Pick Up | D58: 2 | F58: 296.09 | G58: 592.18
A59: HC1553934 | B59: RABO® Mini Scooter | D59: 4 | F59: 188.99 | G59: 755.96

Sheet Year 1
G1: Basket Total | H1: =SUM(H3:H136) -> 6427.08
A2: Product Code | B2: Product Description | C2: Units of Measure | D2: Quantity | E2: Section | F2: Curriculum Area | G2: Unit Price | H2: Total Price
A3: MATHS
A4: HC1489774 | B4: Numicon Boxed Set Of 80 Shapes | C4: 80 | D4: 2 | E4: Maths | F4: Number and Place Value | G4: 56.69 | H4: =G4*D4 -> 113.38
A5: HC167199 | B5: Pupil Number Fans | C5: 10 | D5: 3 | F5: Number and Place Value | G5: 17.38 | H5: 52.14
A6: HC1000339 | B6: Tactile Sandpaper Numerals 0-9 | C6: 1 | D6: 20 | F6: Number and Place Value | G6: 11.96 | H6: 239.2
A7: HC332676 | B7: 0-100 Table Top Number Lines Pk5 | C7: 5 | D7: 4 | F7: Number and Place Value | G7: 11.33 | H7: 45.32
A8: HC364656 | B8: 0-20 Table Top Number Line P10 | C8: 10 | D8: 3 | F8: Number and Place Value | G8: 10.07 | H8: 30.21
A9: HC167602 | B9: 1 - 6 Dice (pkt Of 30) | C9: 30 | D9: 1 | F9: Number and Place Value | G9: 9.44 | H9: 9.44
A10: HC88201368 | B10: Super Giant Numbers 108 Pcs | C10: 100 | D10: 1 | F10: Number and Place Value | G10: 101.67 | H10: 101.67
A11: HC1002701 | B11: DoubleSided DryWipe Counting Board Pupil | C11: 30 | D11: 1 | F11: Number and Place Value | G11: 57.95 | H11: 57.95
A12: HC170488 | B12: Match And Count | C12: 1 | D12: 1 | F12: Number and Place Value | G12: 13.85 | H12: 13.85
A13: HC1535915 | B13: Numbers 0-100 | C13: 100 | D13: 1 | F13: Number and Place Value | G13: 3.52 | H13: 3.52
A14: HC199946 | B14: Number and Operations Moulds | C14: 1 | D14: 1 | F14: Number and Place Value | G14: 15.11 | H14: 15.11
A15: HC373964 | B15: Number Tiles | C15: 1 | D15: 1 | F15: Number and Place Value | G15: 47.11 | H15: 47.11
A16: HC1002646 | B16: Sorting Rings | C16: 6 | D16: 2 | F16: Number and Place Value | G16: 12.21 | H16: 24.42
A17: EFMT14686 | B17: Giant Magnetic Array Set | C17: 1 | D17: 1 | F17: Multiplication and Division | G17: 20.78 | H17: 20.78
A18: HC1664901 | B18: Add and Subtract Box | C18: 1 | D18: 1 | F18: Addition and Subtraction | G18: 10.7 | H18: 10.7
A19: EGMT13629 | B19: Addition and Subtraction Cards | C19: 6 | D19: 1 | F19: Addition and Subtraction | G19: 51.52 | H19: 51.52
A20: HC425015 | B20: Giant Blank Cruncher | C20: 1 | D20: 1 | F20: Addition and Subtraction | G20: 15.11 | H20: 15.11
A21: HC1784436 | B21: Connecting Number Rods & Work Cards Set | C21: 1 | D21: 1 | F21: Addition and Subtraction | G21: 63.37 | H21: 63.37
A22: HC1866535 | B22: Subtraction Teach Me Tags | C22: 1 | D22: 1 | F22: Addition and Subtraction | G22: 22.42 | H22: 22.42
A23: EFMT13241 | B23: Egg Number Bonds | C23: 1 | D23: 1 | F23: Addition and Subtraction | G23: 31.5 | H23: 31.5
A24: HC1866833 | B24: Magnetic Apple Fractions | C24: 1 | D24: 1 | F24: Fractions, Decimals and Percentages | G24: 35.27 | H24: 35.27
A25: CP00050533 | B25: Food Fractions | C25: 1 | D25: 1 | F25: Fractions, Decimals and Percentages | G25: 16.86 | H25: 16.86
A26: HC274605 | B26: Shape Templates | C26: 5 | D26: 5 | F26: Geometry | G26: 10.45 | H26: 52.25
A27: HC1666493 | B27: Easy-grip Shape Stampers - Set Of 14 | C27: 14 | D27: 1 | F27: Geometry | G27: 22.67 | H27: 22.67
A28: HC424404 | B28: Geoboards 6 Colours 230mm | C28: 6 | D28: 4 | F28: Geometry | G28: 22.67 | H28: 90.68
A29: HC181213 | B29: Tape Measure Pack of 10 | C29: 10 | D29: 2 | F29: Measurement | G29: 11.33 | H29: 22.66
A30: E8A73842 | B30: 1m Wood Rule - Marked CM And MM | C30: 1 | D30: 5 | F30: Measurement | G30: 5.03 | H30: 25.15
A31: EFMT14433 | B31: Class Coin Set | C31: 1 | D31: 1 | F31: Measurement | G31: 37.79 | H31: 37.79
A32: E8R09487 | B32: Dual Power Timer - Pack of 5 | C32: 5 | D32: 1 | F32: Measurement | G32: 36.28 | H32: 36.28
A33: HC169526 | B33: Grocery Store Flip | C33: 1 | D33: 1 | F33: Measurement | G33: 27.71 | H33: 27.71
A34: EDMT14144 | B34: Mini Time Tracker | C34: 1 | D34: 1 | F34: Measurement | G34: 28.34 | H34: 28.34
A35: HC166601 | B35: Multilink® Graph and Histogram Board | C35: 1 | D35: 1 | F35: Statistics | G35: 63.37 | H35: 63.37
A36: HC1002690 | B36: Number Fishing Game | C36: 1 | D36: 1 | F36: Teaching Resource | G36: 63.37 | H36: =G36*D36 -> 63.37
A37: HC1604277 | B37: HOPE Maths Problem Solving Cards - Year 1 | C37: 1 | D37: 1 | F37: Teaching Resource | G37: 55.43 | H37: 55.43
A38: HC1552577 | B38: Maths Box Year 1 | C38: 1 | D38: 1 | F38: Teaching Resource | G38: 233.09 | H38: 233.09
A39: HC1820757 | B39: Number and Symbol's Spots | C39: 1 | D39: 1 | F39: Classroom Tools | G39: 80.63 | H39: 80.63
A40: EFMT14710 | B40: Giant Magnetic Numbers and Operations | C40: 1 | D40: 1 | F40: Classroom Tools | G40: 14.48 | H40: 14.48
A41: HC167784 | B41: Coloured Dominoes Pk 168 | C41: 168 | D41: 1 | F41: Classroom Tools | G41: 20.1 | H41: 20.1
A42: HC1490618 | B42: Jumbo Number Pebbles | C42: 20 | D42: 1 | F42: Classroom Tools | G42: 44.09 | H42: 44.09
A43: HC167446 | B43: Foam Dice Blue | C43: 1 | D43: 5 | F43: Classroom Tools | G43: 10.19 | H43: 50.95
A44: HC312396 | B44: 100 Coloured Dice 4 Colours | C44: 100 | D44: 1 | F44: Classroom Tools | G44: 8.81 | H44: 8.81
A45: HC1283650 | B45: Plastic Counters 22mm (pkt Of 500) | C45: 500 | D45: 1 | F45: Classroom Tools | G45: 12.59 | H45: 12.59
A46: HC363525 | B46: Pupil Counting Stick P6 | C46: 6 | D46: 3 | F46: Classroom Tools | G46: 22.67 | H46: 68.01
A47: HC1674195 | B47: Tactile Counting Stones | C47: 1 | D47: 1 | F47: Classroom Tools | G47: 42.2 | H47: 42.2
A48: HC165405 | B48: 1000pk Counting Sticks | C48: 1000 | D48: 1 | F48: Classroom Tools | G48: 25.83 | H48: 25.83
A49: HC1770182 | B49: Sand Timer - 1 Minute | C49: 1 | D49: 1 | F49: Classroom Tools | G49: 12.59 | H49: 12.59
A50: HC1770186 | B50: Sand Timer - 5 Minute | C50: 1 | D50: 1 | F50: Classroom Tools | G50: 12.59 | H50: 12.59
A51: HC165444 | B51: Transparent Counters - Pack 1000 | C51: 1000 | D51: 1 | F51: Classroom Tools | G51: 23.93 | H51: 23.93
A52: HC1664905 | B52: Abacus | C52: 1 | D52: 1 | F52: Classroom Tools | G52: 15.86 | H52: 15.86
A53: EFMT11934 | B53: Multilink® Cubes (500) | C53: 500 | D53: 1 | F53: Classroom Tools | G53: 98.27 | H53: 98.27
A54: HC1524135 | B54: Multilink® Grid Tray Sheets | C54: 3 | D54: 1 | F54: Classroom Tools | G54: 35.02 | H54: 35.02
A55: EFMT13263 | B55: Multilink® Grid Tray | C55: 1 | D55: 15 | F55: Classroom Tools | G55: 12.59 | H55: 188.85
A56: EGMT13635 | B56: Base 10 Set from Hope Education | C56: 1 | D56: 1 | F56: Classroom Tools | G56: 71.81 | H56: 71.81
A57: EFMT14205 | B57: Giant Magnetic Base 10 Demonstration Set | C57: 1 | D57: 1 | F57: Classroom Tools | G57: 31.49 | H57: 31.49
A58: HC167121 | B58: Write-On/Wipe-Off 100 Squares - Pack of 35 | C58: 35 | D58: 1 | F58: Classroom Tools | G58: 18.89 | H58: 18.89
A59: HC1666774 | B59: 0-20 Blank Number Lines Pack of 30 | C59: 30 | D59: 1 | F59: Classroom Tools | G59: 19.77 | H59: 19.77
A60: HC1822714 | B60: Eco Friendly 20 Bead String | C60: 1 | D60: 15 | F60: Classroom Tools | G60: 7.93 | H60: 118.95
A61: HC1822716 | B61: Eco-friendly 100 Bead String | C61: 1 | D61: 1 | F61: Classroom Tools | G61: 31.87 | H61: 31.87
A62: HC373873 | B62: Jumbo Playing Cards | C62: 1 | D62: 5 | F62: Classroom Tools | G62: 5.41 | H62: 27.05
A63: HC167719 | B63: Playing Cards | C63: 1 | D63: 15 | F63: Classroom Tools | G63: 1.88 | H63: 28.2
A64: HC167576 | B64: Polyhedron Number Dice - Pack 35 | C64: 35 | D64: 1 | F64: Classroom Tools | G64: 10.82 | H64: 10.82
A65: HC1866525 | B65: Rainbow Spinners | C65: 1 | D65: 1 | F65: Classroom Tools | G65: 15.86 | H65: 15.86
A66: EFMT14097 | B66: Foam Dice with Pockets | C66: 1 | D66: 1 | F66: Classroom Tools | G66: 9.19 | H66: 9.19
A67: EFMT14179 | B67: Teacher Whiteboard Dice | C67: 4 | D67: 1 | F67: Classroom Tools | G67: 42.83 | H67: 42.83
A68: EFMT11929 | B68: Unifix® Cubes - Pack of 500 | C68: 500 | D68: 1 | F68: Classroom Tools | G68: 35.9 | H68: =G68*D68 -> 35.9
A69: HC1779037 | B69: Double Sided Number Line - Teacher | C69: 1 | D69: 1 | F69: Display | G69: 10.07 | H69: 10.07
A70: HC166952 | B70: 0-100 Wall Number Line | C70: 1 | D70: 1 | F70: Display | G70: 13.22 | H70: 13.22
A71: STATIONERY
A72: HC1694632 | B72: Classmate Classroom Collection | C72: 9 | D72: 1 | E72: Stationery | G72: 20.15 | H72: =G72*D72 -> 20.15
A73: HC206745 | B73: A4 Bulky Zip Wallets Asst P100 | C73: 100 | D73: 1 | G73: 52.91 | H73: =G73*D73 -> 52.91
A74: HC255469 | B74: A5 Zip Wallets Red P25 | C74: 25 | D74: 3 | G74: 15.11 | H74: 45.33
A75: HC284654 | B75: CM Address Labels 89x36mm P250 | C75: 250 | D75: 2 | G75: 5.03 | H75: 10.06
A76: HC282418 | B76: CM Sticky Note Cube Neon 75x75mm | C76: 1 | D76: 5 | G76: 4.15 | H76: 20.75
A77: HC1691792 | B77: Classmates Highlighters 5 Colours Pk 48 | C77: 48 | D77: 1 | G77: 10.7 | H77: 10.7
A78: HC1691844 | B78: CM Easy Grip Triangular Pencils P72 | C78: 72 | D78: 1 | G78: 17.63 | H78: 17.63
A79: HC316244 | B79: CM Metal Sharpeners Double Hole Pk12 | C79: 12 | D79: 2 | G79: 11.33 | H79: 22.66
A80: HC131969 | B80: Staedtler Rasoplast Eraser P30 | C80: 30 | D80: 1 | G80: 12.59 | H80: 12.59
A81: HC88200582 | B81: Shatterproof 30cm/mm Clear Ruler Pk10 | C81: 10 | D81: 3 | G81: 4.9 | H81: 14.7
A82: HC298772 | B82: Rapesco X5-30PS Medium Duty Hole Punch | C82: 1 | D82: 1 | G82: 9.06 | H82: 9.06
A83: HC397364 | B83: Rapesco Sting Ray Half Strip Stapler | C83: 1 | D83: 1 | G83: 8.18 | H83: 8.18
A84: HC194863 | B84: Rapesco 24/6 Staples P5000 | C84: 5000 | D84: 1 | G84: 4.4 | H84: 4.4
A85: HC186556 | B85: Paper Fasteners 25mm Pack 200 | C85: 200 | D85: 1 | G85: 6.92 | H85: 6.92
A86: HC179406 | B86: Treasury Tag 51mm Yellow P100 | C86: 100 | D86: 1 | G86: 3.77 | H86: 3.77
A87: HC397442 | B87: C M Easytear Tape 24mmx66m Pk6 | C87: 6 | D87: 1 | G87: 5.66 | H87: 5.66
A88: HC1699057 | B88: Classmate Tape Dispenser | C88: 1 | D88: 1 | G88: 6.92 | H88: 6.92
A89: HC322874 | B89: Classmates Dble Sided Tape 12mmx33mm Pk6 | C89: 6 | D89: 1 | G89: 11.96 | H89: 11.96
A90: HC225517 | B90: C M Masking Tape 24mmx50mx9 | C90: 9 | D90: 1 | G90: 15.11 | H90: 15.11
A91: HC1109953 | B91: Blu Tack Original 60g | C91: 12 | D91: 1 | G91: 11.96 | H91: 11.96
A92: HC479745 | B92: A4 Hardboard Clipboard P12 | C92: 12 | D92: 2 | G92: 35.27 | H92: 70.54
A93: HC279324 | B93: Sellotape® Loop Spots - 125 Spots | C93: 125 | D93: 2 | G93: 11.71 | H93: 23.42
A94: HC279337 | B94: Sellotape® Hook Spots - 125 Spots | C94: 125 | D94: 2 | G94: 11.71 | H94: 23.42
A95: HC881054 | B95: CM LtWeight Lapboard A4 Lined P35 | C95: 35 | D95: 1 | G95: 65.52 | H95: 65.52
A96: HC383558 | B96: Lakeland Jumbo Pencils Classpack | C96: 144 | D96: 1 | G96: 81.89 | H96: 81.89
A97: HC1774070 | B97: Berol Colour Fine Classpack 288 | C97: 288 | D97: 1 | G97: 75.97 | H97: 75.97
A98: HC1774064 | B98: Berol Colour Broad Classpack 288 | C98: 288 | D98: 1 | G98: 75.97 | H98: 75.97
A99: HC1102952 | B99: Edding 8 All Purpose Assorted, Bullet Tip - Pack of 144 | C99: 144 | D99: 1 | G99: 86.3 | H99: 86.3
A100: HC209241 | B100: Giotto Metallic Fibre Pens P24 | C100: 24 | D100: 5 | G100: 23.3 | H100: 116.5
A101: HC1815185 | B101: School Scissor Set P32 inc Box | C101: 32 | D101: 1 | G101: 22.67 | H101: 22.67
A102: HC295314 | B102: Crazy Cut Scissors Pk6 | C102: 6 | D102: 2 | G102: 12.59 | H102: 25.18
A103: HC370844 | B103: Bulk Buy - 6 Collage Jars | C103: 6 | D103: 1 | G103: 31.49 | H103: 31.49
A104: HC1003759 | B104: Assorted Bean Bag Pack Pk18 | C104: 18 | D104: 1 | G104: 16.75 | H104: 16.75
A105: HC1239842 | B105: Tough Play Tray | C105: 1 | D105: 1 | G105: 20.02 | H105: 20.02
A106: HC1815197 | B106: Classmates Dual Control Scissors - Right Handed | C106: 1 | D106: 12 | G106: 3.77 | H106: 45.24
A107: HC1815195 | B107: Classmates Easy Grip Scissors - Left Handed | C107: EA | D107: 3 | G107: 7.55 | H107: 22.65
A108: HC1815193 | B108: Classmates Easy Grip Scissors - Right Handed | C108: 1 | D108: 3 | G108: 7.55 | H108: 22.65
A109: HC133737 | B109: Chubbi Stumps Pack 96 Assorted | C109: 96 | D109: 1 | G109: 8.18 | H109: 8.18
A110: ENGLISH
A111: HC248683 | B111: Alphabet Pebbles | C111: 1 | D111: 1 | E111: English | G111: 49.13 | H111: =G111*D111 -> 49.13
A112: HC1002256 | B112: Tricky Words Magnets | C112: 1 | D112: 1 | G112: 33.38 | H112: =G112*D112 -> 33.38
A113: HC1545178 | B113: Tricky Word Pebbles Set 1 | C113: 1 | D113: 1 | G113: 70.55 | H113: 70.55
A114: HC1002106 | B114: Smart Chute | C114: 1 | D114: 1 | G114: 23.93 | H114: 23.93
A115: HC1490696 | B115: Phonics Pebbles | C115: 1 | D115: 2 | G115: 61.73 | H115: 123.46
A116: HC1536875 | B116: Reading Comprehension Cubes | C116: 1 | D116: 1 | G116: 13.85 | H116: 13.85
A117: HC1827530 | B117: Electronic phonics | C117: 1 | D117: 6 | G117: 97.01 | H117: 582.06
A118: HC1353913 | B118: A5 dictionaries | C118: 30 | D118: 1 | G118: 15.11 | H118: 15.11
A119: ECMT13577 | B119: Alphabet lined boards | C119: 30 | D119: 1 | G119: 28.97 | H119: 28.97
A120: HC1564053 | B120: Oxford First Grammar, Punctuation and Spelling Dictionary | C120: EA | D120: 15 | G120: 13.85 | H120: 207.75
A121: HC48834227 | B121: Reading comprehension box 1 | C121: 1 | D121: 1 | G121: 289.79 | H121: 289.79
A122: HC1821850 | B122: Click it word builder | C122: 196 | D122: 1 | G122: 68.03 | H122: 68.03
A123: HC1821852 | B123: Click it sentence builder | C123: 204 | D123: 1 | G123: 88.19 | H123: 88.19
A124: HC1536830 | B124: Creative writing directory | C124: 1 | D124: 6 | G124: 16.37 | H124: 98.22
A125: HC1266729 | B125: Roald Dahl book pack | C125: 6 | D125: 1 | G125: 47.87 | H125: 47.87
A126: HC1579204 | B126: Traditional tale book pack | C126: 6 | D126: 1 | G126: 41.57 | H126: 41.57
A127: HC1775781 | B127: Diversity picture books for KS1 | C127: 8 | D127: 1 | G127: 75.59 | H127: 75.59
A128: HC1785323 | B128: Julia Donaldson book pack | C128: 8 | D128: 1 | G128: 69.29 | H128: 69.29
A129: HC1682556 | B129: Stories from around the world | C129: 10 | D129: 1 | G129: 69.29 | H129: 69.29
A130: HC1701719 | B130: Pencil grips | C130: 10 | D130: 1 | G130: 6.29 | H130: 6.29
A131: HC1677021 | B131: Talking tins and activity guide | C131: 10 | D131: 1 | G131: 108.22 | H131: 108.22
A132: GEOGRAPHY
A133: HC1003345 | B133: Discovery Globe 230mm | C133: 1 | D133: 1 | E133: GEOGRAPHY | G133: 39.05 | H133: 39.05
A134: HC1003150 | B134: Plotting Compass 16mm | C134: 10 | D134: 4 | G134: 4.22 | H134: 16.88
A135: HC1350713 | B135: Continents and oceans map | C135: 1 | D135: 1 | G135: 21.41 | H135: 21.41
A136: HC1206845 | B136: Let's Explore the UK Photo Pack | C136: 20 | D136: 2 | G136: 36.53 | H136: 73.06

Sheet Year 2
G1: Basket Total | H1: =SUM(H3:H156) -> 6863.668
A2: Product Code | B2: Product Description | C2: Units of Measure | D2: Quantity | E2: Section | F2: Curriculum Area | G2: Unit Price | H2: Total Price
A3: MATHS
A4: HC1489774 | B4: Numicon Boxed Set Of 80 Shapes | C4: 80 | D4: 2 | E4: Maths | F4: Number and Place Value | G4: 56.69 | H4: =G4*D4 -> 113.38
A5: HC167199 | B5: Pupil Number Fans | C5: 10 | D5: 3 | F5: Number and Place Value | G5: 17.38 | H5: =G5*D5 -> 52.14
A6: HC1000339 | B6: Tactile Sandpaper Numerals 0-9 | C6: 1 | D6: 20 | F6: Number and Place Value | G6: 11.96 | H6: 239.2
A7: HC332676 | B7: 0-100 Table Top Number Lines Pk5 | C7: 5 | D7: 4 | F7: Number and Place Value | G7: 11.33 | H7: 45.32
A8: HC364656 | B8: 0-20 Table Top Number Line P10 | C8: 10 | D8: 3 | F8: Number and Place Value | G8: 10.07 | H8: 30.21
A9: HC167602 | B9: 1 - 6 Dice (pkt Of 30) | C9: 30 | D9: 1 | F9: Number and Place Value | G9: 9.44 | H9: 9.44
A10: HC88201368 | B10: Super Giant Numbers 108 Pcs | C10: 100 | D10: 1 | F10: Number and Place Value | G10: 101.67 | H10: 101.67
A11: HC1002701 | B11: DoubleSided DryWipe Counting Board Pupil | C11: 30 | D11: 1 | F11: Number and Place Value | G11: 57.95 | H11: 57.95
A12: HC170488 | B12: Match And Count | C12: 1 | D12: 1 | F12: Number and Place Value | G12: 13.85 | H12: =G12*D12 -> 13.85
A13: HC1535915 | B13: Numbers 0-100 | C13: 100 | D13: 1 | F13: Number and Place Value | G13: 3.52 | H13: 3.52
A14: HC199946 | B14: Number and Operations Moulds | C14: 1 | D14: 1 | F14: Number and Place Value | G14: 15.11 | H14: =G14*D14 -> 15.11
A15: EFMT14690 | B15: A5 Double Sided Multiplication Grid - Pack of 35 | C15: 35 | D15: 1 | F15: Multiplication and Division | G15: 35.02 | H15: 35.02
A16: EFMT14686 | B16: Giant Magnetic Array Set | C16: 1 | D16: 1 | F16: Multiplication and Division | G16: 20.78 | H16: 20.78
A17: HC1361214 | B17: 2, 5 and 10 Times Table Bingo | C17: 1 | D17: 1 | F17: Multiplication and Division | G17: 34.64 | H17: 34.64
A18: HC1664901 | B18: Add and Subtract Box | C18: 1 | D18: 1 | F18: Multiplication and Division | G18: 10.7 | H18: 10.7
A19: CP052091 | B19: Times Table Fan Pack | C19: 55 | D19: 2 | F19: Multiplication and Division | G19: 18.9 | H19: 37.8
A20: HC1290940 | B20: 2, 5 and 10 Multiplication and Division Crunchers - Pack of 72 | C20: 72 | D20: 1 | F20: Multiplication and Division | G20: 35.27 | H20: 35.27
A21: HC1782355 | B21: Maths Mastery Early Division Set | C21: 1 | D21: 1 | F21: Multiplication and Division | G21: 43.58 | H21: 43.58
A22: HC1782351 | B22: Maths Mastery Early Multiplication Set | C22: 1 | D22: 1 | F22: Multiplication and Division | G22: 42.2 | H22: 42.2
A23: EGMT13629 | B23: Addition and Subtraction Cards | C23: 6 | D23: 1 | F23: Addition and Subtraction | G23: 51.52 | H23: =G23*D23 -> 51.52
A24: HC425015 | B24: Giant Blank Cruncher | C24: 1 | D24: 1 | F24: Addition and Subtraction | G24: 15.11 | H24: =G24*D24 -> 15.11
A25: HC1784436 | B25: Connecting Number Rods & Work Cards Set | C25: 1 | D25: 1 | F25: Addition and Subtraction | G25: 63.37 | H25: 63.37
A26: HC1866535 | B26: Subtraction Teach Me Tags | C26: 1 | D26: 1 | F26: Addition and Subtraction | G26: 22.42 | H26: 22.42
A27: EFMT13241 | B27: Egg Number Bonds | C27: 1 | D27: 1 | F27: Addition and Subtraction | G27: 31.5 | H27: =G27*D27 -> 31.5
A28: EFMT13242 | B28: Rainbow Fraction Tiles | C28: 1 | D28: 1 | F28: Fractions, Decimals and Percentages | G28: 18.01 | H28: 18.01
A29: HC1002641 | B29: Rainbow Fractions Circles | C29: 1 | D29: 1 | F29: Fractions, Decimals and Percentages | G29: 14.6 | H29: 14.6
A30: HC1571283 | B30: Cubes Fraction Set | C30: 1 | D30: 1 | F30: Fractions, Decimals and Percentages | G30: 15.99 | H30: 15.99
A31: HC1536364 | B31: Fraction Bag | C31: 1 | D31: 1 | F31: Fractions, Decimals and Percentages | G31: 29.72 | H31: 29.72
A32: HC1866833 | B32: Magnetic Apple Fractions | C32: 1 | D32: 1 | F32: Fractions, Decimals and Percentages | G32: 35.27 | H32: 35.27
A33: CP00050533 | B33: Food Fractions | C33: 1 | D33: 1 | F33: Fractions, Decimals and Percentages | G33: 16.86 | H33: 16.86
A34: HC274605 | B34: Shape Templates | C34: 5 | D34: 5 | F34: Geometry | G34: 10.45 | H34: =G34*D34 -> 52.25
A35: HC1666493 | B35: Easy-grip Shape Stampers - Set Of 14 | C35: 14 | D35: 1 | F35: Geometry | G35: 22.67 | H35: 22.67
A36: HC424404 | B36: Geoboards 6 Colours 230mm | C36: 6 | D36: 4 | F36: Geometry | G36: 22.67 | H36: 90.68
A37: HC181213 | B37: Tape Measure Pack of 10 | C37: 10 | D37: 2 | F37: Measurement | G37: 11.33 | H37: =G37*D37 -> 22.66
A38: E8A73842 | B38: 1m Wood Rule - Marked CM And MM | C38: 1 | D38: 5 | F38: Measurement | G38: 5.03 | H38: =G38*D38 -> 25.15
A39: EFMT14433 | B39: Class Coin Set | C39: 1 | D39: 1 | F39: Measurement | G39: 37.79 | H39: 37.79
A40: E8R09487 | B40: Dual Power Timer - Pack of 5 | C40: 5 | D40: 1 | F40: Measurement | G40: 36.28 | H40: 36.28
A41: HC169526 | B41: Grocery Store Flip | C41: 1 | D41: 1 | F41: Measurement | G41: 27.71 | H41: 27.71
A42: EDMT14144 | B42: Mini Time Tracker | C42: 1 | D42: 1 | F42: Measurement | G42: 28.34 | H42: 28.34
A43: HC166601 | B43: Multilink® Graph and Histogram Board | C43: 1 | D43: 1 | F43: Statistics | G43: 63.37 | H43: 63.37
A44: HC1821393 | B44: Times Tables Cubes Set 1- 2,3,4,5,10 | C44: 10 | D44: 1 | F44: Teaching Resource | G44: 25.19 | H44: =G44*D44 -> 25.19
A45: HC1593864 | B45: HOPE Maths Problem Solving Cards Year 2 - Measurement and Geometry | C45: 1 | D45: 1 | F45: Teaching Resource | G45: 19.78 | H45: 19.78
A46: HC1593866 | B46: HOPE Maths Problem Solving Cards Year 2 - Number and Algebra | C46: 1 | D46: 1 | F46: Teaching Resource | G46: 19.78 | H46: 19.78
A47: HC1593868 | B47: HOPE Maths Problem Solving Cards Year 2 - Statistics and Chance | C47: 1 | D47: 1 | F47: Teaching Resource | G47: 19.78 | H47: 19.78
A48: HC1002690 | B48: Number Fishing Game | C48: 1 | D48: 1 | F48: Teaching Resource | G48: 63.37 | H48: =G48*D48 -> 63.37
A49: HC1820757 | B49: Number and Symbol's Spots | C49: 1 | D49: 1 | F49: Classroom Tools | G49: 80.63 | H49: 80.63
A50: EFMT14710 | B50: Giant Magnetic Numbers and Operations | C50: 1 | D50: 1 | F50: Classroom Tools | G50: 14.48 | H50: 14.48
A51: HC167784 | B51: Coloured Dominoes Pk 168 | C51: 168 | D51: 1 | F51: Classroom Tools | G51: 20.1 | H51: 20.1
A52: HC1490618 | B52: Jumbo Number Pebbles | C52: 20 | D52: 1 | F52: Classroom Tools | G52: 44.09 | H52: 44.09
A53: HC167446 | B53: Foam Dice Blue | C53: 1 | D53: 5 | F53: Classroom Tools | G53: 10.19 | H53: 50.95
A54: HC312396 | B54: 100 Coloured Dice 4 Colours | C54: 100 | D54: 1 | F54: Classroom Tools | G54: 8.81 | H54: 8.81
A55: HC1283650 | B55: Plastic Counters 22mm (pkt Of 500) | C55: 500 | D55: 1 | F55: Classroom Tools | G55: 12.59 | H55: 12.59
A56: HC363525 | B56: Pupil Counting Stick P6 | C56: 6 | D56: 3 | F56: Classroom Tools | G56: 22.67 | H56: 68.01
A57: HC1674195 | B57: Tactile Counting Stones | C57: 1 | D57: 1 | F57: Classroom Tools | G57: 42.2 | H57: 42.2
A58: HC165405 | B58: 1000pk Counting Sticks | C58: 1000 | D58: 1 | F58: Classroom Tools | G58: 25.83 | H58: 25.83
A59: HC1770182 | B59: Sand Timer - 1 Minute | C59: 1 | D59: 1 | F59: Classroom Tools | G59: 12.59 | H59: 12.59
A60: HC1770186 | B60: Sand Timer - 5 Minute | C60: 1 | D60: 1 | F60: Classroom Tools | G60: 12.59 | H60: 12.59
A61: HC165444 | B61: Transparent Counters - Pack 1000 | C61: 1000 | D61: 1 | F61: Classroom Tools | G61: 23.93 | H61: 23.93
A62: HC1664905 | B62: Abacus | C62: 1 | D62: 1 | F62: Classroom Tools | G62: 15.86 | H62: 15.86
A63: EFMT11934 | B63: Multilink® Cubes (500) | C63: 500 | D63: 1 | F63: Classroom Tools | G63: 98.27 | H63: 98.27
A64: HC1524135 | B64: Multilink® Grid Tray Sheets | C64: 3 | D64: 1 | F64: Classroom Tools | G64: 35.02 | H64: 35.02
A65: EFMT13263 | B65: Multilink® Grid Tray | C65: 1 | D65: 15 | F65: Classroom Tools | G65: 12.59 | H65: 188.85
A66: EGMT13635 | B66: Base 10 Set from Hope Education | C66: 1 | D66: 1 | F66: Classroom Tools | G66: 71.81 | H66: 71.81
A67: EFMT14205 | B67: Giant Magnetic Base 10 Demonstration Set | C67: 1 | D67: 1 | F67: Classroom Tools | G67: 31.49 | H67: 31.49
A68: HC167121 | B68: Write-On/Wipe-Off 100 Squares - Pack of 35 | C68: 35 | D68: 1 | F68: Classroom Tools | G68: 18.89 | H68: 18.89
A69: HC1666774 | B69: 0-20 Blank Number Lines Pack of 30 | C69: 30 | D69: 1 | F69: Classroom Tools | G69: 19.77 | H69: 19.77
A70: HC1822714 | B70: Eco Friendly 20 Bead String | C70: 1 | D70: 15 | F70: Classroom Tools | G70: 7.93 | H70: 118.95
A71: HC1822716 | B71: Eco-friendly 100 Bead String | C71: 1 | D71: 1 | F71: Classroom Tools | G71: 31.87 | H71: 31.87
A72: HC373873 | B72: Jumbo Playing Cards | C72: 1 | D72: 5 | F72: Classroom Tools | G72: 5.41 | H72: 27.05
A73: HC167719 | B73: Playing Cards | C73: 1 | D73: 15 | F73: Classroom Tools | G73: 1.88 | H73: 28.2
A74: HC167576 | B74: Polyhedron Number Dice - Pack 35 | C74: 35 | D74: 1 | F74: Classroom Tools | G74: 10.82 | H74: 10.82
A75: HC1866525 | B75: Rainbow Spinners | C75: 1 | D75: 1 | F75: Classroom Tools | G75: 15.86 | H75: 15.86
A76: EFMT14097 | B76: Foam Dice with Pockets | C76: 1 | D76: 1 | F76: Classroom Tools | G76: 9.19 | H76: 9.19
A77: EFMT14179 | B77: Teacher Whiteboard Dice | C77: 4 | D77: 1 | F77: Classroom Tools | G77: 42.83 | H77: =G77*D77 -> 42.83
A78: EFMT11929 | B78: Unifix® Cubes - Pack of 500 | C78: 500 | D78: 1 | F78: Classroom Tools | G78: 35.9 | H78: 35.9
A79: HC166952 | B79: 0-100 Wall Number Line | C79: 1 | D79: 1 | F79: Display | G79: 13.22 | H79: =G79*D79 -> 13.22
A80: STATIONERY
A81: HC1694632 | B81: Classmate Classroom Collection | C81: 9 | D81: 1 | E81: Stationery | G81: 20.15 | H81: =G81*D81 -> 20.15
A82: HC206745 | B82: A4 Bulky Zip Wallets Asst P100 | C82: 100 | D82: 1 | G82: 52.91 | H82: =G82*D82 -> 52.91
A83: HC255469 | B83: A5 Zip Wallets Red P25 | C83: 25 | D83: 3 | G83: 15.11 | H83: 45.33
A84: HC284654 | B84: CM Address Labels 89x36mm P250 | C84: 250 | D84: 2 | G84: 5.03 | H84: 10.06
A85: HC282418 | B85: CM Sticky Note Cube Neon 75x75mm | C85: 1 | D85: 5 | G85: 4.15 | H85: 20.75
A86: HC1691792 | B86: Classmates Highlighters 5 Colours Pk 48 | C86: 48 | D86: 1 | G86: 10.7 | H86: 10.7
A87: HC1691844 | B87: CM Easy Grip Triangular Pencils P72 | C87: 72 | D87: 1 | G87: 17.63 | H87: 17.63
A88: HC316244 | B88: CM Metal Sharpeners Double Hole Pk12 | C88: 12 | D88: 2 | G88: 11.33 | H88: 22.66
A89: HC131969 | B89: Staedtler Rasoplast Eraser P30 | C89: 30 | D89: 1 | G89: 12.59 | H89: 12.59
A90: HC88200582 | B90: Shatterproof 30cm/mm Clear Ruler Pk10 | C90: 10 | D90: 3 | G90: 4.9 | H90: 14.7
A91: HC298772 | B91: Rapesco X5-30PS Medium Duty Hole Punch | C91: 1 | D91: 1 | G91: 9.06 | H91: 9.06
A92: HC397364 | B92: Rapesco Sting Ray Half Strip Stapler | C92: 1 | D92: 1 | G92: 8.18 | H92: 8.18
A93: HC194863 | B93: Rapesco 24/6 Staples P5000 | C93: 5000 | D93: 1 | G93: 4.4 | H93: 4.4
A94: HC186556 | B94: Paper Fasteners 25mm Pack 200 | C94: 200 | D94: 1 | G94: 6.92 | H94: 6.92
A95: HC179406 | B95: Treasury Tag 51mm Yellow P100 | C95: 100 | D95: 1 | G95: 3.77 | H95: 3.77
A96: HC397442 | B96: C M Easytear Tape 24mmx66m Pk6 | C96: 6 | D96: 1 | G96: 5.66 | H96: 5.66
A97: HC1699057 | B97: Classmate Tape Dispenser | C97: 1 | D97: 1 | G97: 6.92 | H97: 6.92
A98: HC322874 | B98: Classmates Dble Sided Tape 12mmx33mm Pk6 | C98: 6 | D98: 1 | G98: 11.96 | H98: 11.96
A99: HC225517 | B99: C M Masking Tape 24mmx50mx9 | C99: 9 | D99: 1 | G99: 15.11 | H99: 15.11
A100: HC1109953 | B100: Blu Tack Original 60g | C100: 12 | D100: 1 | G100: 11.96 | H100: 11.96
A101: HC479745 | B101: A4 Hardboard Clipboard P12 | C101: 12 | D101: 2 | G101: 35.27 | H101: 70.54
A102: HC279324 | B102: Sellotape® Loop Spots - 125 Spots | C102: 125 | D102: 2 | G102: 11.71 | H102: 23.42
A103: HC279337 | B103: Sellotape® Hook Spots - 125 Spots | C103: 125 | D103: 2 | G103: 11.71 | H103: 23.42
A104: HC881054 | B104: CM LtWeight Lapboard A4 Lined P35 | C104: 35 | D104: 1 | G104: 65.52 | H104: 65.52
A105: HC383558 | B105: Lakeland Jumbo Pencils Classpack | C105: 144 | D105: 1 | G105: 81.89 | H105: 81.89
A106: HC1774070 | B106: Berol Colour Fine Classpack 288 | C106: 288 | D106: 1 | G106: 75.97 | H106: 75.97
A107: HC1774064 | B107: Berol Colour Broad Classpack 288 | C107: 288 | D107: 1 | G107: 75.97 | H107: 75.97
A108: HC1102952 | B108: Edding 8 All Purpose Assorted, Bullet Tip - Pack of 144 | C108: 144 | D108: 1 | G108: 86.3 | H108: 86.3
A109: HC209241 | B109: Giotto Metallic Fibre Pens P24 | C109: 24 | D109: 5 | G109: 23.3 | H109: 116.5
A110: HC1815185 | B110: School Scissor Set P32 inc Box | C110: 32 | D110: 1 | G110: 22.67 | H110: 22.67
A111: HC295314 | B111: Crazy Cut Scissors Pk6 | C111: 6 | D111: 2 | G111: 12.59 | H111: 25.18
A112: HC370844 | B112: Bulk Buy - 6 Collage Jars | C112: 6 | D112: 1 | G112: 31.49 | H112: 31.49
A113: HC1003759 | B113: Assorted Bean Bag Pack Pk18 | C113: 18 | D113: 1 | G113: 16.75 | H113: 16.75
A114: HC1239842 | B114: Tough Play Tray | C114: 1 | D114: 1 | G114: 20.02 | H114: 20.02
A115: HC1815197 | B115: Classmates Dual Control Scissors - Right Handed | C115: 1 | D115: 12 | G115: 3.77 | H115: 45.24
A116: HC1815195 | B116: Classmates Easy Grip Scissors - Left Handed | C116: EA | D116: 3 | G116: 7.55 | H116: 22.65
A117: HC1815193 | B117: Classmates Easy Grip Scissors - Right Handed | C117: 1 | D117: 3 | G117: 7.55 | H117: 22.65
A118: HC133737 | B118: Chubbi Stumps Pack 96 Assorted | C118: 96 | D118: 1 | G118: 8.18 | H118: 8.18
A119: ART
A120: HC381673 | B120: Children's Disposable Aprons - Pack of 100 | C120: 100 | D120: 3 | E120: Art | G120: 27.71 | H120: =G120*D120 -> 83.13
A121: HC1674819 | B121: Assorted Splash Mats | C121: 4 | D121: 2 | G121: 22.04 | H121: 44.08
A122: HC1506620 | B122: Classmates Ready Mixed Paint - 1 Litre - Assorted - Pack of 12 | C122: 1 | D122: 2 | G122: 27.32 | H122: 54.64
A123: CP00052574 | B123: Round Hog Short Brush Assortment - Pack of 100 | C123: 100 | D123: 1 | G123: 41.57 | H123: 41.57
A124: HC136402 | B124: Classmates Stable Water Pots | C124: 12 | D124: 2 | G124: 20.15 | H124: 40.3
A125: HC136376 | B125: Classmates 6 Well Paint Palette - Pack of 24 | C125: 24 | D125: 1 | G125: 27.71 | H125: 27.71
A126: HC1879314 | B126: Classmates Dispenser Bottles - 4 x 250ml | C126: 4 | D126: 2 | G126: 13.22 | H126: 26.44
A127: HC209020 | B127: Classmates Newsprint - A3 - Pack of 500 | C127: 500 | D127: 1 | G127: 20.15 | H127: 20.15
A128: HC382895 | B128: Classmates Tissue Paper Square Assortment - Pack of 480 | C128: 480 | D128: 1 | G128: 11.33 | H128: 11.33
A129: HC475884 | B129: Classmates A4 Assorted Card - Pack of 200 | C129: 200 | D129: 1 | G129: 10.07 | H129: 10.07
A130: E8R07951 | B130: Classmates PVA Glue - Blue Label - 5 Litre | C130: 1 | D130: 1 | G130: 10.45 | H130: 10.45
A131: HC149896 | B131: Classmates Plastic Glue Spreaders - Double Ended | C131: 10 | D131: 4 | G131: 3.14 | H131: 12.56
A132: HC1691856 | B132: Classmates Assorted Colouring Pencils - Pack of 504 | C132: 504 | D132: 1 | G132: 36.53 | H132: 36.53
A133: HC1691748 | B133: Classmates Broad Tip Colouring Pens - Pack of 288 | C133: 288 | D133: 1 | G133: 54.17 | H133: 54.17
A134: HC1594261 | B134: Classmates Glitter Assortment | C134: 10 | D134: 1 | G134: 21.41 | H134: 21.41
A135: HC292909 | B135: Staedtler® Tradition 110 Sketching Pencils - HB - Pack of 144 | C135: 144 | D135: 1 | G135: 37.79 | H135: 37.79
A136: HC48402825 | B136: 20 Shelf Spring Loaded Floor Drying Rack with Wheels | C136: 1 | D136: 1 | G136: 214.19 | H136: 214.19
A137: ENGLISH
A138: HC1827530 | B138: Electronic phonics | C138: 1 | D138: 6 | E138: English | G138: 97.01 | H138: =D138*G138 -> 582.06
A139: HC1353913 | B139: A5 dictionaries | C139: 30 | D139: 1 | G139: 15.11 | H139: =D139*G139 -> 15.11
A140: ECMT13577 | B140: Alphabet lined boards | C140: 30 | D140: 1 | G140: 28.97 | H140: 28.97
A141: HC1564053 | B141: Oxford First Grammar, Punctuation and Spelling Dictionary | C141: EA | D141: 15 | G141: 13.85 | H141: 207.75
A142: HC48834227 | B142: Reading comprehension box 1 | C142: 1 | D142: 1 | G142: 289.79 | H142: 289.79
A143: HC1821850 | B143: Click it word builder | C143: 196 | D143: 1 | G143: 68.03 | H143: 68.03
A144: HC1821852 | B144: Click it sentence builder | C144: 204 | D144: 1 | G144: 88.19 | H144: 88.19
A145: HC1536830 | B145: Creative writing directory | C145: 1 | D145: 6 | G145: 16.37 | H145: 98.22
A146: HC1266729 | B146: Roald Dahl book pack | C146: 6 | D146: 1 | G146: 47.87 | H146: 47.87
A147: HC1579204 | B147: Traditional tale book pack | C147: 6 | D147: 1 | G147: 41.57 | H147: 41.57
A148: HC1775781 | B148: Diversity picture books for KS1 | C148: 8 | D148: 1 | G148: 75.59 | H148: 75.59
A149: HC1785323 | B149: Julia Donaldson book pack | C149: 8 | D149: 1 | G149: 69.29 | H149: 69.29
A150: HC1682556 | B150: Stories from around the world | C150: 10 | D150: 1 | G150: 69.29 | H150: 69.29
A151: HC1701719 | B151: Pencil grips | C151: 10 | D151: 1 | G151: 6.29 | H151: 6.29
A152: HC1677021 | B152: Talking tins and activity guide | C152: 10 | D152: 1 | G152: 108.22 | H152: 108.22
A153: GEOGRAPHY
A154: HC1003345 | B154: Discovery Globe 230mm | C154: 1 | D154: 1 | E154: GEOGRAPHY | G154: 39.05 | H154: 39.05
A155: HC1350713 | B155: Continents and oceans map | C155: 1 | D155: 1 | G155: 21.41 | H155: 21.41
A156: HC1206845 | B156: Let's Explore the UK Photo Pack | C156: 20 | D156: 2 | G156: 36.534 | H156: 73.068

Sheet KS1 Shared
G1: Basket Total | H1: =SUM(H3:H165) -> 12087.27
A2: Product Code | B2: Product Description | C2: Units of Measure | D2: Quantity | E2: Section | F2: Curriculum Area | G2: Unit Price | H2: Total Price
A3: MATHS
A4: E8R06581 | B4: Classmates Craft Sticks Plain - Pack of 1000 | D4: 1 | E4: Maths | F4: Number and Place Value | G4: 10.7 | H4: =G4*D4 -> 10.7
A5: EFMT14681 | B5: Ten Frames Classroom Set | D5: 1 | F5: Number and Place Value | G5: 32.13 | H5: 32.13
A6: HC1002642 | B6: Dinosaur Counters in Jar - Pack 128 | D6: 1 | F6: Number and Place Value | G6: 29.6 | H6: 29.6
A7: HC1768792 | B7: Ten Frame Stamp | D7: 1 | F7: Number and Place Value | G7: 9.69 | H7: 9.69
A8: HC1579905 | B8: Farm Animal Counters - Pack 144 | D8: 1 | F8: Number and Place Value | G8: 23.93 | H8: 23.93
A9: EFMT12398 | B9: Assorted Coloured Dice - Pack 100 | D9: 1 | F9: Number and Place Value | G9: 8.81 | H9: 8.81
A10: EFMT11935 | B10: Multilink Cubes - Pack 1000 | D10: 1 | F10: Number and Place Value | G10: 137.33 | H10: 137.33
A11: HC1535913 | B11: Number Cards 0-10 | D11: 1 | F11: Number and Place Value | G11: 5.03 | H11: =G11*D11 -> 5.03
A12: EFMT14693 | B12: Cuisenaire® Rods 10mm Pack | D12: 1 | F12: Number and Place Value | G12: 79.37 | H12: 79.37
A13: CP00053616 | B13: Double-Sided Geoboard | C13: EA | D13: 3 | F13: Number and Place Value | G13: 18.25 | H13: 54.75
A14: EFMT14432 | B14: Ten Frame Floor Mat Set | D14: 1 | F14: Number and Place Value | G14: 44.09 | H14: 44.09
A15: HC1571281 | B15: Giant Magnetic Cuisenaire Rods Demonstration Set | D15: 1 | F15: Number and Place Value | G15: 18.01 | H15: 18.01
A16: HC1579915 | B16: Fruit Counters - Pack 108 | D16: 1 | F16: Number and Place Value | G16: 28.34 | H16: 28.34
A17: EFMT13230 | B17: Counting Sticks - Teacher | D17: 1 | F17: Number and Place Value | G17: 16.37 | H17: 16.37
A18: HC1002650 | B18: Teddy Bear Rucksack Counters - Pack 80 | D18: 1 | F18: Number and Place Value | G18: 19.64 | H18: 19.64
A19: HC1622425 | B19: Natural Materials | C19: 1 | D19: 2 | F19: Number and Place Value | G19: 45.35 | H19: =G19*D19 -> 90.7
A20: EFMT14080 | B20: Table Top Number Lines - 0 to 100 - Pack 5 | D20: 3 | F20: Number and Place Value | G20: 11.33 | H20: =G20*D20 -> 33.99
A21: HC1658864 | B21: Natural Sorting Tray | C21: 1 | D21: 2 | F21: Number and Place Value | G21: 25.06 | H21: 50.12
A22: HC1426802 | B22: Giant Polished Gems 1kg | C22: 1 | D22: 4 | F22: Number and Place Value | G22: 28.34 | H22: 113.36
A23: HC1773398 | B23: Junior Rainbow Pebbles | C23: 36 | D23: 3 | F23: Number and Place Value | G23: 26.45 | H23: 79.35
A24: HC1002795 | B24: Connecting Camels Pk 120 | C24: 120 | D24: 1 | F24: Number and Place Value | G24: 35.02 | H24: =G24*D24 -> 35.02
A25: HC1571297 | B25: Number Bonds Answer Boards - Pack of 5 | C25: 5 | D25: 3 | F25: Addition and Subtraction | G25: 33.88 | H25: 101.64
A26: HC1571299 | B26: Number Bonds Magnetic Demo | C26: 1 | D26: 1 | F26: Addition and Subtraction | G26: 23.93 | H26: 23.93
A27: HC1000007 | B27: Number Crunchers to 10 - Pack of 100 | C27: 100 | D27: 1 | F27: Addition and Subtraction | G27: 37.79 | H27: 37.79
A28: HC1000008 | B28: Number Crunchers to 20 - Pack of 100 | C28: 100 | D28: 1 | F28: Addition and Subtraction | G28: 37.79 | H28: 37.79
A29: HC168642 | B29: Wooden Shapes and Patterns Box | D29: 1 | F29: Geometry | G29: 43.46 | H29: =G29*D29 -> 43.46
A30: HC1687597 | B30: Mini Relational Geosolids Pack | D30: 1 | F30: Geometry | G30: 20.78 | H30: 20.78
A31: E8A44416 | B31: Plastic Flexible Mirrors - 100 x 75mm | D31: 3 | F31: Geometry | G31: 7.55 | H31: 22.65
A32: HC1002659 | B32: Geometric Large Shapes | C32: 17 | D32: 3 | F32: Geometry | G32: 31.49 | H32: 94.47
A33: HC1002660 | B33: Geometric Plastic Shapes Small | C33: 60 | D33: 1 | F33: Geometry | G33: 23.68 | H33: 23.68
A34: HC1002807 | B34: Unbreakable Mirrors 90x65mm P10 | C34: 10 | D34: 2 | F34: Geometry | G34: 8.18 | H34: 16.36
A35: HC1002712 | B35: Polydron Bumper Classroom Pack | C35: 1 | D35: 1 | F35: Geometry | G35: 302.4 | H35: 302.4
A36: HC168434 | B36: 3D Geometric Shapes | C36: 1 | D36: 1 | F36: Geometry | G36: 56.69 | H36: 56.69
A37: HC168603 | B37: Polygon Allsorts | C37: 1 | D37: 1 | F37: Geometry | G37: 52.91 | H37: 52.91
A38: HC1002661 | B38: Geometric Plastic Shapes - Large - Pack of 60 | C38: 60 | D38: 1 | F38: Geometry | G38: 46.61 | H38: 46.61
A39: HC1290942 | B39: 2D Faces of 3D Shapes | C39: 1 | D39: 1 | F39: Geometry | G39: 35.27 | H39: 35.27
A40: EFMT14207 | B40: 2D Shape Bag | C40: 1 | D40: 1 | F40: Geometry | G40: 30.23 | H40: 30.23
A41: EFMT14208 | B41: 3D Shape Bag | C41: 1 | D41: 1 | F41: Geometry | G41: 30.23 | H41: 30.23
A42: EFMT11671 | B42: Geometric Shapes - Pack of 17 | C42: 17 | D42: 1 | F42: Geometry | G42: 31.49 | H42: 31.49
A43: HC1002683 | B43: 2D Shape Set | C43: EA | D43: 6 | F43: Geometry | G43: 57.95 | H43: 347.7
A44: HC1824761 | B44: Nature Shape Cards - Pack of 20 | C44: 20 | D44: 1 | F44: Geometry | G44: 13.22 | H44: 13.22
A45: EFMT12668 | B45: Shape Templates | C45: 5 | D45: 1 | F45: Geometry | G45: 10.45 | H45: 10.45
A46: HC1522060 | B46: Multilink® Grid Tray Sheets - Number and Geometry | C46: 1 | D46: 1 | F46: Geometry | G46: 13.22 | H46: =G46*D46 -> 13.22
A47: HC169266 | B47: Giant Money | D47: 1 | F47: Measurement | G47: 21.41 | H47: 21.41
A48: HC881132 | B48: Simple Scales | D48: 10 | F48: Measurement | G48: 32.12 | H48: 321.2
A49: E8A74249 | B49: Litre Containers - Pack of 5 | D49: 1 | F49: Measurement | G49: 27.71 | H49: 27.71
A50: HC1465747 | B50: Helix Metre Stick | D50: 10 | F50: Measurement | G50: 8.93 | H50: 89.3
A51: EFMT14327 | B51: Sand Timer Kit Pack of 7 | D51: 1 | F51: Measurement | G51: 80.63 | H51: 80.63
A52: HC1820797 | B52: 5-in-1 Outdoor Measure-Mate | C52: 1 | D52: 1 | F52: Measurement | G52: 45.35 | H52: 45.35
A53: E8R08153 | B53: 1kg Mechanical Scale - White | C53: 1 | D53: 1 | F53: Measurement | G53: 15.11 | H53: =G53*D53 -> 15.11
A54: EFMT11653 | B54: Write-On/Wipe-Off Clocks - Pack of 10 | C54: 10 | D54: 3 | F54: Measurement | G54: 11.33 | H54: 33.99
A55: HC1002786 | B55: Plastic Weights - Pack 50 | C55: 50 | D55: 1 | F55: Measurement | G55: 19.64 | H55: 19.64
A56: HC171528 | B56: Bucket Balance | C56: 1 | D56: 1 | F56: Measurement | G56: 28.34 | H56: 28.34
A57: HC1664444 | B57: EasyRead Red and Blue Past To Wall Clock | C57: 1 | D57: 1 | F57: Measurement | G57: 34.01 | H57: 34.01
A58: EFMT13228 | B58: Learning Clock | C58: 1 | D58: 1 | F58: Measurement | G58: 51.65 | H58: 51.65
A59: E8A51172 | B59: Platform Scales | C59: 1 | D59: 1 | F59: Measurement | G59: 23.93 | H59: 23.93
A60: HC1816991 | B60: Dry-Wipe 100-Square Board - Teacher's Display | D60: 1 | F60: Teaching Resource | G60: 42.2 | H60: =G60*D60 -> 42.2
A61: HC1535915 | B61: Number Cards 0-100 | C61: 101 | D61: 10 | F61: Teaching Resource | G61: 3.52 | H61: 35.2
A62: EFMT14074 | B62: Numicon Boxed Set of 80 Shapes | D62: 1 | F62: Teaching Resource | G62: 56.69 | H62: 56.69
A63: HC1822718 | B63: Coloured Dienes Base Ten set | D63: 6 | F63: Teaching Resource | G63: 44.09 | H63: 264.54
A64: HC1674059 | B64: 50 Base Ten Activities | C64: 50 | D64: 1 | F64: Teaching Resource | G64: 21.16 | H64: 21.16
A65: HC1673764 | B65: 50 Bead String Activities | C65: 50 | D65: 1 | F65: Teaching Resource | G65: 21.16 | H65: 21.16
A66: HC1569663 | B66: Pack of 5 Peg Boards plus 1000 Pegs | C66: 5 | D66: 6 | F66: Classroom Tools | G66: 22.04 | H66: =G66*D66 -> 132.24
A67: HC1499776 | B67: Jumbo Bright Buttons | D67: 1 | F67: Classroom Tools | G67: 17.63 | H67: 17.63
A68: HC1546971 | B68: Pupil Venn Carroll Dry-Wipe Board - Pack of 30 | C68: 1 | D68: 1 | F68: Classroom Tools | G68: 44.1 | H68: 44.1
A69: HC1546973 | B69: Teacher's Venn Carroll Dry Wipe Board | C69: 1 | D69: 1 | F69: Classroom Tools | G69: 18.38 | H69: 18.38
A70: HC1569661 | B70: Pack Of 5 Peg Boards | C70: 5 | D70: 6 | F70: Classroom Tools | G70: 12.59 | H70: 75.54
A71: E8R06726 | B71: Sharp EL240SAB Calculator | C71: 30 | D71: 1 | F71: Classroom Tools | G71: 136.07 | H71: 136.07
A72: EFMT14081 | B72: Rekenrek Counting Frame | C72: 1 | D72: 15 | F72: Classroom Tools | G72: 6.79 | H72: 101.85
A73: Shared Stationery
A74: HC175974 | B74: Pompom Pack 100 | C74: 100 | D74: 3 | E74: Shared Stationery | G74: 7.55 | H74: =G74*D74 -> 22.65
A75: HC259499 | B75: Craft Pipe Cleaners 30cm P1000 | C75: 1000 | D75: 2 | G75: 22.67 | H75: 45.34
A76: HC103853 | B76: Bumper Modelling Tools Set of 95 | C76: 95 | D76: 1 | G76: 51.65 | H76: 51.65
A77: HC153003 | B77: Modelling Tools Set of 18 | C77: 18 | D77: 2 | G77: 23.93 | H77: 47.86
A78: HC346651 | B78: Modelling Tools Plastic Set 14 | C78: 14 | D78: 2 | G78: 3.77 | H78: 7.54
A79: HC152691 | B79: Wooden Dough Tools Set P12 | C79: 12 | D79: 1 | G79: 12.59 | H79: 12.59
A80: HC103841 | B80: Modelling Board | C80: 1 | D80: 10 | G80: 7.55 | H80: 75.5
A81: English
A82: HC1004210 | B82: Smart Phonics and Board Bulk Pack | C82: 1 | D82: 3 | E82: English | G82: 70.55 | H82: =G82*D82 -> 211.65
A83: HC1678254 | B83: Smart Phonics Special Offer | C83: 1 | D83: 6 | G83: 45.35 | H83: =G83*D83 -> 272.1
A84: HC1004140 | B84: Alphabet Sound Teaching Tubs | C84: 1 | D84: 1 | G84: 314.99 | H84: 314.99
A85: HC249242 | B85: Magnetic High Frequency Words Set 2 | C85: 1 | D85: 2 | G85: 15.11 | H85: 30.22
A86: HC249255 | B86: Magnetic High Frequency Words Set 3 | C86: 1 | D86: 2 | G86: 15.11 | H86: 30.22
A87: HC249268 | B87: Magnetic High Frequency Words Set 4 | C87: 1 | D87: 2 | G87: 15.11 | H87: 30.22
A88: HC249281 | B88: Magnetic High Frequency Words Set 5 | C88: 1 | D88: 2 | G88: 15.11 | H88: 30.22
A89: HC1544346 | B89: Phonics Threading Beads- CVCC and CCVC | C89: 1 | D89: 3 | G89: 45.35 | H89: 136.05
A90: HC1004165 | B90: Whats The Rhyme Sorting Houses | C90: 1 | D90: 3 | G90: 68.03 | H90: 204.09
A91: HC1664177 | B91: Cvc Bingo | C91: 1 | D91: 3 | G91: 23.93 | H91: 71.79
A92: HC1665070 | B92: 50 Speaking Activity Cards | C92: 1 | D92: 4 | G92: 20.15 | H92: 80.6
A93: HC1688351 | B93: Conversation Cards | C93: 1 | D93: 4 | G93: 34.64 | H93: 138.56
A94: HC1000051 | B94: Cvc Word Strips | C94: 1 | D94: 6 | G94: 33.38 | H94: 200.28
A95: HC1000052 | B95: CCVC Word Strips | C95: 1 | D95: 6 | G95: 33.38 | H95: 200.28
A96: HC1000053 | B96: CVVC Word Strips | C96: 1 | D96: 6 | G96: 28.34 | H96: 170.04
A97: HC1004553 | B97: Rol n Write Alphabet | C97: 1 | D97: 1 | G97: 57.95 | H97: 57.95
A98: HC1546490 | B98: Lower Case Letter Cutters Pack of 26 | D98: 2 | G98: 7.55 | H98: 15.1
A99: ECMT10546 | B99: Letter Flips CVVC Pack of 5 | D99: 5 | G99: 31.49 | H99: 157.45
A100: ECMT13576 | B100: Alphabet Tracing Boards Pack of 30 | D100: 2 | G100: 30.23 | H100: 60.46
A101: ECMT11747 | B101: Plain Wood Lowercase Letters Pack of 60 | D101: 4 | G101: 9.56 | H101: 38.24
A102: HC251062 | B102: Phonix Class Huge Bumper Box | D102: 1 | G102: 138.52 | H102: 138.52
A103: HC1004483 | B103: Short and Long Vowels Tubs | D103: 2 | G103: 129.77 | H103: 259.54
A104: EDMT14530 | B104: Match and Spell Next Steps | D104: 1 | G104: 10.7 | H104: 10.7
A105: HC1004226 | B105: Matching Words and Pictures - Phase 2 | D105: 2 | G105: 16.37 | H105: 32.74
A106: CP00053354 | B106: Hanging Bags 355x330mm - Each | C106: EA | D106: 4 | G106: 2.05 | H106: 8.2
A107: HC1626533 | B107: Lowercase Alphabet Indoor/Outdoor Spots Pack of 26 | C107: P26 | D107: 2 | G107: 55.43 | H107: 110.86
A108: EBMT13292 | B108: Coloured Blank Flash Cards - 1000 small cards | D108: 1 | G108: 11.33 | H108: 11.33
A109: EDMT13122 | B109: Speaking and Listening Games | D109: 1 | G109: 33.38 | H109: 33.38
A110: HC1004189 | B110: Fairytale Wooden Character Set | D110: 1 | G110: 107.09 | H110: 107.09
A111: HC182240 | B111: Puppet Creation Pack of 30 | D111: 2 | G111: 35.27 | H111: 70.54
A112: HC155044 | B112: Giotto Robercolor Chalk - White Pack of 100 | D112: 1 | G112: 6.29 | H112: 6.29
A113: EDMT14513 | B113: Match and Spell | D113: 3 | G113: 10.07 | H113: 30.21
A114: ECMT11915 | B114: Kaleidoscope Sentence Strips | D114: 3 | G114: 10.07 | H114: 30.21
A115: ECMT01220 | B115: Phonix CVC Groupwork Set | D115: 5 | G115: 36.53 | H115: 182.65
A116: HC1004181 | B116: Giraffes Can't Dance | D116: 1 | G116: 46.61 | H116: 46.61
A117: EBMT12256 | B117: Talking Tubes Telephone Exchange Group Set | D117: 1 | G117: 71.81 | H117: 71.81
A118: EGMT13883 | B118: Feels Write Letter Stones - 26 Letter Stones | D118: 3 | G118: 69.29 | H118: 207.87
A119: EBMT14734 | B119: Write on Wipe Off Pockets | D119: 3 | G119: 32.73 | H119: 98.19
A120: EBMT13291 | B120: Coloured Blank Flash Cards - 250 large cards | D120: 1 | G120: 11.33 | H120: 11.33
A121: HC1004180 | B121: Handa's Surprise | D121: 1 | G121: 66.77 | H121: 66.77
A122: HC1004243 | B122: Alphabet Lacing Sweets Pack of 31 | D122: 4 | G122: 28.97 | H122: 115.88
A123: ECMT14449 | B123: 6 Comprehension Games | D123: 1 | G123: 27.08 | H123: 27.08
A124: EDMT14529 | B124: 6 Reading Games | D124: 1 | G124: 31.49 | H124: 31.49
A125: HC486648 | B125: Storytelling Masks Pack of 21 | D125: 2 | G125: 45.35 | H125: 90.7
A126: EBMT14138 | B126: 6 Blending Games | D126: 1 | G126: 31.49 | H126: 31.49
A127: EFMT11959 | B127: Magnetic Dry-wipe Boards | D127: 5 | G127: 31.5 | H127: 157.5
A128: ECMT14463 | B128: Tricky Word Pebbles - Set 1 | D128: 2 | G128: 70.55 | H128: 141.1
A129: ECMT12613 | B129: Alpha Pops Pack of 26 | D129: 1 | G129: 28.34 | H129: 28.34
A130: ECMT10552 | B130: What’s the Rhyme Sorting Houses | D130: 1 | G130: 68.03 | H130: 68.03
A131: HC248683 | B131: Alphabet Pebbles | C131: 1 | D131: 1 | G131: 49.13 | H131: 49.13
A132: HC48850846 | B132: A4 Phoneme Frame Whiteboards - PHONEME Frame Boards, Pens & Erasers | C132: 107 | D132: 1 | G132: 119.69 | H132: 119.69
A133: HC1002256 | B133: Tricky Words Magnets | C133: 1 | D133: 1 | G133: 33.38 | H133: 33.38
A134: HC1545180 | B134: Tricky Word Pebbles Set 2 | C134: 1 | D134: 1 | G134: 70.55 | H134: 70.55
A135: HC1002106 | B135: Smart Chute | C135: 1 | D135: 1 | G135: 23.93 | H135: 23.93
A136: HC1490696 | B136: Phonics Pebbles | C136: 1 | D136: 2 | G136: 61.73 | H136: 123.46
A137: HC1536875 | B137: Reading Comprehension Cubes | C137: 1 | D137: 1 | G137: 13.85 | H137: 13.85
A138: HC1769575 | B138: Chatter Clouds from Hope Education | C138: EA | D138: 6 | G138: 12.59 | H138: 75.54
A139: ECMT14115 | B139: Roll a story dice | C139: 10 | D139: 1 | G139: 16.37 | H139: 16.37
A140: HC1759774 | B140: Bumper grammar and punctuation kit | C140: 1 | D140: 1 | G140: 258.29 | H140: 258.29
A141: HC1783993 | B141: Travelling tales owl babies | C141: 1 | D141: 1 | G141: 90.71 | H141: 90.71
A142: HC1783985 | B142: Travelling tale we're going on a bear hunt | C142: 1 | D142: 1 | G142: 138.59 | H142: 138.59
A143: HC1783983 | B143: Travelling tales room on the broom | C143: 1 | D143: 1 | G143: 167.57 | H143: =G143*D143 -> 167.57
A144: HC1783987 | B144: Travelling tales the gruffalo | C144: 1 | D144: 1 | G144: 167.57 | H144: 167.57
A145: HC1673581 | B145: Banded readers red | C145: 12 | D145: 1 | G145: 95.75 | H145: 95.75
A146: HC1673583 | B146: Bander readers yellow | C146: 15 | D146: 1 | G146: 124.73 | H146: 124.73
A147: HC1813967 | B147: Banded readers blue | C147: 15 | D147: 1 | G147: 86.93 | H147: 86.93
A148: HC1813969 | B148: Banded readers green | C148: 10 | D148: 1 | G148: 76.85 | H148: 76.85
A149: HC1673589 | B149: Banded readers orange | C149: 20 | D149: 1 | G149: 172.61 | H149: 172.61
A150: HC1673591 | B150: Banded readers turquoise | C150: 20 | D150: 1 | G150: 163.79 | H150: 163.79
A151: HC1673593 | B151: Banded readers purple | C151: 20 | D151: 1 | G151: 168.83 | H151: 168.83
A152: HC1673595 | B152: Banded readers gold | C152: 20 | D152: 1 | G152: 161.27 | H152: 161.27
A153: HC1673597 | B153: Banded readers white | C153: 20 | D153: 1 | G153: 161.27 | H153: 161.27
A154: HC1673599 | B154: Banded readers lime | C154: 20 | D154: 1 | G154: 156.23 | H154: 156.23
A155: GEOGRAPHY
A156: HC1003150 | B156: Plotting Compass 16mm | C156: 10 | D156: 2 | E156: Geography | G156: 4.22 | H156: 8.44
A157: HC1003401 | B157: Collins First Atlas | C157: EA | D157: 5 | G157: 8.81 | H157: 44.05
A158: HC1206845 | B158: Let's explore the UK photo pack | C158: 20 | D158: 1 | G158: 36.53 | H158: 36.53
A159: HC1535051 | B159: World and UK desk maps | C159: 30 | D159: 1 | G159: 55.43 | H159: 55.43
A160: HC1488949 | B160: Thinking geography - physical & human | C160: 20 | D160: 1 | G160: 22.67 | H160: 22.67
A161: HC1535039 | B161: Thinking geography cards - South America | C161: 20 | D161: 1 | G161: 22.67 | H161: 22.67
A162: HC1664201 | B162: Biomes Kit | C162: 1 | D162: 1 | G162: 42.83 | H162: 42.83
A163: HC1206853 | B163: KS1 weather photo pack | C163: 20 | D163: 1 | G163: 34.64 | H163: 34.64
A164: HC48753991 | B164: Mapping and atlas skills lower primary | C164: 1 | D164: 1 | G164: 21.41 | H164: 21.41
A165: HC1210329 | B165: Local area explorers kit | C165: 1 | D165: 1 | G165: 69.29 | H165: 69.29

Sheet Year 3
G1: Basket Total | H1: =SUM(H3:H157) -> 7295.64
A2: Product Code | B2: Product Description | C2: Units of Measure | D2: Quantity | E2: Section | F2: Curriculum Area | G2: Unit Price | H2: Total Sell
A3: MATHS
A4: HC169149 | B4: Htu Dice Pack Of 60 | C4: 60 | D4: 1 | E4: Maths | F4: Number and Place Value | G4: 67.4 | H4: =G4*D4 -> 67.4
A5: HC1369266 | B5: Place Value Arrows Thousands Teacher | C5: 9 | D5: 2 | F5: Number and Place Value | G5: 13.85 | H5: =G5*D5 -> 27.7
A6: HC1002791 | B6: Place Value Arrow Cards Pupil PK6 | C6: 6 | D6: 3 | F6: Number and Place Value | G6: 37.79 | H6: =G6*D6 -> 113.37
A7: HC1489774 | B7: Numicon Boxed Set Of 80 Shapes | C7: 80 | D7: 2 | F7: Number and Place Value | G7: 56.69 | H7: =G7*D7 -> 113.38
A8: HC167199 | B8: Pupil Number Fans | C8: 10 | D8: 3 | F8: Number and Place Value | G8: 17.38 | H8: 52.14
A9: HC332676 | B9: 0-100 Table Top Number Lines Pk5 | C9: 5 | D9: 4 | F9: Number and Place Value | G9: 11.33 | H9: 45.32
A10: HC167602 | B10: 1 - 6 Dice (pkt Of 30) | C10: 30 | D10: 1 | F10: Number and Place Value | G10: 9.44 | H10: 9.44
A11: HC1002701 | B11: DoubleSided DryWipe Counting Board Pupil | C11: 30 | D11: 1 | F11: Number and Place Value | G11: 57.95 | H11: 57.95
A12: HC1535915 | B12: Numbers 0-100 | C12: 100 | D12: 1 | F12: Number and Place Value | G12: 3.52 | H12: 3.52
A13: HC199946 | B13: Number and Operations Moulds | C13: 1 | D13: 1 | F13: Number and Place Value | G13: 15.11 | H13: 15.11
A14: EFMT14690 | B14: A5 Double Sided Multiplication Grid - Pack of 35 | C14: 35 | D14: 1 | F14: Multiplication and Division | G14: 35.02 | H14: 35.02
A15: EFMT14686 | B15: Giant Magnetic Array Set | C15: 1 | D15: 1 | F15: Multiplication and Division | G15: 20.78 | H15: 20.78
A16: HC1361214 | B16: 2, 5 and 10 Times Table Bingo | C16: 1 | D16: 1 | F16: Multiplication and Division | G16: 34.64 | H16: 34.64
A17: CP052091 | B17: Times Table Fan Pack | C17: 55 | D17: 2 | F17: Multiplication and Division | G17: 18.9 | H17: 37.8
A18: EGMT13629 | B18: Addition and Subtraction Cards | C18: 6 | D18: 1 | F18: Addition and Subtraction | G18: 51.52 | H18: =G18*D18 -> 51.52
A19: HC425015 | B19: Giant Blank Cruncher | C19: 1 | D19: 1 | F19: Addition and Subtraction | G19: 15.11 | H19: =G19*D19 -> 15.11
A20: HC421271 | B20: First Fraction Dominoes | C20: 1 | D20: 3 | F20: Fractions, Decimals and Percentages | G20: 13.22 | H20: =G20*D20 -> 39.66
A21: HC167277 | B21: Fraction Number Fans Class Pack | C21: 30 | D21: 1 | F21: Fractions, Decimals and Percentages | G21: 35.02 | H21: =G21*D21 -> 35.02
A22: HC1534658 | B22: Percentages Decimals And Fractions Bingo | C22: 1 | D22: 4 | F22: Fractions, Decimals and Percentages | G22: 25.19 | H22: =G22*D22 -> 100.76
A23: EFMT13242 | B23: Rainbow Fraction Tiles | C23: 1 | D23: 1 | F23: Fractions, Decimals and Percentages | G23: 18.01 | H23: 18.01
A24: HC1002641 | B24: Rainbow Fractions Circles | C24: 1 | D24: 1 | F24: Fractions, Decimals and Percentages | G24: 14.6 | H24: 14.6
A25: HC1571283 | B25: Cubes Fraction Set | C25: 1 | D25: 1 | F25: Fractions, Decimals and Percentages | G25: 15.99 | H25: 15.99
A26: HC1536364 | B26: Fraction Bag | C26: 1 | D26: 1 | F26: Fractions, Decimals and Percentages | G26: 29.72 | H26: 29.72
A27: HC1866833 | B27: Magnetic Apple Fractions | C27: 1 | D27: 1 | F27: Fractions, Decimals and Percentages | G27: 35.27 | H27: 35.27
A28: CP00050533 | B28: Food Fractions | C28: 1 | D28: 1 | F28: Fractions, Decimals and Percentages | G28: 16.86 | H28: 16.86
A29: HC167485 | B29: Multi-sided Dice | C29: 5 | D29: 6 | F29: Classroom Tools | G29: 5.41 | H29: =G29*D29 -> 32.46
A30: HC1002807 | B30: Unbreakable Mirrors 90x65mm P10 | C30: 10 | D30: 2 | F30: Geometry | G30: 8.18 | H30: =G30*D30 -> 16.36
A31: HC1002659 | B31: Geometric Large Shapes | C31: 17 | D31: 2 | F31: Geometry | G31: 31.49 | H31: =G31*D31 -> 62.98
A32: HC1002639 | B32: Geometrc Plane Shapes Set 1-50mm | C32: 160 | D32: 2 | F32: Geometry | G32: 36.28 | H32: =G32*D32 -> 72.56
A33: HC274605 | B33: Shape Templates | C33: 5 | D33: 5 | F33: Geometry | G33: 10.45 | H33: 52.25
A34: HC1666493 | B34: Easy-grip Shape Stampers - Set Of 14 | C34: 14 | D34: 1 | F34: Geometry | G34: 22.67 | H34: 22.67
A35: HC424404 | B35: Geoboards 6 Colours 230mm | C35: 6 | D35: 4 | F35: Geometry | G35: 22.67 | H35: 90.68
A36: HC181213 | B36: Tape Measure Pack of 10 | C36: 10 | D36: 2 | F36: Measurement | G36: 11.33 | H36: =G36*D36 -> 22.66
A37: E8A73842 | B37: 1m Wood Rule - Marked CM And MM | C37: 1 | D37: 5 | F37: Measurement | G37: 5.03 | H37: =G37*D37 -> 25.15
A38: EFMT14433 | B38: Class Coin Set | C38: 1 | D38: 1 | F38: Measurement | G38: 37.79 | H38: 37.79
A39: E8R09487 | B39: Dual Power Timer - Pack of 5 | C39: 5 | D39: 1 | F39: Measurement | G39: 36.28 | H39: 36.28
A40: HC169526 | B40: Grocery Store Flip | C40: 1 | D40: 1 | F40: Measurement | G40: 27.71 | H40: 27.71
A41: EDMT14144 | B41: Mini Time Tracker | C41: 1 | D41: 1 | F41: Measurement | G41: 28.34 | H41: 28.34
A42: HC166601 | B42: Multilink® Graph and Histogram Board | C42: 1 | D42: 1 | F42: Statistics | G42: 63.37 | H42: 63.37
A43: HC1821393 | B43: Times Tables Cubes Set 1- 2,3,4,5,10 | C43: 10 | D43: 1 | F43: Teaching Resource | G43: 25.19 | H43: 25.19
A44: HC1552581 | B44: Maths Box Year 3 | C44: 1 | D44: 1 | F44: Teaching Resource | G44: 233.09 | H44: 233.09
A45: HC1604281 | B45: HOPE Maths Problem Solving Cards - Year 3 | C45: 1 | D45: 1 | F45: Teaching Resource | G45: 55.43 | H45: 55.43
A46: EFMT14684 | B46: 7 Maths Board Games Year 6-8 | C46: 1 | D46: 1 | F46: Classroom Tools | G46: 35.02 | H46: 35.02
A47: HC1820757 | B47: Number and Symbol's Spots | C47: 1 | D47: 1 | F47: Classroom Tools | G47: 80.63 | H47: 80.63
A48: EFMT14710 | B48: Giant Magnetic Numbers and Operations | C48: 1 | D48: 1 | F48: Classroom Tools | G48: 14.48 | H48: 14.48
A49: HC167784 | B49: Coloured Dominoes Pk 168 | C49: 168 | D49: 1 | F49: Classroom Tools | G49: 20.1 | H49: 20.1
A50: HC1490618 | B50: Jumbo Number Pebbles | C50: 20 | D50: 1 | F50: Classroom Tools | G50: 44.09 | H50: 44.09
A51: HC167446 | B51: Foam Dice Blue | C51: 1 | D51: 5 | F51: Classroom Tools | G51: 10.19 | H51: 50.95
A52: HC312396 | B52: 100 Coloured Dice 4 Colours | C52: 100 | D52: 1 | F52: Classroom Tools | G52: 8.81 | H52: 8.81
A53: HC1283650 | B53: Plastic Counters 22mm (pkt Of 500) | C53: 500 | D53: 1 | F53: Classroom Tools | G53: 12.59 | H53: 12.59
A54: HC363525 | B54: Pupil Counting Stick P6 | C54: 6 | D54: 3 | F54: Classroom Tools | G54: 22.67 | H54: 68.01
A55: HC1674195 | B55: Tactile Counting Stones | C55: 1 | D55: 1 | F55: Classroom Tools | G55: 42.2 | H55: 42.2
A56: HC165405 | B56: 1000pk Counting Sticks | C56: 1000 | D56: 1 | F56: Classroom Tools | G56: 25.83 | H56: 25.83
A57: HC1770182 | B57: Sand Timer - 1 Minute | C57: 1 | D57: 1 | F57: Classroom Tools | G57: 12.59 | H57: 12.59
A58: HC1770186 | B58: Sand Timer - 5 Minute | C58: 1 | D58: 1 | F58: Classroom Tools | G58: 12.59 | H58: 12.59
A59: HC165444 | B59: Transparent Counters - Pack 1000 | C59: 1000 | D59: 1 | F59: Classroom Tools | G59: 23.93 | H59: 23.93
A60: HC1664905 | B60: Abacus | C60: 1 | D60: 1 | F60: Classroom Tools | G60: 15.86 | H60: 15.86
A61: EFMT11934 | B61: Multilink® Cubes (500) | C61: 500 | D61: 1 | F61: Classroom Tools | G61: 98.27 | H61: 98.27
A62: HC1524135 | B62: Multilink® Grid Tray Sheets | C62: 3 | D62: 1 | F62: Classroom Tools | G62: 35.02 | H62: 35.02
A63: EFMT13263 | B63: Multilink® Grid Tray | C63: 1 | D63: 15 | F63: Classroom Tools | G63: 12.59 | H63: 188.85
A64: EGMT13635 | B64: Base 10 Set from Hope Education | C64: 1 | D64: 1 | F64: Classroom Tools | G64: 71.81 | H64: 71.81
A65: EFMT14205 | B65: Giant Magnetic Base 10 Demonstration Set | C65: 1 | D65: 1 | F65: Classroom Tools | G65: 31.49 | H65: 31.49
A66: HC167121 | B66: Write-On/Wipe-Off 100 Squares - Pack of 35 | C66: 35 | D66: 1 | F66: Classroom Tools | G66: 18.89 | H66: 18.89
A67: HC1822714 | B67: Eco Friendly 20 Bead String | C67: 1 | D67: 15 | F67: Classroom Tools | G67: 7.93 | H67: 118.95
A68: HC1822716 | B68: Eco-friendly 100 Bead String | C68: 1 | D68: 1 | F68: Classroom Tools | G68: 31.87 | H68: 31.87
A69: HC373873 | B69: Jumbo Playing Cards | C69: 1 | D69: 5 | F69: Classroom Tools | G69: 5.41 | H69: 27.05
A70: HC167719 | B70: Playing Cards | C70: 1 | D70: 15 | F70: Classroom Tools | G70: 1.88 | H70: 28.2
A71: HC167576 | B71: Polyhedron Number Dice - Pack 35 | C71: 35 | D71: 1 | F71: Classroom Tools | G71: 10.82 | H71: 10.82
A72: HC1866525 | B72: Rainbow Spinners | C72: 1 | D72: 1 | F72: Classroom Tools | G72: 15.86 | H72: 15.86
A73: EFMT14097 | B73: Foam Dice with Pockets | C73: 1 | D73: 1 | F73: Classroom Tools | G73: 9.19 | H73: 9.19
A74: EFMT14179 | B74: Teacher Whiteboard Dice | C74: 4 | D74: 1 | F74: Classroom Tools | G74: 42.83 | H74: 42.83
A75: EFMT11929 | B75: Unifix® Cubes - Pack of 500 | C75: 500 | D75: 1 | F75: Classroom Tools | G75: 35.9 | H75: 35.9
A76: HC166952 | B76: 0-100 Wall Number Line | C76: 1 | D76: 1 | F76: Display | G76: 13.22 | H76: =G76*D76 -> 13.22
A77: STATIONERY
A78: HC337213 | B78: Staedtler Noris HB Pencils Pk150 | C78: 150 | D78: 1 | E78: Stationery | G78: 18.89 | H78: =G78*D78 -> 18.89
A79: HC1254676 | B79: Texet Albert Junior Classpack | C79: 30 | D79: 1 | G79: 192.77 | H79: 192.77
A80: HC1694632 | B80: Classmate Classroom Collection | C80: 9 | D80: 1 | G80: 20.15 | H80: =G80*D80 -> 20.15
A81: HC206745 | B81: A4 Bulky Zip Wallets Asst P100 | C81: 100 | D81: 1 | G81: 52.91 | H81: =G81*D81 -> 52.91
A82: HC255469 | B82: A5 Zip Wallets Red P25 | C82: 25 | D82: 3 | G82: 15.11 | H82: 45.33
A83: HC284654 | B83: CM Address Labels 89x36mm P250 | C83: 250 | D83: 2 | G83: 5.03 | H83: 10.06
A84: HC282418 | B84: CM Sticky Note Cube Neon 75x75mm | C84: 1 | D84: 5 | G84: 4.15 | H84: 20.75
A85: HC1691792 | B85: Classmates Highlighters 5 Colours Pk 48 | C85: 48 | D85: 1 | G85: 10.7 | H85: 10.7
A86: HC1691844 | B86: CM Easy Grip Triangular Pencils P72 | C86: 72 | D86: 1 | G86: 17.63 | H86: 17.63
A87: HC316244 | B87: CM Metal Sharpeners Double Hole Pk12 | C87: 12 | D87: 2 | G87: 11.33 | H87: 22.66
A88: HC131969 | B88: Staedtler Rasoplast Eraser P30 | C88: 30 | D88: 1 | G88: 12.59 | H88: 12.59
A89: HC88200582 | B89: Shatterproof 30cm/mm Clear Ruler Pk10 | C89: 10 | D89: 3 | G89: 4.9 | H89: 14.7
A90: HC298772 | B90: Rapesco X5-30PS Medium Duty Hole Punch | C90: 1 | D90: 1 | G90: 9.06 | H90: 9.06
A91: HC397364 | B91: Rapesco Sting Ray Half Strip Stapler | C91: 1 | D91: 1 | G91: 8.18 | H91: 8.18
A92: HC194863 | B92: Rapesco 24/6 Staples P5000 | C92: 5000 | D92: 1 | G92: 4.4 | H92: 4.4
A93: HC186556 | B93: Paper Fasteners 25mm Pack 200 | C93: 200 | D93: 1 | G93: 6.92 | H93: 6.92
A94: HC179406 | B94: Treasury Tag 51mm Yellow P100 | C94: 100 | D94: 1 | G94: 3.77 | H94: 3.77
A95: HC397442 | B95: C M Easytear Tape 24mmx66m Pk6 | C95: 6 | D95: 1 | G95: 5.66 | H95: 5.66
A96: HC1699057 | B96: Classmate Tape Dispenser | C96: 1 | D96: 1 | G96: 6.92 | H96: 6.92
A97: HC322874 | B97: Classmates Dble Sided Tape 12mmx33mm Pk6 | C97: 6 | D97: 1 | G97: 11.96 | H97: 11.96
A98: HC225517 | B98: C M Masking Tape 24mmx50mx9 | C98: 9 | D98: 1 | G98: 15.11 | H98: 15.11
A99: HC1109953 | B99: Blu Tack Original 60g | C99: 12 | D99: 1 | G99: 11.96 | H99: 11.96
A100: HC479745 | B100: A4 Hardboard Clipboard P12 | C100: 12 | D100: 2 | G100: 35.27 | H100: 70.54
A101: HC279324 | B101: Sellotape® Loop Spots - 125 Spots | C101: 125 | D101: 2 | G101: 11.71 | H101: 23.42
A102: HC279337 | B102: Sellotape® Hook Spots - 125 Spots | C102: 125 | D102: 2 | G102: 11.71 | H102: 23.42
A103: HC881054 | B103: CM LtWeight Lapboard A4 Lined P35 | C103: 35 | D103: 1 | G103: 65.52 | H103: 65.52
A104: HC383558 | B104: Lakeland Jumbo Pencils Classpack | C104: 144 | D104: 1 | G104: 81.89 | H104: 81.89
A105: HC1774070 | B105: Berol Colour Fine Classpack 288 | C105: 288 | D105: 1 | G105: 75.97 | H105: 75.97
A106: HC1774064 | B106: Berol Colour Broad Classpack 288 | C106: 288 | D106: 1 | G106: 75.97 | H106: 75.97
A107: HC1102952 | B107: Edding 8 All Purpose Assorted, Bullet Tip - Pack of 144 | C107: 144 | D107: 1 | G107: 86.3 | H107: 86.3
A108: HC209241 | B108: Giotto Metallic Fibre Pens P24 | C108: 24 | D108: 5 | G108: 23.3 | H108: 116.5
A109: HC1815185 | B109: School Scissor Set P32 inc Box | C109: 32 | D109: 1 | G109: 22.67 | H109: 22.67
A110: HC295314 | B110: Crazy Cut Scissors Pk6 | C110: 6 | D110: 2 | G110: 12.59 | H110: 25.18
A111: HC370844 | B111: Bulk Buy - 6 Collage Jars | C111: 6 | D111: 1 | G111: 31.49 | H111: 31.49
A112: HC1815197 | B112: Classmates Dual Control Scissors - Right Handed | C112: 1 | D112: 12 | G112: 3.77 | H112: 45.24
A113: HC1815195 | B113: Classmates Easy Grip Scissors - Left Handed | C113: EA | D113: 3 | G113: 7.55 | H113: 22.65
A114: HC1815193 | B114: Classmates Easy Grip Scissors - Right Handed | C114: 1 | D114: 3 | G114: 7.55 | H114: 22.65
A115: HC133737 | B115: Chubbi Stumps Pack 96 Assorted | C115: 96 | D115: 1 | G115: 8.18 | H115: 8.18
A116: ART
A117: HC381673 | B117: Children's Disposable Aprons - Pack of 100 | C117: 100 | D117: 3 | E117: Art | G117: 27.71 | H117: =G117*D117 -> 83.13
A118: HC1674819 | B118: Assorted Splash Mats | C118: 4 | D118: 2 | G118: 22.04 | H118: 44.08
A119: HC1506620 | B119: Classmates Ready Mixed Paint - 1 Litre - Assorted - Pack of 12 | C119: 1 | D119: 2 | G119: 27.32 | H119: 54.64
A120: CP00052574 | B120: Round Hog Short Brush Assortment - Pack of 100 | C120: 100 | D120: 1 | G120: 41.57 | H120: 41.57
A121: HC136402 | B121: Classmates Stable Water Pots | C121: 12 | D121: 2 | G121: 20.15 | H121: 40.3
A122: HC136376 | B122: Classmates 6 Well Paint Palette - Pack of 24 | C122: 24 | D122: 1 | G122: 27.71 | H122: 27.71
A123: HC1879314 | B123: Classmates Dispenser Bottles - 4 x 250ml | C123: 4 | D123: 2 | G123: 13.22 | H123: 26.44
A124: HC209020 | B124: Classmates Newsprint - A3 - Pack of 500 | C124: 500 | D124: 1 | G124: 20.15 | H124: 20.15
A125: HC382895 | B125: Classmates Tissue Paper Square Assortment - Pack of 480 | C125: 480 | D125: 1 | G125: 11.33 | H125: 11.33
A126: HC475884 | B126: Classmates A4 Assorted Card - Pack of 200 | C126: 200 | D126: 1 | G126: 10.07 | H126: 10.07
A127: E8R07951 | B127: Classmates PVA Glue - Blue Label - 5 Litre | C127: 1 | D127: 1 | G127: 10.45 | H127: 10.45
A128: HC149896 | B128: Classmates Plastic Glue Spreaders - Double Ended | C128: 10 | D128: 4 | G128: 3.14 | H128: 12.56
A129: HC1691856 | B129: Classmates Assorted Colouring Pencils - Pack of 504 | C129: 504 | D129: 1 | G129: 36.53 | H129: 36.53
A130: HC1691748 | B130: Classmates Broad Tip Colouring Pens - Pack of 288 | C130: 288 | D130: 1 | G130: 54.17 | H130: 54.17
A131: HC1594261 | B131: Classmates Glitter Assortment | C131: 10 | D131: 1 | G131: 21.41 | H131: 21.41
A132: HC292909 | B132: Staedtler® Tradition 110 Sketching Pencils - HB - Pack of 144 | C132: 144 | D132: 1 | G132: 37.79 | H132: 37.79
A133: HC48402825 | B133: 20 Shelf Spring Loaded Floor Drying Rack with Wheels | C133: 1 | D133: 1 | G133: 214.19 | H133: 214.19
A134: ENGLISH
A135: HC342101 | B135: Oxford Junior Illustrated Dictionary | C135: 1 | D135: 10 | E135: ENGLISH | G135: 13.85 | H135: =G135*D135 -> 138.5
A136: HC363850 | B136: Oxford Junior Illustrated Thesaurus | C136: 1 | D136: 10 | G136: 13.85 | H136: =G136*D136 -> 138.5
A137: HC1536875 | B137: Reading Comprehension Cubes | C137: 6 | D137: 4 | G137: 13.85 | H137: =G137*D137 -> 55.4
A138: HC249931 | B138: Writing Prompt Cubes | C138: 6 | D138: 4 | G138: 15.11 | H138: =G138*D138 -> 60.44
A139: HC1827530 | B139: Electronic phonics | C139: 1 | D139: 3 | G139: 97.01 | H139: =G139*D139 -> 291.03
A140: HC1353913 | B140: A5 dictionaries | C140: 30 | D140: 1 | G140: 15.11 | H140: 15.11
A141: HC1588154 | B141: Alphabet lined boards | C141: 30 | D141: 1 | G141: 52.91 | H141: 52.91
A142: HC1564053 | B142: Oxford First Grammar, Punctuation and Spelling Dictionary | C142: EA | D142: 15 | G142: 13.85 | H142: 207.75
A143: HC48834240 | B143: Reading comprehension box 2 | C143: 1 | D143: 1 | G143: 289.79 | H143: 289.79
A144: HC1821852 | B144: Click it sentence builder | C144: 204 | D144: 1 | G144: 88.19 | H144: 88.19
A145: HC1536830 | B145: Creative writing directory | C145: 1 | D145: 6 | G145: 16.37 | H145: 98.22
A146: HC1266729 | B146: Roald Dahl book pack | C146: 6 | D146: 1 | G146: 47.87 | H146: 47.87
A147: HC1775783 | B147: Diversity picture books for KS2 | C147: 8 | D147: 1 | G147: 97.01 | H147: 97.01
A148: HC1701719 | B148: Pencil grips | C148: 10 | D148: 1 | G148: 6.29 | H148: 6.29
A149: HC1677021 | B149: Talking tins and activity guide | C149: 10 | D149: 1 | G149: 108.22 | H149: 108.22
A150: HC1004399 | B150: Engaging readers pack 1 | C150: 20 | D150: 1 | G150: 144.89 | H150: 144.89
A151: HC1685160 | B151: Spelling rules directory | C151: 1 | D151: 5 | G151: 15.11 | H151: 75.55
A152: HC1569539 | B152: Grammar rules poster | C152: 5 | D152: 1 | G152: 23.93 | H152: 23.93
A153: GEOGRAPHY
A154: HC1003345 | B154: Discovery Globe 230mm | C154: 1 | D154: 1 | E154: GEOGRAPHY | G154: 39.05 | H154: =G154*D154 -> 39.05
A155: HC1003150 | B155: Plotting Compass 16mm | C155: 10 | D155: 2 | G155: 4.22 | H155: =G155*D155 -> 8.44
A156: HC1660162 | B156: Inflatable labelling globe | C156: 1 | D156: 1 | G156: 25.19 | H156: =G156*D156 -> 25.19
A157: HC1555759 | B157: Simple maps pack | C157: 3 | D157: 1 | G157: 59.21 | H157: 59.21

Sheet Year 4
G1: Basket Total | H1: =SUM(H3:H155) -> 7109.99
A2: Product Code | B2: Product Description | C2: Units of Measure | D2: Quantity | E2: Section | F2: Curriculum Area | G2: Unit Price | H2: Total Price
A3: MATHS
A4: HC169149 | B4: Htu Dice Pack Of 60 | C4: 60 | D4: 1 | E4: Maths | F4: Number and Place Value | G4: 67.4 | H4: =G4*D4 -> 67.4
A5: HC1369266 | B5: Place Value Arrows Thousands Teacher | C5: 9 | D5: 2 | F5: Number and Place Value | G5: 13.85 | H5: 27.7
A6: HC1002791 | B6: Place Value Arrow Cards Pupil PK6 | C6: 6 | D6: 3 | F6: Number and Place Value | G6: 37.79 | H6: 113.37
A7: HC1489774 | B7: Numicon Boxed Set Of 80 Shapes | C7: 80 | D7: 2 | F7: Number and Place Value | G7: 56.69 | H7: 113.38
A8: HC332676 | B8: 0-100 Table Top Number Lines Pk5 | C8: 5 | D8: 4 | F8: Number and Place Value | G8: 11.33 | H8: 45.32
A9: HC167602 | B9: 1 - 6 Dice (pkt Of 30) | C9: 30 | D9: 1 | F9: Number and Place Value | G9: 9.44 | H9: 9.44
A10: HC1002701 | B10: DoubleSided DryWipe Counting Board Pupil | C10: 30 | D10: 1 | F10: Number and Place Value | G10: 57.95 | H10: 57.95
A11: EFMT14690 | B11: A5 Double Sided Multiplication Grid - Pack of 35 | C11: 35 | D11: 1 | F11: Multiplication and Division | G11: 35.02 | H11: 35.02
A12: EFMT14686 | B12: Giant Magnetic Array Set | C12: 1 | D12: 1 | F12: Multiplication and Division | G12: 20.78 | H12: 20.78
A13: CP052091 | B13: Times Table Fan Pack | C13: 55 | D13: 3 | F13: Multiplication and Division | G13: 18.9 | H13: 56.7
A14: HC170930 | B14: Table Boards Class Pack | C14: 1 | D14: 1 | F14: Multiplication and Division | G14: 44.09 | H14: 44.09
A15: HC1535474 | B15: Addition, Subtraction, Multiplication and Division Poster Pack Pack of three | C15: 3 | D15: 1 | F15: Multiplication and Division | G15: 21.16 | H15: 21.16
A16: HC1537279 | B16: Double-Sided Division Magnets - Pack of 132 | C16: 132 | D16: 1 | F16: Multiplication and Division | G16: 54.17 | H16: 54.17
A17: EFMT14688 | B17: Double-Sided Multiplication Magnets - Pack of 132 | C17: 132 | D17: 1 | F17: Multiplication and Division | G17: 52.91 | H17: 52.91
A18: HC1782357 | B18: Maths Mastery Division Set | C18: 1 | D18: 1 | F18: Multiplication and Division | G18: 83.15 | H18: 83.15
A19: HC1782353 | B19: Maths Mastery Multiplication Set | C19: 1 | D19: 1 | F19: Multiplication and Division | G19: 83.15 | H19: 83.15
A20: HC1782347 | B20: Maths Mastery Addition Set | C20: 1 | D20: 1 | F20: Addition and Subtraction | G20: 55.43 | H20: 55.43
A21: HC1782349 | B21: Maths Mastery Subtraction Set | C21: 1 | D21: 1 | F21: Addition and Subtraction | G21: 55.43 | H21: 55.43
A22: HC170384 | B22: Decimal Sliding Lines - Pupil - Pack of 30 | C22: 1 | D22: 1 | F22: Fractions, Decimals and Percentages | G22: 57.95 | H22: 57.95
A23: HC170371 | B23: Decimal Sliding Lines - Teacher | C23: 1 | D23: 1 | F23: Fractions, Decimals and Percentages | G23: 11.33 | H23: 11.33
A24: HC1630583 | B24: Equivalence Washing Line | C24: 1 | D24: 1 | F24: Fractions, Decimals and Percentages | G24: 36.53 | H24: 36.53
A25: HC1290948 | B25: Fraction and Decimal Counting Cards Pack of forty | C25: 40 | D25: 1 | F25: Fractions, Decimals and Percentages | G25: 25.19 | H25: 25.19
A26: HC1782359 | B26: Maths Mastery Fraction Set 1 | C26: 1 | D26: 1 | F26: Fractions, Decimals and Percentages | G26: 42.2 | H26: 42.2
A27: HC1782361 | B27: Maths Mastery Fraction Set 2 | C27: 1 | D27: 1 | F27: Fractions, Decimals and Percentages | G27: 55.43 | H27: 55.43
A28: HC1553921 | B28: Dry-Wipe Fraction Number Line Mats - Pack of 10 | C28: 10 | D28: 3 | F28: Fractions, Decimals and Percentages | G28: 15.11 | H28: 45.33
A29: HC167277 | B29: Fraction Number Fans Class Pack | C29: 30 | D29: 1 | F29: Fractions, Decimals and Percentages | G29: 35.02 | H29: 35.02
A30: HC1534658 | B30: Percentages Decimals And Fractions Bingo | C30: 1 | D30: 4 | F30: Fractions, Decimals and Percentages | G30: 25.19 | H30: 100.76
A31: EFMT13242 | B31: Rainbow Fraction Tiles | C31: 1 | D31: 1 | F31: Fractions, Decimals and Percentages | G31: 18.01 | H31: 18.01
A32: HC1002641 | B32: Rainbow Fractions Circles | C32: 1 | D32: 1 | F32: Fractions, Decimals and Percentages | G32: 14.6 | H32: 14.6
A33: HC1571283 | B33: Cubes Fraction Set | C33: 1 | D33: 1 | F33: Fractions, Decimals and Percentages | G33: 15.99 | H33: 15.99
A34: HC1536364 | B34: Fraction Bag | C34: 1 | D34: 1 | F34: Fractions, Decimals and Percentages | G34: 29.72 | H34: 29.72
A35: HC1002807 | B35: Unbreakable Mirrors 90x65mm P10 | C35: 10 | D35: 2 | F35: Geometry | G35: 8.18 | H35: 16.36
A36: HC1002659 | B36: Geometric Large Shapes | C36: 17 | D36: 2 | F36: Geometry | G36: 31.49 | H36: 62.98
A37: HC1002639 | B37: Geometrc Plane Shapes Set 1-50mm | C37: 160 | D37: 2 | F37: Geometry | G37: 36.28 | H37: 72.56
A38: HC388771 | B38: Helix Geometry Class Pack | C38: 1 | D38: 1 | F38: Geometry | G38: 69.29 | H38: 69.29
A39: HC424404 | B39: Geoboards 6 Colours 230mm | C39: 6 | D39: 4 | F39: Geometry | G39: 22.67 | H39: 90.68
A40: HC181213 | B40: Tape Measure Pack of 10 | C40: 10 | D40: 2 | F40: Measurement | G40: 11.33 | H40: 22.66
A41: E8A73842 | B41: 1m Wood Rule - Marked CM And MM | C41: 1 | D41: 5 | F41: Measurement | G41: 5.03 | H41: =G41*D41 -> 25.15
A42: HC88200579 | B42: Protractor - Pack of 10 Pack of ten | C42: 10 | D42: 4 | F42: Measurement | G42: 2.08 | H42: 8.32
A43: EFMT14433 | B43: Class Coin Set | C43: 1 | D43: 1 | F43: Measurement | G43: 37.79 | H43: 37.79
A44: E8R09487 | B44: Dual Power Timer - Pack of 5 | C44: 5 | D44: 1 | F44: Measurement | G44: 36.28 | H44: 36.28
A45: HC169526 | B45: Grocery Store Flip | C45: 1 | D45: 1 | F45: Measurement | G45: 27.71 | H45: 27.71
A46: EDMT14144 | B46: Mini Time Tracker | C46: 1 | D46: 1 | F46: Measurement | G46: 28.34 | H46: 28.34
A47: HC166601 | B47: Multilink® Graph and Histogram Board | C47: 1 | D47: 1 | F47: Statistics | G47: 63.37 | H47: 63.37
A48: HC1821393 | B48: Times Tables Cubes Set 1- 2,3,4,5,10 | C48: 10 | D48: 1 | F48: Teaching Resource | G48: 25.19 | H48: 25.19
A49: HC1552583 | B49: Maths Box Year 4 | C49: 1 | D49: 1 | F49: Teaching Resource | G49: 233.09 | H49: 233.09
A50: HC1604283 | B50: HOPE Maths Problem Solving Cards - Year 4 | C50: 1 | D50: 1 | F50: Teaching Resource | G50: 55.43 | H50: 55.43
A51: HC167485 | B51: Multi-sided Dice | C51: 5 | D51: 6 | F51: Classroom Tools | G51: 5.41 | H51: =G51*D51 -> 32.46
A52: HC1820757 | B52: Number and Symbol's Spots | C52: 1 | D52: 1 | F52: Classroom Tools | G52: 80.63 | H52: 80.63
A53: EFMT14710 | B53: Giant Magnetic Numbers and Operations | C53: 1 | D53: 1 | F53: Classroom Tools | G53: 14.48 | H53: 14.48
A54: HC167784 | B54: Coloured Dominoes Pk 168 | C54: 168 | D54: 1 | F54: Classroom Tools | G54: 20.1 | H54: 20.1
A55: HC1490618 | B55: Jumbo Number Pebbles | C55: 20 | D55: 1 | F55: Classroom Tools | G55: 44.09 | H55: 44.09
A56: HC167446 | B56: Foam Dice Blue | C56: 1 | D56: 5 | F56: Classroom Tools | G56: 10.19 | H56: 50.95
A57: HC312396 | B57: 100 Coloured Dice 4 Colours | C57: 100 | D57: 1 | F57: Classroom Tools | G57: 8.81 | H57: 8.81
A58: HC1283650 | B58: Plastic Counters 22mm (pkt Of 500) | C58: 500 | D58: 1 | F58: Classroom Tools | G58: 12.59 | H58: 12.59
A59: HC363525 | B59: Pupil Counting Stick P6 | C59: 6 | D59: 3 | F59: Classroom Tools | G59: 22.67 | H59: 68.01
A60: HC1674195 | B60: Tactile Counting Stones | C60: 1 | D60: 1 | F60: Classroom Tools | G60: 42.2 | H60: 42.2
A61: HC165405 | B61: 1000pk Counting Sticks | C61: 1000 | D61: 1 | F61: Classroom Tools | G61: 25.83 | H61: 25.83
A62: HC1770182 | B62: Sand Timer - 1 Minute | C62: 1 | D62: 1 | F62: Classroom Tools | G62: 12.59 | H62: 12.59
A63: HC1770186 | B63: Sand Timer - 5 Minute | C63: 1 | D63: 1 | F63: Classroom Tools | G63: 12.59 | H63: 12.59
A64: HC165444 | B64: Transparent Counters - Pack 1000 | C64: 1000 | D64: 1 | F64: Classroom Tools | G64: 23.93 | H64: 23.93
A65: HC1664905 | B65: Abacus | C65: 1 | D65: 1 | F65: Classroom Tools | G65: 15.86 | H65: 15.86
A66: EFMT11934 | B66: Multilink® Cubes (500) | C66: 500 | D66: 1 | F66: Classroom Tools | G66: 98.27 | H66: 98.27
A67: HC1524135 | B67: Multilink® Grid Tray Sheets | C67: 3 | D67: 1 | F67: Classroom Tools | G67: 35.02 | H67: 35.02
A68: EFMT13263 | B68: Multilink® Grid Tray | C68: 1 | D68: 15 | F68: Classroom Tools | G68: 12.59 | H68: 188.85
A69: EGMT13635 | B69: Base 10 Set from Hope Education | C69: 1 | D69: 1 | F69: Classroom Tools | G69: 71.81 | H69: 71.81
A70: EFMT14205 | B70: Giant Magnetic Base 10 Demonstration Set | C70: 1 | D70: 1 | F70: Classroom Tools | G70: 31.49 | H70: 31.49
A71: HC167121 | B71: Write-On/Wipe-Off 100 Squares - Pack of 35 | C71: 35 | D71: 1 | F71: Classroom Tools | G71: 18.89 | H71: 18.89
A72: HC1822714 | B72: Eco Friendly 20 Bead String | C72: 1 | D72: 15 | F72: Classroom Tools | G72: 7.93 | H72: 118.95
A73: HC1822716 | B73: Eco-friendly 100 Bead String | C73: 1 | D73: 1 | F73: Classroom Tools | G73: 31.87 | H73: 31.87
A74: HC373873 | B74: Jumbo Playing Cards | C74: 1 | D74: 5 | F74: Classroom Tools | G74: 5.41 | H74: 27.05
A75: HC167719 | B75: Playing Cards | C75: 1 | D75: 15 | F75: Classroom Tools | G75: 1.88 | H75: 28.2
A76: HC167576 | B76: Polyhedron Number Dice - Pack 35 | C76: 35 | D76: 1 | F76: Classroom Tools | G76: 10.82 | H76: 10.82
A77: HC1866525 | B77: Rainbow Spinners | C77: 1 | D77: 1 | F77: Classroom Tools | G77: 15.86 | H77: 15.86
A78: EFMT14097 | B78: Foam Dice with Pockets | C78: 1 | D78: 1 | F78: Classroom Tools | G78: 9.19 | H78: 9.19
A79: EFMT14179 | B79: Teacher Whiteboard Dice | C79: 4 | D79: 1 | F79: Classroom Tools | G79: 42.83 | H79: 42.83
A80: EFMT11929 | B80: Unifix® Cubes - Pack of 500 | C80: 500 | D80: 1 | F80: Classroom Tools | G80: 35.9 | H80: 35.9
A81: HC1564958 | B81: Easy Read Time Teacher - 24-Hour Classroom Wall Clock | C81: 1 | D81: 1 | F81: Display | G81: 41.57 | H81: 41.57
A82: HC166952 | B82: 0-100 Wall Number Line | C82: 1 | D82: 1 | F82: Display | G82: 13.22 | H82: =G82*D82 -> 13.22
A83: STATIONERY
A84: HC337213 | B84: Staedtler Noris HB Pencils Pk150 | C84: 150 | D84: 1 | E84: Stationery | G84: 18.89 | H84: =G84*D84 -> 18.89
A85: HC1254676 | B85: Texet Albert Junior Classpack | C85: 30 | D85: 1 | G85: 192.77 | H85: =G85*D85 -> 192.77
A86: HC1694632 | B86: Classmate Classroom Collection | C86: 9 | D86: 1 | G86: 20.15 | H86: =G86*D86 -> 20.15
A87: HC206745 | B87: A4 Bulky Zip Wallets Asst P100 | C87: 100 | D87: 1 | G87: 52.91 | H87: =G87*D87 -> 52.91
A88: HC255469 | B88: A5 Zip Wallets Red P25 | C88: 25 | D88: 3 | G88: 15.11 | H88: 45.33
A89: HC284654 | B89: CM Address Labels 89x36mm P250 | C89: 250 | D89: 2 | G89: 5.03 | H89: 10.06
A90: HC282418 | B90: CM Sticky Note Cube Neon 75x75mm | C90: 1 | D90: 5 | G90: 4.15 | H90: 20.75
A91: HC1691792 | B91: Classmates Highlighters 5 Colours Pk 48 | C91: 48 | D91: 1 | G91: 10.7 | H91: 10.7
A92: HC1691844 | B92: CM Easy Grip Triangular Pencils P72 | C92: 72 | D92: 1 | G92: 17.63 | H92: 17.63
A93: HC316244 | B93: CM Metal Sharpeners Double Hole Pk12 | C93: 12 | D93: 2 | G93: 11.33 | H93: 22.66
A94: HC131969 | B94: Staedtler Rasoplast Eraser P30 | C94: 30 | D94: 1 | G94: 12.59 | H94: 12.59
A95: HC88200582 | B95: Shatterproof 30cm/mm Clear Ruler Pk10 | C95: 10 | D95: 3 | G95: 4.9 | H95: 14.7
A96: HC298772 | B96: Rapesco X5-30PS Medium Duty Hole Punch | C96: 1 | D96: 1 | G96: 9.06 | H96: 9.06
A97: HC397364 | B97: Rapesco Sting Ray Half Strip Stapler | C97: 1 | D97: 1 | G97: 8.18 | H97: 8.18
A98: HC194863 | B98: Rapesco 24/6 Staples P5000 | C98: 5000 | D98: 1 | G98: 4.4 | H98: 4.4
A99: HC186556 | B99: Paper Fasteners 25mm Pack 200 | C99: 200 | D99: 1 | G99: 6.92 | H99: 6.92
A100: HC179406 | B100: Treasury Tag 51mm Yellow P100 | C100: 100 | D100: 1 | G100: 3.77 | H100: 3.77
A101: HC397442 | B101: C M Easytear Tape 24mmx66m Pk6 | C101: 6 | D101: 1 | G101: 5.66 | H101: 5.66
A102: HC1699057 | B102: Classmate Tape Dispenser | C102: 1 | D102: 1 | G102: 6.92 | H102: 6.92
A103: HC322874 | B103: Classmates Dble Sided Tape 12mmx33mm Pk6 | C103: 6 | D103: 1 | G103: 11.96 | H103: 11.96
A104: HC225517 | B104: C M Masking Tape 24mmx50mx9 | C104: 9 | D104: 1 | G104: 15.11 | H104: 15.11
A105: HC1109953 | B105: Blu Tack Original 60g | C105: 12 | D105: 1 | G105: 11.96 | H105: 11.96
A106: HC479745 | B106: A4 Hardboard Clipboard P12 | C106: 12 | D106: 2 | G106: 35.27 | H106: 70.54
A107: HC279324 | B107: Sellotape® Loop Spots - 125 Spots | C107: 125 | D107: 2 | G107: 11.71 | H107: 23.42
A108: HC279337 | B108: Sellotape® Hook Spots - 125 Spots | C108: 125 | D108: 2 | G108: 11.71 | H108: 23.42
A109: HC881054 | B109: CM LtWeight Lapboard A4 Lined P35 | C109: 35 | D109: 1 | G109: 65.52 | H109: 65.52
A110: HC383558 | B110: Lakeland Jumbo Pencils Classpack | C110: 144 | D110: 1 | G110: 81.89 | H110: 81.89
A111: HC1774070 | B111: Berol Colour Fine Classpack 288 | C111: 288 | D111: 1 | G111: 75.97 | H111: 75.97
A112: HC1774064 | B112: Berol Colour Broad Classpack 288 | C112: 288 | D112: 1 | G112: 75.97 | H112: 75.97
A113: HC1102952 | B113: Edding 8 All Purpose Assorted, Bullet Tip - Pack of 144 | C113: 144 | D113: 1 | G113: 86.3 | H113: 86.3
A114: HC209241 | B114: Giotto Metallic Fibre Pens P24 | C114: 24 | D114: 5 | G114: 23.3 | H114: 116.5
A115: HC1815185 | B115: School Scissor Set P32 inc Box | C115: 32 | D115: 1 | G115: 22.67 | H115: 22.67
A116: HC295314 | B116: Crazy Cut Scissors Pk6 | C116: 6 | D116: 2 | G116: 12.59 | H116: 25.18
A117: HC370844 | B117: Bulk Buy - 6 Collage Jars | C117: 6 | D117: 1 | G117: 31.49 | H117: 31.49
A118: HC1815197 | B118: Classmates Dual Control Scissors - Right Handed | C118: 1 | D118: 12 | G118: 3.77 | H118: 45.24
A119: HC1815195 | B119: Classmates Easy Grip Scissors - Left Handed | C119: EA | D119: 3 | G119: 7.55 | H119: 22.65
A120: HC1815193 | B120: Classmates Easy Grip Scissors - Right Handed | C120: 1 | D120: 3 | G120: 7.55 | H120: 22.65
A121: HC133737 | B121: Chubbi Stumps Pack 96 Assorted | C121: 96 | D121: 1 | G121: 8.18 | H121: 8.18
A122: ART
A123: HC381673 | B123: Children's Disposable Aprons - Pack of 100 | C123: 100 | D123: 3 | E123: Art | G123: 27.71 | H123: =G123*D123 -> 83.13
A124: HC1674819 | B124: Assorted Splash Mats | C124: 4 | D124: 2 | G124: 22.04 | H124: 44.08
A125: HC1506620 | B125: Classmates Ready Mixed Paint - 1 Litre - Assorted - Pack of 12 | C125: 1 | D125: 2 | G125: 27.32 | H125: 54.64
A126: CP00052574 | B126: Round Hog Short Brush Assortment - Pack of 100 | C126: 100 | D126: 1 | G126: 41.57 | H126: 41.57
A127: HC136402 | B127: Classmates Stable Water Pots | C127: 12 | D127: 2 | G127: 20.15 | H127: 40.3
A128: HC136376 | B128: Classmates 6 Well Paint Palette - Pack of 24 | C128: 24 | D128: 1 | G128: 27.71 | H128: 27.71
A129: HC1879314 | B129: Classmates Dispenser Bottles - 4 x 250ml | C129: 4 | D129: 2 | G129: 13.22 | H129: 26.44
A130: HC209020 | B130: Classmates Newsprint - A3 - Pack of 500 | C130: 500 | D130: 1 | G130: 20.15 | H130: 20.15
A131: HC382895 | B131: Classmates Tissue Paper Square Assortment - Pack of 480 | C131: 480 | D131: 1 | G131: 11.33 | H131: 11.33
A132: HC475884 | B132: Classmates A4 Assorted Card - Pack of 200 | C132: 200 | D132: 1 | G132: 10.07 | H132: 10.07
A133: E8R07951 | B133: Classmates PVA Glue - Blue Label - 5 Litre | C133: 1 | D133: 1 | G133: 10.45 | H133: 10.45
A134: HC149896 | B134: Classmates Plastic Glue Spreaders - Double Ended | C134: 10 | D134: 4 | G134: 3.14 | H134: 12.56
A135: HC1691856 | B135: Classmates Assorted Colouring Pencils - Pack of 504 | C135: 504 | D135: 1 | G135: 36.53 | H135: 36.53
A136: HC1691748 | B136: Classmates Broad Tip Colouring Pens - Pack of 288 | C136: 288 | D136: 1 | G136: 54.17 | H136: 54.17
A137: HC1594261 | B137: Classmates Glitter Assortment | C137: 10 | D137: 1 | G137: 21.41 | H137: 21.41
A138: HC292909 | B138: Staedtler® Tradition 110 Sketching Pencils - HB - Pack of 144 | C138: 144 | D138: 1 | G138: 37.79 | H138: 37.79
A139: HC48402825 | B139: 20 Shelf Spring Loaded Floor Drying Rack with Wheels | C139: 1 | D139: 1 | G139: 214.19 | H139: 214.19
A140: ENGLISH
A141: HC1827530 | B141: Electronic phonics | C141: 1 | D141: 3 | E141: English | G141: 97.01 | H141: 291.03
A142: HC1353913 | B142: A5 dictionaries | C142: 30 | D142: 1 | G142: 15.11 | H142: 15.11
A143: HC1588154 | B143: Alphabet lined boards | C143: 30 | D143: 1 | G143: 52.91 | H143: 52.91
A144: HC1564053 | B144: Oxford First Grammar, Punctuation and Spelling Dictionary | C144: EA | D144: 15 | G144: 13.85 | H144: 207.75
A145: HC48834240 | B145: Reading comprehension box 2 | C145: 1 | D145: 1 | G145: 289.79 | H145: 289.79
A146: HC1536830 | B146: Creative writing directory | C146: 1 | D146: 6 | G146: 16.37 | H146: 98.22
A147: HC1266729 | B147: Roald Dahl book pack | C147: 6 | D147: 1 | G147: 47.87 | H147: 47.87
A148: HC1775783 | B148: Diversity picture books for KS2 | C148: 8 | D148: 1 | G148: 97.01 | H148: 97.01
A149: HC1701719 | B149: Pencil grips | C149: 10 | D149: 1 | G149: 6.29 | H149: 6.29
A150: HC1677021 | B150: Talking tins and activity guide | C150: 10 | D150: 1 | G150: 108.22 | H150: 108.22
A151: HC1685160 | B151: Spelling rules directory | C151: 1 | D151: 5 | G151: 15.11 | H151: 75.55
A152: HC1569539 | B152: Grammar rules poster | C152: 5 | D152: 1 | G152: 23.93 | H152: 23.93
A153: GEOGRAPHY
A154: HC1660162 | B154: Inflatable labelling globe | C154: 1 | D154: 1 | E154: Geography | G154: 25.19 | H154: 25.19
A155: HC1555759 | B155: Simple maps pack | C155: 3 | D155: 1 | G155: 59.21 | H155: 59.21

Sheet Year 5
G1: Basket Total | H1: =SUM(H3:H155) -> 7156.62
A2: Product Code | B2: Product Description | C2: Units of Measure | D2: Quantity | E2: Section | F2: Curriculum Area | G2: Unit Price | H2: Total Price
A3: MATHS
A4: HC169149 | B4: Htu Dice Pack Of 60 | C4: 60 | D4: 1 | E4: Maths | F4: Number and Place Value | G4: 67.4 | H4: =G4*D4 -> 67.4
A5: HC1369266 | B5: Place Value Arrows Thousands Teacher | C5: 9 | D5: 2 | F5: Number and Place Value | G5: 13.85 | H5: 27.7
A6: HC1002791 | B6: Place Value Arrow Cards Pupil PK6 | C6: 6 | D6: 3 | F6: Number and Place Value | G6: 37.79 | H6: 113.37
A7: HC1489774 | B7: Numicon Boxed Set Of 80 Shapes | C7: 80 | D7: 2 | F7: Number and Place Value | G7: 56.69 | H7: 113.38
A8: HC332676 | B8: 0-100 Table Top Number Lines Pk5 | C8: 5 | D8: 4 | F8: Number and Place Value | G8: 11.33 | H8: 45.32
A9: HC167602 | B9: 1 - 6 Dice (pkt Of 30) | C9: 30 | D9: 1 | F9: Number and Place Value | G9: 9.44 | H9: 9.44
A10: HC1002701 | B10: DoubleSided DryWipe Counting Board Pupil | C10: 30 | D10: 1 | F10: Number and Place Value | G10: 57.95 | H10: 57.95
A11: EFMT14690 | B11: A5 Double Sided Multiplication Grid - Pack of 35 | C11: 35 | D11: 1 | F11: Multiplication and Division | G11: 35.02 | H11: 35.02
A12: EFMT14686 | B12: Giant Magnetic Array Set | C12: 1 | D12: 1 | F12: Multiplication and Division | G12: 20.78 | H12: 20.78
A13: CP052091 | B13: Times Table Fan Pack | C13: 55 | D13: 3 | F13: Multiplication and Division | G13: 18.9 | H13: 56.7
A14: HC170930 | B14: Table Boards Class Pack | C14: 1 | D14: 1 | F14: Multiplication and Division | G14: 44.09 | H14: 44.09
A15: HC1535474 | B15: Addition, Subtraction, Multiplication and Division Poster Pack Pack of three | C15: 3 | D15: 1 | F15: Multiplication and Division | G15: 21.16 | H15: 21.16
A16: HC1537279 | B16: Double-Sided Division Magnets - Pack of 132 | C16: 132 | D16: 1 | F16: Multiplication and Division | G16: 54.17 | H16: 54.17
A17: EFMT14688 | B17: Double-Sided Multiplication Magnets - Pack of 132 | C17: 132 | D17: 1 | F17: Multiplication and Division | G17: 52.91 | H17: 52.91
A18: HC1782357 | B18: Maths Mastery Division Set | C18: 1 | D18: 1 | F18: Multiplication and Division | G18: 83.15 | H18: 83.15
A19: HC1782353 | B19: Maths Mastery Multiplication Set | C19: 1 | D19: 1 | F19: Multiplication and Division | G19: 83.15 | H19: 83.15
A20: HC1782347 | B20: Maths Mastery Addition Set | C20: 1 | D20: 1 | F20: Addition and Subtraction | G20: 55.43 | H20: 55.43
A21: HC1782349 | B21: Maths Mastery Subtraction Set | C21: 1 | D21: 1 | F21: Addition and Subtraction | G21: 55.43 | H21: 55.43
A22: HC170384 | B22: Decimal Sliding Lines - Pupil - Pack of 30 | C22: 1 | D22: 1 | F22: Fractions, Decimals and Percentages | G22: 57.95 | H22: 57.95
A23: HC170371 | B23: Decimal Sliding Lines - Teacher | C23: 1 | D23: 1 | F23: Fractions, Decimals and Percentages | G23: 11.33 | H23: 11.33
A24: HC1630583 | B24: Equivalence Washing Line | C24: 1 | D24: 1 | F24: Fractions, Decimals and Percentages | G24: 36.53 | H24: =G24*D24 -> 36.53
A25: HC1290948 | B25: Fraction and Decimal Counting Cards Pack of forty | C25: 40 | D25: 1 | F25: Fractions, Decimals and Percentages | G25: 25.19 | H25: 25.19
A26: HC1782359 | B26: Maths Mastery Fraction Set 1 | C26: 1 | D26: 1 | F26: Fractions, Decimals and Percentages | G26: 42.2 | H26: 42.2
A27: HC1782361 | B27: Maths Mastery Fraction Set 2 | C27: 1 | D27: 1 | F27: Fractions, Decimals and Percentages | G27: 55.43 | H27: 55.43
A28: HC1553921 | B28: Dry-Wipe Fraction Number Line Mats - Pack of 10 | C28: 10 | D28: 3 | F28: Fractions, Decimals and Percentages | G28: 15.11 | H28: 45.33
A29: HC167277 | B29: Fraction Number Fans Class Pack | C29: 30 | D29: 1 | F29: Fractions, Decimals and Percentages | G29: 35.02 | H29: 35.02
A30: HC1534658 | B30: Percentages Decimals And Fractions Bingo | C30: 1 | D30: 4 | F30: Fractions, Decimals and Percentages | G30: 25.19 | H30: 100.76
A31: EFMT13242 | B31: Rainbow Fraction Tiles | C31: 1 | D31: 1 | F31: Fractions, Decimals and Percentages | G31: 18.01 | H31: 18.01
A32: HC1002641 | B32: Rainbow Fractions Circles | C32: 1 | D32: 1 | F32: Fractions, Decimals and Percentages | G32: 14.6 | H32: 14.6
A33: HC1571283 | B33: Cubes Fraction Set | C33: 1 | D33: 1 | F33: Fractions, Decimals and Percentages | G33: 15.99 | H33: 15.99
A34: HC1536364 | B34: Fraction Bag | C34: 1 | D34: 1 | F34: Fractions, Decimals and Percentages | G34: 29.72 | H34: 29.72
A35: HC1002807 | B35: Unbreakable Mirrors 90x65mm P10 | C35: 10 | D35: 2 | F35: Geometry | G35: 8.18 | H35: 16.36
A36: HC1002659 | B36: Geometric Large Shapes | C36: 17 | D36: 2 | F36: Geometry | G36: 31.49 | H36: 62.98
A37: HC1002639 | B37: Geometrc Plane Shapes Set 1-50mm | C37: 160 | D37: 2 | F37: Geometry | G37: 36.28 | H37: 72.56
A38: HC388771 | B38: Helix Geometry Class Pack | C38: 1 | D38: 1 | F38: Geometry | G38: 69.29 | H38: 69.29
A39: HC424404 | B39: Geoboards 6 Colours 230mm | C39: 6 | D39: 4 | F39: Geometry | G39: 22.67 | H39: 90.68
A40: HC181213 | B40: Tape Measure Pack of 10 | C40: 10 | D40: 2 | F40: Measurement | G40: 11.33 | H40: 22.66
A41: E8A73842 | B41: 1m Wood Rule - Marked CM And MM | C41: 1 | D41: 5 | F41: Measurement | G41: 5.03 | H41: 25.15
A42: EFMT14433 | B42: Class Coin Set | C42: 1 | D42: 1 | F42: Measurement | G42: 37.79 | H42: 37.79
A43: E8R09487 | B43: Dual Power Timer - Pack of 5 | C43: 5 | D43: 1 | F43: Measurement | G43: 36.28 | H43: 36.28
A44: HC169526 | B44: Grocery Store Flip | C44: 1 | D44: 1 | F44: Measurement | G44: 27.71 | H44: 27.71
A45: HC88200579 | B45: Protractor - Pack of 10 Pack of ten | C45: 10 | D45: 4 | F45: Measurement | G45: 2.08 | H45: 8.32
A46: EDMT14144 | B46: Mini Time Tracker | C46: 1 | D46: 1 | F46: Measurement | G46: 28.34 | H46: 28.34
A47: HC166601 | B47: Multilink® Graph and Histogram Board | C47: 1 | D47: 1 | F47: Statistics | G47: 63.37 | H47: 63.37
A48: HC1552585 | B48: Maths Box Year 5 | C48: 1 | D48: 1 | F48: Teacher Resource | G48: 233.09 | H48: 233.09
A49: HC167485 | B49: Multi-sided Dice | C49: 5 | D49: 6 | F49: Classroom Tools | G49: 5.41 | H49: 32.46
A50: HC1820757 | B50: Number and Symbol's Spots | C50: 1 | D50: 1 | F50: Classroom Tools | G50: 80.63 | H50: 80.63
A51: EFMT14710 | B51: Giant Magnetic Numbers and Operations | C51: 1 | D51: 1 | F51: Classroom Tools | G51: 14.48 | H51: 14.48
A52: HC167784 | B52: Coloured Dominoes Pk 168 | C52: 168 | D52: 1 | F52: Classroom Tools | G52: 20.1 | H52: 20.1
A53: HC1490618 | B53: Jumbo Number Pebbles | C53: 20 | D53: 1 | F53: Classroom Tools | G53: 44.09 | H53: 44.09
A54: HC167446 | B54: Foam Dice Blue | C54: 1 | D54: 5 | F54: Classroom Tools | G54: 10.19 | H54: =G54*D54 -> 50.95
A55: HC312396 | B55: 100 Coloured Dice 4 Colours | C55: 100 | D55: 1 | F55: Classroom Tools | G55: 8.81 | H55: 8.81
A56: HC1283650 | B56: Plastic Counters 22mm (pkt Of 500) | C56: 500 | D56: 1 | F56: Classroom Tools | G56: 12.59 | H56: 12.59
A57: HC363525 | B57: Pupil Counting Stick P6 | C57: 6 | D57: 3 | F57: Classroom Tools | G57: 22.67 | H57: 68.01
A58: HC1674195 | B58: Tactile Counting Stones | C58: 1 | D58: 1 | F58: Classroom Tools | G58: 42.2 | H58: 42.2
A59: HC165405 | B59: 1000pk Counting Sticks | C59: 1000 | D59: 1 | F59: Classroom Tools | G59: 25.83 | H59: 25.83
A60: HC1770182 | B60: Sand Timer - 1 Minute | C60: 1 | D60: 1 | F60: Classroom Tools | G60: 12.59 | H60: 12.59
A61: HC1770186 | B61: Sand Timer - 5 Minute | C61: 1 | D61: 1 | F61: Classroom Tools | G61: 12.59 | H61: 12.59
A62: HC165444 | B62: Transparent Counters - Pack 1000 | C62: 1000 | D62: 1 | F62: Classroom Tools | G62: 23.93 | H62: 23.93
A63: HC1664905 | B63: Abacus | C63: 1 | D63: 1 | F63: Classroom Tools | G63: 15.86 | H63: 15.86
A64: EFMT11934 | B64: Multilink® Cubes (500) | C64: 500 | D64: 1 | F64: Classroom Tools | G64: 98.27 | H64: 98.27
A65: HC1524135 | B65: Multilink® Grid Tray Sheets | C65: 3 | D65: 1 | F65: Classroom Tools | G65: 35.02 | H65: 35.02
A66: EFMT13263 | B66: Multilink® Grid Tray | C66: 1 | D66: 15 | F66: Classroom Tools | G66: 12.59 | H66: 188.85
A67: EGMT13635 | B67: Base 10 Set from Hope Education | C67: 1 | D67: 1 | F67: Classroom Tools | G67: 71.81 | H67: 71.81
A68: EFMT14205 | B68: Giant Magnetic Base 10 Demonstration Set | C68: 1 | D68: 1 | F68: Classroom Tools | G68: 31.49 | H68: 31.49
A69: HC167121 | B69: Write-On/Wipe-Off 100 Squares - Pack of 35 | C69: 35 | D69: 1 | F69: Classroom Tools | G69: 18.89 | H69: 18.89
A70: HC1822714 | B70: Eco Friendly 20 Bead String | C70: 1 | D70: 15 | F70: Classroom Tools | G70: 7.93 | H70: 118.95
A71: HC1822716 | B71: Eco-friendly 100 Bead String | C71: 1 | D71: 1 | F71: Classroom Tools | G71: 31.87 | H71: 31.87
A72: HC373873 | B72: Jumbo Playing Cards | C72: 1 | D72: 5 | F72: Classroom Tools | G72: 5.41 | H72: 27.05
A73: HC167719 | B73: Playing Cards | C73: 1 | D73: 15 | F73: Classroom Tools | G73: 1.88 | H73: 28.2
A74: HC167576 | B74: Polyhedron Number Dice - Pack 35 | C74: 35 | D74: 1 | F74: Classroom Tools | G74: 10.82 | H74: 10.82
A75: HC1866525 | B75: Rainbow Spinners | C75: 1 | D75: 1 | F75: Classroom Tools | G75: 15.86 | H75: 15.86
A76: EFMT14097 | B76: Foam Dice with Pockets | C76: 1 | D76: 1 | F76: Classroom Tools | G76: 9.19 | H76: 9.19
A77: EFMT14179 | B77: Teacher Whiteboard Dice | C77: 4 | D77: 1 | F77: Classroom Tools | G77: 42.83 | H77: 42.83
A78: EFMT11929 | B78: Unifix® Cubes - Pack of 500 | C78: 500 | D78: 1 | F78: Classroom Tools | G78: 35.9 | H78: 35.9
A79: HC1564958 | B79: Easy Read Time Teacher - 24-Hour Classroom Wall Clock | C79: 1 | D79: 1 | F79: Display | G79: 41.57 | H79: 41.57
A80: HC166952 | B80: 0-100 Wall Number Line | C80: 1 | D80: 1 | F80: Display | G80: 13.22 | H80: 13.22
A81: STATIONERY
A82: HC337213 | B82: Staedtler Noris HB Pencils Pk150 | C82: 150 | D82: 1 | E82: Stationery | G82: 18.89 | H82: =G82*D82 -> 18.89
A83: HC1254676 | B83: Texet Albert Junior Classpack | C83: 30 | D83: 1 | G83: 192.77 | H83: 192.77
A84: HC1694632 | B84: Classmate Classroom Collection | C84: 9 | D84: 1 | G84: 20.15 | H84: =G84*D84 -> 20.15
A85: HC206745 | B85: A4 Bulky Zip Wallets Asst P100 | C85: 100 | D85: 1 | G85: 52.91 | H85: =G85*D85 -> 52.91
A86: HC255469 | B86: A5 Zip Wallets Red P25 | C86: 25 | D86: 3 | G86: 15.11 | H86: 45.33
A87: HC284654 | B87: CM Address Labels 89x36mm P250 | C87: 250 | D87: 2 | G87: 5.03 | H87: 10.06
A88: HC282418 | B88: CM Sticky Note Cube Neon 75x75mm | C88: 1 | D88: 5 | G88: 4.15 | H88: 20.75
A89: HC1691792 | B89: Classmates Highlighters 5 Colours Pk 48 | C89: 48 | D89: 1 | G89: 10.7 | H89: 10.7
A90: HC1691844 | B90: CM Easy Grip Triangular Pencils P72 | C90: 72 | D90: 1 | G90: 17.63 | H90: 17.63
A91: HC316244 | B91: CM Metal Sharpeners Double Hole Pk12 | C91: 12 | D91: 2 | G91: 11.33 | H91: 22.66
A92: HC131969 | B92: Staedtler Rasoplast Eraser P30 | C92: 30 | D92: 1 | G92: 12.59 | H92: 12.59
A93: HC88200582 | B93: Shatterproof 30cm/mm Clear Ruler Pk10 | C93: 10 | D93: 3 | G93: 4.9 | H93: 14.7
A94: HC298772 | B94: Rapesco X5-30PS Medium Duty Hole Punch | C94: 1 | D94: 1 | G94: 9.06 | H94: 9.06
A95: HC397364 | B95: Rapesco Sting Ray Half Strip Stapler | C95: 1 | D95: 1 | G95: 8.18 | H95: 8.18
A96: HC194863 | B96: Rapesco 24/6 Staples P5000 | C96: 5000 | D96: 1 | G96: 4.4 | H96: 4.4
A97: HC186556 | B97: Paper Fasteners 25mm Pack 200 | C97: 200 | D97: 1 | G97: 6.92 | H97: 6.92
A98: HC179406 | B98: Treasury Tag 51mm Yellow P100 | C98: 100 | D98: 1 | G98: 3.77 | H98: 3.77
A99: HC397442 | B99: C M Easytear Tape 24mmx66m Pk6 | C99: 6 | D99: 1 | G99: 5.66 | H99: 5.66
A100: HC1699057 | B100: Classmate Tape Dispenser | C100: 1 | D100: 1 | G100: 6.92 | H100: 6.92
A101: HC322874 | B101: Classmates Dble Sided Tape 12mmx33mm Pk6 | C101: 6 | D101: 1 | G101: 11.96 | H101: 11.96
A102: HC225517 | B102: C M Masking Tape 24mmx50mx9 | C102: 9 | D102: 1 | G102: 15.11 | H102: 15.11
A103: HC1109953 | B103: Blu Tack Original 60g | C103: 12 | D103: 1 | G103: 11.96 | H103: 11.96
A104: HC479745 | B104: A4 Hardboard Clipboard P12 | C104: 12 | D104: 2 | G104: 35.27 | H104: 70.54
A105: HC279324 | B105: Sellotape® Loop Spots - 125 Spots | C105: 125 | D105: 2 | G105: 11.71 | H105: 23.42
A106: HC279337 | B106: Sellotape® Hook Spots - 125 Spots | C106: 125 | D106: 2 | G106: 11.71 | H106: 23.42
A107: HC881054 | B107: CM LtWeight Lapboard A4 Lined P35 | C107: 35 | D107: 1 | G107: 65.52 | H107: 65.52
A108: HC383558 | B108: Lakeland Jumbo Pencils Classpack | C108: 144 | D108: 1 | G108: 81.89 | H108: 81.89
A109: HC1774070 | B109: Berol Colour Fine Classpack 288 | C109: 288 | D109: 1 | G109: 75.97 | H109: 75.97
A110: HC1774064 | B110: Berol Colour Broad Classpack 288 | C110: 288 | D110: 1 | G110: 75.97 | H110: 75.97
A111: HC1102952 | B111: Edding 8 All Purpose Assorted, Bullet Tip - Pack of 144 | C111: 144 | D111: 1 | G111: 86.3 | H111: 86.3
A112: HC209241 | B112: Giotto Metallic Fibre Pens P24 | C112: 24 | D112: 5 | G112: 23.3 | H112: 116.5
A113: HC1815185 | B113: School Scissor Set P32 inc Box | C113: 32 | D113: 1 | G113: 22.67 | H113: 22.67
A114: HC295314 | B114: Crazy Cut Scissors Pk6 | C114: 6 | D114: 2 | G114: 12.59 | H114: 25.18
A115: HC370844 | B115: Bulk Buy - 6 Collage Jars | C115: 6 | D115: 1 | G115: 31.49 | H115: 31.49
A116: HC1815197 | B116: Classmates Dual Control Scissors - Right Handed | C116: 1 | D116: 12 | G116: 3.77 | H116: 45.24
A117: HC1815195 | B117: Classmates Easy Grip Scissors - Left Handed | C117: EA | D117: 3 | G117: 7.55 | H117: 22.65
A118: HC1815193 | B118: Classmates Easy Grip Scissors - Right Handed | C118: 1 | D118: 3 | G118: 7.55 | H118: 22.65
A119: HC133737 | B119: Chubbi Stumps Pack 96 Assorted | C119: 96 | D119: 1 | G119: 8.18 | H119: 8.18
A120: ART
A121: HC381673 | B121: Children's Disposable Aprons - Pack of 100 | C121: 100 | D121: 3 | E121: Art | G121: 27.71 | H121: =G121*D121 -> 83.13
A122: HC1674819 | B122: Assorted Splash Mats | C122: 4 | D122: 2 | G122: 22.04 | H122: 44.08
A123: HC1506620 | B123: Classmates Ready Mixed Paint - 1 Litre - Assorted - Pack of 12 | C123: 1 | D123: 2 | G123: 27.32 | H123: 54.64
A124: CP00052574 | B124: Round Hog Short Brush Assortment - Pack of 100 | C124: 100 | D124: 1 | G124: 41.57 | H124: 41.57
A125: HC136402 | B125: Classmates Stable Water Pots | C125: 12 | D125: 2 | G125: 20.15 | H125: 40.3
A126: HC136376 | B126: Classmates 6 Well Paint Palette - Pack of 24 | C126: 24 | D126: 1 | G126: 27.71 | H126: 27.71
A127: HC1879314 | B127: Classmates Dispenser Bottles - 4 x 250ml | C127: 4 | D127: 2 | G127: 13.22 | H127: 26.44
A128: HC209020 | B128: Classmates Newsprint - A3 - Pack of 500 | C128: 500 | D128: 1 | G128: 20.15 | H128: 20.15
A129: HC382895 | B129: Classmates Tissue Paper Square Assortment - Pack of 480 | C129: 480 | D129: 1 | G129: 11.33 | H129: 11.33
A130: HC475884 | B130: Classmates A4 Assorted Card - Pack of 200 | C130: 200 | D130: 1 | G130: 10.07 | H130: 10.07
A131: E8R07951 | B131: Classmates PVA Glue - Blue Label - 5 Litre | C131: 1 | D131: 1 | G131: 10.45 | H131: 10.45
A132: HC149896 | B132: Classmates Plastic Glue Spreaders - Double Ended | C132: 10 | D132: 4 | G132: 3.14 | H132: 12.56
A133: HC1691856 | B133: Classmates Assorted Colouring Pencils - Pack of 504 | C133: 504 | D133: 1 | G133: 36.53 | H133: 36.53
A134: HC1691748 | B134: Classmates Broad Tip Colouring Pens - Pack of 288 | C134: 288 | D134: 1 | G134: 54.17 | H134: 54.17
A135: HC1594261 | B135: Classmates Glitter Assortment | C135: 10 | D135: 1 | G135: 21.41 | H135: 21.41
A136: HC292909 | B136: Staedtler® Tradition 110 Sketching Pencils - HB - Pack of 144 | C136: 144 | D136: 1 | G136: 37.79 | H136: 37.79
A137: HC48402825 | B137: 20 Shelf Spring Loaded Floor Drying Rack with Wheels | C137: 1 | D137: 1 | G137: 214.19 | H137: 214.19
A138: ENGLISH
A139: HC1827530 | B139: Electronic phonics | C139: 1 | D139: 1 | E139: English | G139: 97.01 | H139: 97.01
A140: HC1353913 | B140: A5 dictionaries | C140: 30 | D140: 1 | G140: 15.11 | H140: 15.11
A141: HC1588154 | B141: Alphabet lined boards | C141: 30 | D141: 1 | G141: 52.91 | H141: 52.91
A142: HC1564053 | B142: Oxford First Grammar, Punctuation and Spelling Dictionary | C142: EA | D142: 15 | G142: 13.85 | H142: 207.75
A143: HC48834253 | B143: Reading comprehension box 3 | C143: 1 | D143: 1 | G143: 289.79 | H143: 289.79
A144: HC1536830 | B144: Creative writing directory | C144: 1 | D144: 6 | G144: 16.37 | H144: 98.22
A145: HC1266729 | B145: Roald Dahl book pack | C145: 6 | D145: 1 | G145: 47.87 | H145: 47.87
A146: HC1775783 | B146: Diversity picture books for KS2 | C146: 8 | D146: 1 | G146: 97.01 | H146: 97.01
A147: HC1701719 | B147: Pencil grips | C147: 10 | D147: 1 | G147: 6.29 | H147: 6.29
A148: HC1677021 | B148: Talking tins and activity guide | C148: 10 | D148: 1 | G148: 108.22 | H148: 108.22
A149: EDMT14844 | B149: Pi Corbett year 5 book pack | C149: 7 | D149: 2 | G149: 66.77 | H149: 133.54
A150: HC1673615 | B150: Myths and Legends | C150: 20 | D150: 1 | G150: 187.73 | H150: 187.73
A151: HC1685160 | B151: Spelling rules directory | C151: 1 | D151: 5 | G151: 15.11 | H151: 75.55
A152: HC1569539 | B152: Grammar rules poster | C152: 5 | D152: 1 | G152: 23.93 | H152: 23.93
A153: GEOGRAPHY
A154: HC1660162 | B154: Inflatable labelling globe | C154: 1 | D154: 1 | E154: Geography | G154: 25.19 | H154: 25.19
A155: HC1555759 | B155: Simple maps pack | C155: 3 | D155: 1 | G155: 59.21 | H155: 59.21

Sheet Year 6
G1: Basket Total | H1: =SUM(H3:H155) -> 7031.88
A2: Product Code | B2: Product Description | C2: Units of Measure | D2: Quantity | E2: Section | F2: Curriculum Area | G2: Unit Price | H2: Total Price
A3: MATHS
A4: HC169149 | B4: Htu Dice Pack Of 60 | C4: 60 | D4: 1 | E4: Maths | F4: Number and Place Value | G4: 67.4 | H4: =G4*D4 -> 67.4
A5: HC1369266 | B5: Place Value Arrows Thousands Teacher | C5: 9 | D5: 2 | F5: Number and Place Value | G5: 13.85 | H5: 27.7
A6: HC1002791 | B6: Place Value Arrow Cards Pupil PK6 | C6: 6 | D6: 3 | F6: Number and Place Value | G6: 37.79 | H6: 113.37
A7: HC1489774 | B7: Numicon Boxed Set Of 80 Shapes | C7: 80 | D7: 2 | F7: Number and Place Value | G7: 56.69 | H7: 113.38
A8: HC332676 | B8: 0-100 Table Top Number Lines Pk5 | C8: 5 | D8: 4 | F8: Number and Place Value | G8: 11.33 | H8: 45.32
A9: HC167602 | B9: 1 - 6 Dice (pkt Of 30) | C9: 30 | D9: 1 | F9: Number and Place Value | G9: 9.44 | H9: 9.44
A10: HC1002701 | B10: DoubleSided DryWipe Counting Board Pupil | C10: 30 | D10: 1 | F10: Number and Place Value | G10: 57.95 | H10: 57.95
A11: EFMT14690 | B11: A5 Double Sided Multiplication Grid - Pack of 35 | C11: 35 | D11: 1 | F11: Multiplication and Division | G11: 35.02 | H11: 35.02
A12: EFMT14686 | B12: Giant Magnetic Array Set | C12: 1 | D12: 1 | F12: Multiplication and Division | G12: 20.78 | H12: 20.78
A13: CP052091 | B13: Times Table Fan Pack | C13: 55 | D13: 3 | F13: Multiplication and Division | G13: 18.9 | H13: 56.7
A14: HC170930 | B14: Table Boards Class Pack | C14: 1 | D14: 1 | F14: Multiplication and Division | G14: 44.09 | H14: 44.09
A15: HC1535474 | B15: Addition, Subtraction, Multiplication and Division Poster Pack Pack of three | C15: 3 | D15: 1 | F15: Multiplication and Division | G15: 21.16 | H15: 21.16
A16: HC1537279 | B16: Double-Sided Division Magnets - Pack of 132 | C16: 132 | D16: 1 | F16: Multiplication and Division | G16: 54.17 | H16: 54.17
A17: EFMT14688 | B17: Double-Sided Multiplication Magnets - Pack of 132 | C17: 132 | D17: 1 | F17: Multiplication and Division | G17: 52.91 | H17: 52.91
A18: HC1782357 | B18: Maths Mastery Division Set | C18: 1 | D18: 1 | F18: Multiplication and Division | G18: 83.15 | H18: 83.15
A19: HC1782353 | B19: Maths Mastery Multiplication Set | C19: 1 | D19: 1 | F19: Multiplication and Division | G19: 83.15 | H19: 83.15
A20: HC1782347 | B20: Maths Mastery Addition Set | C20: 1 | D20: 1 | F20: Addition and Subtraction | G20: 55.43 | H20: 55.43
A21: HC1782349 | B21: Maths Mastery Subtraction Set | C21: 1 | D21: 1 | F21: Addition and Subtraction | G21: 55.43 | H21: 55.43
A22: HC170384 | B22: Decimal Sliding Lines - Pupil - Pack of 30 | C22: 1 | D22: 1 | F22: Fractions, Decimals and Percentages | G22: 57.95 | H22: 57.95
A23: HC170371 | B23: Decimal Sliding Lines - Teacher | C23: 1 | D23: 1 | F23: Fractions, Decimals and Percentages | G23: 11.33 | H23: 11.33
A24: HC1630583 | B24: Equivalence Washing Line | C24: 1 | D24: 1 | F24: Fractions, Decimals and Percentages | G24: 36.53 | H24: =G24*D24 -> 36.53
A25: HC1290948 | B25: Fraction and Decimal Counting Cards Pack of forty | C25: 40 | D25: 1 | F25: Fractions, Decimals and Percentages | G25: 25.19 | H25: 25.19
A26: HC1782359 | B26: Maths Mastery Fraction Set 1 | C26: 1 | D26: 1 | F26: Fractions, Decimals and Percentages | G26: 42.2 | H26: 42.2
A27: HC1782361 | B27: Maths Mastery Fraction Set 2 | C27: 1 | D27: 1 | F27: Fractions, Decimals and Percentages | G27: 55.43 | H27: 55.43
A28: HC1553921 | B28: Dry-Wipe Fraction Number Line Mats - Pack of 10 | C28: 10 | D28: 3 | F28: Fractions, Decimals and Percentages | G28: 15.11 | H28: 45.33
A29: HC167277 | B29: Fraction Number Fans Class Pack | C29: 30 | D29: 1 | F29: Fractions, Decimals and Percentages | G29: 35.02 | H29: 35.02
A30: HC1534658 | B30: Percentages Decimals And Fractions Bingo | C30: 1 | D30: 4 | F30: Fractions, Decimals and Percentages | G30: 25.19 | H30: 100.76
A31: EFMT13242 | B31: Rainbow Fraction Tiles | C31: 1 | D31: 1 | F31: Fractions, Decimals and Percentages | G31: 18.01 | H31: 18.01
A32: HC1002641 | B32: Rainbow Fractions Circles | C32: 1 | D32: 1 | F32: Fractions, Decimals and Percentages | G32: 14.6 | H32: 14.6
A33: HC1571283 | B33: Cubes Fraction Set | C33: 1 | D33: 1 | F33: Fractions, Decimals and Percentages | G33: 15.99 | H33: 15.99
A34: HC1536364 | B34: Fraction Bag | C34: 1 | D34: 1 | F34: Fractions, Decimals and Percentages | G34: 29.72 | H34: 29.72
A35: HC1002807 | B35: Unbreakable Mirrors 90x65mm P10 | C35: 10 | D35: 2 | F35: Geometry | G35: 8.18 | H35: 16.36
A36: HC1002659 | B36: Geometric Large Shapes | C36: 17 | D36: 2 | F36: Geometry | G36: 31.49 | H36: 62.98
A37: HC1002639 | B37: Geometrc Plane Shapes Set 1-50mm | C37: 160 | D37: 2 | F37: Geometry | G37: 36.28 | H37: 72.56
A38: HC388771 | B38: Helix Geometry Class Pack | C38: 1 | D38: 1 | F38: Geometry | G38: 69.29 | H38: 69.29
A39: HC424404 | B39: Geoboards 6 Colours 230mm | C39: 6 | D39: 4 | F39: Geometry | G39: 22.67 | H39: 90.68
A40: HC88200579 | B40: Protractor - Pack of 10 Pack of ten | C40: 10 | D40: 4 | F40: Measurement | G40: 2.08 | H40: 8.32
A41: HC181213 | B41: Tape Measure Pack of 10 | C41: 10 | D41: 2 | F41: Measurement | G41: 11.33 | H41: 22.66
A42: E8A73842 | B42: 1m Wood Rule - Marked CM And MM | C42: 1 | D42: 5 | F42: Measurement | G42: 5.03 | H42: 25.15
A43: EFMT14433 | B43: Class Coin Set | C43: 1 | D43: 1 | F43: Measurement | G43: 37.79 | H43: 37.79
A44: E8R09487 | B44: Dual Power Timer - Pack of 5 | C44: 5 | D44: 1 | F44: Measurement | G44: 36.28 | H44: 36.28
A45: HC169526 | B45: Grocery Store Flip | C45: 1 | D45: 1 | F45: Measurement | G45: 27.71 | H45: 27.71
A46: EDMT14144 | B46: Mini Time Tracker | C46: 1 | D46: 1 | F46: Measurement | G46: 28.34 | H46: 28.34
A47: HC166601 | B47: Multilink® Graph and Histogram Board | C47: 1 | D47: 1 | F47: Statistics | G47: 63.37 | H47: 63.37
A48: HC167485 | B48: Multi-sided Dice | C48: 5 | D48: 6 | F48: Classroom Tools | G48: 5.41 | H48: 32.46
A49: HC1820757 | B49: Number and Symbol's Spots | C49: 1 | D49: 1 | F49: Classroom Tools | G49: 80.63 | H49: 80.63
A50: EFMT14710 | B50: Giant Magnetic Numbers and Operations | C50: 1 | D50: 1 | F50: Classroom Tools | G50: 14.48 | H50: 14.48
A51: HC167784 | B51: Coloured Dominoes Pk 168 | C51: 168 | D51: 1 | F51: Classroom Tools | G51: 20.1 | H51: 20.1
A52: HC1490618 | B52: Jumbo Number Pebbles | C52: 20 | D52: 1 | F52: Classroom Tools | G52: 44.09 | H52: 44.09
A53: HC167446 | B53: Foam Dice Blue | C53: 1 | D53: 5 | F53: Classroom Tools | G53: 10.19 | H53: 50.95
A54: HC312396 | B54: 100 Coloured Dice 4 Colours | C54: 100 | D54: 1 | F54: Classroom Tools | G54: 8.81 | H54: =G54*D54 -> 8.81
A55: HC1283650 | B55: Plastic Counters 22mm (pkt Of 500) | C55: 500 | D55: 1 | F55: Classroom Tools | G55: 12.59 | H55: 12.59
A56: HC363525 | B56: Pupil Counting Stick P6 | C56: 6 | D56: 3 | F56: Classroom Tools | G56: 22.67 | H56: 68.01
A57: HC1674195 | B57: Tactile Counting Stones | C57: 1 | D57: 1 | F57: Classroom Tools | G57: 42.2 | H57: 42.2
A58: HC165405 | B58: 1000pk Counting Sticks | C58: 1000 | D58: 1 | F58: Classroom Tools | G58: 25.83 | H58: 25.83
A59: HC1770182 | B59: Sand Timer - 1 Minute | C59: 1 | D59: 1 | F59: Classroom Tools | G59: 12.59 | H59: 12.59
A60: HC1770186 | B60: Sand Timer - 5 Minute | C60: 1 | D60: 1 | F60: Classroom Tools | G60: 12.59 | H60: 12.59
A61: HC165444 | B61: Transparent Counters - Pack 1000 | C61: 1000 | D61: 1 | F61: Classroom Tools | G61: 23.93 | H61: 23.93
A62: HC1664905 | B62: Abacus | C62: 1 | D62: 1 | F62: Classroom Tools | G62: 15.86 | H62: 15.86
A63: EFMT11934 | B63: Multilink® Cubes (500) | C63: 500 | D63: 1 | F63: Classroom Tools | G63: 98.27 | H63: 98.27
A64: HC1524135 | B64: Multilink® Grid Tray Sheets | C64: 3 | D64: 1 | F64: Classroom Tools | G64: 35.02 | H64: 35.02
A65: EFMT13263 | B65: Multilink® Grid Tray | C65: 1 | D65: 15 | F65: Classroom Tools | G65: 12.59 | H65: 188.85
A66: EGMT13635 | B66: Base 10 Set from Hope Education | C66: 1 | D66: 1 | F66: Classroom Tools | G66: 71.81 | H66: 71.81
A67: EFMT14205 | B67: Giant Magnetic Base 10 Demonstration Set | C67: 1 | D67: 1 | F67: Classroom Tools | G67: 31.49 | H67: 31.49
A68: HC167121 | B68: Write-On/Wipe-Off 100 Squares - Pack of 35 | C68: 35 | D68: 1 | F68: Classroom Tools | G68: 18.89 | H68: 18.89
A69: HC1822714 | B69: Eco Friendly 20 Bead String | C69: 1 | D69: 15 | F69: Classroom Tools | G69: 7.93 | H69: 118.95
A70: HC1822716 | B70: Eco-friendly 100 Bead String | C70: 1 | D70: 1 | F70: Classroom Tools | G70: 31.87 | H70: 31.87
A71: HC373873 | B71: Jumbo Playing Cards | C71: 1 | D71: 5 | F71: Classroom Tools | G71: 5.41 | H71: 27.05
A72: HC167719 | B72: Playing Cards | C72: 1 | D72: 15 | F72: Classroom Tools | G72: 1.88 | H72: 28.2
A73: HC167576 | B73: Polyhedron Number Dice - Pack 35 | C73: 35 | D73: 1 | F73: Classroom Tools | G73: 10.82 | H73: 10.82
A74: HC1866525 | B74: Rainbow Spinners | C74: 1 | D74: 1 | F74: Classroom Tools | G74: 15.86 | H74: 15.86
A75: EFMT14097 | B75: Foam Dice with Pockets | C75: 1 | D75: 1 | F75: Classroom Tools | G75: 9.19 | H75: 9.19
A76: EFMT14179 | B76: Teacher Whiteboard Dice | C76: 4 | D76: 1 | F76: Classroom Tools | G76: 42.83 | H76: 42.83
A77: EFMT11929 | B77: Unifix® Cubes - Pack of 500 | C77: 500 | D77: 1 | F77: Classroom Tools | G77: 35.9 | H77: 35.9
A78: HC1564958 | B78: Easy Read Time Teacher - 24-Hour Classroom Wall Clock | C78: 1 | D78: 1 | F78: Display | G78: 41.57 | H78: 41.57
A79: HC166952 | B79: 0-100 Wall Number Line | C79: 1 | D79: 1 | F79: Display | G79: 13.22 | H79: 13.22
A80: STATIONERY
A81: HC337213 | B81: Staedtler Noris HB Pencils Pk150 | C81: 150 | D81: 1 | E81: Stationery | G81: 18.89 | H81: =G81*D81 -> 18.89
A82: HC1254676 | B82: Texet Albert Junior Classpack | C82: 30 | D82: 1 | G82: 192.77 | H82: 192.77
A83: HC1694632 | B83: Classmate Classroom Collection | C83: 9 | D83: 1 | G83: 20.15 | H83: =G83*D83 -> 20.15
A84: HC206745 | B84: A4 Bulky Zip Wallets Asst P100 | C84: 100 | D84: 1 | G84: 52.91 | H84: =G84*D84 -> 52.91
A85: HC255469 | B85: A5 Zip Wallets Red P25 | C85: 25 | D85: 3 | G85: 15.11 | H85: 45.33
A86: HC284654 | B86: CM Address Labels 89x36mm P250 | C86: 250 | D86: 2 | G86: 5.03 | H86: 10.06
A87: HC282418 | B87: CM Sticky Note Cube Neon 75x75mm | C87: 1 | D87: 5 | G87: 4.15 | H87: 20.75
A88: HC1691792 | B88: Classmates Highlighters 5 Colours Pk 48 | C88: 48 | D88: 1 | G88: 10.7 | H88: 10.7
A89: HC1691844 | B89: CM Easy Grip Triangular Pencils P72 | C89: 72 | D89: 1 | G89: 17.63 | H89: 17.63
A90: HC316244 | B90: CM Metal Sharpeners Double Hole Pk12 | C90: 12 | D90: 2 | G90: 11.33 | H90: 22.66
A91: HC131969 | B91: Staedtler Rasoplast Eraser P30 | C91: 30 | D91: 1 | G91: 12.59 | H91: 12.59
A92: HC88200582 | B92: Shatterproof 30cm/mm Clear Ruler Pk10 | C92: 10 | D92: 3 | G92: 4.9 | H92: 14.7
A93: HC298772 | B93: Rapesco X5-30PS Medium Duty Hole Punch | C93: 1 | D93: 1 | G93: 9.06 | H93: 9.06
A94: HC397364 | B94: Rapesco Sting Ray Half Strip Stapler | C94: 1 | D94: 1 | G94: 8.18 | H94: 8.18
A95: HC194863 | B95: Rapesco 24/6 Staples P5000 | C95: 5000 | D95: 1 | G95: 4.4 | H95: 4.4
A96: HC186556 | B96: Paper Fasteners 25mm Pack 200 | C96: 200 | D96: 1 | G96: 6.92 | H96: 6.92
A97: HC179406 | B97: Treasury Tag 51mm Yellow P100 | C97: 100 | D97: 1 | G97: 3.77 | H97: 3.77
A98: HC397442 | B98: C M Easytear Tape 24mmx66m Pk6 | C98: 6 | D98: 1 | G98: 5.66 | H98: 5.66
A99: HC1699057 | B99: Classmate Tape Dispenser | C99: 1 | D99: 1 | G99: 6.92 | H99: 6.92
A100: HC322874 | B100: Classmates Dble Sided Tape 12mmx33mm Pk6 | C100: 6 | D100: 1 | G100: 11.96 | H100: 11.96
A101: HC225517 | B101: C M Masking Tape 24mmx50mx9 | C101: 9 | D101: 1 | G101: 15.11 | H101: 15.11
A102: HC1109953 | B102: Blu Tack Original 60g | C102: 12 | D102: 1 | G102: 11.96 | H102: 11.96
A103: HC479745 | B103: A4 Hardboard Clipboard P12 | C103: 12 | D103: 2 | G103: 35.27 | H103: 70.54
A104: HC279324 | B104: Sellotape® Loop Spots - 125 Spots | C104: 125 | D104: 2 | G104: 11.71 | H104: 23.42
A105: HC279337 | B105: Sellotape® Hook Spots - 125 Spots | C105: 125 | D105: 2 | G105: 11.71 | H105: 23.42
A106: HC881054 | B106: CM LtWeight Lapboard A4 Lined P35 | C106: 35 | D106: 1 | G106: 65.52 | H106: 65.52
A107: HC383558 | B107: Lakeland Jumbo Pencils Classpack | C107: 144 | D107: 1 | G107: 81.89 | H107: 81.89
A108: HC1774070 | B108: Berol Colour Fine Classpack 288 | C108: 288 | D108: 1 | G108: 75.97 | H108: 75.97
A109: HC1774064 | B109: Berol Colour Broad Classpack 288 | C109: 288 | D109: 1 | G109: 75.97 | H109: 75.97
A110: HC1102952 | B110: Edding 8 All Purpose Assorted, Bullet Tip - Pack of 144 | C110: 144 | D110: 1 | G110: 86.3 | H110: 86.3
A111: HC209241 | B111: Giotto Metallic Fibre Pens P24 | C111: 24 | D111: 5 | G111: 23.3 | H111: 116.5
A112: HC1815185 | B112: School Scissor Set P32 inc Box | C112: 32 | D112: 1 | G112: 22.67 | H112: 22.67
A113: HC295314 | B113: Crazy Cut Scissors Pk6 | C113: 6 | D113: 2 | G113: 12.59 | H113: 25.18
A114: HC370844 | B114: Bulk Buy - 6 Collage Jars | C114: 6 | D114: 1 | G114: 31.49 | H114: 31.49
A115: HC1815197 | B115: Classmates Dual Control Scissors - Right Handed | C115: 1 | D115: 12 | G115: 3.77 | H115: 45.24
A116: HC1815195 | B116: Classmates Easy Grip Scissors - Left Handed | C116: EA | D116: 3 | G116: 7.55 | H116: 22.65
A117: HC1815193 | B117: Classmates Easy Grip Scissors - Right Handed | C117: 1 | D117: 3 | G117: 7.55 | H117: 22.65
A118: HC133737 | B118: Chubbi Stumps Pack 96 Assorted | C118: 96 | D118: 1 | G118: 8.18 | H118: 8.18
A119: ART
A120: HC381673 | B120: Children's Disposable Aprons - Pack of 100 | C120: 100 | D120: 3 | E120: Art | G120: 27.71 | H120: =G120*D120 -> 83.13
A121: HC1674819 | B121: Assorted Splash Mats | C121: 4 | D121: 2 | G121: 22.04 | H121: 44.08
A122: HC1506620 | B122: Classmates Ready Mixed Paint - 1 Litre - Assorted - Pack of 12 | C122: 1 | D122: 2 | G122: 27.32 | H122: 54.64
A123: CP00052574 | B123: Round Hog Short Brush Assortment - Pack of 100 | C123: 100 | D123: 1 | G123: 41.57 | H123: 41.57
A124: HC136402 | B124: Classmates Stable Water Pots | C124: 12 | D124: 2 | G124: 20.15 | H124: 40.3
A125: HC136376 | B125: Classmates 6 Well Paint Palette - Pack of 24 | C125: 24 | D125: 1 | G125: 27.71 | H125: 27.71
A126: HC1879314 | B126: Classmates Dispenser Bottles - 4 x 250ml | C126: 4 | D126: 2 | G126: 13.22 | H126: 26.44
A127: HC209020 | B127: Classmates Newsprint - A3 - Pack of 500 | C127: 500 | D127: 1 | G127: 20.15 | H127: 20.15
A128: HC382895 | B128: Classmates Tissue Paper Square Assortment - Pack of 480 | C128: 480 | D128: 1 | G128: 11.33 | H128: 11.33
A129: HC475884 | B129: Classmates A4 Assorted Card - Pack of 200 | C129: 200 | D129: 1 | G129: 10.07 | H129: 10.07
A130: E8R07951 | B130: Classmates PVA Glue - Blue Label - 5 Litre | C130: 1 | D130: 1 | G130: 10.45 | H130: 10.45
A131: HC149896 | B131: Classmates Plastic Glue Spreaders - Double Ended | C131: 10 | D131: 4 | G131: 3.14 | H131: 12.56
A132: HC1691856 | B132: Classmates Assorted Colouring Pencils - Pack of 504 | C132: 504 | D132: 1 | G132: 36.53 | H132: 36.53
A133: HC1691748 | B133: Classmates Broad Tip Colouring Pens - Pack of 288 | C133: 288 | D133: 1 | G133: 54.17 | H133: 54.17
A134: HC1594261 | B134: Classmates Glitter Assortment | C134: 10 | D134: 1 | G134: 21.41 | H134: 21.41
A135: HC292909 | B135: Staedtler® Tradition 110 Sketching Pencils - HB - Pack of 144 | C135: 144 | D135: 1 | G135: 37.79 | H135: 37.79
A136: HC48402825 | B136: 20 Shelf Spring Loaded Floor Drying Rack with Wheels | C136: 1 | D136: 1 | G136: 214.19 | H136: 214.19
A137: ENGLISH
A138: HC1827530 | B138: Electronic phonics | C138: 1 | D138: 1 | E138: English | G138: 97.01 | H138: 97.01
A139: HC1353913 | B139: A5 dictionaries | C139: 30 | D139: 1 | G139: 15.11 | H139: 15.11
A140: HC1588154 | B140: Alphabet lined boards | C140: 30 | D140: 1 | G140: 52.91 | H140: 52.91
A141: HC1564053 | B141: Oxford First Grammar, Punctuation and Spelling Dictionary | C141: EA | D141: 15 | G141: 13.85 | H141: 207.75
A142: HC48834253 | B142: Reading comprehension box 3 | C142: 1 | D142: 1 | G142: 289.79 | H142: 289.79
A143: HC1536830 | B143: Creative writing directory | C143: 1 | D143: 6 | G143: 16.37 | H143: 98.22
A144: HC1266729 | B144: Roald Dahl book pack | C144: 6 | D144: 1 | G144: 47.87 | H144: 47.87
A145: HC1775783 | B145: Diversity picture books for KS2 | C145: 8 | D145: 1 | G145: 97.01 | H145: 97.01
A146: HC1701719 | B146: Pencil grips | C146: 10 | D146: 1 | G146: 6.29 | H146: 6.29
A147: HC1677021 | B147: Talking tins and activity guide | C147: 10 | D147: 1 | G147: 108.22 | H147: 108.22
A148: EDMT14845 | B148: Pi Corbett year 6 book pack | C148: 7 | D148: 2 | G148: 66.77 | H148: 133.54
A149: HC1673615 | B149: Myths and Legends | C149: 20 | D149: 1 | G149: 187.73 | H149: 187.73
A150: HC1004396 | B150: Superheroes books | C150: 18 | D150: 1 | G150: 108.35 | H150: 108.35
A151: HC1685160 | B151: Spelling rules directory | C151: 1 | D151: 5 | G151: 15.11 | H151: 75.55
A152: HC1569539 | B152: Grammar rules poster | C152: 5 | D152: 1 | G152: 23.93 | H152: 23.93
A153: GEOGRAPHY
A154: HC1660162 | B154: Inflatable labelling globe | C154: 1 | D154: 1 | E154: Geography | G154: 25.19 | H154: 25.19
A155: HC1555759 | B155: Simple maps pack | C155: 3 | D155: 1 | G155: 59.21 | H155: 59.21

Sheet KS2 Shared
G1: Basket Total | H1: =SUM(H3:H122) -> 9702.84
A2: Product Code | B2: Product Description | C2: Units of Measure | D2: Quantity | E2: Section | F2: Curriculum Area | G2: Unit Price | H2: Total Price
A3: Maths (Shared Resources)
A4: HC1201295 | B4: Place Value Counters HTU PK 300 | C4: 300 | D4: 2 | F4: Number and place value | G4: 35.27 | H4: =G4*D4 -> 70.54
A5: HC373964 | B5: Number Tiles | C5: 24 | D5: 1 | F5: Number and place value | G5: 47.11 | H5: =G5*D5 -> 47.11
A6: HC165405 | B6: 1000pk Counting Sticks | C6: 1000 | D6: 3 | F6: Number and place value | G6: 25.83 | H6: =G6*D6 -> 77.49
A7: HC1673805 | B7: 50 Place Value Activities Pack of fifty | C7: 50 | D7: 1 | F7: Number and place value | G7: 21.16 | H7: =G7*D7 -> 21.16
A8: HC1673815 | B8: 50 Time Activities Pack of fifty | C8: 50 | D8: 1 | F8: Measurement | G8: 21.16 | H8: =G8*D8 -> 21.16
A9: HC881132 | B9: Simple Scales | C9: 1 | D9: 10 | F9: Measurement | G9: 32.12 | H9: 321.2
A10: HC1002786 | B10: Plastic Weights | C10: 50 | D10: 4 | F10: Measurement | G10: 19.64 | H10: 78.56
A11: EDMT14978 | B11: Measuring Volume Kit | C11: 1 | D11: 3 | F11: Measurement | G11: 136.07 | H11: 408.21
A12: HC169812 | B12: Front Of Class Clock Kit | C12: 1 | D12: 3 | F12: Measurement | G12: 134.81 | H12: 404.43
A13: HC1579931 | B13: Write On Wipe Off Clock Dial (24 Hour) | C13: 5 | D13: 12 | F13: Measurement | G13: 8.18 | H13: 98.16
A14: HC172074 | B14: Closed Reel Measuring Tape 10m | C14: 1 | D14: 20 | F14: Measurement | G14: 11.96 | H14: 239.2
A15: HC1383806 | B15: Mini Measure | C15: 1 | D15: 6 | F15: Measurement | G15: 19.52 | H15: 117.12
A16: HC181213 | B16: Tape Measures Pack Of 10 | C16: 10 | D16: 3 | F16: Measurement | G16: 11.33 | H16: 33.99
A17: HC1465747 | B17: Helix Metre Stick | C17: 1 | D17: 14 | F17: Measurement | G17: 8.93 | H17: 125.02
A18: HC1664448 | B18: EasyRead Pupil Clock Cards - Pack of 30 Pack of thirty | C18: 30 | D18: 2 | F18: Measurement | G18: 100.79 | H18: =G18*D18 -> 201.58
A19: HC1673881 | B19: 50 Measure Activities Pack of fifty | C19: 50 | D19: 1 | F19: Measurement | G19: 19.95 | H19: =G19*D19 -> 19.95
A20: IAAP10741 | B20: Trundle Wheel with Counter | C20: 1 | D20: 3 | F20: Measurement | G20: 23.3 | H20: =G20*D20 -> 69.9
A21: HC1674104 | B21: 50 Money Activities Pack of fifty | C21: 50 | D21: 1 | F21: Measurement | G21: 21.16 | H21: =G21*D21 -> 21.16
A22: HC290101 | B22: Salter Electronic Scale | C22: 1 | D22: 10 | F22: Measurement | G22: 49.13 | H22: =G22*D22 -> 491.3
A23: HC1677717 | B23: Pupil Graph Dsided Dry Erase Bds | C23: 30 | D23: 1 | F23: Classroom Tools | G23: 57.95 | H23: 57.95
A24: HC1677715 | B24: Fractions, Decimals & Percentage, Pie Equivalent Pack of three | C24: 1 | D24: 1 | F24: Fractions, decimals and percentages | G24: 151.2 | H24: 151.2
A25: HC1816973 | B25: Fractions, Decimals and Percentages Domino Links | C25: 1 | D25: 1 | F25: Fractions, decimals and percentages | G25: 17.12 | H25: 17.12
A26: HC1821407 | B26: Fractions, Decimals & Percentage Cubes Pack of four | C26: 4 | D26: 1 | F26: Fractions, decimals and percentages | G26: 17.12 | H26: 17.12
A27: HC1574046 | B27: Equivalence Crunchers - Pack of 25 | C27: 25 | D27: 2 | F27: Fractions, decimals and percentages | G27: 17.63 | H27: 35.26
A28: HC1825181 | B28: Maths Mastery Fractions, Decimals & Percentage Kit | C28: 1 | D28: 1 | F28: Fractions, decimals and percentages | G28: 439.74 | H28: =G28*D28 -> 439.74
A29: HC421271 | B29: First Fraction Dominoes | C29: 24 | D29: 3 | F29: Fractions, decimals and percentages | G29: 13.22 | H29: =G29*D29 -> 39.66
A30: HC240363 | B30: Geometric Models Set 25 | C30: 25 | D30: 2 | F30: Geometry | G30: 36.28 | H30: =G30*D30 -> 72.56
A31: HC168642 | B31: Wooden Shapes and Patterns Box | D31: 1 | F31: Geometry | G31: 43.46 | H31: 43.46
A32: HC1687597 | B32: Mini Relational Geosolids Pack | D32: 1 | F32: Geometry | G32: 20.78 | H32: 20.78
A33: E8A44416 | B33: Plastic Flexible Mirrors - 100 x 75mm | D33: 3 | F33: Geometry | G33: 7.55 | H33: 22.65
A34: HC1002659 | B34: Geometric Large Shapes | C34: 17 | D34: 3 | F34: Geometry | G34: 31.49 | H34: 94.47
A35: HC1002660 | B35: Geometric Plastic Shapes Small | C35: 60 | D35: 1 | F35: Geometry | G35: 23.68 | H35: 23.68
A36: HC1002807 | B36: Unbreakable Mirrors 90x65mm P10 | C36: 10 | D36: 2 | F36: Geometry | G36: 8.18 | H36: 16.36
A37: HC1002712 | B37: Polydron Bumper Classroom Pack | C37: 1 | D37: 1 | F37: Geometry | G37: 302.4 | H37: 302.4
A38: HC168434 | B38: 3D Geometric Shapes | C38: 1 | D38: 1 | F38: Geometry | G38: 56.69 | H38: 56.69
A39: HC168603 | B39: Polygon Allsorts | C39: 1 | D39: 1 | F39: Geometry | G39: 52.91 | H39: 52.91
A40: HC1002661 | B40: Geometric Plastic Shapes - Large - Pack of 60 | C40: 60 | D40: 1 | F40: Geometry | G40: 46.61 | H40: 46.61
A41: HC1290942 | B41: 2D Faces of 3D Shapes | C41: 1 | D41: 1 | F41: Geometry | G41: 35.27 | H41: 35.27
A42: EFMT14207 | B42: 2D Shape Bag | C42: 1 | D42: 1 | F42: Geometry | G42: 30.23 | H42: 30.23
A43: EFMT14208 | B43: 3D Shape Bag | C43: 1 | D43: 1 | F43: Geometry | G43: 30.23 | H43: 30.23
A44: EFMT11671 | B44: Geometric Shapes - Pack of 17 | C44: 17 | D44: 1 | F44: Geometry | G44: 31.49 | H44: 31.49
A45: EFMT12668 | B45: Shape Templates | C45: 5 | D45: 1 | F45: Geometry | G45: 10.45 | H45: 10.45
A46: HC1674077 | B46: 50 Graph and Chart Activities Pack of fifty | C46: 50 | D46: 1 | F46: Statistics | G46: 21.16 | H46: 21.16
A47: Year 3 & 4 Class Maths Sets
A48: EFMT10106 | B48: Maths Board Games Years 3-4 | C48: 1 | D48: 1 | E48: Year 3 & 4 Class Maths Sets | F48: Addition and Subtraction | G48: 37.54 | H48: =D48*G48 -> 37.54
A49: HC1574044 | B49: Double-Sided Magnetic Fraction Percentage Bars - Pack 39 | D49: 1 | F49: Fractions, decimals and percentages | G49: 21.41 | H49: =G49*D49 -> 21.41
A50: CP00052982 | B50: 2 Colour Counters | C50: PK | D50: 2 | F50: Number and place value | G50: 10.08 | H50: =G50*D50 -> 20.16
A51: E8R06308 | B51: Measuring Weight Kit | D51: 1 | F51: Measurement | G51: 166.56 | H51: 166.56
A52: EGMT13640 | B52: Place Value Arrow Cards - Pupil | D52: 3 | F52: Number and place value | G52: 37.79 | H52: 113.37
A53: HC1002805 | B53: Magnetic Place Value Arrows - Hundreds Tens & Units | D53: 1 | F53: Number and place value | G53: 27.71 | H53: 27.71
A54: EGMT13646 | B54: Place Value Arrow Cards - Thousands - Pupil | D54: 3 | F54: Number and place value | G54: 15.11 | H54: 45.33
A55: EGMT13647 | B55: Place Value Arrow Cards - Thousands - Teacher | D55: 1 | F55: Number and place value | G55: 13.85 | H55: 13.85
A56: HC1675345 | B56: Fractions Years 3 and 4 | C56: 1 | D56: 1 | F56: Fractions, decimals and percentages | G56: 22.54 | H56: 22.54
A57: HC1571283 | B57: Cubes Fraction Set | D57: 6 | F57: Fractions, decimals and percentages | G57: 15.99 | H57: 95.94
A58: Year 5 & 6 Class Maths Sets
A59: HC170787 | B59: Maths Board Games Years 5-6 | C59: 6 | D59: 1 | E59: Year 5 & 6 Class Maths Sets | F59: Number and place value | G59: 37.54 | H59: 37.54
A60: EGMT13647 | B60: Place Value Arrow Cards - Thousands - Teacher | D60: 3 | F60: Number and place value | G60: 13.85 | H60: 41.55
A61: HC88200579 | B61: Protractor - Pack 10 | D61: 6 | F61: Measurement | G61: 2.08 | H61: 12.48
A62: EGMT13646 | B62: Place Value Arrow Cards - Thousands - Pupil | D62: 9 | F62: Number and place value | G62: 15.11 | H62: 135.99
A63: HC1571283 | B63: Cubes Fraction Set | D63: 18 | F63: Fractions, decimals and percentages | G63: 15.99 | H63: 287.82
A64: E8R06308 | B64: Measuring Weight Kit | D64: 3 | F64: Measurement | G64: 166.56 | H64: 499.68
A65: HC1574044 | B65: Double-Sided Magnetic Fraction Percentage Bars - Pack 39 | D65: 3 | F65: Fractions, decimals and percentages | G65: 21.41 | H65: 64.23
A66: HC1478389 | B66: Mini Cone Set | C66: P60 | D66: 2 | F66: Geometry | G66: 14.48 | H66: 28.96
A67: EGMT13640 | B67: Place Value Arrow Cards - Pupil | D67: 9 | F67: Number and place value | G67: 37.79 | H67: 340.11
A68: HC115732 | B68: Compass - Pack 10 | D68: 6 | F68: Classroom Tools | G68: 3.14 | H68: 18.84
A69: HC1002805 | B69: Magnetic Place Value Arrows - Hundreds Tens & Units | D69: 3 | F69: Number and place value | G69: 27.71 | H69: 83.13
A70: CP00052982 | B70: 2 Colour Counters | C70: PK | D70: 6 | F70: Number and place value | G70: 10.08 | H70: 60.48
A71: E8R08153 | B71: 1kg Mechanical Scale - White | C71: 1 | D71: 6 | F71: Measurement | G71: 15.11 | H71: 90.66
A72: HC351565 | B72: Texet SL8 Pocket Calculator | C72: EA | D72: 6 | F72: Classroom Tools | G72: 6.29 | H72: 37.74
A73: KS2 English
A74: HC1004396 | B74: Superheroes Book - Pack of 18 | D74: 1 | G74: 108.35 | H74: =G74*D74 -> 108.35
A75: HC248917 | B75: Writer's Directory | D75: 1 | G75: 16.37 | H75: 16.37
A76: ECMT13182 | B76: Reading Comprehension Starter Pack - Set 1 | D76: 1 | G76: 27.08 | H76: 27.08
A77: ECMT13183 | B77: Reading Comprehension Starter Pack - Set 2 | D77: 1 | G77: 27.08 | H77: 27.08
A78: HC1673611 | B78: Superheroes Book Pack for KS1-KS2 | D78: 1 | G78: 93.23 | H78: 93.23
A79: EBMT14734 | B79: Write on Wipe Off Pockets | D79: 3 | G79: 32.73 | H79: 98.19
A80: EBMT13291 | B80: Coloured Blank Flash Cards - 250 large cards | D80: 1 | G80: 11.33 | H80: 11.33
A81: ECMT14449 | B81: 6 Comprehension Games | D81: 1 | G81: 27.08 | H81: 27.08
A82: EFMT11959 | B82: Magnetic Dry-wipe Boards | D82: 5 | G82: 31.5 | H82: 157.5
A83: ECMT13095 | B83: 6 Super Spelling Rules Board Games | D83: 1 | G83: 33.38 | H83: 33.38
A84: HC1290951 | B84: Contractions Snap | D84: 1 | G84: 15.11 | H84: 15.11
A85: HC1209337 | B85: Reading Comprehension Board Games Level 2 | D85: 1 | G85: 33.38 | H85: 33.38
A86: EBMT12594 | B86: Writing Prompt Cubes - Pack of 6 | D86: 1 | G86: 15.11 | H86: 15.11
A87: EDMT14510 | B87: A2 Writing Frames Pack of 12 | D87: 1 | G87: 40.31 | H87: 40.31
A88: HC1203168 | B88: Sentence Scramblers | D88: 1 | G88: 27.08 | H88: 27.08
A89: EBMT13282 | B89: Story Spinners | D89: 1 | G89: 13.85 | H89: 13.85
A90: EBMT12538 | B90: Word For Word Phonics Game | D90: 1 | G90: 37.79 | H90: 37.79
A91: ECMT10209 | B91: Spelling and Language Board Games Level 3 | D91: 1 | G91: 33.38 | H91: 33.38
A92: EBMT10522 | B92: Charades for Kids | D92: 1 | G92: 18.89 | H92: 18.89
A93: ECMT10208 | B93: Spelling Board Games Level 2 | D93: 1 | G93: 33.38 | H93: 33.38
A94: ECMT14133 | B94: 6 Grammar and Sentences Board Games | D94: 1 | G94: 33.38 | H94: 33.38
A95: EDMT13125 | B95: 7 Questioning Skills Board Games | D95: 1 | G95: 33.38 | H95: 33.38
A96: ECMT13528 | B96: Antonyms, homonyms puzzle | D96: 1 | G96: 65.48 | H96: 65.48
A97: EGMT13774 | B97: 10 minute sentence writing intervention | D97: 2 | G97: 66.77 | H97: 133.54
A98: HC1290748 | B98: magnetic punctuation | C98: 36 | D98: 2 | G98: 18.89 | H98: 37.78
A99: HC1665056 | B99: syllables game | D99: 2 | G99: 27.08 | H99: 54.16
A100: ECMT01242 | B100: synonyms puzzle game | D100: 2 | G100: 23.93 | H100: 47.86
A101: HC1789767 | B101: Talking photograph album | D101: 2 | G101: 56.69 | H101: 113.38
A102: HC1673607 | B102: Dark red banded readers | C102: 20 | D102: 1 | G102: 186.47 | H102: 186.47
A103: HC1673605 | B103: Dark blue banded readers | C103: 20 | D103: 1 | G103: 176.39 | H103: 176.39
A104: HC1673603 | B104: Grey banded readers | C104: 25 | D104: 1 | G104: 219.23 | H104: 219.23
A105: HC1673601 | B105: Brown banded readers | C105: 25 | D105: 1 | G105: 205.37 | H105: 205.37
A106: GEOGRAPHY
A107: HC1003402 | B107: Collins primary Atlas | C107: 1 | D107: 15 | E107: Geography | G107: 11.96 | H107: 179.4
A108: HC1535051 | B108: World and UK desk maps | C108: 30 | D108: 1 | G108: 55.43 | H108: 55.43
A109: HC1664201 | B109: Biomes Kit | C109: 1 | D109: 1 | G109: 42.83 | H109: 42.83
A110: HC1003384 | B110: Rivers photo pack | C110: 1 | D110: 1 | G110: 32.75 | H110: 32.75
A111: HC1003415 | B111: Mountains photo pack | C111: 1 | D111: 1 | G111: 36.53 | H111: =G111*D111 -> 36.53
A112: HC1003416 | B112: Volcanoes photo pack | C112: 1 | D112: 1 | G112: 37.79 | H112: 37.79
A113: HC1003461 | B113: Earthquakes photo pack | C113: 1 | D113: 1 | G113: 37.79 | H113: 37.79
A114: E8R06183 | B114: Water cycle poster | C114: 1 | D114: 1 | G114: 21.41 | H114: 21.41
A115: HC1350657 | B115: Points of the compass poster | C115: 1 | D115: 1 | G115: 16.37 | H115: 16.37
A116: E8A58816 | B116: Mapping compass | C116: 5 | D116: 6 | G116: 12.59 | H116: 75.54
A117: HC48754017 | B117: Mapping skills upper primary | C117: 1 | D117: 1 | G117: 21.41 | H117: 21.41
A118: HC48754004 | B118: Mapping skills lower primary | C118: 1 | D118: 1 | G118: 21.41 | H118: 21.41
A119: HC1206857 | B119: Ordnance survey poster | C119: 1 | D119: 1 | G119: 16.37 | H119: 16.37
A120: HC1604245 | B120: Ordnance survey symbol cards and dice | C120: 1 | D120: 1 | G120: 41.57 | H120: 41.57
A121: HC1488949 | B121: Thinking geography | C121: 20 | D121: 1 | G121: 22.67 | H121: 22.67
A122: HC1360061 | B122: Exploring geography North America | C122: 1 | D122: 1 | G122: 28.97 | H122: 28.97

Sheet SENCO
E1: Basket Total | F1: =SUM(F3:F92) -> 3844.81
A2: Product Code | B2: Product Description | C2: Units of Measure | D2: Quantity | E2: Unit Price | F2: Total Price
A3: SENCO/INCLUSION
A4: Top 3 Books for Teachers
A5: EAMT12586 | B5: Target Ladders: Autistic Spectrum | C5: 1 | D5: 1 | E5: 18.95 | F5: =E5*D5 -> 18.95
A6: EGMT13773 | B6: How to Support Pupils with Autism Spectrum Condition in Primary School | C6: 1 | D6: 1 | E6: 21.95 | F6: =E6*D6 -> 21.95
A7: EDMT14158 | B7: Stories That Explain | C7: 1 | D7: 1 | E7: 15.95 | F7: =E7*D7 -> 15.95
A8: Social Communication & Social Interaction
A9: EDMT14198 | B9: Talking Tower Social Skills | C9: 1 | D9: 2 | E9: 30.95 | F9: =E9*D9 -> 61.9
A10: EBMT11922 | B10: Friendship Formula Game | C10: 1 | D10: 1 | E10: 37.95 | F10: 37.95
A11: EDMT14180 | B11: Roll - Social Skills | C11: 1 | D11: 1 | E11: 21.95 | F11: 21.95
A12: EDMT11389 | B12: Socially Speaking | C12: 1 | D12: 1 | E12: 47.95 | F12: 47.95
A13: EDMT13125 | B13: 7 Questioning Skills Board Games | C13: 1 | D13: 1 | E13: 29.95 | F13: 29.95
A14: EDMT14872 | B14: All About Me Cubes | C14: 3 | D14: 3 | E14: 8.39 | F14: 25.17
A15: HC1004360 | B15: Talking Tubes Exchange Group Pack | C15: 1 | D15: 1 | E15: 59.95 | F15: 59.95
A16: HC1780685 | B16: Emotion Fans | C16: P 5 | D16: 3 | E16: 22.67 | F16: 68.01
A17: HC1004354 | B17: Talking Tubes | C17: 1 | D17: 1 | E17: 21.41 | F17: 21.41
A18: EDMT13122 | B18: Speaking And Listening Games | C18: 1 | D18: 1 | E18: 33.38 | F18: 33.38
A19: EDMT13124 | B19: Language Development Games | C19: 1 | D19: 1 | E19: 33.38 | F19: 33.38
A20: HC1203168 | B20: Sentence Scramblers | C20: 1 | D20: 1 | E20: 27.08 | F20: 27.08
A21: EDMT15141 | B21: Social Skills Stickers | C21: 51 | D21: 10 | E21: 4.52 | F21: 45.2
A22: EDMT14626 | B22: The Waiting Game | C22: 1 | D22: 1 | E22: 41.57 | F22: 41.57
A23: EDMT12534 | B23: Pull Up Your Socks | C23: 1 | D23: 1 | E23: 23.93 | F23: 23.93
A24: EBMT01173 | B24: Time to Talk | C24: 1 | D24: 1 | E24: 50.39 | F24: 50.39
A25: EBMT11732 | B25: 101 Games for Social Skills | C25: 1 | D25: 1 | E25: 30.23 | F25: 30.23
A26: Sensory Processing
A27: EAMT14161 | B27: Target Ladders: Sensory Processing | C27: 1 | D27: 1 | E27: 26.45 | F27: =E27*D27 -> 26.45
A28: EDMT14916 | B28: Light-Up Sensory Ball | C28: 1 | D28: 1 | E28: 119.69 | F28: 119.69
A29: EEMT11364 | B29: Sensory Circuits | C29: 1 | D29: 1 | E29: 27.71 | F29: 27.71
A30: CP00051180 | B30: Infinity Mirror | C30: 1 | D30: 1 | E30: 21.41 | F30: 21.41
A31: EWMT14020 | B31: Sensory Shuffle | C31: 50 | D31: 2 | E31: 20.15 | F31: 40.3
A32: HC1000723 | B32: 6 Social Skills Board Games | C32: 1 | D32: 1 | E32: 34.64 | F32: 34.64
A33: EWMT14632 | B33: Sensory Circuit Circles | C33: 18 | D33: 1 | E33: 79.37 | F33: 79.37
A34: EVMT13783 | B34: How to Support Children with Sensory Processing Needs | C34: 1 | D34: 1 | E34: 25.19 | F34: 25.19
A35: EVMT13783 | B35: Sensory Bean Cushion | C35: 1 | D35: 3 | E35: 25.19 | F35: 75.57
A36: EWMT14586 | B36: Mini Dark Den | C36: 1 | D36: 1 | E36: 46.61 | F36: 46.61
A37: HC1780529 | B37: Ernest and I | C37: EA | D37: 1 | E37: 18.89 | F37: 18.89
A38: HC1571123 | B38: Teaching Touchables Tactile Squares | C38: 10 pairs | D38: 2 | E38: 35.27 | F38: 70.54
A39: EDMT14878 | B39: Smell Pots | C39: 10 | D39: 3 | E39: 8.18 | F39: 24.54
A40: Information Processing
A41: EAMT14635 | B41: Workstation set | C41: Set | D41: 3 | E41: 56.69 | F41: =E41*D41 -> 170.07
A42: EGMT14182 | B42: Magnetic Timetable EYFS | C42: Set | D42: 4 | E42: 31.49 | F42: =E42*D42 -> 125.96
A43: EDMT14627 | B43: Visual Timetable Pencil Case | C43: 1 | D43: 4 | E43: 11.33 | F43: =E43*D43 -> 45.32
A44: HC1770178 | B44: Sand Timer Class Pack 20 | C44: 7 | D44: 1 | E44: 36.28 | F44: =E44*D44 -> 36.28
A45: ECMT14852 | B45: Go Bananas | C45: 1 | D45: 1 | E45: 20.15 | F45: =E45*D45 -> 20.15
A46: Behaviour Support
A47: EAMT12587 | B47: Target Ladders: Behavioural, Emotional and Social Difficulties | C47: 1 | D47: 1 | E47: 26.45 | F47: =E47*D47 -> 26.45
A48: EDMT14650 | B48: Birds Behaving Badly set of 6 books | C48: 6 | D48: 1 | E48: 56.65 | F48: 56.65
A49: HC1000725 | B49: Feelings And Emotions Cards | C49: 1 | D49: 1 | E49: 32.75 | F49: 32.75
A50: EDMT14923 | B50: Sensory Spiral Liquid Tubes Set | C50: 3 | D50: 2 | E50: 30.23 | F50: 60.46
A51: CP00050195 | B51: Sensory Fidget Kit | C51: Set | D51: 1 | E51: 34.01 | F51: 34.01
A52: EDMT10192 | B52: Movin’ Sit Cushions - Junior | C52: 1 | D52: 2 | E52: 42.83 | F52: 85.66
A53: CP00051617 | B53: Ear Defenders | C53: 1 | D53: 5 | E53: 16.37 | F53: 81.85
A54: EDMT10231 | B54: Weighted Lap Pad | C54: 1 | D54: 2 | E54: 47.87 | F54: 95.74
A55: EDMT10222 | B55: Weighted Cat Wrap | C55: 1 | D55: 1 | E55: 44.09 | F55: 44.09
A56: HC1808330 | B56: Buddi Fidget Toy | C56: EA | D56: 5 | E56: 7.55 | F56: 37.75
A57: CP00050139 | B57: Rainbow Push Pop | C57: 1 | D57: 4 | E57: 5.03 | F57: 20.12
A58: EDMT14538 | B58: Twist & Lock Blocks | C58: Pack | D58: 10 | E58: 5.66 | F58: 56.6
A59: EDMT11637 | B59: Fidget Triangle | C59: 1 | D59: 8 | E59: 7.55 | F59: 60.4
A60: EDMT14637 | B60: Emotion Fans | C60: 5 | D60: 2 | E60: 22.67 | F60: 45.34
A61: EGMT13315 | B61: Emotion Stones | C61: 1 | D61: 1 | E61: 28.34 | F61: 28.34
A62: EBMT10697 | B62: Abilitations Chewelery Bracelet - Pack of 7 | C62: 7 | D62: 1 | E62: 59.21 | F62: 59.21
A63: HC1869024 | B63: Bangles (Pack of 2) | C63: 2 | D63: 2 | E63: 13.85 | F63: 27.7
A64: EBMT14163 | B64: Emotion Commotion | C64: Pack | D64: 2 | E64: 21.41 | F64: 42.82
A65: EGMT14492 | B65: Emotion Cubes | C65: 4 | D65: 2 | E65: 13.85 | F65: 27.7
A66: EGMT14203 | B66: Calming Coins | C66: Set | D66: 1 | E66: 37.79 | F66: 37.79
A67: EDMT14856 | B67: How I Feel Wheels | C67: 5 | D67: 3 | E67: 22.67 | F67: 68.01
A68: EDMT14197 | B68: Talking Tower Self Esteem | C68: 1 | D68: 1 | E68: 44.09 | F68: 44.09
A69: HC1868351 | B69: Balance Pad | C69: 1 | D69: 1 | E69: 21.41 | F69: 21.41
A70: EDMT14911 | B70: Therapy Putty | C70: 4 | D70: 2 | E70: 25.19 | F70: 50.38
A71: Reading/Writing Support
A72: HC1005408 | B72: ACE Spelling Dictionary | C72: EA | D72: 5 | E72: 18.89 | F72: =E72*D72 -> 94.45
A73: ECMT00564 | B73: Reading Window | C73: 10 | D73: 3 | E73: 15.11 | F73: 45.33
A74: HC1005343 | B74: Coloured Reading Overlays Pk10 | C74: 10 | D74: 3 | E74: 15.11 | F74: 45.33
A75: ECMT10170 | B75: Coloured Reading Overlays Pk10 | C75: 10 | D75: 1 | E75: 15.11 | F75: 15.11
A76: HC1701719 | B76: Pencil grips | C76: 10 | D76: 5 | E76: 6.29 | F76: 31.45
A77: EDMT14870 | B77: Gross Motor Skills Cube | C77: 2 | D77: 3 | E77: 11.33 | F77: 33.99
A78: General Use
A79: HC1815193 | B79: Classmates Easy Grip Scissors - Right Handed | C79: 1 | D79: 10 | E79: 7.55 | F79: =E79*D79 -> 75.5
A80: HC1815197 | B80: Classmates Dual Control Scissors - Right Handed | C80: 1 | D80: 12 | E80: 3.77 | F80: 45.24
A81: HC1815195 | B81: Classmates Easy Grip Scissors - Left Handed | C81: EA | D81: 3 | E81: 7.55 | F81: 22.65
A82: EDMT14147 | B82: Tangle Set 3 | C82: 3 | D82: 1 | E82: 21.41 | F82: 21.41
A83: HC1579350 | B83: Hear Myself Sound Phone | C83: 1 | D83: 5 | E83: 13.85 | F83: 69.25
A84: HC1570424 | B84: Soundbank Plus-mirror Pack | C84: 1 | D84: 10 | E84: 16.37 | F84: 163.7
A85: EWMT12707 | B85: Tactile Ball Pack | C85: 1 | D85: 1 | E85: 56.69 | F85: 56.69
A86: EFMT13219 | B86: Smart Chute | C86: 1 | D86: 1 | E86: 23.93 | F86: 23.93
A87: HC1004204 | B87: Sandpaper Letters Cursive | C87: 28 | D87: 2 | E87: 21.41 | F87: 42.82
A88: HC1588154 | B88: Handwriting Board | C88: 30 | D88: 1 | E88: 52.91 | F88: 52.91
A89: HC118189 | B89: Gonge Stepping Stones | C89: 1 | D89: 1 | E89: 64.25 | F89: 64.25
A90: HC1691844 | B90: CM Easy Grip Triangular Pencils P72 | C90: 72 | D90: 1 | E90: 17.63 | F90: 17.63
A91: HC342842 | B91: Easy Grip Tweezers PK12 | C91: 12 | D91: 1 | E91: 18.26 | F91: 18.26
A92: HC1247348 | B92: CM Rigid Lapboard A4 Plain Mag P10 | C92: 10 | D92: 1 | E92: 34.65 | F92: 34.65

Sheet Languages
E1: Basket Total | F1: =SUM(F3:F37) -> 2477.53
A2: Product Code | B2: Product Description | C2: Units of Measure | D2: Quantity | E2: Unit Price | F2: Total Price
A3: Languages
A4: EYFS French
A5: HC1685173 | B5: French Dice Cards - Colour-Number | C5: EA | D5: 1 | E5: 12.59 | F5: =D5*E5 -> 12.59
A6: HC1422688 | B6: Mr. Face | C6: EA | D6: 1 | E6: 32.75 | F6: =D6*E6 -> 32.75
A7: HC1571229 | B7: Food Bag French | C7: EA | D7: 1 | E7: 62.99 | F7: 62.99
A8: HE336771 | B8: Kids French songs CD | C8: 1 | D8: 1 | E8: 7.97 | F8: 7.97
A9: KS1 French
A10: HC336628 | B10: Key Stage 1 French Treasure Chest | C10: EA | D10: 1 | E10: 277.19 | F10: 277.19
A11: HC1608423 | B11: French KS1 Chartlets | C11: P 6 | D11: 1 | E11: 26.45 | F11: 26.45
A12: KS2 French
A13: HC336654 | B13: La Jolie Ronde French Schemes of Work - Years 3 & 4 | C13: PK | D13: 1 | E13: 296.09 | F13: 296.09
A14: HE1224347 | B14: La Jolie Ronde scheme of work yr 5/6 | C14: 1 | D14: 1 | E14: 194.95 | F14: 194.95
A15: HC1687651 | B15: French Dice Cards - Pack of 8 | C15: P 8 | D15: 1 | E15: 84.32 | F15: 84.32
A16: HC1002127 | B16: French Dictionary for Beginners | C16: EA | D16: 3 | E16: 12.59 | F16: 37.77
A17: HC1537067 | B17: French To the Shops Game | C17: EA | D17: 1 | E17: 16.37 | F17: 16.37
A18: HE189689 | B18: French KS2 chartlets | C18: pack of 6 | D18: 1 | E18: 21.25 | F18: 21.25
A19: HC1571229 | B19: Food Bag French | C19: EA | D19: 1 | E19: 62.99 | F19: 62.99
A20: HC1002057 | B20: Mon Calendrier | C20: EA | D20: 1 | E20: 51.65 | F20: 51.65
A21: HC1002080 | B21: French Family Tree | C21: EA | D21: 1 | E21: 61.73 | F21: 61.73
A22: HC1436617 | B22: French Number Beanbags | C22: P20 | D22: 1 | E22: 25.19 | F22: 25.19
A23: EYFS Spanish
A24: HC1002295 | B24: Make a Face Puppets - Spanish | C24: EA | D24: 1 | E24: 39.05 | F24: 39.05
A25: HC1571231 | B25: Food Bag Spanish | C25: EA | D25: 1 | E25: 62.99 | F25: 62.99
A26: HE1002105 | B26: Singing Spanish CD and book | C26: 1 | D26: 1 | E26: 20.99 | F26: 20.99
A27: KS1 Spanish
A28: HC336797 | B28: Spanish Treasure Chest | C28: EA | D28: 1 | E28: 277.19 | F28: 277.19
A29: KS2 Spanish
A30: HC1224294 | B30: La Jolie Ronde Spanish Schemes of Work - Years 5 & 6 | C30: EA | D30: 1 | E30: 296.09 | F30: 296.09
A31: HC336888 | B31: La Jolie Ronde Spanish Schemes of Work - Years 3 & 4 | C31: PK | D31: 1 | E31: 296.09 | F31: 296.09
A32: HC1361172 | B32: Animal Snap Spanish | C32: EA | D32: 1 | E32: 12.59 | F32: 12.59
A33: HC1002099 | B33: Spanish Dictionary for Beginners | C33: EA | D33: 1 | E33: 12.59 | F33: 12.59
A34: HC1537115 | B34: Spanish to the Shops Game | C34: EA | D34: 1 | E34: 15.11 | F34: 15.11
A35: HC1571231 | B35: Food Bag Spanish | C35: EA | D35: 1 | E35: 62.99 | F35: 62.99
A36: HC1002050 | B36: Spanish Calendar | C36: EA | D36: 1 | E36: 51.65 | F36: 51.65
A37: HC1002292 | B37: My Body - Spanish | C37: EA | D37: 1 | E37: 57.95 | F37: 57.95

Sheet Primary Science
F1: Basket Total | G1: =SUM(G3:G179) -> 15823.12
A2: Product Code | B2: Product Description | C2: Units of Measure | D2: Quantity | E2: Curriculum Area | F2: Unit Price | G2: Total Price
A3: Science
A4: HC1554686 | B4: Mr Tree | C4: 1 | D4: 1 | E4: Seasonal Changes | F4: 60.47 | G4: =D4*F4 -> 60.47
A5: HC1798425 | B5: Seasonal Change Mat | C5: 1 | D5: 1 | E5: Seasonal Changes | F5: 120.32 | G5: 120.32
A6: HC1006790 | B6: Weather Vane | C6: EA | D6: 2 | E6: Seasonal Changes | F6: 17.5 | G6: 35
A7: HC193797 | B7: Weather Kit | C7: 1 | D7: 1 | E7: Seasonal Changes | F7: 170.09 | G7: 170.09
A8: CP00052221 | B8: Rain Gauge - Component Only | C8: EA | D8: 2 | E8: Seasonal Changes | F8: 15.74 | G8: 31.48
A9: HC1002915 | B9: Foldaway Flower | D9: 1 | E9: Plants | F9: 30.48 | G9: =D9*F9 -> 30.48
A10: E8R05674 | B10: See-Through Compost Containers | D10: 1 | E10: Plants | F10: 69.29 | G10: =D10*F10 -> 69.29
A11: CP00053351 | B11: Sunflower Seeds | C11: PK | D11: 5 | E11: Plants | F11: 16.37 | G11: =D11*F11 -> 81.85
A12: E8A63575 | B12: Plant Pots - 75mm | D12: 10 | E12: Plants | F12: 3.97 | G12: =D12*F12 -> 39.7
A13: CP00053350 | B13: Cress Seeds | C13: PK | D13: 5 | E13: Plants | F13: 16.37 | G13: =F13*D13 -> 81.85
A14: HC1545253 | B14: Parts of Plant and Tree Poster | D14: 1 | E14: Plants | F14: 16.37 | G14: 16.37
A15: HC375329 | B15: Big Flower | D15: 1 | E15: Plants | F15: 62.36 | G15: 62.36
A16: E8R05980 | B16: Period of Gestation | D16: 1 | E16: Plants | F16: 180.68 | G16: 180.68
A17: E8R05596 | B17: Pollination and Fertilisation Model | D17: 1 | E17: Plants | F17: 259.5 | G17: 259.5
A18: HC1002916 | B18: Plant In A Pocket | D18: 1 | E18: Plants | F18: 37.79 | G18: 37.79
A19: E8R08147 | B19: Classifying Plants poster | D19: 1 | E19: Plants | F19: 15.11 | G19: 15.11
A20: E8A23989 | B20: Giant Flower Model | D20: 1 | E20: Plants | F20: 108.61 | G20: 108.61
A21: E8R08148 | B21: Plants Posters | D21: 1 | E21: Plants | F21: 19.03 | G21: 19.03
A22: E8R06632 | B22: Plant Cells Poster | D22: 1 | E22: Plants | F22: 15.06 | G22: 15.06
A23: E8R05603 | B23: Seeds Pack | D23: 1 | E23: Plants | F23: 25.14 | G23: 25.14
A24: HC1660039 | B24: Flowers and Trees - Posters | C24: 3 | D24: 1 | E24: Plants | F24: 44.09 | G24: 44.09
A25: CP00050124 | B25: Bio Degradable Paper Pot Maker | C25: 1 | D25: 1 | E25: Plants | F25: 16.37 | G25: 16.37
A26: HC1671939 | B26: Body Organs Mat | C26: 1 | D26: 1 | E26: Animals inc. Humans/Living Things and their Habitats | F26: 90.71 | G26: 90.71
A27: HC1665129 | B27: Giant Teeth Dental Kit | C27: Set | D27: 1 | E27: Animals inc. Humans/Living Things and their Habitats | F27: 68.03 | G27: 68.03
A28: HC1003026 | B28: Human Skeleton: True To Life | C28: Set | D28: 1 | E28: Animals inc. Humans/Living Things and their Habitats | F28: 51.52 | G28: 51.52
A29: E8A39081 | B29: Organ Tunic | C29: 1 | D29: 1 | E29: Animals inc. Humans/Living Things and their Habitats | F29: 118.93 | G29: 118.93
A30: HC1675058 | B30: Table Top Digestive Mat | C30: 1 | D30: 1 | E30: Animals inc. Humans/Living Things and their Habitats | F30: 30.23 | G30: 30.23
A31: E8R09422 | B31: Fingertip Pulse Oximeter | C31: 1 | D31: 1 | E31: Animals inc. Humans/Living Things and their Habitats | F31: 38.54 | G31: 38.54
A32: HC1867987 | B32: Animal Characteristics Classification Mat | D32: 1 | E32: Animals inc. Humans/Living Things and their Habitats | F32: 43.46 | G32: =D32*F32 -> 43.46
A33: E8R07773 | B33: Animals - Augmented Reality | D33: 1 | E33: Animals inc. Humans/Living Things and their Habitats | F33: 12.59 | G33: =D33*F33 -> 12.59
A34: E8R08132 | B34: Mini Beasts Butterfly Life Cycle | D34: 1 | E34: Animals inc. Humans/Living Things and their Habitats | F34: 47.36 | G34: =F34*D34 -> 47.36
A35: E8R08133 | B35: Mini Beasts Frog Life Cycle | D35: 1 | E35: Animals inc. Humans/Living Things and their Habitats | F35: 50.14 | G35: =F35*D35 -> 50.14
A36: E8R03265 | B36: Human Torso Model 11 Parts | D36: 2 | E36: Animals inc. Humans/Living Things and their Habitats | F36: 76.85 | G36: =F36*D36 -> 153.7
A37: E8H34974 | B37: 3D Pumping Heart | D37: 1 | E37: Animals inc. Humans/Living Things and their Habitats | F37: 17.63 | G37: =F37*D37 -> 17.63
A38: E8R06576 | B38: Dissection Value Bundle | D38: 2 | E38: Animals inc. Humans/Living Things and their Habitats | F38: 61.55 | G38: =F38*D38 -> 123.1
A39: HC1302658 | B39: What's Inside Animals | D39: 1 | E39: Animals inc. Humans/Living Things and their Habitats | F39: 45.35 | G39: =D39*F39 -> 45.35
A40: HC1867989 | B40: Habitats Classification Mat | D40: 1 | E40: Animals inc. Humans/Living Things and their Habitats | F40: 43.46 | G40: 43.46
A41: HC1482178 | B41: Animal Habitats Game | D41: 1 | E41: Animals inc. Humans/Living Things and their Habitats | F41: 31.49 | G41: 31.49
A42: HC1550188 | B42: Giant Magnetic Frog Life Cycle | D42: 1 | E42: Animals inc. Humans/Living Things and their Habitats | F42: 23.93 | G42: 23.93
A43: HC1671935 | B43: Life Cycle Bird Add On | D43: 1 | E43: Animals inc. Humans/Living Things and their Habitats | F43: 8.81 | G43: 8.81
A44: HC1671933 | B44: Life Cycle Fish Add On | D44: 1 | E44: Animals inc. Humans/Living Things and their Habitats | F44: 8.18 | G44: 8.18
A45: CP00052311 | B45: Eatwell Guide Floor Mat Bundle | C45: EA | D45: 2 | E45: Animals inc. Humans/Living Things and their Habitats | F45: 28.97 | G45: =F45*D45 -> 57.94
A46: E8F60303 | B46: Dental Care Model | D46: 1 | E46: Animals inc. Humans/Living Things and their Habitats | F46: 34.39 | G46: 34.39
A47: E8A24995 | B47: Economy Pooter Plastic | D47: 20 | E47: Animals inc. Humans/Living Things and their Habitats | F47: 4.4 | G47: 88
A48: HC190430 | B48: Bag of Bones | D48: 1 | E48: Animals inc. Humans/Living Things and their Habitats | F48: 118.43 | G48: 118.43
A49: HC1550192 | B49: Skeleton Foam Floor Puzzle | D49: 2 | E49: Animals inc. Humans/Living Things and their Habitats | F49: 49.13 | G49: 98.26
A50: E8R06633 | B50: Animal Cells Poster | D50: 1 | E50: Animals inc. Humans/Living Things and their Habitats | F50: 15.06 | G50: 15.06
A51: E8R07275 | B51: Cell Structures Poster | D51: 1 | E51: Animals inc. Humans/Living Things and their Habitats | F51: 12.79 | G51: 12.79
A52: HC1003023 | B52: Plastic Skeleton - Full Size | D52: 1 | E52: Animals inc. Humans/Living Things and their Habitats | F52: 453.59 | G52: 453.59
A53: HC1621083 | B53: Laminated Body Organ Posters | D53: 1 | E53: Animals inc. Humans/Living Things and their Habitats | F53: 46.61 | G53: 46.61
A54: E8A22869 | B54: Half Size Skeleton | D54: 1 | E54: Animals inc. Humans/Living Things and their Habitats | F54: 83.15 | G54: 83.15
A55: E8R02098 | B55: Human Skeleton With Stand | D55: 1 | E55: Animals inc. Humans/Living Things and their Habitats | F55: 349.65 | G55: 349.65
A56: HC1665127 | B56: Mini Skeleton | D56: 12 | E56: Animals inc. Humans/Living Things and their Habitats | F56: 23.3 | G56: 279.6
A57: HC1866996 | B57: Butterfly Lifecycle Sequencing Set by Hope Education | C57: 1 | D57: 1 | E57: Animals inc. Humans/Living Things and their Habitats | F57: 31.11 | G57: 31.11
A58: HC1215051 | B58: Bugnoculars | C58: 1 | D58: 15 | E58: Animals inc. Humans/Living Things and their Habitats | F58: 11.83 | G58: 177.45
A59: HC1579100 | B59: Aquascope | C59: 1 | D59: 6 | E59: Animals inc. Humans/Living Things and their Habitats | F59: 31.11 | G59: 186.66
A60: E8R08134 | B60: Insects And Spiders : Real Life Specimens | C60: 1 | D60: 1 | E60: Animals inc. Humans/Living Things and their Habitats | F60: 50.14 | G60: 50.14
A61: HC1867991 | B61: Food Chain and Classification Key Mat by Hope Education | C61: 1 | D61: 1 | E61: Animals inc. Humans/Living Things and their Habitats | F61: 43.21 | G61: 43.21
A62: CP00050778 | B62: Nature Detective Set - 25 items | C62: 25 | D62: 1 | E62: Animals inc. Humans/Living Things and their Habitats | F62: 277.19 | G62: 277.19
A63: CP00050777 | B63: Plant and Bug Hunting Kit - 24 items | C63: 24 | D63: 1 | E63: Animals inc. Humans/Living Things and their Habitats | F63: 264.59 | G63: 264.59
A64: HC326943 | B64: Water Cycle Pack - English Version | D64: 1 | E64: Materials | F64: 73.07 | G64: 73.07
A65: HC1003149 | B65: Magnetic Materials Testing Kit | D65: 5 | E65: Materials | F65: 46.61 | G65: 233.05
A66: HC1003282 | B66: Characteristics of Materials Kit | D66: 2 | E66: Materials | F66: 62.99 | G66: 125.98
A67: E8R09409 | B67: Material's Poster | D67: 1 | E67: Materials | F67: 44.09 | G67: =D67*F67 -> 44.09
A68: E8H26266 | B68: Materials Collection Kit | D68: 5 | E68: Materials | F68: 26.4 | G68: =D68*F68 -> 132
A69: E8R07276 | B69: Separating Mixtures Poster | D69: 2 | E69: Materials | F69: 12.79 | G69: =F69*D69 -> 25.58
A70: HC1002815 | B70: Dissolving and Changes Kit | C70: 1 | D70: 1 | E70: Materials | F70: 64.25 | G70: 64.25
A71: HC103216 | B71: Investigating Textures Pack | C71: 1 | D71: 1 | E71: Materials | F71: 36.15 | G71: 36.15
A72: HC192406 | B72: Chromatography Kit | C72: 1 | D72: 1 | E72: Materials | F72: 113.01 | G72: 113.01
A73: HC192471 | B73: Properties of Materials Science Kit | C73: 1 | D73: 1 | E73: Materials | F73: 258.29 | G73: 258.29
A74: E8A47193 | B74: Coloured Floating Ring Magnets - Pack of 5 | D74: 3 | E74: Forces | F74: 36.91 | G74: 110.73
A75: HC1002812 | B75: Forces and Energy Kit | D75: 1 | E75: Forces | F75: 239.39 | G75: 239.39
A76: E8R08007 | B76: Ramp Set | D76: 2 | E76: Forces | F76: 162.48 | G76: 324.96
A77: HC398769 | B77: The Ramp Surfaces Pack - Pack of 5 | D77: 2 | E77: Forces | F77: 64.25 | G77: 128.5
A78: HC1002892 | B78: Magnetic Attraction Kit | C78: 1 | D78: 1 | E78: Forces | F78: 25.57 | G78: 25.57
A79: HC1003318 | B79: Magnetic Wands - Pack of 6 | C79: 6 | D79: 1 | E79: Forces | F79: 16.37 | G79: 16.37
A80: E8R08109 | B80: Friction Feet - Pack of 5 Pack of five | C80: 5 | D80: 1 | E80: Forces | F80: 44.47 | G80: 44.47
A81: E8R06825 | B81: Magnetic Filings in Plastic Tube | C81: 1 | D81: 1 | E81: Forces | F81: 27.08 | G81: 27.08
A82: E8R09433 | B82: Simple Machines: Block and Tackle | C82: 1 | D82: 1 | E82: Forces | F82: 29.6 | G82: 29.6
A83: E8R09429 | B83: Simple Machines: Fulcrum Balance | C83: 1 | D83: 1 | E83: Forces | F83: 29.22 | G83: 29.22
A84: E8R09427 | B84: Simple Machines: Gear | C84: 1 | D84: 1 | E84: Forces | F84: 31.49 | G84: 31.49
A85: E8R09424 | B85: Simple Machines: Gear Train | C85: 1 | D85: 1 | E85: Forces | F85: 41.57 | G85: 41.57
A86: E8R09423 | B86: Simple Machines: Inclined Plane | C86: 1 | D86: 1 | E86: Forces | F86: 47.87 | G86: 47.87
A87: E8R09430 | B87: Simple Machines: Lever | C87: 1 | D87: 1 | E87: Forces | F87: 29.6 | G87: 29.6
A88: E8R09426 | B88: Simple Machines: Pendulum | C88: 1 | D88: 1 | E88: Forces | F88: 29.6 | G88: 29.6
A89: E8R09431 | B89: Simple Machines: Wheel and Axle | C89: 1 | D89: 1 | E89: Forces | F89: 28.97 | G89: 28.97
A90: HC192913 | B90: The Ramp™ Vehicle and Wheels Pack | C90: 1 | D90: 1 | E90: Forces | F90: 42.32 | G90: 42.32
A91: HC1810657 | B91: Sun Earth & Moon Orbitor Model with LED | D91: 1 | E91: Earth and Space | F91: 106.84 | G91: 106.84
A92: E8R09414 | B92: Solar System | D92: 1 | E92: Earth and Space | F92: 60.47 | G92: 60.47
A93: HC1003151 | B93: Giant Magnetic Solar System | D93: 1 | E93: Earth and Space | F93: 29.47 | G93: 29.47
A94: CP00053389 | B94: Space Torch And Projector | C94: EA | D94: 6 | E94: Earth and Space | F94: 8.81 | G94: 52.86
A95: HC1003057 | B95: Basic Rock Set | D95: 3 | E95: Rocks | F95: 50.39 | G95: 151.17
A96: CP00053475 | B96: Complete Rock Collection | C96: EA | D96: 2 | E96: Rocks | F96: 80.63 | G96: 161.26
A97: E8R05671 | B97: Class Fossil Pack | C97: 1 | D97: 1 | E97: Rocks | F97: 72.44 | G97: =F97*D97 -> 72.44
A98: HC88202314 | B98: Circuit Card Kit | C98: 1 | D98: 1 | E98: Electricity | F98: 54.17 | G98: 54.17
A99: HC1621079 | B99: Laminated Electricity Posters - Pack of 2 Pack of two | C99: 2 | D99: 1 | E99: Electricity | F99: 23.93 | G99: 23.93
A100: E8C62997 | B100: BEK: Pack of Work Cards For Elementary Electricity Kit | C100: 1 | D100: 1 | E100: Electricity | F100: 22.81 | G100: 22.81
A101: CP051968 | B101: Key Stage 2 BeK Kit - 30 Students | C101: EA | D101: 1 | E101: Electricity | F101: 629.99 | G101: 629.99
A102: HC1003123 | B102: BEK Bulb Holder | C102: EA | D102: 20 | E102: Electricity | F102: 3.72 | G102: 74.4
A103: E8H30798 | B103: BEK Push Switch | D103: 20 | E103: Electricity | F103: 7.94 | G103: 158.8
A104: E8H30944 | B104: BEK Motor | D104: 20 | E104: Electricity | F104: 8.19 | G104: 163.8
A105: E8H30749 | B105: BEK Buzzer | D105: 20 | E105: Electricity | F105: 6.93 | G105: 138.6
A106: E8R07817 | B106: BEK Voltmeter | D106: 10 | E106: Electricity | F106: 18.84 | G106: 188.4
A107: E8R07818 | B107: BEK Ammeter | D107: 10 | E107: Electricity | F107: 18.84 | G107: 188.4
A108: E8R05627 | B108: BEK Red LED | D108: 20 | E108: Electricity | F108: 3.72 | G108: 74.4
A109: E8R05628 | B109: BEK Green LED | D109: 20 | E109: Electricity | F109: 3.65 | G109: 73
A110: E8A47314 | B110: Set of Metal Strips | D110: 3 | E110: Electricity | F110: 9.64 | G110: 28.92
A111: E8R07385 | B111: BEK White LED 30mA Max | D111: 20 | E111: Electricity | F111: 3.34 | G111: 66.8
A112: E8L19161 | B112: Metal Disc Set | D112: 3 | E112: Electricity | F112: 12.47 | G112: 37.41
A113: E8R07396 | B113: BEK Reed Switch. | D113: 10 | E113: Electricity | F113: 3.97 | G113: 39.7
A114: E8A56728 | B114: Flashlamp Bulbs - Round M.E.S 2.5V 0.3A - Pack of 10 | D114: 20 | E114: Electricity | F114: 8.06 | G114: 161.2
A115: E8R06762 | B115: Stackable Leads - 250mm Black - Pack of 50 | D115: 4 | E115: Electricity | F115: 46.62 | G115: 186.48
A116: E8R06763 | B116: Stackable Leads - 250mm Red - Pack of 50 | D116: 4 | E116: Electricity | F116: 46.62 | G116: 186.48
A117: E8R01323 | B117: BEK Cell Holder | D117: 20 | E117: Electricity | F117: 3.72 | G117: 74.4
A118: E8R07069 | B118: Sound Investigation Kit | C118: 1 | D118: 1 | E118: Sound | F118: 226.79 | G118: 226.79
A119: E8R07070 | B119: Changing Sounds Kit | C119: 1 | D119: 1 | E119: Sound | F119: 69.29 | G119: 69.29
A120: E8R06173 | B120: Sound Level Meter | C120: 1 | D120: 1 | E120: Sound | F120: 123.47 | G120: 123.47
A121: EGMT14003 | B121: Boomwhackers - Pack of 25 | D121: 1 | E121: Sound | F121: 155.6 | G121: 155.6
A122: E8R09504 | B122: Rechargeable Rainbow Torches, brought to you by Hope Education | C122: 6 | D122: 5 | E122: Light | F122: 97.01 | G122: 485.05
A123: HC192796 | B123: Light and Shadows Kit | C123: 1 | D123: 1 | E123: Light | F123: 69.29 | G123: 69.29
A124: HC1003072 | B124: Colour Mixing Glasses | C124: 1 | D124: 6 | E124: Light | F124: 9.19 | G124: 55.14
A125: E8R06817 | B125: Unbreakable Mirrors - 90mm x 65mm | C125: 10 | D125: 3 | E125: Light | F125: 8.18 | G125: 24.54
A126: E8R07806 | B126: RayZer Lightbox | D126: 1 | E126: Light | F126: 118.44 | G126: 118.44
A127: EGMT14011 | B127: Colour Paddles | D127: 3 | E127: Light | F127: 18.26 | G127: 54.78
A128: E8A45615 | B128: Clear Glass Prism - 35 x 25mm | D128: 12 | E128: Light | F128: 5.23 | G128: =F128*D128 -> 62.76
A129: E8R06342 | B129: Ray Optics Box | D129: 5 | E129: Light | F129: 21.36 | G129: 106.8
A130: E8L26955 | B130: Spare Slit Plates - Pack of 5 | D130: 5 | E130: Light | F130: 6.55 | G130: 32.75
A131: E8R07378 | B131: Periscope Kit | D131: 2 | E131: Light | F131: 29.11 | G131: 58.22
A132: HC194213 | B132: Jumbo Magnifiers | D132: 3 | E132: Science Equipment | F132: 23.68 | G132: =D132*F132 -> 71.04
A133: HC1775638 | B133: Metal Sieve Set | D133: 6 | E133: Science Equipment | F133: 12.59 | G133: =F133*D133 -> 75.54
A134: CP00053172 | B134: Amber Glass Reagent Bottle250ml P10 | C134: PK | D134: 5 | E134: Science Equipment | F134: 47.82 | G134: 239.1
A135: E8R04450 | B135: Azlon Dispensing Bottle - 30mL - 32mm | D135: 20 | E135: Science Equipment | F135: 1.39 | G135: 27.8
A136: CP053402AB | B136: Initial Lab Thermometer 150mm P10 | C136: PK | D136: 5 | E136: Science Equipment | F136: 18.14 | G136: 90.7
A137: E8R06662 | B137: 150cm Tapes | D137: 10 | E137: Science Equipment | F137: 7.81 | G137: 78.1
A138: E8A55347 | B138: Bench Mats 230 x 230mm - Pack of 10 | D138: 3 | E138: Science Equipment | F138: 14.55 | G138: 43.65
A139: CP00052989 | B139: Plastic Bags Gripseal - 90 x 115mm - Pac | C139: PK | D139: 10 | E139: Science Equipment | F139: 1.51 | G139: =F139*D139 -> 15.1
A140: CP053402AC | B140: Initial Lab Thermometer 300mm P10 | C140: 3 | D140: 5 | E140: Science Equipment | F140: 18.65 | G140: 93.25
A141: E8A74068 | B141: Tape Measure - 20m | D141: 6 | E141: Science Equipment | F141: 12.98 | G141: 77.88
A142: HC1674785 | B142: Junior Wraparound Safety Glasses | C142: EA | D142: 10 | E142: Science Equipment | F142: 5.8 | G142: 58
A143: HC1361520 | B143: Simple Stopwatch - Pack of 6 | C143: P 6 | D143: 3 | E143: Science Equipment | F143: 71.74 | G143: 215.22
A144: E8R07266 | B144: Disposable Pipettes - 1ml | D144: 2 | E144: Science Equipment | F144: 12.47 | G144: 24.94
A145: E8R06033 | B145: Magnifier Set | D145: 4 | E145: Science Equipment | F145: 54.17 | G145: 216.68
A146: E8L10960 | B146: Simax® Borosilicate Beakers Squat Form with Spout - 400mL | D146: 5 | E146: Science Equipment | F146: 24.56 | G146: 122.8
A147: CP053484AF | B147: Simax Glass Beaker Squat Form 100ml P10 | C147: PK | D147: 5 | E147: Science Equipment | F147: 11.78 | G147: 58.9
A148: CP053484AE | B148: Simax Glass Beaker Squat Form 1000ml P10 | C148: PK | D148: 5 | E148: Science Equipment | F148: 40.26 | G148: 201.3
A149: E8A88699 | B149: Collecting Trays - L310 x W240 x D20mm | D149: 20 | E149: Science Equipment | F149: 6.99 | G149: 139.8
A150: HC1006771 | B150: Frame Quadrat | C150: EA | D150: 4 | E150: Science Equipment | F150: 18.84 | G150: 75.36
A151: E8R08166 | B151: Cylinders | D151: 5 | E151: Science Equipment | F151: 22.62 | G151: 113.1
A152: EAMT12101 | B152: 1 Minute Classroom Sand Timer | D152: 1 | E152: Science Equipment | F152: 12.59 | G152: 12.59
A153: EAMT10183 | B153: 3 Minute Classroom Sand Timer | D153: 1 | E153: Science Equipment | F153: 12.59 | G153: 12.59
A154: EAMT12102 | B154: 10 Minute Classroom Sand Timer | D154: 1 | E154: Science Equipment | F154: 12.59 | G154: 12.59
A155: HC1757797 | B155: Trundle Wheel with Counter | C155: EA | D155: 5 | E155: Science Equipment | F155: 23.3 | G155: 116.5
A156: E8H00277 | B156: HSE First Aid Kit | D156: 2 | E156: Science Equipment | F156: 25.19 | G156: 50.38
A157: E8R06318 | B157: 2AA Soft Touch Torch | D157: 12 | E157: Science Equipment | F157: 3.65 | G157: 43.8
A158: HC1694642 | B158: Classmates Rubber Bands 454g 152x6mm (Warning: May Contain Natural Rubber Latex) | D158: 1 | E158: Science Equipment | F158: 6.29 | G158: 6.29
A159: E8A85789 | B159: Steel Test Tube Holder - Accepts tubes up to 40mm diameter | D159: 20 | E159: Lab Equipment | F159: 0.63 | G159: =F159*D159 -> 12.6
A160: E8A89667 | B160: Red Rubber Tubing - 8mm Bore | D160: 30 | E160: Lab Equipment | F160: 1.95 | G160: 58.5
A161: HC1007124 | B161: Bunsen Burner Natural Gas | C161: EA | D161: 5 | E161: Lab Equipment | F161: 6.3 | G161: 31.5
A162: E8R06942 | B162: Laboratory Apparatus Symbols | D162: 1 | E162: Lab Equipment | F162: 15.06 | G162: 15.06
A163: E8A64221 | B163: Iron Gauze 150mm - Pack of 10 | D163: 3 | E163: Lab Equipment | F163: 9.45 | G163: 28.35
A164: E8R06680 | B164: Philip Harris Matches | D164: 4 | E164: Lab Equipment | F164: 3.34 | G164: 13.36
A165: HC1007936 | B165: Triangular Flat Top Tripod Stand | C165: EA | D165: 5 | E165: Lab Equipment | F165: 7.25 | G165: 36.25
A166: E8A81930 | B166: Wood Splints - Pack of 1000 | D166: 1 | E166: Lab Equipment | F166: 4.79 | G166: 4.79
A167: E8R00163 | B167: Bench Mats 300 x 300mm - Pack of 10 | D167: 2 | E167: Lab Equipment | F167: 17.64 | G167: 35.28
A168: E8R04385 | B168: Azlon Glass Disposal Cardboard Bench Bin | D168: 2 | E168: Lab Equipment | F168: 47.75 | G168: 95.5
A169: E8R07296 | B169: Chemical Hazard Symbols Poster | D169: 1 | E169: Lab Equipment | F169: 15.06 | G169: 15.06
A170: E8R06890 | B170: Square Shape Weigh Boats - 100mL | D170: 1 | E170: Lab Equipment | F170: 27.78 | G170: 27.78
A171: E8R06648 | B171: Thermometer Stand | D171: 2 | E171: Lab Equipment | F171: 15.75 | G171: 31.5
A172: E8R03226 | B172: Eyewash Pod Station | D172: 2 | E172: Lab Equipment | F172: 25.19 | G172: 50.38
A173: E8R08724 | B173: Burnaid Gel Sachet | D173: 5 | E173: Lab Equipment | F173: 6.29 | G173: 31.45
A174: E8R06131 | B174: Plastic Funnel - 90mm | D174: 20 | E174: Lab Equipment | F174: 1.51 | G174: 30.2
A175: E8H71715 | B175: Elementary Filter Papers 150mm - Pack of 100 | D175: 5 | E175: Lab Equipment | F175: 6.3 | G175: 31.5
A176: E8R07253 | B176: Polypropylene Beakers | D176: 5 | E176: Lab Equipment | F176: 21.04 | G176: 105.2
A177: E8A85558 | B177: Pyrex® Medium Wall Test Tube with Rim - 150mm -24mm | D177: 2 | E177: Lab Equipment | F177: 107.04 | G177: 214.08
A178: HC914576 | B178: Sterile Eyewash Pods | D178: 2 | E178: Lab Equipment | F178: 15.11 | G178: 30.22
A179: E8R04649 | B179: Wire Drying Rack | D179: 2 | E179: Furniture | F179: 126.82 | G179: =D179*F179 -> 253.64

Sheet Computing
F1: Basket Total | G1: =SUM(G3:G18) -> 5607.58
A2: Product Code | B2: Product Description | C2: Units of Measure | D2: Quantity | E2: Section | F2: Unit price | G2: Total Price
A3: Computing & I.C.T
A4: IRTP11411 | B4: Marvellous Mobiles from Hope Education Pack of six | C4: 6 | D4: 5 | E4: Computing & I.C.T | F4: 192.77 | G4: =F4*D4 -> 963.85
A5: HC1676523 | B5: Standard Talking Photo Album | C5: 1 | D5: 5 | F5: 42.83 | G5: 214.15
A6: HC1407724 | B6: Talking Tiles 80 Sec Pack Of 6 | C6: 6 | D6: 4 | F6: 66.77 | G6: 267.08
A7: HC1440089 | B7: Large Key Lower Case USB Keyboard | C7: 1 | D7: 2 | F7: 37.79 | G7: 75.58
A8: HC1761498 | B8: Kidizoom® Duo 5.0 | C8: 1 | D8: 2 | F8: 62.99 | G8: 125.98
A9: CP00053326 | B9: Talking Tins 40 Seconds | C9: EA | D9: 10 | F9: 11.33 | G9: 113.3
A10: HC1676523 | B10: Standard Talking Photo Album | C10: EA | D10: 5 | F10: 42.83 | G10: 214.15
A11: CP00050030 | B11: EaRL V2 | C11: EA | D11: 18 | F11: 71.81 | G11: 1292.58
A12: HC1778406 | B12: EaRL Cross-curricular Pack from Hope Education | C12: Pack | D12: 1 | F12: 569.51 | G12: 569.51
A13: HC1814541 | B13: Wireless Headphones from Hope Education Pack 6 | C13: 6 | D13: 1 | F13: 239.39 | G13: 239.39
A14: HC1814420 | B14: Class Headphones from Hope Education | C14: P 3 | D14: 10 | F14: 70.55 | G14: 705.5
A15: EDMT14882 | B15: Wireless Classroom Speaker from Hope Education | C15: 1 (Recommended to get 1 per class) | D15: 1 | F15: 163.79 | G15: 163.79
A16: E8R08056 | B16: 5MP USB Visualiser from Hope Education | C16: 1 (Recommended to get 1 per class) | D16: 1 | F16: 176.39 | G16: 176.39
A17: IDMP11023 | B17: Portable PA System with 2 Wireless Mics | C17: 1 | D17: 1 | F17: 415.79 | G17: 415.79
A18: HC1437386 | B18: Talking Tins DryWipe Boards P10 | C18: 10 | D18: 2 | F18: 35.27 | G18: 70.54

Sheet Robotics
F1: Basket Total | G1: =SUM(G3:G25) -> 20407.11
A2: Product Code | B2: Product Description | C2: Units of Measure | D2: Quantity | E2: Section | F2: Unit price | G2: Total Price
A3: Computing & I.C.T
A4: HC1678200 | B4: Cubetto from Primo Toys | C4: 1 | D4: 15 | E4: EYFS/KS1 Robotics | F4: 245.69 | G4: =F4*D4 -> 3685.35
A5: HC1758933 | B5: Cubetto Colour and Code from Primo Toys | C5: 1 | D5: 15 | F5: 53.16 | G5: 797.4
A6: HC1758939 | B6: Cubetto Blue Ocean Adventure Map from Primo Toys | C6: 1 | D6: 15 | F6: 33.13 | G6: 496.95
A7: HC1758941 | B7: Cubetto Deep Space Adventure Map from Primo Toys | C7: 1 | D7: 15 | F7: 33.06 | G7: 495.9
A8: HC1758929 | B8: Cubetto Logic Blocks from Primo Toys | C8: 1 | D8: 15 | F8: 33.06 | G8: 495.9
A9: HC1758931 | B9: Cubetto Logic Pack from Primo Toys | C9: 1 | D9: 15 | F9: 35.27 | G9: 529.05
A10: CP00050030 | B10: EaRL V2 | C10: EA | D10: 18 | E10: EYFS/KS1/KS2 Robotics | F10: 71.81 | G10: =F10*D10 -> 1292.58
A11: HC1778406 | B11: EaRL Cross-curricular Pack from Hope Education | C11: Pack (Also in Computing) | D11: 1 | F11: 569.51 | G11: =F11*D11 -> 569.51
A12: HC1776106 | B12: EaRL Sequencing Cards from Hope Education | C12: 1 | D12: 1 | F12: 28.97 | G12: =F12*D12 -> 28.97
A13: HC1767596 | B13: EaRL Street Scene Mat from Hope Education | C13: 1 | D13: 1 | F13: 57.07 | G13: 57.07
A14: HC1829387 | B14: EaRL 100 square mat | C14: 1 | D14: 1 | F14: 90.71 | G14: 90.71
A15: HC1822269 | B15: EaRL 100 square cards from Hope Education | C15: 1 | D15: 1 | F15: 12.59 | G15: 12.59
A16: HC1767580 | B16: EaRL Treasure Island Map Mat from Hope Education | C16: 1 | D16: 1 | F16: 27.08 | G16: 27.08
A17: HC1767590 | B17: EaRL 3D Shapes Mat from Hope Education | C17: 1 | D17: 1 | F17: 27.08 | G17: 27.08
A18: HC1828221 | B18: EaRL Double Sided Science Mat from Hope Education | C18: 1 | D18: 1 | F18: 27.72 | G18: 27.72
A19: HC1828225 | B19: EaRL double sided maths mat from Hope Education | C19: 1 | D19: 1 | F19: 27.72 | G19: 27.72
A20: HC1829466 | B20: EaRL Jigsaw Road mat from Hope Education | C20: 1 | D20: 1 | F20: 37.16 | G20: 37.16
A21: HC1798427 | B21: EaRL Number Line from Hope Education | C21: 1 | D21: 1 | F21: 27.08 | G21: 27.08
A22: HC1825297 | B22: EaRL Plastic Pocket Mat from Hope Education | C22: 1 | D22: 1 | F22: 32.75 | G22: 32.75
A23: HC1798007 | B23: EaRL Vinyl Grid Floor Mat from Hope Education | C23: 1 | D23: 1 | F23: 25.19 | G23: 25.19
A24: CP00050510 | B24: Sphero Bolt | C24: 1 | D24: 15 | E24: KS1/KS2 Robotics | F24: 250.74 | G24: =F24*D24 -> 3761.1
A25: HC1828211 | B25: Tinkerbots Education Expert Set | C25: 1 | D25: 15 | E25: KS2/KS3/KS4 robotics | F25: 524.15 | G25: 7862.25

Sheet Whole School Games
E1: Basket Total | F1: =SUM(F3:F15) -> 989.44
A2: Product Code | B2: Product Description | C2: Units of Measure | D2: Quantity | E2: Unit Price | F2: Total Price
A3: CP Yr 1 to 6
A4: HC1003695 | B4: Jumbo Dominoes | C4: 1 | D4: 1 | E4: 31.49 | F4: =E4*D4 -> 31.49
A5: HC1674294 | B5: Chess Board Game | C5: 1 | D5: 10 | E5: 12.59 | F5: 125.9
A6: HC1550184 | B6: Jumbo Eyedroppers | C6: 6 | D6: 1 | E6: 14.35 | F6: 14.35
A7: HC1808606 | B7: Rainbow Tongs | C7: 6 | D7: 1 | E7: 12.59 | F7: 12.59
A8: HC342842 | B8: Easy Grip Tweezers PK12 | C8: 12 | D8: 1 | E8: 18.26 | F8: 18.26
A9: HC1771725 | B9: Big And Giant Alphabet Jigsaws | C9: 1 | D9: 2 | E9: 15.11 | F9: 30.22
A10: HC1004107 | B10: Junior Scrabble | C10: 1 | D10: 1 | E10: 28.46 | F10: 28.46
A11: HC1001668 | B11: Games Compendium | C11: 1 | D11: 2 | E11: 40.94 | F11: 81.88
A12: HC115771 | B12: Problem Solving Games - Pack of 4 | C12: 4 | D12: 1 | E12: 81.85 | F12: 81.85
A13: CP00053357 | B13: Playground Games Book | C13: EA | D13: 1 | E13: 4.39 | F13: 4.39
A14: IPEP09890 | B14: Pick & Play - Blast - Assorted | C14: Assorted | D14: 1 | E14: 541.79 | F14: 541.79
A15: HC342842 | B15: Easy Grip Tweezers PK12 | C15: 12 | D15: 1 | E15: 18.26 | F15: 18.26

Sheet Design Technology
F1: Basket Total | G1: =SUM(G3:G74) -> 12797.79
A2: Product Code | B2: Product Description | C2: Units of Measure | D2: Quantity | E2: Section | F2: Unit Price | G2: Total Price
A3: Design & Technology (Junior)
A4: HC1496660 | B4: Cork Tops | C4: 50 | D4: 10 | E4: Design & Technology | F4: 7.55 | G4: =F4*D4 -> 75.5
A5: HC880133 | B5: Dowel - 4mm | C5: 100 | D5: 50 | F5: 10.95 | G5: =F5*D5 -> 547.5
A6: HC262086 | B6: Square Strip Balsa Pack | C6: 1 | D6: 10 | F6: 44.09 | G6: 440.9
A7: HC48493510 | B7: Resource Pack For Workstations | C7: 1 | D7: 3 | F7: 365.39 | G7: 1096.17
A8: HC304856 | B8: Bench Hook - Small | C8: 10 | D8: 2 | F8: 37.54 | G8: 75.08
A9: HC1511015 | B9: Bollé Safety B-Line Safety Goggles | C9: EA | D9: 20 | F9: 2.52 | G9: 50.4
A10: HC880313 | B10: Large Cutting Knife | C10: 1 | D10: 20 | F10: 4.27 | G10: 85.4
A11: HC1828964 | B11: Specialist Crafts Cutting Mats - A3 (450 x 300mm) | C11: EA | D11: 20 | F11: 9.61 | G11: 192.2
A12: HC153471 | B12: Aluminium Mesh Fine | C12: 1 | D12: 10 | F12: 20.15 | G12: 201.5
A13: HC152600 | B13: Silver Aluminium Wire | C13: 1 | D13: 10 | F13: 25.19 | G13: 251.9
A14: HC1522450 | B14: Soft Modelling Wire | C14: 1 | D14: 10 | F14: 22.67 | G14: 226.7
A15: HC205484 | B15: Paper Sticks 300mm Pack 100 | C15: 100 | D15: 5 | F15: 10.07 | G15: 50.35
A16: CP00052502 | B16: Classmates Textile Cones - Pack of 30 | C16: PK | D16: 5 | F16: 12.59 | G16: 62.95
A17: HC176260 | B17: 1000 Plain Std Craft Sticks | C17: 1000 | D17: 10 | F17: 10.7 | G17: 107
A18: HC419789 | B18: 100 Plain Jumbo Craft Sticks | C18: 100 | D18: 10 | F18: 6.29 | G18: 62.9
A19: HC244211 | B19: 1000 Coloured Std Craft Sticks | C19: 1000 | D19: 10 | F19: 16.37 | G19: 163.7
A20: HC410728 | B20: 100 Coloured Jumbo Craft Sticks | C20: 100 | D20: 10 | F20: 8.81 | G20: 88.1
A21: HC229521 | B21: Square Modelling Sticks 3X125mm Pk100 | C21: 100 | D21: 10 | F21: 11.58 | G21: 115.8
A22: HC482696 | B22: Wooden Spools | C22: 60 | D22: 6 | F22: 10.07 | G22: 60.42
A23: HC229846 | B23: Cardboard Wheels - 40mm | C23: 100 | D23: 3 | F23: 4.65 | G23: 13.95
A24: HC229859 | B24: Cardboard Wheels - 50mm | C24: 100 | D24: 3 | F24: 5.28 | G24: 15.84
A25: HC229859 | B25: Cardboard Wheels - 50mm | C25: 100 | D25: 3 | F25: 5.28 | G25: 15.84
A26: HC1559533 | B26: Class Pulleys Pack | C26: 1 | D26: 10 | F26: 29.35 | G26: 293.5
A27: HC357870 | B27: Corner Piece Joints | C27: 500 | D27: 10 | F27: 16.37 | G27: 163.7
A28: HC176221 | B28: 2000 Coloured Matchsticks | C28: 2000 | D28: 4 | F28: 6.29 | G28: 25.16
A29: HC176169 | B29: 2000 Plain Matchsticks | C29: 2000 | D29: 4 | F29: 6.29 | G29: 25.16
A30: HC357844 | B30: Clothes Pegs | C30: 36 | D30: 20 | F30: 6.29 | G30: 125.8
A31: HC1559569 | B31: Junior Hacksaw Bumper Pack | C31: 20 | D31: 2 | F31: 61.73 | G31: 123.46
A32: HC1559573 | B32: Mini Claw Hammer Metal Handle | C32: 1 | D32: 20 | F32: 17.63 | G32: 352.6
A33: HC1509301 | B33: Sandpaper 225X275mm Pk15 | C33: 15 | D33: 10 | F33: 5.28 | G33: 52.8
A34: HC304856 | B34: Bench Hook - Small | C34: 10 | D34: 3 | F34: 37.54 | G34: 112.62
A35: HC230522 | B35: G Clamps 2 Sets Of 3 Clamps | C35: 6 | D35: 5 | F35: 20.15 | G35: 100.75
A36: HC1559579 | B36: Twist Drill Set | C36: 1 | D36: 10 | F36: 18.89 | G36: 188.9
A37: HC205614 | B37: Rapesco 25 Single Hole Punch | C37: 1 | D37: 4 | F37: 5.03 | G37: 20.12
A38: HC215923 | B38: Artstraws White Jumbo X 900 | C38: 900 | D38: 2 | F38: 25.19 | G38: 50.38
A39: HC215910 | B39: Artstraws White Standard 1800 Straws | C39: 1800 | D39: 2 | F39: 26.45 | G39: 52.9
A40: HC1694648 | B40: Rubber Bands Asst 454g | C40: 1 | D40: 2 | F40: 6.29 | G40: 12.58
A41: HC1761535 | B41: 3n1 Amusement Park Building Set | C41: 1 | D41: 1 | F41: 84.41 | G41: 84.41
A42: HC1553820 | B42: Intro To Structures Bridges | C42: 1 | D42: 1 | F42: 45.35 | G42: 45.35
A43: HC248371 | B43: Bostik Standard Glue Gun | C43: 1 | D43: 4 | F43: 20.78 | G43: 83.12
A44: HC343544 | B44: Bostik Glue Sticks 5kg | C44: 1 | D44: 4 | F44: 69.29 | G44: 277.16
A45: Food Technology
A46: HC1583083 | B46: Kenwood Food Mixer | C46: 1 | D46: 4 | E46: Food Technology | F46: 327.59 | G46: =F46*D46 -> 1310.36
A47: HC1685804 | B47: Russell Hobbs Cordless Kettle | C47: 1 | D47: 4 | F47: 50.39 | G47: 201.56
A48: HC171424 | B48: Ultra Slim Salter Electronic Scale Black | C48: 1 | D48: 10 | F48: 22.67 | G48: 226.7
A49: CP00051233 | B49: Mechanical Scales Blue | C49: EA | D49: 3 | F49: 12.59 | G49: 37.77
A50: HC1564043 | B50: Gaint Baking Kit | C50: 1 | D50: 5 | F50: 333.26 | G50: 1666.3
A51: HC432711 | B51: Aluminium Baking Sheet | C51: 1 | D51: 6 | F51: 12.59 | G51: 75.54
A52: HC73261 | B52: Nonstick Baking Sheet304x300mm | C52: 1 | D52: 10 | F52: 11.33 | G52: 113.3
A53: HC73443 | B53: Non-stick Loaf Tin 0.9kg | C53: 1 | D53: 10 | F53: 8.18 | G53: 81.8
A54: HC282054 | B54: Non-stick Bun Muffin 255x265mm | C54: 1 | D54: 10 | F54: 13.85 | G54: 138.5
A55: HC73781 | B55: Wire Cooling Tray 430x270mm | C55: 1 | D55: 10 | F55: 8.81 | G55: 88.1
A56: HC282041 | B56: Non Stick Sandwich Tin Plain | C56: 1 | D56: 10 | F56: 6.92 | G56: 69.2
A57: HC289672 | B57: Citrus Juice Extractor | C57: 1 | D57: 5 | F57: 7.55 | G57: 37.75
A58: HC72468 | B58: Plastic Strainer 150 Mm | C58: 1 | D58: 10 | F58: 6.29 | G58: 62.9
A59: HC72468 | B59: Plastic Strainer 150 Mm | C59: 1 | D59: 10 | F59: 6.29 | G59: 62.9
A60: HC72377 | B60: Wooden Spoon 254mm | C60: 1 | D60: 20 | F60: 1.37 | G60: 27.4
A61: HC276789 | B61: Garlic Press | C61: 1 | D61: 5 | F61: 8.81 | G61: 44.05
A62: HC276802 | B62: Hand Operated Can Opener | C62: 1 | D62: 5 | F62: 10.07 | G62: 50.35
A63: HC1299168 | B63: Y-shape Potato Peeler | C63: 1 | D63: 24 | F63: 4.02 | G63: 96.48
A64: HC1211680 | B64: Oven Gloves | C64: 1 | D64: 10 | F64: 7.55 | G64: 75.5
A65: HC282119 | B65: Dredger-shaker Small Hole | C65: 1 | D65: 10 | F65: 8.81 | G65: 88.1
A66: HC282184 | B66: Box Grater | C66: 1 | D66: 10 | F66: 8.81 | G66: 88.1
A67: HC258862 | B67: Non Stick Kitchen Tools Slice | C67: 1 | D67: 10 | F67: 4.4 | G67: 44
A68: HC258888 | B68: Non Stick Kitchen Tools Slotted Spoon | C68: 1 | D68: 10 | F68: 4.4 | G68: 44
A69: HC64967 | B69: Palette Knife 203mm | C69: 1 | D69: 10 | F69: 17.63 | G69: 176.3
A70: HC65422 | B70: Cooks Knife 152mm Green Handle | C70: 1 | D70: 20 | F70: 16.37 | G70: 327.4
A71: HC469787 | B71: Aluminium Foil 450mm | C71: 1 | D71: 10 | F71: 23.93 | G71: 239.3
A72: HC1574520 | B72: 45cm Cling Film Refil 300m | C72: 3 | D72: 4 | F72: 50.39 | G72: 201.56
A73: HC1452075 | B73: Woodwork Apron Child 55x70cm | C73: 1 | D73: 20 | F73: 25.19 | G73: 503.8
A74: HC1452076 | B74: Woodwork Apron Youth 58x75cm | C74: 1 | D74: 20 | F74: 21.41 | G74: 428.2

Sheet Art
F1: Basket Total | G1: =SUM(G3:G105) -> 16652.07
A2: Product Code | B2: Product Description | C2: Units of Measure | D2: Quantity | E2: Section | F2: Unit Price | G2: Total Price
A3: ART
A4: HC1794249 | B4: Nylon Smocks - Small | C4: EA | D4: 30 | E4: ART | F4: 5.41 | G4: =F4*D4 -> 162.3
A5: HC1794251 | B5: Nylon Smocks - Medium | C5: EA | D5: 30 | F5: 5.41 | G5: =F5*D5 -> 162.3
A6: HC157332 | B6: Hog Hair Round Classpack of 200 | C6: 200 | D6: 5 | F6: 73.07 | G6: 365.35
A7: HC157384 | B7: Round Handle Jumbo Brush Pk10 | C7: 10 | D7: 4 | F7: 10.07 | G7: 40.28
A8: HC136025 | B8: White Sable Brush Assortment Pk50 | C8: 50 | D8: 2 | F8: 28.97 | G8: 57.94
A9: HC1201176 | B9: Derwent Willow Charcoal Asstd | C9: 10 | D9: 36 | F9: 7.55 | G9: 271.8
A10: HC138248 | B10: Derwent Charcoal Pencils Tub 72 | C10: 72 | D10: 1 | F10: 94.49 | G10: 94.49
A11: HC222150 | B11: Air Hardening Clay Stone 12.5Kg | C11: 1 | D11: 6 | F11: 12.59 | G11: 75.54
A12: HC252843 | B12: Classmates Plastic Crayons Pack 24 | C12: 24 | D12: 10 | F12: 3.52 | G12: 35.2
A13: HC424716 | B13: Metallic Crayons Pack Of 48 | C13: 48 | D13: 3 | F13: 7.93 | G13: 23.79
A14: HC215091 | B14: Sequins Mixed Pack 450g | C14: 1 | D14: 5 | F14: 34.01 | G14: 170.05
A15: HC176104 | B15: Acrylic Gemstones 500g | C15: 1 | D15: 5 | F15: 21.41 | G15: 107.05
A16: HC1564002 | B16: Mixed Petal Sequins 100g Tub | C16: 1 | D16: 20 | F16: 11.33 | G16: 226.6
A17: HC1317556 | B17: Bumper Pack Of Pom-Poms x1000 | C17: 1000 | D17: 10 | F17: 15.74 | G17: 157.4
A18: HC223944 | B18: Craft Pipe Cleaners 150mm P1000 | C18: 1000 | D18: 10 | F18: 18.89 | G18: 188.9
A19: HC176260 | B19: 1000 Plain Std Craft Sticks | C19: 1000 | D19: 20 | F19: 10.7 | G19: 214
A20: HC419789 | B20: 100 Plain Jumbo Craft Sticks | C20: 100 | D20: 100 | F20: 6.29 | G20: 629
A21: HC244211 | B21: 1000 Coloured Std Craft Sticks | C21: 1000 | D21: 20 | F21: 16.37 | G21: 327.4
A22: HC410728 | B22: 100 Coloured Jumbo Craft Sticks | C22: 100 | D22: 100 | F22: 8.81 | G22: 881
A23: HC176130 | B23: Wiggly Eyes Assorted Pk 1000 | C23: 1000 | D23: 10 | F23: 20.15 | G23: 201.5
A24: HC177287 | B24: 6 X 1kg Glitter Class Pack | C24: 6 | D24: 9 | F24: 95.75 | G24: 861.75
A25: HC1001256 | B25: Large Glitter Tubs 6 x 100g | C25: 6 | D25: 3 | F25: 18.26 | G25: 54.78
A26: HC1499754 | B26: Glitter Pony Beads | C26: 1800 | D26: 2 | F26: 16.37 | G26: 32.74
A27: HC1316948 | B27: Exotic Plastic Beads Pack 125g | C27: 1 | D27: 10 | F27: 11.33 | G27: 113.3
A28: HC226856 | B28: Bead Thonging 1mm Spool 50yds | C28: 1 | D28: 30 | F28: 21.41 | G28: 642.3
A29: HC176039 | B29: Craft Buttons 454g | C29: 1 | D29: 4 | F29: 12.59 | G29: 50.36
A30: E8A77744 | B30: Disposable, Graduated, Pipettes - 3 x 0.5mL - 155mm | C30: 500 | D30: 1 | F30: 13.42 | G30: 13.42
A31: HC100639 | B31: Pritt Stick 43gx200-8FreeStick | C31: 200 | D31: 1 | F31: 241.91 | G31: 241.91
A32: HC1708095 | B32: Classmates Blue Label Pva 5l | C32: 1 | D32: 16 | F32: 10.45 | G32: 167.2
A33: HC1552913 | B33: Pattern Rollers Pack 12 | C33: 12 | D33: 3 | F33: 23.93 | G33: 71.79
A34: HC286370 | B34: Clay Modelling Tools | C34: 10 | D34: 5 | F34: 11.33 | G34: 56.65
A35: HC1508153 | B35: Easi-grip Patterned Rollers Pk5 | C35: 5 | D35: 4 | F35: 13.85 | G35: 55.4
A36: HC152574 | B36: Clay Cutter | C36: 1 | D36: 4 | F36: 6.92 | G36: 27.68
A37: HC103841 | B37: Modelling Board | C37: 1 | D37: 40 | F37: 7.55 | G37: 302
A38: HC152951 | B38: Art Roc Rolls Pack Of 8 Bogof | C38: 16 | D38: 7 | F38: 32.75 | G38: 229.25
A39: HC1319187 | B39: Chubbi Paint Markers Standard P8 | C39: 8 | D39: 10 | F39: 15.23 | G39: 152.3
A40: HC1828722 | B40: Watercolour 36 Tablet Set | C40: EA | D40: 10 | F40: 5.49 | G40: 54.9
A41: HC215611 | B41: Classmate Readymix 600ml Assorted pk20 | C41: 20 | D41: 4 | F41: 21.41 | G41: 85.64
A42: HC294079 | B42: Classmate Ready Mix Brilliant Yellow 5L | C42: 1 | D42: 4 | F42: 8.05 | G42: 32.2
A43: HC294053 | B43: Classmate Ready Mix Brilliant Red 5L | C43: 1 | D43: 4 | F43: 8.05 | G43: 32.2
A44: HC43101 | B44: Classmate Ready Mix Cobalt Blue 600mlx6 | C44: 6 | D44: 5 | F44: 6.79 | G44: 33.95
A45: HC217457 | B45: Classmate Ready Mix Vermilion 600mlx 6 | C45: 6 | D45: 5 | F45: 6.79 | G45: 33.95
A46: HC43114 | B46: Classmate Ready Mix Yellow Ochre 600mlx6 | C46: 6 | D46: 5 | F46: 6.79 | G46: 33.95
A47: HC43088 | B47: Classmate Ready Mix Sky Blue 600mlx6 | C47: 6 | D47: 5 | F47: 6.79 | G47: 33.95
A48: HC136376 | B48: 6 Well Palettes P24 | C48: 24 | D48: 3 | F48: 27.71 | G48: 83.13
A49: HC381361 | B49: Colour Mixing Trays 250x200mm P10 | C49: 10 | D49: 3 | F49: 22.67 | G49: 68.01
A50: HC381387 | B50: 10 Well Palettes P12 | C50: 12 | D50: 3 | F50: 18.89 | G50: 56.67
A51: HC1470786 | B51: Remnant Paper Pack | C51: 3000 | D51: 5 | F51: 61.73 | G51: 308.65
A52: HC1676242 | B52: White Sugar Paper Stack | C52: 2750 | D52: 3 | F52: 80.63 | G52: 241.89
A53: HC1501863 | B53: Construction Paper School Stack | C53: 2400 | D53: 3 | F53: 133.55 | G53: 400.65
A54: HC1202948 | B54: Vivid Cardstack Combo A3 and A4 | C54: 375 | D54: 20 | F54: 44.72 | G54: 894.4
A55: HC101328 | B55: Crepe 50 Fold Assortment | C55: 50 | D55: 10 | F55: 23.93 | G55: 239.3
A56: HC101315 | B56: Kolourfast Assorted Tissue Paper Pk480 | C56: 480 | D56: 3 | F56: 26.45 | G56: 79.35
A57: HC155096 | B57: Cellophane Assorted Rolls 508 x 4500mm - Pack of 6 | C57: 6 | D57: 20 | F57: 15.11 | G57: 302.2
A58: HC375732 | B58: CM Recycled Black Card Pk A4 | C58: 100 | D58: 10 | F58: 10.7 | G58: 107
A59: HC155213 | B59: CM Recycled Black Card Pk A3 | C59: 100 | D59: 10 | F59: 16.37 | G59: =F59*D59 -> 163.7
A60: HC130253 | B60: Tracing Paper Pads 63gsm A4 | C60: 50 | D60: 50 | F60: 13.85 | G60: 692.5
A61: HC154030 | B61: Standard Cartridge Paper A4 100gsm Ream | C61: 500 | D61: 10 | F61: 20.15 | G61: 201.5
A62: HC201467 | B62: Std Cartridge Paper A3 100gsm | C62: 500 | D62: 10 | F62: 28.97 | G62: 289.7
A63: HC475819 | B63: Tissue Paper Tower Square | C63: 4600 | D63: 10 | F63: 16.37 | G63: 163.7
A64: HC475832 | B64: Tissue Paper Tower Circle | C64: 4600 | D64: 10 | F64: 16.37 | G64: 163.7
A65: HC1676675 | B65: Classmates Border Rolls P10 | C65: 10 | D65: 2 | F65: 22.54 | G65: 45.08
A66: HC1202859 | B66: CM Poster Paper Roll Asst 1 P10 | C66: 10 | D66: 3 | F66: 46.61 | G66: 139.83
A67: HC213674 | B67: Lyra Ferby Tri Col Pencils PK96 | C67: 96 | D67: 2 | F67: 56.69 | G67: 113.38
A68: HC1691854 | B68: Classmates Assorted Pencils - Pack of 288 | C68: 288 | D68: 2 | F68: 23.68 | G68: 47.36
A69: HC1196132 | B69: Sketching and Charcoal Set | C69: P 7 | D69: 10 | F69: 4.4 | G69: 44
A70: HC1774064 | B70: Berol Colour Broad Classpack 288 | C70: 288 | D70: 1 | F70: 75.97 | G70: 75.97
A71: HC1774070 | B71: Berol Colour Fine Classpack 288 | C71: 288 | D71: 1 | F71: 75.97 | G71: 75.97
A72: HC1552891 | B72: Extra Safe Non Spill Pots Pack 6 | C72: 6 | D72: 20 | F72: 14.48 | G72: 289.6
A73: HC48514128 | B73: Mobile Paint Dryer | C73: 1 | D73: 2 | F73: 221.75 | G73: 443.5
A74: HC1815185 | B74: School Scissor Set P32 inc Box | C74: 32 | D74: 1 | F74: 22.67 | G74: 22.67
A75: HC1308116 | B75: Crazy Cut Scissors Pack 12 | C75: 12 | D75: 4 | F75: 25.19 | G75: 100.76
A76: HC1815177 | B76: Classmates Office Scissors | C76: 12 | D76: 3 | F76: 14.98 | G76: 44.94
A77: E8R03124 | B77: Classmates All Purpose Scissors - Right Handed | C77: 1 | D77: 6 | F77: 6.92 | G77: 41.52
A78: HC180992 | B78: 200 Plastic Head Pins 34mm | C78: 200 | D78: 4 | F78: 5.03 | G78: 20.12
A79: HC180953 | B79: Hand Sewing Needles PK50x5 | C79: 250 | D79: 1 | F79: 8.81 | G79: 8.81
A80: HC1319641 | B80: Assorted Polyester Thread | C80: 20 | D80: 2 | F80: 18.89 | G80: 37.78
A81: HC267832 | B81: Childs Plastic Weaving Needles | C81: 25 | D81: 3 | F81: 8.81 | G81: 26.43
A82: HC1563984 | B82: Embroidery Thread 10 X 82m | C82: 10 | D82: 3 | F82: 45.98 | G82: 137.94
A83: HC181369 | B83: Assorted Binca Squares | C83: 50 | D83: 5 | F83: 35.9 | G83: 179.5
A84: HC1499319 | B84: Double Knit | C84: 10 | D84: 6 | F84: 27.71 | G84: 166.26
A85: HC181226 | B85: Chunky Knit Yarn 10x100g | C85: 10 | D85: 2 | F85: 30.86 | G85: 61.72
A86: HC401576 | B86: Table Cover 1x1.5m | C86: 1 | D86: 8 | F86: 6.29 | G86: 50.32
A87: HC225517 | B87: C M Masking Tape 24mmx50mx9 | C87: 9 | D87: 6 | F87: 15.11 | G87: 90.66
A88: HC1772827 | B88: Modelling and Carving Tools | C88: 12 | D88: 4 | F88: 11.33 | G88: 45.32
A89: HC152626 | B89: 3d Modelling Kit | C89: 1 | D89: 4 | F89: 45.35 | G89: 181.4
A90: HC133945 | B90: Chubbi Stumps Classpack 288 | C90: 288 | D90: 1 | F90: 33.38 | G90: 33.38
A91: HC396532 | B91: Paint Scrapers | C91: 4 | D91: 2 | F91: 8.81 | G91: 17.62
A92: HC1594266 | B92: Patterned Rollers | C92: 5 | D92: 2 | F92: 15.11 | G92: 30.22
A93: HC404319 | B93: Sharpie MetallicPerm Marker P3 | C93: 3 | D93: 12 | F93: 7.3 | G93: 87.6
A94: HC1528668 | B94: Lino Ink Roller 102mm | C94: 1 | D94: 30 | F94: 6.54 | G94: 196.2
A95: HC152041 | B95: A4 Easy Print Sheets Pack 50 | C95: 50 | D95: 3 | F95: 49.13 | G95: 147.39
A96: HC152301 | B96: Lino-block Print Ink 300ml Asst PK10 | C96: 10 | D96: 2 | F96: 50.39 | G96: 100.78
A97: HC1528664 | B97: Lino Tool Set Pack 5 | C97: 1 | D97: 30 | F97: 7.55 | G97: 226.5
A98: HC181499 | B98: Padded Felt Bugs Kit | C98: 30 | D98: 2 | F98: 40.31 | G98: 80.62
A99: HC152366 | B99: Animal Puppets | C99: 30 | D99: 4 | F99: 40.31 | G99: 161.24
A100: HC88200429 | B100: Felt Squares Jumbo Assorted - Pack of 100 | C100: 100 | D100: 3 | F100: 25.19 | G100: 75.57
A101: HC1772833 | B101: Electric Wax Melting Pot 300ml | C101: 1 | D101: 2 | F101: 151.19 | G101: 302.38
A102: HC1772835 | B102: Paraffin Wax Pellets 2kg | C102: 1 | D102: 3 | F102: 23.93 | G102: 71.79
A103: HC180030 | B103: White Cotton 10m Roll 152cm Wide | C103: 1 | D103: 5 | F103: 50.39 | G103: 251.95
A104: HC1563928 | B104: Scola Fabric Paints Standard 300ml P6 | C104: 6 | D104: 2 | F104: 25.19 | G104: 50.38
A105: HC1202066 | B105: Marbling Ink Ass Std Cols 6x25ml Bottles | C105: 6 | D105: 5 | F105: 13.22 | G105: 66.1

Sheet Sport
E1: Basket Total | F1: =SUM(F3:F106) -> 29854.63
A2: Product Code | B2: Product Description | C2: Units of Measure | D2: Quantity | E2: Unit Price | F2: Total Price
A3: SPORT
A4: ISGP08326 | B4: Davies Sports All Purpose Holdall | D4: 3 | E4: 10.07 | F4: =E4*D4 -> 30.21
A5: IAAD79463 | B5: Eveque Pacesetter1/2m Hurdle Pack | D5: 1 | E5: 192.77 | F5: =E5*D5 -> 192.77
A6: ITNP08644 | B6: Zsig® 19in Tennis Racquet | D6: 20 | E6: 19.52 | F6: 390.4
A7: ITRL05575 | B7: Mitre Training Bib - Adult Small-Medium - Orange/Black | C7: EA | D7: 15 | E7: 4.02 | F7: 60.3
A8: IFBP06969 | B8: Mini Cone Set | C8: P60 | D8: 2 | E8: 14.48 | F8: 28.96
A9: IHKP11570 | B9: Large Dimple Balls Pack Of 4 | C9: P 4 | D9: 7 | E9: 15.11 | F9: 105.77
A10: IRGH05457 | B10: Agility Ladder - 4m | D10: 2 | E10: 21.41 | F10: 42.82
A11: IPEP09401 | B11: Zsig Foam Hitting Hands - Pair | D11: 10 | E11: 11.33 | F11: 113.3
A12: IBDP07985 | B12: Slazenger™ Orange Stage Mini Tennis Balls - Pack of 60 | D12: 1 | E12: 84.41 | F12: 84.41
A13: ITRP01768 | B13: P.E. Lesson Plans - Year 1 | D13: 1 | E13: 32.12 | F13: 32.12
A14: IFBP01212 | B14: Samba Aluminium Folding Goal - 5 x 3ft | D14: 6 | E14: 259.55 | F14: 1557.3
A15: ITNP08628 | B15: Zsig SLOcoach Big Red Stage Tennis Balls Pack of 48 | D15: 1 | E15: 86.93 | F15: 86.93
A16: ITNP08630 | B16: Zsig SLOcoach Big Orange Stage Tennis Balls Pack of 48 | D16: 1 | E16: 81.89 | F16: 81.89
A17: INBL78657 | B17: High Fives Bib Set - Blue - 8-14 Years - Pack of 8 | D17: 1 | E17: 35.27 | F17: 35.27
A18: CP051742 | B18: Mitre Sabre Rugby Ball-4-12BAG | C18: EA | D18: 2 | E18: 102.66 | F18: 205.32
A19: ITRP05128 | B19: Mitre Netball Bib Youth Up to 38in - Royal Pack of 7 | D19: 1 | E19: 49.13 | F19: 49.13
A20: IAAP08110 | B20: Vinex Junior Plastic Relay Batons Pack of 6 - 32mm | D20: 1 | E20: 7.93 | F20: 7.93
A21: IBBP00013 | B21: Floor Basketball | D21: 2 | E21: 45.35 | F21: 90.7
A22: IPEP08662 | B22: Vinex Number Spots - 1-100 | D22: 1 | E22: 188.99 | F22: 188.99
A23: IHKP07927 | B23: Junior Hockey Set | D23: 2 | E23: 113.39 | F23: 226.78
A24: HC1216362 | B24: Slazenger Airball Junior - Pink | C24: EA | D24: 24 | E24: 3.77 | F24: 90.48
A25: CP051739 | B25: Mitre Sabre Rugby Ball-3-12BAG | C25: EA | D25: 2 | E25: 102.66 | F25: 205.32
A26: IRGP07827 | B26: Centurion Junior Tackle Bag - Yellow | D26: 4 | E26: 129.77 | F26: 519.08
A27: IPEL02124 | B27: Playground Balls 165mm - Pack of 12 | D27: 1 | E27: 46.61 | F27: 46.61
A28: EGMT14502 | B28: Airfoam Flyers - Pack of 6 | D28: 2 | E28: 15.74 | F28: 31.48
A29: IAAD77880 | B29: Harrod Regulation Glassfibre Lath 1.8kg | D29: 1 | E29: 161.27 | F29: 161.27
A30: IGYP04331 | B30: Activ Balance Bench Wood 2m Assorted | D30: 1 | E30: 1310.35 | F30: 1310.35
A31: ITRP01769 | B31: P.E. Lesson Plans - Year 2 | D31: 1 | E31: 32.12 | F31: 32.12
A32: ITRP11241G | B32: Plain Mesh Training Bib Age 15+ years Red | C32: EA | D32: 10 | E32: 3.77 | F32: 37.7
A33: IRGP08092 | B33: Tag Rugby Belts | D33: 2 | E33: 103.27 | F33: 206.54
A34: IHKD77120 | B34: Soft Hockey Ball | D34: 20 | E34: 4.65 | F34: 93
A35: IFBP06975 | B35: Precision Pro Boundary Poles | D35: 2 | E35: 59.21 | F35: 118.42
A36: INBL29968 | B36: Mitre Netball Bib - 6-14 Years - Pack of 7 - Yellow | D36: 1 | E36: 49.13 | F36: 49.13
A37: IPEP01486 | B37: Flat Hula Hoop Set - 50CM | D37: 3 | E37: 11.33 | F37: 33.99
A38: ISSP04901 | B38: Compact Sports First Aid Kit | D38: 10 | E38: 18.89 | F38: 188.9
A39: ITRP05130 | B39: Mitre Netball Bib Youth Up to 38in - Red Pack of 7 | D39: 1 | E39: 49.13 | F39: 49.13
A40: IAAP08011 | B40: Eveque Primary Discus - 200g - Blue | D40: 1 | E40: 18.89 | F40: 18.89
A41: IRGP07823 | B41: Centurion Junior Tag Rugby Kit - 0 | D41: 1 | E41: 55.43 | F41: 55.43
A42: HC1003773 | B42: Skipping Rope Pack | C42: P 4 | D42: 8 | E42: 6.67 | F42: 53.36
A43: IAAP08127 | B43: Vinex Starting Block - Pack of 2 | D43: 2 | E43: 17.63 | F43: 35.26
A44: HC1010689 | B44: Baden SX600 Basketball - Size 6 - Pink/Black | C44: EA | D44: 10 | E44: 11.33 | F44: 113.3
A45: IGYD74891 | B45: Springboard Training Model | D45: 2 | E45: 377.99 | F45: 755.98
A46: IAAP08124 | B46: Vinex Open Reel Measuring Tape 30m | D46: 2 | E46: 17.63 | F46: 35.26
A47: IGYP07917 | B47: Beemat Gymnastic Incline Wedge - Sky | D47: 2 | E47: 153.71 | F47: 307.42
A48: IGYP07921 | B48: Beemat Handspring Roller Flip Block - Red/Yellow | D48: 1 | E48: 617.39 | F48: 617.39
A49: ICKD72213 | B49: Slazenger Wooden Spring Return Stump - 28ins-Mens | D49: 6 | E49: 55.43 | F49: 332.58
A50: IPED76250 | B50: Coated Foam Ball 160mm - Blue | D50: 4 | E50: 10.07 | F50: 40.28
A51: HC1010691 | B51: Baden SX300 Basketball - Size 3 - Yellow/Black | C51: EA | D51: 10 | E51: 11.33 | F51: 113.3
A52: IAAP06430 | B52: Eveque Bull Nosed Javelin - 78cm - Pack of 8 | D52: 1 | E52: 154.97 | F52: 154.97
A53: IHKL28939 | B53: Mini Hockey Ball | D53: 20 | E53: 2.51 | F53: 50.2
A54: IRGP07835 | B54: Centurion Junior Rucking Shield - Blue | D54: 4 | E54: 51.65 | F54: 206.6
A55: IAAD74982 | B55: Harrod Junior Practice High Jump Stands 14.0kg | D55: 1 | E55: 186.47 | F55: 186.47
A56: CP051760 | B56: Mitre Impel Football - WhiteBlue - Pack | C56: EA | D56: 2 | E56: 123.83 | F56: 247.66
A57: IBBP10979 | B57: Zoft Touch Basketball | C57: EA | D57: 1 | E57: 9.44 | F57: 9.44
A58: ICKP06987 | B58: Slazenger™ Academy Plastic Stumps and Bails Set | D58: 6 | E58: 18.89 | F58: 113.34
A59: IGYP07925 | B59: Beemat Lightweight Foam Springboard | D59: 3 | E59: 251.99 | F59: 755.97
A60: ITRH67451 | B60: Multi-Purpose Flexible Marker Set | D60: 4 | E60: 23.93 | F60: 95.72
A61: IPEL16500 | B61: Jingle Frogs | D61: 4 | E61: 21.41 | F61: 85.64
A62: ICKP11412 | B62: Powerplay Tee | D62: 4 | E62: 41.57 | F62: =E62*D62 -> 166.28
A63: ITRG21985 | B63: Fastime 7 Stopwatch - Grey | D63: 2 | E63: 38.42 | F63: 76.84
A64: IGYD97404 | B64: Vaulting Box Without Transport Gear - 1020mm | D64: 2 | E64: 1317.95 | F64: 2635.9
A65: IPEP10255 | B65: Ultrafoam Crawlgates | D65: 2 | E65: 123.47 | F65: 246.94
A66: ICRP04550 | B66: Lightweight Mats - L1.2m x W1.8m x D22mm | D66: 16 | E66: 122.21 | F66: 1955.36
A67: IGYP07920 | B67: Beemat Gym Target Crash Mat | D67: 1 | E67: 398.15 | F67: 398.15
A68: ITNP08632 | B68: Zsig Link Mini Green Stage Tennis Balls Pack of 48 | D68: 1 | E68: 81.89 | F68: 81.89
A69: IAAP10733 | B69: Flexi Bar Lath | D69: 1 | E69: 18.89 | F69: 18.89
A70: ITRP11241D | B70: Plain Mesh Training Bib Age 15+ years - Green | C70: EA | D70: 10 | E70: 3.77 | F70: 37.7
A71: IAAG38298 | B71: High Jump Landing Area With Cutouts | D71: 1 | E71: 4346.99 | F71: 4346.99
A72: INBP09285 | B72: Sure Shot Transportable Netball Post | D72: 4 | E72: 259.55 | F72: 1038.2
A73: IRDP08668 | B73: Aresson Introductory Rounders Pack | D73: 1 | E73: 251.99 | F73: 251.99
A74: IPED76249 | B74: Coated Foam Ball 160mm - Green | D74: 3 | E74: 10.07 | F74: 30.21
A75: IPEP00318 | B75: Beanbag Target Set | D75: 2 | E75: 65.51 | F75: 131.02
A76: ITNE62007 | B76: Zsignet Mini 3m Tennis Net | D76: 7 | E76: 97.01 | F76: 679.07
A77: IGYP07922 | B77: Beemat 3 Section Foam Vaulting Box | D77: 1 | E77: 540.53 | F77: 540.53
A78: CP051766 | B78: Mitre Impel Football - WhiteGreen - Pack | C78: EA | D78: 2 | E78: 123.83 | F78: 247.66
A79: ITRP01770 | B79: P.E. Lesson Plans - Year 3 | D79: 1 | E79: 32.12 | F79: 32.12
A80: IPEP06057 | B80: 1-10 Number Beanbags | D80: 1 | E80: 15.11 | F80: 15.11
A81: IPED76262 | B81: Coated Foam Ball 160mm - Yellow | D81: 4 | E81: 10.07 | F81: 40.28
A82: HC1828501 | B82: Sticky Monster Mitts - Pair | C82: PAA | D82: 12 | E82: 9.44 | F82: 113.28
A83: IRDL65869 | B83: Infant Rounders Class Pack | D83: 1 | E83: 81.89 | F83: 81.89
A84: IHKP10409 | B84: Grays Rogue Hockey Stick - 34inch | C84: EA | D84: 20 | E84: 23.93 | F84: 478.6
A85: IAAP06432 | B85: Eveque Primary Discus Pack of 4 - Blue Green Red Yellow - 200g | D85: 2 | E85: 69.29 | F85: 138.58
A86: IAAP06422 | B86: Eveque Competition Hurdle 50cm - Pack of 8 | D86: 1 | E86: 192.77 | F86: 192.77
A87: INBP05126 | B87: Mitre Netball Bib Youth Up to 38in - Emerald Pack of 7 | D87: 1 | E87: 49.13 | F87: 49.13
A88: IPED76237 | B88: Coated Foam Ball 160mm - Red | D88: 4 | E88: 10.07 | F88: 40.28
A89: INBP09249 | B89: Gilbert Apt Netball - Size 4 - Pack of 12 | D89: 3 | E89: 113.25 | F89: 339.75
A90: IAAP06431 | B90: Eveque Primary Shot - 4 Pack - Assorted Colours | D90: 2 | E90: 71.81 | F90: 143.62
A91: IPEE84129 | B91: Rubber Quoits | D91: 2 | E91: 31.49 | F91: 62.98
A92: IGYP10983 | B92: Alignment Safety Mattresses - 6' x 4' x 4" (1.83m x 1.22m x 100mm) | D92: 4 | E92: 186.47 | F92: 745.88
A93: ITNP08643 | B93: Zsig 17in Tennis Raquet - 17in | D93: 20 | E93: 19.52 | F93: 390.4
A94: ITRP06735 | B94: Kidzcanplay Nursery Kit | C94: KIT | D94: 1 | E94: 503.99 | F94: 503.99
A95: IRGP08733 | B95: Precision Bib Carry Bag | D95: 4 | E95: 6.92 | F95: 27.68
A96: IFBD80301 | B96: Mitre® Mesh Panelled Bag | D96: 2 | E96: 23.05 | F96: 46.1
A97: ITRP11597 | B97: Teaching Primary PE | C97: EA | D97: 2 | E97: 25.19 | F97: 50.38
A98: HC1569022 | B98: Flexible Marker Cones - Pack of 50 | C98: P50 | D98: 4 | E98: 20.15 | F98: 80.6
A99: INBL78669 | B99: High Fives Bib Set - Yellow - 8-14 Years - Pack of 8 | D99: 1 | E99: 35.27 | F99: 35.27
A100: IFBP02414 | B100: Samba Match Football Goal 12x6ft | D100: 8 | E100: 171.35 | F100: 1370.8
A101: ICKP07979 | B101: Slazenger Reflex Stump Set | D101: 6 | E101: 31.49 | F101: 188.94
A102: HC1003759 | B102: Beanbags Pack - Pack of 18 - Assorted | C102: P18 | D102: 4 | E102: 16.75 | F102: 67
A103: IGYP09611 | B103: Beemat Folding Balance Beam | D103: 2 | E103: 201.59 | F103: 403.18
A104: ITRP01771 | B104: P.E. Lesson Plans - Year 4 | D104: 1 | E104: 32.12 | F104: 32.12
A105: ISGP08323 | B105: Davies Sports All Purpose Holdall | D105: 3 | E105: 10.07 | F105: 30.21
A106: ITNP07877 | B106: Davies Sports Practice Tennis Balls - Pack of 96 | D106: 1 | E106: 100.79 | F106: 100.79

Sheet Office and Display
F1: Basket Total | G1: =SUM(G3:G38) -> 6323.79
A2: Product Code | B2: Product Description | C2: Units of Measure | D2: Quantity | E2: Section | F2: Unit Price | G2: Total Price
A3: Office & Admin Stationery
A4: HC1699057 | B4: Classmate Tape Dispenser | C4: 1 | D4: 10 | E4: Office & Admin Stationery | F4: 6.92 | G4: =F4*D4 -> 69.2
A5: HC397442 | B5: C M Easytear Tape 24mmx66m Pk6 | C5: 6 | D5: 5 | F5: 5.66 | G5: =F5*D5 -> 28.3
A6: HC1109952 | B6: Blu Tack Original 120g | C6: 12 | D6: 10 | F6: 13.85 | G6: 138.5
A7: HC1691706 | B7: Classmates Ballpoint Pens Blk Pk50 | C7: 50 | D7: 6 | F7: 5.03 | G7: 30.18
A8: HC1691704 | B8: Classmates Ballpoint Pens Blue Pk50 | C8: 50 | D8: 6 | F8: 5.03 | G8: 30.18
A9: HC1319169 | B9: Bic Crystal Fun Pen Asst P20 | C9: 20 | D9: 4 | F9: 6.92 | G9: 27.68
A10: HC1691792 | B10: Classmates Highlighters 5 Colours Pk 48 | C10: 48 | D10: 2 | F10: 10.7 | G10: 21.4
A11: HC388225 | B11: CM Sticky Note 40x50mm Neonx12 | C11: 12 | D11: 8 | F11: 4.15 | G11: 33.2
A12: HC282392 | B12: CM Sticky Note 75x75mm Neon P12 | C12: 12 | D12: 5 | F12: 4.15 | G12: 20.75
A13: HC1307750 | B13: Titanium 21cm Scissors | C13: 1 | D13: 20 | F13: 12.97 | G13: 259.4
A14: HC298785 | B14: Rapesco 835p Heavy Duty Hole Punch | C14: 1 | D14: 10 | F14: 12.84 | G14: 128.4
A15: HC322718 | B15: CM SP100 Half Strip Stapler | C15: 1 | D15: 10 | F15: 6.92 | G15: 69.2
A16: HC194863 | B16: Rapesco 24/6 Staples P5000 | C16: 5000 | D16: 10 | F16: 4.4 | G16: 44
A17: HC1694632 | B17: Classmates Stationery Pack | C17: 6 | D17: 10 | F17: 20.15 | G17: 201.5
A18: HC285343 | B18: RapescoMarlin LngReach Stapler | C18: 1 | D18: 1 | F18: 21.41 | G18: 21.41
A19: CP00051463 | B19: Economy Pocket A4 Clear - Pack 100 | C19: PK | D19: 5 | F19: 7.55 | G19: 37.75
A20: HC395141 | B20: A4 Report Files Assorted PK25 | C20: 25 | D20: 5 | F20: 10.7 | G20: 53.5
A21: HC1247961 | B21: Classmates Document Wallets Assort | C21: 50 | D21: 5 | F21: 9.44 | G21: 47.2
A22: HC1251127 | B22: Classmates Box File Blue | C22: 1 | D22: 50 | F22: 11.33 | G22: 566.5
A23: HC422961 | B23: A4 Subject Dividers 10 Part P25 | C23: 25 | D23: 10 | F23: 22.04 | G23: 220.4
A24: HC48402773 | B24: Fadeless Stockroom Rolls Standard PK48 | C24: 10 | D24: 8 | F24: 143.63 | G24: 1149.04
A25: HC1676675 | B25: Classmates Border Rolls P10 | C25: 10 | D25: 16 | F25: 22.54 | G25: 360.64
A26: HC1228256 | B26: CM LtWeight Lapboard A4 Lined P10 | C26: 10 | D26: 3 | F26: 18.9 | G26: 56.7
A27: HC313046 | B27: Classmate Mini Whiteboard Eraser Pk30 | C27: 30 | D27: 1 | F27: 20.15 | G27: 20.15
A28: HC312162 | B28: Staedtler Wboard Pens Asst P36 | C28: 36 | D28: 30 | F28: 18.89 | G28: 566.7
A29: HC312149 | B29: Staedtler Wboard Pens Blk P36 | C29: 36 | D29: 30 | F29: 20.15 | G29: 604.5
A30: HC394166 | B30: CM Whiteboard Cleaner 250ml | C30: 1 | D30: 50 | F30: 5.66 | G30: 283
A31: DISPLAY
A32: HC88200465 | B32: Fadeless® Display Rolls Stockroom Assortment - Pack of 24 | D32: 2 | F32: 133.55 | G32: =F32*D32 -> 267.1
A33: HC157007 | B33: Fadeless® Designs Stockroom Assortment | D33: 2 | F33: 156.23 | G33: 312.46
A34: HC490938 | B34: Classmates A4+ Mounting Paper Black - Pack of 100 | D34: 10 | F34: 11.33 | G34: 113.3
A35: HC360457 | B35: Classmates Mounting Paper Assorted A3+ - Pack of 100 | D35: 10 | F35: 16.37 | G35: 163.7
A36: HC1563909 | B36: Bumper Display Accents Combo Pack | D36: 5 | F36: 47.87 | G36: 239.35
A37: HC1660098 | B37: Giant Display Snowmen | D37: 5 | F37: 13.85 | G37: 69.25
A38: HC1660096 | B38: Giant Display Trees | D38: 5 | F38: 13.85 | G38: 69.25

Sheet Whole School Resources
F1: Basket Total | G1: =SUM(G3:G53) -> 4144.08
A2: Product Code | B2: Product Description | C2: Units of Measure | D2: Quantity | E2: Section | F2: Unit Price | G2: Total Price
A3: Bulk Buy KS2
A4: HC1000440 | B4: Ancient Egypt Photopack | C4: 1 | D4: 1 | E4: Whole School Supplies | F4: 37.16 | G4: =F4*D4 -> 37.16
A5: HC1645638 | B5: Papyrus Pre Drawn Sheets Pack 5 | C5: 5 | D5: 3 | F5: 7.55 | G5: 22.65
A6: HC1671996 | B6: Roman Archeology Pack | C6: 1 | D6: 1 | F6: 64.25 | G6: 64.25
A7: HC1247350 | B7: A4 Plain whiteboards, pens and erasers | C7: 100 | D7: 3 | F7: 214.2 | G7: 642.6
A8: HC1778191 | B8: Group Listening Package | C8: 1 | D8: 3 | F8: 188.99 | G8: 566.97
A9: HC1774082 | B9: Berol Handwriting Pen - Blue | C9: 200 | D9: 2 | F9: 68.03 | G9: 136.06
A10: HC418983 | B10: Polydron Geometry Maths Set | C10: 266 | D10: 4 | F10: 209.16 | G10: 836.64
A11: HC337200 | B11: Staedtler HB Graphite Noris Pencils | C11: 1500 | D11: 1 | F11: 170.09 | G11: 170.09
A12: HC310173 | B12: Staedtler Ballpoint Pen Red | C12: 50 | D12: 2 | F12: 10.07 | G12: 20.14
A13: HC310160 | B13: Staedtler Ballpoint Pen Green | C13: 50 | D13: 2 | F13: 10.07 | G13: 20.14
A14: HC310134 | B14: Staedtler Ballpoint Pen Black | C14: 50 | D14: 2 | F14: 10.07 | G14: 20.14
A15: HC310147 | B15: Staedtler Ballpoint Pen Blue | C15: 50 | D15: 2 | F15: 10.07 | G15: 20.14
A16: HC303023 | B16: Gloy Glue Stick - 40g - Pack of 30 | D16: 1 | F16: 52.91 | G16: 52.91
A17: HC490132 | B17: Classmates Shatter Resistant Ruler Transparent 30cm - Pack of 100 | D17: 1 | F17: 18.89 | G17: 18.89
A18: E8R04325 | B18: Classmates Mini Board Eraser - Pack of 30 | D18: 1 | F18: 20.15 | G18: 20.15
A19: HC1815185 | B19: Classmates School Scissors in Box - Right and Left Handed - Pack of 32 | D19: 1 | F19: 22.67 | G19: 22.67
A20: HC903071 | B20: Stabilo® Trio Triangular Colouring Pencils | D20: 1 | F20: 46.61 | G20: 46.61
A21: ECMT13601 | B21: Stabilo HB Graphite Learner Pencils - Pack of 48 | D21: 1 | F21: 66.77 | G21: 66.77
A22: HC1774064 | B22: Berol Colour Pens - Broad Assorted - Pack of 288 | D22: 1 | F22: 75.97 | G22: 75.97
A23: HC1097345 | B23: Classmates Eraser White - Pack of 20 | D23: 1 | F23: 4.4 | G23: 4.4
A24: HC1691792 | B24: Classmates Highlighter Assorted - Pack of 48 | D24: 1 | F24: 10.7 | G24: 10.7
A25: HC1585922 | B25: Berol Whiteboard Marker Pens Assorted Bullet Tip - Pack of 96 | D25: 1 | F25: 54.17 | G25: 54.17
A26: EFMT14412 | B26: Classmates A4 Rigid Lapboard Plain- Pack of 35 | D26: 1 | F26: 73.08 | G26: 73.08
A27: HC1774070 | B27: Berol® Colour Fine Pens - Assorted pack of 288 | D27: 1 | F27: 75.97 | G27: 75.97
A28: HC316231 | B28: Classmates Single Hole Sharpener - Pack of 24 | D28: 1 | F28: 8.81 | G28: 8.81
A29: Additional Stationery
A30: HC1815181 | B30: Classmates School Scissors - Left Handed | D30: 2 | E30: Stationery | F30: 5.41 | G30: =F30*D30 -> 10.82
A31: HC1815179 | B31: Classmates School Scissors - Right Handed | D31: 4 | E31: Stationery | F31: 5.41 | G31: 21.64
A32: E8R03124 | B32: Classmates All Purpose Scissors - Right Handed | D32: 2 | E32: Stationery | F32: 6.92 | G32: 13.84
A33: HC1796373 | B33: Classmates HB Stripe Pencils - Pack of 150 | D33: 2 | E33: Stationery | F33: 9.69 | G33: 19.38
A34: E8R05404 | B34: Bostik Blu Tack Blue Original 120g - Pack of 12 | D34: 2 | E34: Stationery | F34: 13.85 | G34: 27.7
A35: HC1699057 | B35: Classmates Tape Dispenser Black | D35: 5 | E35: Stationery | F35: 6.92 | G35: 34.6
A36: E8R04304 | B36: Sellotape Original 24mm 66m - Pack of 6 | D36: 1 | E36: Stationery | F36: 9.44 | G36: 9.44
A37: HC88200582 | B37: Classmates 30cm/mm/inch Rulers | D37: 5 | E37: Stationery | F37: 4.9 | G37: 24.5
A38: HC1694652 | B38: Classmates Barrel Single Hole Sharpener - Pack of 10 | D38: 5 | E38: Stationery | F38: 7.55 | G38: 37.75
A39: HC1796369 | B39: Classmates Magnetic Board Eraser | D39: 4 | E39: Stationery | F39: 5.41 | G39: 21.64
A40: HC1319211 | B40: Electric Single Hole Sharpener | D40: 1 | E40: Stationery | F40: 55.43 | G40: 55.43
A41: HC131969 | B41: Staedtler Rasoplast Eraser Small White - Pack of 30 | D41: 2 | E41: Stationery | F41: 12.59 | G41: 25.18
A42: HC324005 | B42: Show-Me® MAGIX Board Cleaner 250ml | D42: 2 | E42: Stationery | F42: 16.37 | G42: 32.74
A43: HC1565760 | B43: Twin Wire Polyprop Notebooks - A5 | D43: 10 | E43: Stationery | F43: 20.15 | G43: 201.5
A44: HC298772 | B44: Rapesco Medium Duty Hole Punch | D44: 6 | E44: Stationery | F44: 9.06 | G44: 54.36
A45: HC1766074 | B45: Rapesco White | D45: 6 | E45: Stationery | F45: 9.44 | G45: 56.64
A46: HC194876 | B46: Rapesco Staples26/6mm - Pack of 5000 | D46: 6 | E46: Stationery | F46: 3.14 | G46: 18.84
A47: HC354412 | B47: SuperCut® Personal Trimmers - A3 - 460mm | D47: 2 | E47: Stationery | F47: 81.89 | G47: 163.78
A48: HC1501861 | B48: Construction Paper Block - 228 x 305mm | D48: 1 | E48: Stationery | F48: 42.83 | G48: 42.83
A49: HC1694632 | B49: Classmates Stationery Pack - Pack of 6 | D49: 1 | E49: Stationery | F49: 20.15 | G49: 20.15
A50: HC1202952 | B50: Easel Paper Rolls 508mm x 20m - Pack of 6 | D50: 1 | E50: Stationery | F50: 40.31 | G50: 40.31
A51: HC912912 | B51: A4 Graph Paper 2 10 and 20mm Squared 2 Hole Punched - 1 Ream | D51: 1 | E51: Stationery | F51: 18.38 | G51: 18.38
A52: HC1136125 | B52: Dymo LabelManager 160 Label Printer | D52: 1 | E52: Stationery | F52: 54.17 | G52: 54.17
A53: HC276321 | B53: D1 Standard Tape - 9mm x 7m - Black on white | D53: 2 | E53: Stationery | F53: 25.19 | G53: 50.38

Sheet Secondary Maths
G1: Basket Total | H1: =SUM(H3:H99) -> 3664.35
A2: Product Code | B2: Product Description | C2: Units of Measure | D2: Quantity | E2: Section | F2: Curriculum Area | G2: Unit Price | H2: Total Price
A3: MATHS
A4: HC1369266 | B4: Place Value Arrows Thousands Teacher | C4: 9 | D4: 2 | E4: Maths | F4: Number and Place Value | G4: 13.85 | H4: =G4*D4 -> 27.7
A5: HC1489774 | B5: Numicon Boxed Set Of 80 Shapes | C5: 80 | D5: 2 | F5: Number and Place Value | G5: 56.69 | H5: 113.38
A6: HC332676 | B6: 0-100 Table Top Number Lines Pk5 | C6: 5 | D6: 4 | F6: Number and Place Value | G6: 11.33 | H6: 45.32
A7: HC167602 | B7: 1 - 6 Dice (pkt Of 30) | C7: 30 | D7: 1 | F7: Number and Place Value | G7: 9.44 | H7: 9.44
A8: HC1002701 | B8: DoubleSided DryWipe Counting Board Pupil | C8: 30 | D8: 1 | F8: Number and Place Value | G8: 57.95 | H8: 57.95
A9: EFMT14690 | B9: A5 Double Sided Multiplication Grid - Pack of 35 | C9: 35 | D9: 1 | F9: Multiplication and Division | G9: 35.02 | H9: 35.02
A10: HC170930 | B10: Table Boards Class Pack | C10: 1 | D10: 1 | F10: Multiplication and Division | G10: 44.09 | H10: 44.09
A11: HC1535474 | B11: Addition, Subtraction, Multiplication and Division Poster Pack Pack of three | C11: 3 | D11: 1 | F11: Multiplication and Division | G11: 21.16 | H11: 21.16
A12: HC170384 | B12: Decimal Sliding Lines - Pupil - Pack of 30 | C12: 1 | D12: 1 | F12: Fractions, Decimals and Percentages | G12: 57.95 | H12: 57.95
A13: HC170371 | B13: Decimal Sliding Lines - Teacher | C13: 1 | D13: 1 | F13: Fractions, Decimals and Percentages | G13: 11.33 | H13: 11.33
A14: HC1290948 | B14: Fraction and Decimal Counting Cards Pack of forty | C14: 40 | D14: 1 | F14: Fractions, Decimals and Percentages | G14: 25.19 | H14: 25.19
A15: HC1553921 | B15: Dry-Wipe Fraction Number Line Mats - Pack of 10 | C15: 10 | D15: 3 | F15: Fractions, Decimals and Percentages | G15: 15.11 | H15: 45.33
A16: HC167277 | B16: Fraction Number Fans Class Pack | C16: 30 | D16: 1 | F16: Fractions, Decimals and Percentages | G16: 35.02 | H16: 35.02
A17: HC1002641 | B17: Rainbow Fractions Circles | C17: 1 | D17: 1 | F17: Fractions, Decimals and Percentages | G17: 14.6 | H17: 14.6
A18: EFMT12536 | B18: Fraction Formula Game | C18: 1 | D18: 1 | F18: Fractions, Decimals and Percentages | G18: 35.27 | H18: 35.27
A19: HC1574046 | B19: Equivalence Crunchers - Pack of 25 | C19: 25 | D19: 2 | F19: Fractions, Decimals and Percentages | G19: 17.63 | H19: 35.26
A20: HC1571283 | B20: Cubes Fraction Set | C20: 1 | D20: 1 | F20: Fractions, Decimals and Percentages | G20: 15.99 | H20: 15.99
A21: HC1002807 | B21: Unbreakable Mirrors 90x65mm P10 | C21: 10 | D21: 2 | F21: Geometry | G21: 8.18 | H21: 16.36
A22: HC1002659 | B22: Geometric Large Shapes | C22: 17 | D22: 2 | F22: Geometry | G22: 31.49 | H22: 62.98
A23: HC1002639 | B23: Geometrc Plane Shapes Set 1-50mm | C23: 160 | D23: 2 | F23: Geometry | G23: 36.28 | H23: 72.56
A24: HC388771 | B24: Helix Geometry Class Pack | C24: 1 | D24: 1 | F24: Geometry | G24: 69.29 | H24: 69.29
A25: HC424404 | B25: Geoboards 6 Colours 230mm | C25: 6 | D25: 4 | F25: Geometry | G25: 22.67 | H25: 90.68
A26: HC181213 | B26: Tape Measure Pack of 10 | C26: 10 | D26: 2 | F26: Measurement | G26: 11.33 | H26: 22.66
A27: E8A73842 | B27: 1m Wood Rule - Marked CM And MM | C27: 1 | D27: 5 | F27: Measurement | G27: 5.03 | H27: 25.15
A28: EFMT14433 | B28: Class Coin Set | C28: 1 | D28: 1 | F28: Measurement | G28: 37.79 | H28: 37.79
A29: E8R09487 | B29: Dual Power Timer - Pack of 5 | C29: 5 | D29: 1 | F29: Measurement | G29: 36.28 | H29: 36.28
A30: IAAP10741 | B30: Trundle Wheel with Counter | C30: 1 | D30: 3 | F30: Measurement | G30: 23.3 | H30: 69.9
A31: E8R08153 | B31: 1kg Mechanical Scale - White | C31: 1 | D31: 6 | F31: Measurement | G31: 15.11 | H31: 90.66
A32: HC88200579 | B32: Protractor - Pack of 10 Pack of ten | C32: 10 | D32: 4 | F32: Measurement | G32: 2.08 | H32: 8.32
A33: EDMT14144 | B33: Mini Time Tracker | C33: 1 | D33: 1 | F33: Measurement | G33: 28.34 | H33: 28.34
A34: HC166601 | B34: Multilink® Graph and Histogram Board | C34: 1 | D34: 1 | F34: Statistics | G34: 63.37 | H34: 63.37
A35: HC1197917 | B35: Oxford Student Maths Dictionary | C35: 1 | D35: 10 | F35: Teaching Resource | G35: 16.37 | H35: 163.7
A36: HC1201919 | B36: 50 Maths Revision Cards | C36: 1 | D36: 1 | F36: Teaching Resource | G36: 28.34 | H36: 28.34
A37: HC1866391 | B37: Algebra Links | C37: 1 | D37: 1 | F37: Algebra | G37: 22.42 | H37: 22.42
A38: HC1866395 | B38: First Algebra Links Dominoes Set 2 | C38: 1 | D38: 1 | F38: Algebra | G38: 13.22 | H38: 13.22
A39: HC1866393 | B39: First Algebra Links Dominoes Set 1 | C39: 1 | D39: 1 | F39: Algebra | G39: 13.22 | H39: 13.22
A40: HC167485 | B40: Multi-sided Dice | C40: 5 | D40: 6 | F40: Classroom Tools | G40: 5.41 | H40: 32.46
A41: HC167784 | B41: Coloured Dominoes Pk 168 | C41: 168 | D41: 1 | F41: Classroom Tools | G41: 20.1 | H41: 20.1
A42: HC1490618 | B42: Jumbo Number Pebbles | C42: 20 | D42: 1 | F42: Classroom Tools | G42: 44.09 | H42: 44.09
A43: HC167446 | B43: Foam Dice Blue | C43: 1 | D43: 5 | F43: Classroom Tools | G43: 10.19 | H43: 50.95
A44: HC312396 | B44: 100 Coloured Dice 4 Colours | C44: 100 | D44: 1 | F44: Classroom Tools | G44: 8.81 | H44: =G44*D44 -> 8.81
A45: HC1283650 | B45: Plastic Counters 22mm (pkt Of 500) | C45: 500 | D45: 1 | F45: Classroom Tools | G45: 12.59 | H45: 12.59
A46: HC165405 | B46: 1000pk Counting Sticks | C46: 1000 | D46: 1 | F46: Classroom Tools | G46: 25.83 | H46: 25.83
A47: HC1770182 | B47: Sand Timer - 1 Minute | C47: 1 | D47: 1 | F47: Classroom Tools | G47: 12.59 | H47: 12.59
A48: HC1770186 | B48: Sand Timer - 5 Minute | C48: 1 | D48: 1 | F48: Classroom Tools | G48: 12.59 | H48: 12.59
A49: HC165444 | B49: Transparent Counters - Pack 1000 | C49: 1000 | D49: 1 | F49: Classroom Tools | G49: 23.93 | H49: 23.93
A50: HC1664905 | B50: Abacus | C50: 1 | D50: 1 | F50: Classroom Tools | G50: 15.86 | H50: 15.86
A51: EFMT11934 | B51: Multilink® Cubes (500) | C51: 500 | D51: 1 | F51: Classroom Tools | G51: 98.27 | H51: 98.27
A52: HC1524135 | B52: Multilink® Grid Tray Sheets | C52: 3 | D52: 1 | F52: Classroom Tools | G52: 35.02 | H52: 35.02
A53: EFMT13263 | B53: Multilink® Grid Tray | C53: 1 | D53: 15 | F53: Classroom Tools | G53: 12.59 | H53: 188.85
A54: EGMT13635 | B54: Base 10 Set from Hope Education | C54: 1 | D54: 1 | F54: Classroom Tools | G54: 71.81 | H54: 71.81
A55: EFMT14205 | B55: Giant Magnetic Base 10 Demonstration Set | C55: 1 | D55: 1 | F55: Classroom Tools | G55: 31.49 | H55: 31.49
A56: HC167121 | B56: Write-On/Wipe-Off 100 Squares - Pack of 35 | C56: 35 | D56: 1 | F56: Classroom Tools | G56: 18.89 | H56: 18.89
A57: HC1822714 | B57: Eco Friendly 20 Bead String | C57: 1 | D57: 15 | F57: Classroom Tools | G57: 7.93 | H57: 118.95
A58: HC1822716 | B58: Eco-friendly 100 Bead String | C58: 1 | D58: 1 | F58: Classroom Tools | G58: 31.87 | H58: 31.87
A59: HC373873 | B59: Jumbo Playing Cards | C59: 1 | D59: 5 | F59: Classroom Tools | G59: 5.41 | H59: 27.05
A60: HC167719 | B60: Playing Cards | C60: 1 | D60: 15 | F60: Classroom Tools | G60: 1.88 | H60: 28.2
A61: HC167576 | B61: Polyhedron Number Dice - Pack 35 | C61: 35 | D61: 1 | F61: Classroom Tools | G61: 10.82 | H61: 10.82
A62: EFMT14179 | B62: Teacher Whiteboard Dice | C62: 4 | D62: 1 | F62: Classroom Tools | G62: 42.83 | H62: 42.83
A63: HC1556574 | B63: Essentials Universal Holder Compass - Pack of 10 Pack of ten | C63: 10 | D63: 4 | F63: Classroom Tools | G63: 6.29 | H63: 25.16
A64: HC1677719 | B64: Double-Sided Dry Erase Teachers' Graph Board | C64: 1 | D64: 1 | F64: Classroom Tools | G64: 20.79 | H64: 20.79
A65: EFMT11929 | B65: Unifix® Cubes - Pack of 500 | C65: 500 | D65: 1 | F65: Classroom Tools | G65: 35.9 | H65: 35.9
A66: HC1798670 | B66: Casio Scientific Calculator | C66: EA | D66: 10 | F66: Classroom Tools | G66: 20.15 | H66: 201.5
A67: HC1564958 | B67: Easy Read Time Teacher - 24-Hour Classroom Wall Clock | C67: 1 | D67: 1 | F67: Display | G67: 41.57 | H67: 41.57
A68: HC166952 | B68: 0-100 Wall Number Line | C68: 1 | D68: 1 | F68: Display | G68: 13.22 | H68: 13.22
A69: STATIONERY
A70: HC337213 | B70: Staedtler Noris HB Pencils Pk150 | C70: 150 | D70: 1 | E70: Stationery | G70: 18.89 | H70: =G70*D70 -> 18.89
A71: HC1694632 | B71: Classmate Classroom Collection | C71: 9 | D71: 1 | G71: 20.15 | H71: =G71*D71 -> 20.15
A72: HC206745 | B72: A4 Bulky Zip Wallets Asst P100 | C72: 100 | D72: 1 | G72: 52.91 | H72: =G72*D72 -> 52.91
A73: HC255469 | B73: A5 Zip Wallets Red P25 | C73: 25 | D73: 3 | G73: 15.11 | H73: 45.33
A74: HC284654 | B74: CM Address Labels 89x36mm P250 | C74: 250 | D74: 2 | G74: 5.03 | H74: 10.06
A75: HC282418 | B75: CM Sticky Note Cube Neon 75x75mm | C75: 1 | D75: 5 | G75: 4.15 | H75: 20.75
A76: HC1691792 | B76: Classmates Highlighters 5 Colours Pk 48 | C76: 48 | D76: 1 | G76: 10.7 | H76: 10.7
A77: HC316244 | B77: CM Metal Sharpeners Double Hole Pk12 | C77: 12 | D77: 2 | G77: 11.33 | H77: 22.66
A78: HC131969 | B78: Staedtler Rasoplast Eraser P30 | C78: 30 | D78: 1 | G78: 12.59 | H78: 12.59
A79: HC88200582 | B79: Shatterproof 30cm/mm Clear Ruler Pk10 | C79: 10 | D79: 3 | G79: 4.9 | H79: 14.7
A80: HC298772 | B80: Rapesco X5-30PS Medium Duty Hole Punch | C80: 1 | D80: 1 | G80: 9.06 | H80: 9.06
A81: HC397364 | B81: Rapesco Sting Ray Half Strip Stapler | C81: 1 | D81: 1 | G81: 8.18 | H81: 8.18
A82: HC194863 | B82: Rapesco 24/6 Staples P5000 | C82: 5000 | D82: 1 | G82: 4.4 | H82: 4.4
A83: HC186556 | B83: Paper Fasteners 25mm Pack 200 | C83: 200 | D83: 1 | G83: 6.92 | H83: 6.92
A84: HC179406 | B84: Treasury Tag 51mm Yellow P100 | C84: 100 | D84: 1 | G84: 3.77 | H84: 3.77
A85: HC397442 | B85: C M Easytear Tape 24mmx66m Pk6 | C85: 6 | D85: 1 | G85: 5.66 | H85: 5.66
A86: HC1699057 | B86: Classmate Tape Dispenser | C86: 1 | D86: 1 | G86: 6.92 | H86: 6.92
A87: HC322874 | B87: Classmates Dble Sided Tape 12mmx33mm Pk6 | C87: 6 | D87: 1 | G87: 11.96 | H87: 11.96
A88: HC225517 | B88: C M Masking Tape 24mmx50mx9 | C88: 9 | D88: 1 | G88: 15.11 | H88: 15.11
A89: HC1109953 | B89: Blu Tack Original 60g | C89: 12 | D89: 1 | G89: 11.96 | H89: 11.96
A90: HC479745 | B90: A4 Hardboard Clipboard P12 | C90: 12 | D90: 2 | G90: 35.27 | H90: 70.54
A91: HC279324 | B91: Sellotape® Loop Spots - 125 Spots | C91: 125 | D91: 2 | G91: 11.71 | H91: 23.42
A92: HC279337 | B92: Sellotape® Hook Spots - 125 Spots | C92: 125 | D92: 2 | G92: 11.71 | H92: 23.42
A93: HC881054 | B93: CM LtWeight Lapboard A4 Lined P35 | C93: 35 | D93: 1 | G93: 65.52 | H93: 65.52
A94: HC1102952 | B94: Edding 8 All Purpose Assorted, Bullet Tip - Pack of 144 | C94: 144 | D94: 1 | G94: 86.3 | H94: 86.3
A95: HC209241 | B95: Giotto Metallic Fibre Pens P24 | C95: 24 | D95: 5 | G95: 23.3 | H95: 116.5
A96: HC1815185 | B96: School Scissor Set P32 inc Box | C96: 32 | D96: 1 | G96: 22.67 | H96: 22.67
A97: HC1815197 | B97: Classmates Dual Control Scissors - Right Handed | C97: 1 | D97: 12 | G97: 3.77 | H97: 45.24
A98: HC1815195 | B98: Classmates Easy Grip Scissors - Left Handed | C98: EA | D98: 3 | G98: 7.55 | H98: 22.65
A99: HC133737 | B99: Chubbi Stumps Pack 96 Assorted | C99: 96 | D99: 1 | G99: 8.18 | H99: 8.18

Sheet Secondary English
F1: Basket Total | G1: =SUM(G3:G38) -> 1448.73
A2: Product Code | B2: Product Description | C2: Units of Measure | D2: Quantity | E2: Section | F2: Unit Price | G2: Total Price
A3: STATIONERY
A4: HC337213 | B4: Staedtler Noris HB Pencils Pk150 | C4: 150 | D4: 1 | E4: Stationery | F4: 18.89 | G4: =F4*D4 -> 18.89
A5: HC1694632 | B5: Classmate Classroom Collection | C5: 9 | D5: 1 | F5: 20.15 | G5: 20.15
A6: HC206745 | B6: A4 Bulky Zip Wallets Asst P100 | C6: 100 | D6: 1 | F6: 52.91 | G6: 52.91
A7: HC255469 | B7: A5 Zip Wallets Red P25 | C7: 25 | D7: 3 | F7: 15.11 | G7: 45.33
A8: HC284654 | B8: CM Address Labels 89x36mm P250 | C8: 250 | D8: 2 | F8: 5.03 | G8: 10.06
A9: HC282418 | B9: CM Sticky Note Cube Neon 75x75mm | C9: 1 | D9: 5 | F9: 4.15 | G9: 20.75
A10: HC1691792 | B10: Classmates Highlighters 5 Colours Pk 48 | C10: 48 | D10: 1 | F10: 10.7 | G10: 10.7
A11: HC316244 | B11: CM Metal Sharpeners Double Hole Pk12 | C11: 12 | D11: 2 | F11: 11.33 | G11: 22.66
A12: HC131969 | B12: Staedtler Rasoplast Eraser P30 | C12: 30 | D12: 1 | F12: 12.59 | G12: 12.59
A13: HC88200582 | B13: Shatterproof 30cm/mm Clear Ruler Pk10 | C13: 10 | D13: 3 | F13: 4.9 | G13: 14.7
A14: HC298772 | B14: Rapesco X5-30PS Medium Duty Hole Punch | C14: 1 | D14: 1 | F14: 9.06 | G14: 9.06
A15: HC397364 | B15: Rapesco Sting Ray Half Strip Stapler | C15: 1 | D15: 1 | F15: 8.18 | G15: 8.18
A16: HC194863 | B16: Rapesco 24/6 Staples P5000 | C16: 5000 | D16: 1 | F16: 4.4 | G16: 4.4
A17: HC186556 | B17: Paper Fasteners 25mm Pack 200 | C17: 200 | D17: 1 | F17: 6.92 | G17: 6.92
A18: HC179406 | B18: Treasury Tag 51mm Yellow P100 | C18: 100 | D18: 1 | F18: 3.77 | G18: 3.77
A19: HC397442 | B19: C M Easytear Tape 24mmx66m Pk6 | C19: 6 | D19: 1 | F19: 5.66 | G19: 5.66
A20: HC1699057 | B20: Classmate Tape Dispenser | C20: 1 | D20: 1 | F20: 6.92 | G20: 6.92
A21: HC322874 | B21: Classmates Dble Sided Tape 12mmx33mm Pk6 | C21: 6 | D21: 1 | F21: 11.96 | G21: 11.96
A22: HC225517 | B22: C M Masking Tape 24mmx50mx9 | C22: 9 | D22: 1 | F22: 15.11 | G22: 15.11
A23: HC1109953 | B23: Blu Tack Original 60g | C23: 12 | D23: 1 | F23: 11.96 | G23: 11.96
A24: HC479745 | B24: A4 Hardboard Clipboard P12 | C24: 12 | D24: 2 | F24: 35.27 | G24: 70.54
A25: HC279324 | B25: Sellotape® Loop Spots - 125 Spots | C25: 125 | D25: 2 | F25: 11.71 | G25: 23.42
A26: HC279337 | B26: Sellotape® Hook Spots - 125 Spots | C26: 125 | D26: 2 | F26: 11.71 | G26: 23.42
A27: HC881054 | B27: CM LtWeight Lapboard A4 Lined P35 | C27: 35 | D27: 1 | F27: 65.52 | G27: 65.52
A28: HC1102952 | B28: Edding 8 All Purpose Assorted, Bullet Tip - Pack of 144 | C28: 144 | D28: 1 | F28: 86.3 | G28: 86.3
A29: HC209241 | B29: Giotto Metallic Fibre Pens P24 | C29: 24 | D29: 5 | F29: 23.3 | G29: 116.5
A30: HC1815185 | B30: School Scissor Set P32 inc Box | C30: 32 | D30: 1 | F30: 22.67 | G30: 22.67
A31: HC1815197 | B31: Classmates Dual Control Scissors - Right Handed | C31: 1 | D31: 12 | F31: 3.77 | G31: 45.24
A32: HC1815195 | B32: Classmates Easy Grip Scissors - Left Handed | C32: EA | D32: 3 | F32: 7.55 | G32: 22.65
A33: HC133737 | B33: Chubbi Stumps Pack 96 Assorted | C33: 96 | D33: 1 | F33: 8.18 | G33: 8.18
A34: ENGLISH
A35: HC1813022 | B35: Oxford English Dictionary for Schools | C35: 1 | D35: 16 | E35: English | F35: 16.37 | G35: =F35*D35 -> 261.92
A36: EBMT12291 | B36: Oxford School Thesaurus | C36: 1 | D36: 16 | F36: 16.37 | G36: =F36*D36 -> 261.92
A37: HC1547525 | B37: Proofreading and Editing Skills Extension Book | C37: 1 | D37: 1 | F37: 29.55 | G37: =F37*D37 -> 29.55
A38: HC1536830 | B38: Creative writing directory | C38: 1 | D38: 6 | F38: 16.37 | G38: =F38*D38 -> 98.22

Sheet Secondary Science
G1: Basket Total | H1: =SUM(H3:H188) -> 30259.65
A2: Product Code | B2: Product Description | C2: Units of Measure | D2: Quantity | E2: Section | F2: Curriculum Area | G2: Unit Price | H2: Total Price
A3: SCIENCE
A4: E8R06207 | B4: Safety Goggles | C4: Pack of 10 | D4: 4 | F4: Biology | G4: 30.18 | H4: =G4*D4 -> 120.72
A5: E8R06048 | B5: Electronic Water Bath | C5: each | D5: 1 | F5: Biology | G5: 453.54 | H5: 453.54
A6: E8R07897 | B6: Test Tubes | C6: Pack of 100 | D6: 1 | F6: Biology | G6: 32.76 | H6: 32.76
A7: HC1007879 | B7: Z Pattern Test Tube Stand - 200 x 125 x 75mm | C7: EA | D7: 20 | F7: Biology | G7: 3.28 | H7: 65.6
A8: E8A85789 | B8: Test Tube Holder | C8: each | D8: 20 | F8: Biology | G8: 0.63 | H8: 12.6
A9: E8R07839 | B9: Polyprop Tiles | C9: P10 | D9: 2 | F9: Biology | G9: 11.59 | H9: 23.18
A10: E8B93239 | B10: Syringes (5ml) | C10: Pack of 100 | D10: 1 | F10: Biology | G10: 16.88 | H10: 16.88
A11: E8R07845 | B11: Glass stirring rods | C11: Pack of 10 | D11: 3 | F11: Biology | G11: 3.09 | H11: 9.27
A12: E8R06358 | B12: Fastime 1 Stopwatch - Assorted - Pack of 6 | C12: P 6 | D12: 3 | F12: Biology | G12: 38.98 | H12: 116.94
A13: HC1007891 | B13: Red Spirit Filled Thermometer - Partial Immersion - 10/110 x 305mm - 1 | C13: EA | D13: 20 | F13: Biology | G13: 3.28 | H13: 65.6
A14: E8A77744 | B14: Disposable Pipettes (3ml) | C14: Pack of 500 | D14: 1 | F14: Biology | G14: 13.42 | H14: 13.42
A15: E8H71752 | B15: Filter Paper (simple) | C15: 100box | D15: 2 | F15: Biology | G15: 3.65 | H15: 7.3
A16: E8R07836 | B16: Filter Funnel - plastic | C16: Pack of 10 | D16: 3 | F16: Biology | G16: 6.93 | H16: 20.79
A17: E8R07876 | B17: 250ml conical flask | C17: Pack of 12 | D17: 3 | F17: Biology | G17: 18.21 | H17: 54.63
A18: E8R07862 | B18: 250ml beakers | C18: Pack of 12 | D18: 3 | F18: Biology | G18: 13.8 | H18: 41.4
A19: E8A57241 | B19: Bunsen Burner (if school has a Natural Gas supply) | C19: EA | D19: 20 | F19: Biology | G19: 6.3 | H19: 126
A20: E8A57253 | B20: Bunsen Burner (if school has a bottled Gas supply) | C20: EA | D20: 20 | F20: Biology | G20: 8.13 | H20: 162.6
A21: E8A88997 | B21: Tripod | C21: EA | D21: 20 | F21: Biology | G21: 7.25 | H21: 145
A22: E8A55335 | B22: Heatproof Mat | C22: P10 | D22: 2 | F22: Biology | G22: 7.62 | H22: 15.24
A23: E8A89667 | B23: Tubing for Bunsen Burners | C23: Per metre | D23: 15 | F23: Biology | G23: 1.95 | H23: 29.25
A24: E8R06710 | B24: Washing up Bowl (for the class) | C24: each | D24: 10 | F24: Biology | G24: 5.03 | H24: 50.3
A25: E8R07904 | B25: Boiling Tube | C25: Pack of 50 | D25: 2 | F25: Biology | G25: 29.48 | H25: 58.96
A26: E8A90463 | B26: Visking Tubing | C26: 5M | D26: 1 | F26: Biology | G26: 37.11 | H26: 37.11
A27: E8A58658 | B27: Visking Tubing Clips | C27: Pack of 10 | D27: 4 | F27: Biology | G27: 32.7 | H27: 130.8
A28: E8R06703 | B28: Kettle | C28: 1 | D28: 1 | F28: Biology | G28: 22.67 | H28: 22.67
A29: E8R07346 | B29: Class Dissection Bundle | C29: Kit | D29: 1 | F29: Biology | G29: 165.63 | H29: 165.63
A30: CP053202AD | B30: Measuring Cylinder Polypropylene 10mlP24 | C30: PK | D30: 1 | F30: Biology | G30: 19.03 | H30: 19.03
A31: E8H64838 | B31: Petri Dishes, Disposable - 90 x 15mm | C31: P20 | D31: 20 | F31: Biology | G31: 2.21 | H31: 44.2
A32: HC1299168 | B32: Y-shape Potato Peeler | C32: each | D32: 15 | F32: Biology | G32: 4.02 | H32: 60.3
A33: E8A86903 | B33: White Tile | C33: each | D33: 15 | F33: Biology | G33: 1.64 | H33: =G33*D33 -> 24.6
A34: E8R05511 | B34: Balance (2.d.p) | C34: each | D34: 2 | F34: Biology | G34: 129.72 | H34: 259.44
A35: E8R06127 | B35: Wash Bottle | C35: Pack of 5 | D35: 4 | F35: Biology | G35: 13.92 | H35: 55.68
A36: E8R08159 | B36: Crucible with lid | C36: 10 | D36: 2 | F36: Biology | G36: 56.89 | H36: 113.78
A37: E8A87269 | B37: Crucible Tongs | C37: 1 | D37: 18 | F37: Biology | G37: 1.83 | H37: 32.94
A38: CP053202AA | B38: Measuring Cylinder Polypropylene 25mlP12 | C38: PK | D38: 3 | F38: Biology | G38: 17.26 | H38: =G38*D38 -> 51.78
A39: E8R07349 | B39: Gas Exchange Systems Bundle | C39: Kit | D39: 1 | F39: Biology | G39: 265.42 | H39: 265.42
A40: E8H24920 | B40: Potometer Apparatus (on white stand) | C40: Each | D40: 5 | F40: Biology | G40: 54.12 | H40: 270.6
A41: E8R00226 | B41: Basic Blood Pressure Monitor | C41: each | D41: 1 | F41: Biology | G41: 59.22 | H41: 59.22
A42: E8R04633 | B42: Typical flower model | C42: each | D42: 1 | F42: Biology | G42: 36.35 | H42: 36.35
A43: E8H24956 | B43: Clinostat | C43: each | D43: 1 | F43: Biology | G43: 138.73 | H43: 138.73
A44: E8R00434 | B44: Plant growth kit | C44: each | D44: 1 | F44: Biology | G44: 87.7 | H44: 87.7
A45: HC1008491 | B45: Grid Quadrat 25 Squares | C45: EA | D45: 10 | F45: Biology | G45: 29.55 | H45: 295.5
A46: E8R06595 | B46: String | C46: 500g | D46: 2 | F46: Biology | G46: 13.85 | H46: 27.7
A47: IAAP10741 | B47: Trundle Wheel | C47: each | D47: 5 | F47: Biology | G47: 23.3 | H47: 116.5
A48: E8A82892 | B48: Bung with 1 hole | C48: Pack of 10 | D48: 3 | F48: Biology | G48: 4.41 | H48: 13.23
A49: E8R04532 | B49: Glass Delivery Tube | C49: Pack of 5 | D49: 4 | F49: Biology | G49: 25.14 | H49: 100.56
A50: E8A64221 | B50: Gauze | C50: Pack of 10 | D50: 2 | F50: Chemistry | G50: 9.45 | H50: =G50*D50 -> 18.9
A51: E8R06969 | B51: Conical Flask with side arm | C51: Pack of 6 | D51: 2 | F51: Chemistry | G51: 48.51 | H51: 97.02
A52: E8A83070 | B52: Conical bung with 1 holes | C52: Pack of 10 | D52: 3 | F52: Chemistry | G52: 3.72 | H52: 11.16
A53: E8R07899 | B53: Boiling tubes | C53: Pack of 50 | D53: 1 | F53: Chemistry | G53: 29.48 | H53: =G53*D53 -> 29.48
A54: E8R04527 | B54: Delivery Tubes (right angled) | C54: Pack of 5 | D54: 3 | F54: Chemistry | G54: 28.41 | H54: 85.23
A55: E8A57964 | B55: Chromatography Paper Roll | C55: 100M roll | D55: 1 | F55: Chemistry | G55: 74.4 | H55: 74.4
A56: E8R07860 | B56: 100ml beakers | C56: Pack of 12 | D56: 2 | F56: Chemistry | G56: 11.03 | H56: 22.06
A57: E8R07877 | B57: 100ml conical flask | C57: Pack of 12 | D57: 2 | F57: Chemistry | G57: 11.59 | H57: 23.18
A58: E8H71697 | B58: Filter Paper (110mm diameter) | C58: Pack of 100 | D58: 2 | F58: Chemistry | G58: 3.97 | H58: =G58*D58 -> 7.94
A59: E8A90517 | B59: Watch Glass | C59: Pack of 10 | D59: 2 | F59: Chemistry | G59: 4.85 | H59: 9.7
A60: E8R06745 | B60: Azlon Measuring Cylinder - 100mL - Pack of 5 | C60: P 5 | D60: 5 | F60: Chemistry | G60: 33.52 | H60: 167.6
A61: E8A53065 | B61: Evaporating Basin | C61: each | D61: 1 | F61: Chemistry | G61: 1.45 | H61: 1.45
A62: HC1007805 | B62: Nuffield Raised Centre Spatula | C62: EA | D62: 30 | F62: Chemistry | G62: 0.82 | H62: 24.6
A63: E8R06744 | B63: Azlon Measuring Cylinder - 50mL - Pack of 10 | C63: P10 | D63: 2 | F63: Chemistry | G63: 40.95 | H63: 81.9
A64: E8G65605 | B64: pH Indicator Paper | C64: RL | D64: 15 | F64: Chemistry | G64: 3.02 | H64: 45.3
A65: E8R06924 | B65: Emery Paper | C65: pack | D65: 5 | F65: Chemistry | G65: 5.28 | H65: 26.4
A66: HC1008189 | B66: Bench Power Unit | C66: EA | D66: 15 | F66: Chemistry | G66: 192.72 | H66: 2890.8
A67: E8H27726 | B67: Ammeter | C67: each | D67: 15 | F67: Chemistry | G67: 60.73 | H67: 910.95
A68: E8A49098 | B68: Variable Resistor | C68: each | D68: 15 | F68: Chemistry | G68: 43.16 | H68: 647.4
A69: E8R05708 | B69: 4mm leads black 250mm | C69: each | D69: 30 | F69: Chemistry | G69: 3.97 | H69: 119.1
A70: E8R05709 | B70: 4mm leads red 250mm | C70: each | D70: 30 | F70: Chemistry | G70: 3.97 | H70: 119.1
A71: E8A37242 | B71: Carbon Electrodes | C71: Pack of 50 | D71: 1 | F71: Chemistry | G71: 66.72 | H71: 66.72
A72: E8R07832 | B72: Burette | C72: each | D72: 15 | F72: Chemistry | G72: 12.41 | H72: 186.15
A73: E8R07837 | B73: Burette Stand | C73: each | D73: 15 | F73: Chemistry | G73: 10.52 | H73: 157.8
A74: E8R06006 | B74: Small filter funnel | C74: Pack of 10 | D74: 2 | F74: Chemistry | G74: 6.05 | H74: 12.1
A75: CP053187AA | B75: Graduated Pips class B Straight 25ml P5 | C75: PK | D75: 4 | F75: Chemistry | G75: 11.78 | H75: =G75*D75 -> 47.12
A76: E8A78037 | B76: Pipette Filler | C76: each | D76: 15 | F76: Chemistry | G76: 7.25 | H76: 108.75
A77: E8A83732 | B77: Water Trough (tupperware) | C77: each | D77: 15 | F77: Chemistry | G77: 6.92 | H77: 103.8
A78: E8R06571 | B78: Retort Stand Bundle | C78: each | D78: 15 | F78: Chemistry | G78: 20.35 | H78: 305.25
A79: E8A57409 | B79: Spirit Burners | C79: each | D79: 15 | F79: Chemistry | G79: 3.97 | H79: 59.55
A80: E8A64580 | B80: Nichrome wire loop | C80: Pack of 5 | D80: 4 | F80: Chemistry | G80: 4.73 | H80: 18.92
A81: HC1007249 | B81: Inoculating Loop Holder | C81: EA | D81: 20 | F81: Chemistry | G81: 3.21 | H81: 64.2
A82: E8A42006 | B82: Dynamics Trolley | C82: each | D82: 1 | F82: Physics | G82: 104.52 | H82: 104.52
A83: E8A84773 | B83: Ramp | C83: each | D83: 1 | F83: Physics | G83: 180.12 | H83: 180.12
A84: E8H72446 | B84: Pulley | C84: each | D84: 1 | F84: Physics | G84: 11.78 | H84: 11.78
A85: E8A73088 | B85: Hanging Masses (100g hanger + 9x100g masses) | C85: 1kg | D85: 15 | F85: Physics | G85: 14.55 | H85: 218.25
A86: E8R04304 | B86: Sellotape | C86: Pack of 6 | D86: 2 | F86: Physics | G86: 9.44 | H86: 18.88
A87: HC155005 | B87: Card | C87: pack | D87: 2 | F87: Physics | G87: 25.19 | H87: 50.38
A88: HC221760 | B88: Plasticine | C88: 500g | D88: 5 | F88: Physics | G88: 3.26 | H88: 16.3
A89: E8R08121 | B89: Sensordisc Datalogger | C89: each | D89: 2 | F89: Physics | G89: 554.34 | H89: 1108.68
A90: E8R08200 | B90: Light Gate Attachment for Datalogger | C90: each | D90: 2 | F90: Physics | G90: 70.88 | H90: =G90*D90 -> 141.76
A91: E8A41397 | B91: Springs | C91: Pack of 100 | D91: 2 | F91: Physics | G91: 13.42 | H91: 26.84
A92: E8R06010 | B92: Wires for Young's Modulus | C92: Pack of 6 | D92: 1 | F92: Physics | G92: 51.03 | H92: 51.03
A93: E8R04333 | B93: Elastic Bands | C93: 75g tub | D93: 2 | F93: Physics | G93: 3.77 | H93: 7.54
A94: E8R06357 | B94: G Clamp | C94: each | D94: 1 | F94: Physics | G94: 10.46 | H94: 10.46
A95: E8R05267 | B95: Owon Oscilloscope (30MHz, dual trace) | C95: each | D95: 1 | F95: Physics | G95: 382.98 | H95: 382.98
A96: E8G85793 | B96: Power Signal Generator | C96: each | D96: 1 | F96: Physics | G96: 482.83 | H96: 482.83
A97: E8L25835 | B97: Basic Electricity Kit | C97: Kit | D97: 2 | F97: Physics | G97: 410.7 | H97: 821.4
A98: E8H28287 | B98: Light Dependent resistor unit | C98: each | D98: 4 | F98: Physics | G98: 27.66 | H98: 110.64
A99: E8H28202 | B99: Thermistor | C99: each | D99: 4 | F99: Physics | G99: 17.45 | H99: =G99*D99 -> 69.8
A100: E8R07385 | B100: BEK White LED | C100: each | D100: 4 | F100: Physics | G100: 3.34 | H100: 13.36
A101: E8R05627 | B101: BEK Red LED | C101: each | D101: 4 | F101: Physics | G101: 3.72 | H101: 14.88
A102: E8R05628 | B102: BEK Green LED | C102: each | D102: 4 | F102: Physics | G102: 3.65 | H102: 14.6
A103: E8H26655 | B103: Malvern Electrostatics Kit | C103: Kit | D103: 1 | F103: Physics | G103: 142.32 | H103: 142.32
A104: E8H26758 | B104: Van de Graaff Generator | C104: each | D104: 1 | F104: Physics | G104: 511.62 | H104: 511.62
A105: E8H27763 | B105: DC Voltmeter | C105: each | D105: 15 | F105: Physics | G105: 73.96 | H105: 1109.4
A106: E8H28342 | B106: AC Ammeter | C106: each | D106: 15 | F106: Physics | G106: 100.04 | H106: 1500.6
A107: E8H29954 | B107: AC Voltmeter | C107: each | D107: 15 | F107: Physics | G107: 89.84 | H107: 1347.6
A108: E8R05981 | B108: Doppler Ball | C108: each | D108: 1 | F108: Physics | G108: 19.03 | H108: 19.03
A109: E8R07802 | B109: Midi Ripple Tank | C109: EA | D109: 1 | F109: Physics | G109: 264.54 | H109: 264.54
A110: E8A43497 | B110: Wire Helix (Slinky - 110mm) | C110: each | D110: 6 | F110: Physics | G110: 7.69 | H110: 46.14
A111: E8R06826 | B111: Vibration Generator with Accessories | C111: Kit | D111: 1 | F111: Physics | G111: 117.12 | H111: 117.12
A112: E8R06342 | B112: Ray Box with slit | C112: each | D112: 15 | F112: Physics | G112: 21.36 | H112: 320.4
A113: E8A45457 | B113: Rectangular Perspex Block | C113: each | D113: 15 | F113: Physics | G113: 7.88 | H113: 118.2
A114: E8A45470 | B114: Semi Circular Perspex Block | C114: each | D114: 15 | F114: Physics | G114: 5.23 | H114: 78.45
A115: E8A45639 | B115: Perspex Triangular Prism | C115: each | D115: 15 | F115: Physics | G115: 5.23 | H115: 78.45
A116: HC88200579 | B116: Protractor | C116: Pack of 10 | D116: 2 | F116: Physics | G116: 2.08 | H116: 4.16
A117: E8A45445 | B117: Glass Block | C117: each | D117: 15 | F117: Physics | G117: 6.05 | H117: 90.75
A118: E8R02657 | B118: Speed of Sound Kit | C118: Kit | D118: 1 | F118: Physics | G118: 327.54 | H118: 327.54
A119: E8R05153 | B119: Tuning forks | C119: Octave Set | D119: 1 | F119: Physics | G119: 56.26 | H119: 56.26
A120: E8R09545 | B120: Microphone to use with Oscilloscope | C120: each | D120: 1 | F120: Physics | G120: 47.12 | H120: 47.12
A121: E8G86207 | B121: Conductivity Star | C121: each | D121: 15 | F121: Physics | G121: 9.14 | H121: 137.1
A122: E8R07996 | B122: Tea Lights (to use with conductivity Star) | C122: Pack of 30 | D122: 1 | F122: Physics | G122: 5.48 | H122: 5.48
A123: E8A42754 | B123: Convection in Water Apparatus | C123: each | D123: 1 | F123: Physics | G123: 34.02 | H123: 34.02
A124: E8L26899 | B124: Leslie's Cube | C124: each | D124: 15 | F124: Physics | G124: 21.36 | H124: =G124*D124 -> 320.4
A125: E8R02933 | B125: Infrared Thermometer | C125: each | D125: 15 | F125: Physics | G125: 40.82 | H125: 612.3
A126: E8L78141 | B126: Cubes for Density Investigation | C126: 7 materials | D126: 2 | F126: Physics | G126: 83.73 | H126: 167.46
A127: E8H25201 | B127: Metal Blocks | C127: Set of 12 | D127: 2 | F127: Physics | G127: 37.74 | H127: 75.48
A128: E8L35816 | B128: Displacement Vessel | C128: each | D128: 15 | F128: Physics | G128: 9.45 | H128: 141.75
A129: CP00052913 | B129: Azlon Measuring Cylinder Squat 100ml P5 | C129: PK | D129: 3 | F129: Physics | G129: 39.25 | H129: 117.75
A130: E8R07063 | B130: Electronic Balance (2000g, 0.01g) | C130: each | D130: 2 | F130: Physics | G130: 200.53 | H130: 401.06
A131: E8R06830 | B131: Metal Block Calorimeter Bundle (1 x Copper, Aluminium, Brass, Steel) | C131: each | D131: 4 | F131: Physics | G131: 88.14 | H131: 352.56
A132: E8R07701 | B132: Insulation Jackets for Aluminium Calorimeter | C132: Pack of 5 | D132: 1 | F132: Physics | G132: 28.16 | H132: 28.16
A133: E8R07700 | B133: Insulation Jacket for Brass, Copper, Steel Calorimeters | C133: Pack of 5 | D133: 2 | F133: Physics | G133: 28.16 | H133: 56.32
A134: E8A42584 | B134: Immersion Heater | C134: each | D134: 15 | F134: Physics | G134: 27.03 | H134: 405.45
A135: E8R06814 | B135: Joulemeter | C135: each | D135: 15 | F135: Physics | G135: 134.57 | H135: 2018.55
A136: E8A46954 | B136: Bar Magnets | C136: Pair | D136: 15 | F136: Physics | G136: 11.47 | H136: 172.05
A137: E8R01312 | B137: Plotting Compass | C137: each | D137: 20 | F137: Physics | G137: 0.63 | H137: 12.6
A138: E8A47351 | B138: Iron Filings in Sprinkler Pot | C138: each | D138: 15 | F138: Physics | G138: 3.21 | H138: 48.15
A139: E8A47569 | B139: Magnetic Field Demonstrator | C139: each | D139: 3 | F139: Physics | G139: 30.18 | H139: 90.54
A140: E8H26321 | B140: Electromagnet | C140: each | D140: 15 | F140: Physics | G140: 11.47 | H140: 172.05
A141: E8H26629 | B141: Force on a Conductor Apparatus | C141: each | D141: 1 | F141: Physics | G141: 83.41 | H141: 83.41
A142: E8R03099 | B142: Solenoid superior | C142: each | D142: 1 | F142: Physics | G142: 134.82 | H142: 134.82
A143: E8R08076 | B143: Motor Kit | C143: each | D143: 1 | F143: Physics | G143: 49.77 | H143: 49.77
A144: E8R07405 | B144: Dual Range Ammeter | C144: each | D144: 1 | F144: Physics | G144: 72.83 | H144: 72.83
A145: E8R07403 | B145: Dual Range Voltmeter | C145: each | D145: 1 | F145: Physics | G145: 73.14 | H145: 73.14
A146: E8H26564 | B146: Dissectable Transformer Kit | C146: Kit | D146: 1 | F146: Physics | G146: 403.14 | H146: 403.14
A147: E8R08129 | B147: Mains Coil for Dissectable Transformer Kit | C147: each | D147: 1 | F147: Physics | G147: 48.89 | H147: 48.89
A148: E8R07210 | B148: National Grid Model | C148: each | D148: 1 | F148: Physics | G148: 187.68 | H148: 187.68
A149: CP052337 | B149: Radioactive Starter Kit | C149: EA | D149: 1 | F149: Physics | G149: 1321.68 | H149: 1321.68
A150: E8H29280 | B150: S-Range Digicounter For Timing Counting | C150: each | D150: 1 | F150: Physics | G150: 819.19 | H150: 819.19
A151: E8G85951 | B151: Half Life Analogue Kit | C151: Kit | D151: 1 | F151: Physics | G151: 76.86 | H151: 76.86
A152: E8H27179 | B152: Alpha Scattering Apparatus | C152: Kit | D152: 1 | F152: Physics | G152: 70.31 | H152: 70.31
A153: STATIONERY
A154: HC1691746 | B154: Felt Tipped Pens | C154: Pack of 40 | D154: 1 | E154: Stationery | G154: 10.07 | H154: =G154*D154 -> 10.07
A155: HC337213 | B155: Staedtler Noris HB Pencils Pk150 | C155: 150 | D155: 1 | G155: 18.89 | H155: =G155*D155 -> 18.89
A156: E8R05225 | B156: Desk Lamp | C156: 1 | D156: 1 | G156: 21.36 | H156: 21.36
A157: E8A73830 | B157: Metre Ruler | C157: 1 | D157: 10 | G157: 4.15 | H157: 41.5
A158: E8R07452 | B158: Permanent Markers, assorted | C158: 200 | D158: 1 | G158: 10.07 | H158: 10.07
A159: E8R05809 | B159: 15cm Ruler | C159: 100 | D159: 1 | G159: 16.37 | H159: 16.37
A160: HC1694632 | B160: Classmate Classroom Collection | C160: 9 | D160: 1 | G160: 20.15 | H160: =G160*D160 -> 20.15
A161: HC206745 | B161: A4 Bulky Zip Wallets Asst P100 | C161: 100 | D161: 1 | G161: 52.91 | H161: =G161*D161 -> 52.91
A162: HC255469 | B162: A5 Zip Wallets Red P25 | C162: 25 | D162: 3 | G162: 15.11 | H162: 45.33
A163: HC284654 | B163: CM Address Labels 89x36mm P250 | C163: 250 | D163: 2 | G163: 5.03 | H163: 10.06
A164: HC282418 | B164: CM Sticky Note Cube Neon 75x75mm | C164: 1 | D164: 5 | G164: 4.15 | H164: 20.75
A165: HC1691792 | B165: Classmates Highlighters 5 Colours Pk 48 | C165: 48 | D165: 1 | G165: 10.7 | H165: 10.7
A166: HC316244 | B166: CM Metal Sharpeners Double Hole Pk12 | C166: 12 | D166: 2 | G166: 11.33 | H166: 22.66
A167: HC131969 | B167: Staedtler Rasoplast Eraser P30 | C167: 30 | D167: 1 | G167: 12.59 | H167: 12.59
A168: HC88200582 | B168: Shatterproof 30cm/mm Clear Ruler Pk10 | C168: 10 | D168: 3 | G168: 4.9 | H168: 14.7
A169: HC298772 | B169: Rapesco X5-30PS Medium Duty Hole Punch | C169: 1 | D169: 1 | G169: 9.06 | H169: 9.06
A170: HC397364 | B170: Rapesco Sting Ray Half Strip Stapler | C170: 1 | D170: 1 | G170: 8.18 | H170: 8.18
A171: HC194863 | B171: Rapesco 24/6 Staples P5000 | C171: 5000 | D171: 1 | G171: 4.4 | H171: 4.4
A172: HC186556 | B172: Paper Fasteners 25mm Pack 200 | C172: 200 | D172: 1 | G172: 6.92 | H172: 6.92
A173: HC179406 | B173: Treasury Tag 51mm Yellow P100 | C173: 100 | D173: 1 | G173: 3.77 | H173: 3.77
A174: HC397442 | B174: C M Easytear Tape 24mmx66m Pk6 | C174: 6 | D174: 1 | G174: 5.66 | H174: 5.66
A175: HC1699057 | B175: Classmate Tape Dispenser | C175: 1 | D175: 1 | G175: 6.92 | H175: 6.92
A176: HC322874 | B176: Classmates Dble Sided Tape 12mmx33mm Pk6 | C176: 6 | D176: 1 | G176: 11.96 | H176: 11.96
A177: HC225517 | B177: C M Masking Tape 24mmx50mx9 | C177: 9 | D177: 1 | G177: 15.11 | H177: 15.11
A178: HC1109953 | B178: Blu Tack Original 60g | C178: 12 | D178: 1 | G178: 11.96 | H178: 11.96
A179: HC479745 | B179: A4 Hardboard Clipboard P12 | C179: 12 | D179: 2 | G179: 35.27 | H179: 70.54
A180: HC279324 | B180: Sellotape® Loop Spots - 125 Spots | C180: 125 | D180: 2 | G180: 11.71 | H180: 23.42
A181: HC279337 | B181: Sellotape® Hook Spots - 125 Spots | C181: 125 | D181: 2 | G181: 11.71 | H181: 23.42
A182: HC881054 | B182: CM LtWeight Lapboard A4 Lined P35 | C182: 35 | D182: 1 | G182: 65.52 | H182: 65.52
A183: HC1102952 | B183: Edding 8 All Purpose Assorted, Bullet Tip - Pack of 144 | C183: 144 | D183: 1 | G183: 86.3 | H183: 86.3
A184: HC209241 | B184: Giotto Metallic Fibre Pens P24 | C184: 24 | D184: 5 | G184: 23.3 | H184: 116.5
A185: HC1815185 | B185: School Scissor Set P32 inc Box | C185: 32 | D185: 1 | G185: 22.67 | H185: 22.67
A186: HC1815197 | B186: Classmates Dual Control Scissors - Right Handed | C186: 1 | D186: 12 | G186: 3.77 | H186: 45.24
A187: HC1815195 | B187: Classmates Easy Grip Scissors - Left Handed | C187: EA | D187: 3 | G187: 7.55 | H187: 22.65
A188: HC133737 | B188: Chubbi Stumps Pack 96 Assorted | C188: 96 | D188: 1 | G188: 8.18 | H188: 8.18

Sheet Science Prep
F1: Basket Total | G1: =SUM(G3:G105) -> 17685.34
A2: Product Code | B2: Product Description | C2: Units of Measure | D2: Quantity | E2: Section | F2: Unit Price | G2: Total Price
A3: SCIENCE
A4: E8R05184 | B4: Equipment Trolley (Single Column) | C4: each | D4: 1 | E4: Science Prep | F4: 201.6 | G4: =F4*D4 -> 201.6
A5: E8R05180 | B5: Equipment Trolley (Double Column) | C5: each | D5: 1 | F5: 239.4 | G5: 239.4
A6: E8R05178 | B6: Equipment Trolley (Three tier) | C6: each | D6: 1 | F6: 296.1 | G6: 296.1
A7: E8R05100 | B7: Gratnells Trays (shallow) | C7: Pack of 10 | D7: 2 | F7: 47.88 | G7: 95.76
A8: E8A88808 | B8: Gratnells Trays (deep) | C8: each | D8: 10 | F8: 6.93 | G8: 69.3
A9: E8R05921 | B9: Treble Column Tall Frame (for tray storage) | C9: each | D9: 1 | F9: 478.8 | G9: 478.8
A10: E8A84177 | B10: Radioactive Source Storage Cabinet | C10: each | D10: 1 | F10: 270.27 | G10: 270.27
A11: E8R06207 | B11: Safety Goggles | C11: Pack of 10 | D11: 1 | F11: 30.18 | G11: 30.18
A12: E8R05356 | B12: Safety Spectacle Holder | C12: each | D12: 1 | F12: 24.63 | G12: 24.63
A13: E8R06205 | B13: Face Shield | C13: each | D13: 2 | F13: 12.35 | G13: 24.7
A14: E8A80020 | B14: Safety Screen | C14: each | D14: 2 | F14: 28.29 | G14: 56.58
A15: E8R03304 | B15: Base for Safety Screen | C15: each | D15: 4 | F15: 9.14 | G15: 36.56
A16: E8R03227 | B16: Eyewash Station | C16: each | D16: 2 | F16: 27.71 | G16: 55.42
A17: E8R05273 | B17: First Aid Kit | C17: each | D17: 2 | F17: 50.39 | G17: 100.78
A18: E8R04385 | B18: Glass Disposal Bin | C18: Pack of 6 | D18: 1 | F18: 47.75 | G18: 47.75
A19: E8R05275 | B19: Nitrile Gloves (small) | C19: Pack of 100 | D19: 1 | F19: 25.19 | G19: 25.19
A20: E8R09350 | B20: Nitrile Gloves (Medium) | C20: Pack of 100 | D20: 1 | F20: 15.11 | G20: 15.11
A21: E8R09364 | B21: Nitrile Gloves (Large) | C21: Pack of 100 | D21: 1 | F21: 15.11 | G21: 15.11
A22: E8R06571 | B22: Retort Stand Bundle | C22: each | D22: 2 | F22: 20.35 | G22: 40.7
A23: E8R08063 | B23: Steel Ring Clamp for Retort Stand | C23: each | D23: 2 | F23: 4.28 | G23: 8.56
A24: E8R06574 | B24: Basic Chemistry Bundle | C24: each | D24: 1 | F24: 128.46 | G24: 128.46
A25: E8A89667 | B25: Rubber Tubing (for Bunsen Burners) | C25: per metre | D25: 20 | F25: 1.95 | G25: 39
A26: E8A81930 | B26: Wooden Spills | C26: Bundle of 1000 | D26: 1 | F26: 4.79 | G26: 4.79
A27: E8R06680 | B27: Matches | C27: Pack of 400 | D27: 1 | F27: 3.34 | G27: 3.34
A28: E8A85879 | B28: Test Tube Racks | C28: each | D28: 2 | F28: 3.28 | G28: 6.56
A29: E8A85789 | B29: Test Tube Holder | C29: each | D29: 2 | F29: 0.63 | G29: 1.26
A30: E8A87269 | B30: Tongs - Bowed | C30: each | D30: 2 | F30: 1.83 | G30: 3.66
A31: E8A87221 | B31: Tongs - Straight | C31: each | D31: 2 | F31: 2.08 | G31: 4.16
A32: E8R06710 | B32: Washing Up Bowl | C32: each | D32: 2 | F32: 5.03 | G32: 10.06
A33: E8L75814 | B33: Autoclave | C33: each | D33: 1 | F33: 1568.7 | G33: 1568.7
A34: E8R05642 | B34: Autoclave Bags | C34: Pack of 200 | D34: 1 | F34: 121.34 | G34: 121.34
A35: E8H64838 | B35: Petri Dishes, Disposable - 90 x 15mm | C35: P20 | D35: 20 | F35: 2.21 | G35: =F35*D35 -> 44.2
A36: E8A90797 | B36: Merit Water Still | C36: each | D36: 1 | F36: 1133.94 | G36: 1133.94
A37: E8R06049 | B37: Water Bath 12L | C37: each | D37: 1 | F37: 503.94 | G37: 503.94
A38: E8R04378 | B38: Hotplate Stirrer | C38: each | D38: 1 | F38: 413.22 | G38: 413.22
A39: E8A64476 | B39: Incubator/Oven | C39: each | D39: 1 | F39: 1159.2 | G39: 1159.2
A40: E8R07978 | B40: Analytical Balance (420g, 0.001g) | C40: each | D40: 1 | F40: 692.94 | G40: 692.94
A41: E8R06916 | B41: Weighing Boats | C41: Pack of 500 | D41: 1 | F41: 14.05 | G41: 14.05
A42: E8R09549 | B42: Mini Centrifuge | C42: each | D42: 1 | F42: 393.44 | G42: 393.44
A43: E8R05667 | B43: Mini Centrifuge Tubes | C43: Pack of 500 | D43: 1 | F43: 18.65 | G43: 18.65
A44: E8R06703 | B44: Kettle | C44: each | D44: 1 | F44: 22.67 | G44: 22.67
A45: E8L75383 | B45: Fume Cupboard | C45: each | D45: 1 | F45: 7209.09 | G45: 7209.09
A46: E8R07860 | B46: 100ml Glass Beakers | C46: 12pack | D46: 1 | F46: 11.03 | G46: 11.03
A47: E8R07862 | B47: 250ml Glass Beakers | C47: 12pack | D47: 1 | F47: 13.8 | G47: 13.8
A48: E8R07863 | B48: 400ml Glass Beakers | C48: Pack of 6 | D48: 1 | F48: 16.82 | G48: 16.82
A49: E8R07864 | B49: 600ml glass beakers | C49: Pack of 6 | D49: 1 | F49: 20.1 | G49: 20.1
A50: E8R07866 | B50: 1000ml Glass Beakers | C50: Pack of 6 | D50: 1 | F50: 33.52 | G50: 33.52
A51: E8A54367 | B51: 2000ml Glass Beaker | C51: each | D51: 2 | F51: 6.24 | G51: 12.48
A52: E8R03191 | B52: 100ml Azlon Plastic Beaker | C52: Pack of 10 | D52: 1 | F52: 26.02 | G52: 26.02
A53: E8R03192 | B53: 250ml Azlon Plastic Beaker | C53: Pack of 10 | D53: 1 | F53: 38.24 | G53: 38.24
A54: E8R03193 | B54: 500ml Azlon Plastic Beaker | C54: Pack of 10 | D54: 1 | F54: 42.65 | G54: 42.65
A55: E8R03231 | B55: 1000ml Azlon Plastic Beaker | C55: Pack of 5 | D55: 1 | F55: 31.69 | G55: 31.69
A56: E8R07874 | B56: 100ml Glass Conical Flask | C56: Pack of 12 | D56: 1 | F56: 25.14 | G56: 25.14
A57: E8R07876 | B57: 250ml Glass Conical Flask | C57: Pack of 12 | D57: 1 | F57: 18.21 | G57: 18.21
A58: E8R07875 | B58: 500ml Glass Conical Flask | C58: Pack of 6 | D58: 1 | F58: 22.24 | G58: 22.24
A59: E8R07260 | B59: Crystallising Basin | C59: Pack of 10 | D59: 1 | F59: 28.79 | G59: 28.79
A60: E8A53065 | B60: Evaporating Dish | C60: each | D60: 5 | F60: 1.45 | G60: 7.25
A61: E8R06289 | B61: Clear Soda Lime Bottles - 100mL | C61: P10 | D61: 2 | F61: 43.09 | G61: 86.18
A62: E8R06292 | B62: Clear Soda Lime Bottles - 250mL | C62: P10 | D62: 2 | F62: 47.31 | G62: 94.62
A63: CP00053172 | B63: Amber Glass Reagent Bottle250ml P10 | C63: PK | D63: 2 | F63: 47.82 | G63: 95.64
A64: E8A56340 | B64: Winchester Bottle - Amber glass, 2.5L | C64: each | D64: 5 | F64: 9.07 | G64: 45.35
A65: E8A77744 | B65: Disposable Pipettes | C65: Pack of 500 | D65: 2 | F65: 13.42 | G65: 26.84
A66: E8R07833 | B66: 60ml Glass Dropping Bottle | C66: Pack of 6 | D66: 5 | F66: 17.58 | G66: =F66*D66 -> 87.9
A67: E8R07822 | B67: Plastic Dropping Bottle (125ml) | C67: Pack of 10 | D67: 2 | F67: 13.29 | G67: 26.58
A68: E8R06307 | B68: McCartney Bottles | C68: Pack of 12 | D68: 5 | F68: 12.79 | G68: 63.95
A69: E8L32402 | B69: 10ml Glass Measuring Cylinders | C69: Pack of 10 | D69: 1 | F69: 24.26 | G69: 24.26
A70: E8L32414 | B70: 25ml Glass Measuring Cylinders | C70: Pack of 10 | D70: 1 | F70: 25.58 | G70: 25.58
A71: E8L32426 | B71: 50ml Glass Measuring Cylinders | C71: Pack of 10 | D71: 1 | F71: 26.84 | G71: 26.84
A72: E8L32438 | B72: 100ml Glass Measuring Cylinders | C72: Pack of 10 | D72: 1 | F72: 36.67 | G72: 36.67
A73: CP00053488 | B73: Academy Measuring Cylinder - 1000ml | C73: EA | D73: 2 | F73: 20.15 | G73: 40.3
A74: E8R06742 | B74: 10ml Plastic Measuring Cylinders | C74: Pack of 10 | D74: 1 | F74: 37.8 | G74: 37.8
A75: E8R06743 | B75: 25ml Plastic Measuring Cylinders | C75: Pack of 10 | D75: 1 | F75: 39.19 | G75: 39.19
A76: E8R06744 | B76: 50ml Plastic Measuring Cylinders | C76: Pack of 10 | D76: 1 | F76: 40.95 | G76: 40.95
A77: E8R06745 | B77: 100ml Plastic Measuring Cylinders | C77: Pack of 5 | D77: 1 | F77: 33.52 | G77: 33.52
A78: E8R06746 | B78: 250ml Plastic Measuring Cylinders | C78: each | D78: 2 | F78: 8.51 | G78: 17.02
A79: E8R07901 | B79: Test Tubes | C79: Pack of 100 | D79: 1 | F79: 20.98 | G79: 20.98
A80: E8A82855 | B80: Bung for Test Tube | C80: Pack of 10 | D80: 2 | F80: 1.58 | G80: 3.16
A81: E8R07899 | B81: Boiling Tubes | C81: Pack of 50 | D81: 1 | F81: 29.48 | G81: 29.48
A82: E8A82600 | B82: Bung for Boiling Tube | C82: Pack of 10 | D82: 2 | F82: 4.41 | G82: 8.82
A83: HC1007805 | B83: Nuffield Raised Centre Spatula | C83: EA | D83: 10 | F83: 0.82 | G83: 8.2
A84: E8R05681 | B84: Soldering Iron Kit | C84: each | D84: 1 | F84: 35.91 | G84: 35.91
A85: E8R05689 | B85: Lead free Solder | C85: reel | D85: 1 | F85: 48.38 | G85: 48.38
A86: E8R06092 | B86: Screwdriver Set | C86: Set | D86: 1 | F86: 4.66 | G86: 4.66
A87: E8R06100 | B87: Hex Key Set | C87: Set | D87: 1 | F87: 13.42 | G87: 13.42
A88: E8R06690 | B88: Battery Tester | C88: EA | D88: 2 | F88: 5.61 | G88: 11.22
A89: E8A88109 | B89: Wire Stripper | C89: each | D89: 1 | F89: 6.99 | G89: 6.99
A90: E8R06663 | B90: Digital Vernier Caliper | C90: each | D90: 1 | F90: 41.52 | G90: 41.52
A91: E8R07346 | B91: Dissection Kit | C91: Kit | D91: 1 | F91: 165.63 | G91: 165.63
A92: E8R06889 | B92: G-Clamp | C92: each | D92: 2 | F92: 17.51 | G92: 35.02
A93: E8R05604 | B93: Adjustable Pipette | C93: each | D93: 1 | F93: 114.03 | G93: 114.03
A94: E8R06924 | B94: Sand Paper | C94: each | D94: 1 | F94: 5.28 | G94: 5.28
A95: E8R05409 | B95: AA Batteries | C95: Pack of 4 | D95: 5 | F95: 1.88 | G95: 9.4
A96: E8R05400 | B96: AAA Batteries | C96: Pack of 4 | D96: 5 | F96: 1.88 | G96: 9.4
A97: E8R05412 | B97: D Batteries | C97: Pack of 2 | D97: 10 | F97: 2.26 | G97: 22.6
A98: E8R05410 | B98: PP3 Batteries | C98: each | D98: 10 | F98: 2.51 | G98: =F98*D98 -> 25.1
A99: E8R07044 | B99: Lithium Coin Cell Battery | C99: each | D99: 10 | F99: 1.88 | G99: 18.8
A100: E8A56728 | B100: 2.5V MES Bulb | C100: Pack of 10 | D100: 4 | F100: 8.06 | G100: 32.24
A101: E8A56765 | B101: 6V MES Bulb | C101: Pack of 10 | D101: 4 | F101: 7.56 | G101: 30.24
A102: E8A56777 | B102: 12V MES Bulb | C102: each | D102: 20 | F102: 1.45 | G102: 29
A103: E8R06551 | B103: Mixed Resistors | C103: Pack of 50 | D103: 1 | F103: 17.01 | G103: 17.01
A104: HC1009766 | B104: Lipsol Glass Cleaner | C104: 2 x 5L | D104: 2 | F104: 41.77 | G104: 83.54
A105: HC1790317 | B105: Washing Up Liquid | C105: 2 x 5L | D105: 1 | F105: 28.97 | G105: 28.97

Sheet Secondary Humanities
F1: Basket Total | G1: =SUM(G3:G36) -> 1118.25
A2: Product Code | B2: Product Description | C2: Units of Measure | D2: Quantity | E2: Section | F2: Unit Price | G2: Total Price
A3: STATIONERY
A4: HC337213 | B4: Staedtler Noris HB Pencils Pk150 | C4: 150 | D4: 1 | E4: Stationery | F4: 18.89 | G4: =F4*D4 -> 18.89
A5: HC1694632 | B5: Classmate Classroom Collection | C5: 9 | D5: 1 | F5: 20.15 | G5: 20.15
A6: HC206745 | B6: A4 Bulky Zip Wallets Asst P100 | C6: 100 | D6: 1 | F6: 52.91 | G6: 52.91
A7: HC255469 | B7: A5 Zip Wallets Red P25 | C7: 25 | D7: 3 | F7: 15.11 | G7: 45.33
A8: HC284654 | B8: CM Address Labels 89x36mm P250 | C8: 250 | D8: 2 | F8: 5.03 | G8: 10.06
A9: HC282418 | B9: CM Sticky Note Cube Neon 75x75mm | C9: 1 | D9: 5 | F9: 4.15 | G9: 20.75
A10: HC1691792 | B10: Classmates Highlighters 5 Colours Pk 48 | C10: 48 | D10: 1 | F10: 10.7 | G10: 10.7
A11: HC316244 | B11: CM Metal Sharpeners Double Hole Pk12 | C11: 12 | D11: 2 | F11: 11.33 | G11: 22.66
A12: HC131969 | B12: Staedtler Rasoplast Eraser P30 | C12: 30 | D12: 1 | F12: 12.59 | G12: 12.59
A13: HC88200582 | B13: Shatterproof 30cm/mm Clear Ruler Pk10 | C13: 10 | D13: 3 | F13: 4.9 | G13: 14.7
A14: HC298772 | B14: Rapesco X5-30PS Medium Duty Hole Punch | C14: 1 | D14: 1 | F14: 9.06 | G14: 9.06
A15: HC397364 | B15: Rapesco Sting Ray Half Strip Stapler | C15: 1 | D15: 1 | F15: 8.18 | G15: 8.18
A16: HC194863 | B16: Rapesco 24/6 Staples P5000 | C16: 5000 | D16: 1 | F16: 4.4 | G16: 4.4
A17: HC186556 | B17: Paper Fasteners 25mm Pack 200 | C17: 200 | D17: 1 | F17: 6.92 | G17: 6.92
A18: HC179406 | B18: Treasury Tag 51mm Yellow P100 | C18: 100 | D18: 1 | F18: 3.77 | G18: 3.77
A19: HC397442 | B19: C M Easytear Tape 24mmx66m Pk6 | C19: 6 | D19: 1 | F19: 5.66 | G19: 5.66
A20: HC1699057 | B20: Classmate Tape Dispenser | C20: 1 | D20: 1 | F20: 6.92 | G20: 6.92
A21: HC322874 | B21: Classmates Dble Sided Tape 12mmx33mm Pk6 | C21: 6 | D21: 1 | F21: 11.96 | G21: 11.96
A22: HC225517 | B22: C M Masking Tape 24mmx50mx9 | C22: 9 | D22: 1 | F22: 15.11 | G22: 15.11
A23: HC1109953 | B23: Blu Tack Original 60g | C23: 12 | D23: 1 | F23: 11.96 | G23: 11.96
A24: HC479745 | B24: A4 Hardboard Clipboard P12 | C24: 12 | D24: 2 | F24: 35.27 | G24: 70.54
A25: HC279324 | B25: Sellotape® Loop Spots - 125 Spots | C25: 125 | D25: 2 | F25: 11.71 | G25: 23.42
A26: HC279337 | B26: Sellotape® Hook Spots - 125 Spots | C26: 125 | D26: 2 | F26: 11.71 | G26: 23.42
A27: HC881054 | B27: CM LtWeight Lapboard A4 Lined P35 | C27: 35 | D27: 1 | F27: 65.52 | G27: 65.52
A28: HC1102952 | B28: Edding 8 All Purpose Assorted, Bullet Tip - Pack of 144 | C28: 144 | D28: 1 | F28: 86.3 | G28: 86.3
A29: HC209241 | B29: Giotto Metallic Fibre Pens P24 | C29: 24 | D29: 5 | F29: 23.3 | G29: 116.5
A30: HC1815185 | B30: School Scissor Set P32 inc Box | C30: 32 | D30: 1 | F30: 22.67 | G30: 22.67
A31: HC1815197 | B31: Classmates Dual Control Scissors - Right Handed | C31: 1 | D31: 12 | F31: 3.77 | G31: 45.24
A32: HC1815195 | B32: Classmates Easy Grip Scissors - Left Handed | C32: EA | D32: 3 | F32: 7.55 | G32: 22.65
A33: HC133737 | B33: Chubbi Stumps Pack 96 Assorted | C33: 96 | D33: 1 | F33: 8.18 | G33: 8.18
A34: GEOGRAPHY
A35: HC1003345 | B35: Discovery Globe 230mm | C35: 1 | D35: 1 | E35: GEOGRAPHY | F35: 39.05 | G35: =F35*D35 -> 39.05
A36: E8R06196 | B36: Philip's Modern School Atlas | C36: 1 | D36: 16 | F36: 17.63 | G36: =F36*D36 -> 282.08
